{"text_format":"1","workbook":"xlsx","n_sheets":5,"sheets":["Início","Historical","Downloader","Mercados","Função Excel"],"not_rendered":{"charts":0,"images":10,"macros":1,"external_links":0,"defined_names":13,"comments":0,"pivot_tables":0},"unopened":[],"bounds":{"document_bytes":16777216,"sheet_cells":100000,"rows_first":2000,"rows_last":500,"rows_between":2000,"halvings":0,"cell_chars":16384,"cell_head_chars":4096},"cells_cut":0,"cells_raw":0,"read":"whole","date_system":"1900"}

{"sheet":"Início","index":0,"n_rows":7,"n_cols":8,"rows_kept":7,"cut":false,"hidden":false,"merged":[]}
[]
[]
[]
[]
[]
[null,null,null,null,null,null,null,"1. APERTE NO BOTÃO HABILITAR EDIÇÃO"]
[null,null,null,null,null,null,null,"2. APERTE NO BOTÃO HABILITAR CONTEÚDO"]

{"sheet":"Historical","index":1,"n_rows":2148,"n_cols":28,"rows_kept":2148,"cut":false,"hidden":true,"merged":[]}
[null,null,null,null,null,null,null,null,null,{"$f":"COUNTA(K:K)+1","v":21},null,null,{"$f":"COUNTA(N:N)+1","v":347},null,{"$f":"COUNTA(P:P)+1","v":113},null,{"$f":"COUNTA(R:R)+1","v":29},null,null,{"$f":"COUNTA(U:U)+1","v":1459},null,{"$f":"COUNTA(W:W)+1","v":39},null,{"$f":"COUNTA(Y:Y)+1","v":152},null,{"$f":"COUNTA(AA:AA)+1","v":2148}]
[null,null,null,null,null,{"$f":"IFERROR(IF(Market=\"Moedas\",LEFT(Ticker,3)&\"/\"&RIGHT(Ticker,3),INDEX(Z:Z,MATCH(Ticker,AA:AA,0))),\"\")","v":"Petroleo Brasileiro SA Petrobras"},null,{"$f":"VLOOKUP(Historical!$C$7,Historical!$G$3:$H$7,2,FALSE)","v":"Valores diários"},null,"Índices BOVESPA","Código","Auxiliar","Ações BOVESPA","Código","Cryptomoedas","Código","Commodities","Código","Auxiliar","Fundos","Código","Moedas","Código","Top 150 do Mundo","Código","Ativo","Código","Tipo"]
[null,"Market:","BOVESPA - Sao Paulo Stock Exchange",{"$f":"VLOOKUP(C3,Mercados!$C:$D,2,FALSE)","v":".SA"},null,"Diário","Daily Prices","Valores diários",null,"I DIVIDENDOS","IDIV","IDIV.SA","AES Elpa SA","AELP3","0x","ZRX","Brent Crude Oil Last Day Financ","BZ","BZ%3DF","13D Activist A","DDDAX","AUD/JPY","AUDJPY","Abbott Laboratories","ABT","I DIVIDENDOS","IDIV","BOVESPA - ÍNDICES"]
[null,"Stock Symbol:",{"$f":"IF(Market=\"BOVESPA - ÍNDICES\",VLOOKUP(Ticker,$K:$L,2,FALSE),IF(Market=\"Commodities\",VLOOKUP(Ticker,$R:$S,2,FALSE),Ticker&IF(D3=\"N/A\",\"\",D3)))","v":"PETR4.SA"},"PETR4",null,"Semanal","Weekly Prices","Valores semanais",null,"IBOVESPA","IBOV","%5EBVSP","AES Tiete Energia SA","TIET11","AdEx","ADX","Cocoa Futures","CC","CC%3DF","13D Activist I","DDDIX","AUD/USD","AUDUSD","AbbVie Inc.","ABBV","IBOVESPA","IBOV","BOVESPA - ÍNDICES"]
[null,"End Date:",null,{"$f":"TODAY()-1","v":"2019-01-23"},null,"Mensal","Monthly Prices","Valores mensais",null,"IBRASIL","IBRA","IBRA.SA","AES Tiete Energia SA","TIET3","Aeternity","AE","Coffee 'C' Futures","KC","KC%3DF","AB Concentrated Growth I","WPSIX","BRL/ARS","BRLARS","Advanced Micro Devices, Inc.","AMD","IBRASIL","IBRA","BOVESPA - ÍNDICES"]
[null,"Start Date:",null,{"$f":"DATE(YEAR(D5),MONTH(D5)-6,1)","v":"2018-07-01"},null,"Dividendos","Dividends","Dividendos",null,"IBRX 50","IBXL","%5EIBX50","AES Tiete Energia SA","TIET4","Aragon","ANT","Copper","HG","HG%3DF","AB Core Opportunities K","ADGKX","BRL/AUD","BRLAUD","Alibaba Group Holding Limited","BABA","IBRX 50","IBXL","BOVESPA - ÍNDICES"]
[null,"Data Type:",{"$f":"VLOOKUP(Type,$F$3:$G$9,2,FALSE)","v":"Daily Prices"},"Diário",null,"Splits","Splits","Splits",null,"IBRX BRASIL","IBXX","IBXX.SA","Alfa Holdings SA","RPAD6","Ardor","ARDR","Corn Futures","C","C%3DF","AB Discovery Value A","ABASX","BRL/CAD","BRLCAD","Altaba Inc.","AABA","IBRX BRASIL","IBXX","BOVESPA - ÍNDICES"]
[null,"Date Order:",{"$f":"VLOOKUP(Order,$F$3:$G$9,2,FALSE)","v":"Ascending"},"Ascendente",null,"Ascendente","Ascending",null,null,"ICO2","ICO2","ICO2.SA","Aliansce Shopping Centers SA","ALSC3","ARK","ARK","Cotton No. 2 Futures","CT","CT%3DF","AB Discovery Value Advisor","ABYSX","BRL/CNY","BRLCNY","Altice USA, Inc.","ATUS","ICO2","ICO2","BOVESPA - ÍNDICES"]
[null,"Output Type:","Table",null,null,"Descendente","Descending",null,null,"ICONSUMO","ICON","ICON.SA","Alpargatas SA","ALPA3","ATB coin","ATB","Frozen Concentrated OJ (FCOJ-A)","OJ","OJ%3DF","AB Discovery Value I","ABSIX","BRL/EUR","BRLEUR","Altria Group, Inc.","MO","ICONSUMO","ICON","BOVESPA - ÍNDICES"]
[null,{"$f":"\"https://br.financas.yahoo.com/quote/\"&StockSymbol&\"/history?p=\"&StockSymbol","v":"https://br.financas.yahoo.com/quote/PETR4.SA/history?p=PETR4.SA"},null,null,null,"Relação Moedas",false,null,null,"IFINANCEIRO","IFNC","IFNC.SA","Alpargatas SA","ALPA4","Augur","REP","future for FC","FC","FC%3DF","AB Discovery Value K","ABSKX","BRL/GBP","BRLGBP","Ambev S.A.","ABEV","IFINANCEIRO","IFNC","BOVESPA - ÍNDICES"]
[null,"http://www.signalsolver.com/download-historical-stock-price-data-excel/",null,null,null,"Mercados",{"$f":"\"Mercados!C7:C\"&COUNTA(Mercados!B:B)+5","v":"Mercados!C7:C71"},null,null,"IGC - NM","IGNM","IGCNM.SA","Alupar Investimento SA","ALUP11","Autumncoin","ATM","future for KW","KW","KW%3DF","AB Discovery Value Z","ABSZX","BRL/INR","BRLINR","American Airlines Group Inc.","AAL","IGC - NM","IGNM","BOVESPA - ÍNDICES"]
[null,null,null,null,null,"Dados","Historical!F3:F7",null,null,"IGC TRADE","IGCT","IGCT.SA","Ambev SA","ABEV3","Bancor Network Token","BNT","future for LB","LB","LB%3DF","AB Large Cap Growth Advisor","APGYX","BRL/JPY","BRLJPY","Annaly Capital Management, Inc.","NLY","IGC TRADE","IGCT","BOVESPA - ÍNDICES"]
[null,null,null,null,null,"Ordem","Historical!F8:F9",null,null,"IGOVERNANCA","IGCX","%5EIGCX","Ampla Energia e Servicos SA","CBEE3","Basic Attention Token","BAT","future for LC","LC","LC%3DF","AB Large Cap Growth B","APGBX","BRL/SEK","BRLSEK","Apple Inc.","AAPL","IGOVERNANCA","IGCX","BOVESPA - ÍNDICES"]
[null,null,null,null,null,"Tipo","Historical!F17:F24",null,null,"IMAT BASICOS","IMAT","IMAT.SA","Anima Holding SA","ANIM3","Binance Coin","BNB","future for LH","LH","LH%3DF","AB Large Cap Growth C","APGCX","BRL/USD","BRLUSD","Applied Materials, Inc.","AMAT","IMAT BASICOS","IMAT","BOVESPA - ÍNDICES"]
[null,null,null,null,null,"Listas",{"$f":"VLOOKUP(H15,F17:G24,2,FALSE)","v":"Historical!$M$3:$N$347"},"Ações BOVESPA",null,"IMOBILIARIO","IMOB","IMOB.SA","Arezzo Industria E Comercio SA","ARZZ3","Bitcoin","BTC","Henry Hub Natural Gas Future","NG","NG%3DF","AB Large Cap Growth K","ALCKX","EUR/CAD","EURCAD","AT&T Inc.","T","IMOBILIARIO","IMOB","BOVESPA - ÍNDICES"]
[null,null,null,null,null,null,{"$f":"INDIRECT(ADDRESS(1,MATCH(IF(H15=\"Todos\",\"Ativo\",H15),$2:$2,0)))","v":347},{"$f":"VLOOKUP(H15,F17:H24,3,FALSE)","v":"BOVESPA - Sao Paulo Stock Exchange"},null,"IND FDO IMOB","IFIX","IFIX.SA","Atacadao SA","CRFB3","Bitcoin Cash / BCC","BCH","Mont Belvieu LDH Propane (OPIS)","B0","B0%3DF","AB Large Cap Growth Z","APGZX","EUR/CHF","EURCHF","Banco Bradesco S.A.","BBD","IND FDO IMOB","IFIX","BOVESPA - ÍNDICES"]
[null,null,null,null,null,"Ações BOVESPA",{"$f":"\"Historical!\"&ADDRESS(3,MATCH(F17,$2:$2,0))&\":\"&ADDRESS(INDIRECT(ADDRESS(1,MATCH(F17,$2:$2,0))),MATCH(F17,$2:$2,0)+1)","v":"Historical!$M$3:$N$347"},"BOVESPA - Sao Paulo Stock Exchange","","ISUSTENTABIL","ISEE","ISEE.SA","ATOM Empreendimentos e Participacoes SA","ATOM3","Bitcoin Gold","BTG","NY Harbor ULSD Futures","HO","HO%3DF","AB Select US Equity C","AUUCX","EUR/GBP","EURGBP","Banco Santander, S.A.","SAN","ISUSTENTABIL","ISEE","BOVESPA - ÍNDICES"]
[null,null,null,null,null,"Índices BOVESPA","Historical!$J$3:$K$21","BOVESPA - ÍNDICES","","IVBX2","IVBX","%5EIVBX2","Azevedo & Travassos SA","AZEV4","BitcoinDark","BTCD","Oats","O","O%3DF","AB Small Cap Growth Advisor","QUAYX","EUR/HUF","EURHUF","Bank of America Corporation","BAC","IVBX2","IVBX","BOVESPA - ÍNDICES"]
[null,null,null,null,null,"Cryptomoedas","Historical!$O$3:$P$113","Cryptocurrencies","","MIDLARGE CAP","MLCX","MLCX.SA","Azul SA","AZUL4","BitConnect Coin","BCCOIN","Ouro","GC","GC%3DF","AB Sustainable Global Thematic R","ATERX","EUR/JPY","EURJPY","Barrick Gold Corporation","ABX","MIDLARGE CAP","MLCX","BOVESPA - ÍNDICES"]
[null,null,null,null,null,"Commodities","Historical!$Q$3:$R$29","Commodities",null,"SMALL CAP","SMLL","SMLL.SA","B2W Companhia Digital","BTOW3","Bitquence","BQX","Palladium Futures","PA","PA%3DF","Aberdeen Global Infrastructure A","AIAFX","EUR/JPY","EURJPY","Bed Bath & Beyond Inc.","BBBY","SMALL CAP","SMLL","BOVESPA - ÍNDICES"]
[null,null,null,null,null,"Fundos","Historical!$T$3:$U$1459","Fundos",null,"UTILITIES","UTIL","UTIL.SA","B3 SA Brasil Bolsa Balcao","B3SA3","Bitshares","BTS","Petróleo Crú","CL","CL%3DF","Aberdeen Realty Income & Growth A","AIAGX","EUR/SEK","EURSEK","Bilibili Inc.","BILI","UTILITIES","UTIL","BOVESPA - ÍNDICES"]
[null,null,null,null,null,"Moedas","Historical!$V$3:$W$39","Moedas",null,null,null,null,"Bahema SA","BAHI3","BlockNet","BLOCK","Platinum Futures","PL","PL%3DF","Aberdeen US Small Cap Equity Inst Svc","GSXIX","EUR/USD","EURUSD","Boston Scientific Corporation","BSX","AES Elpa SA","AELP3","BOVESPA - Sao Paulo Stock Exchange"]
[null,null,null,null,null,"Top 150 do Mundo","Historical!$X$3:$Y$152","Top 150 do Mundo",null,null,null,null,"Banco ABC Brasil SA","ABCB4","Byteball","GBYTE","RBOB Gasoline Futures","RB","RB%3DF","AC Alternatives Discp Long Short C","ACDHX","GBP/JPY","GBPJPY","Bristol-Myers Squibb Company","BMY","AES Tiete Energia SA","TIET11","BOVESPA - Sao Paulo Stock Exchange"]
[null,null,null,null,null,"Todos",{"$f":"\"Historical!\"&ADDRESS(3,MATCH(\"Ativo\",$2:$2,0))&\":\"&ADDRESS(INDIRECT(ADDRESS(1,MATCH(\"Ativo\",$2:$2,0))),MATCH(\"Ativo\",$2:$2,0)+1)","v":"Historical!$Z$3:$AA$2148"},{"$f":"IFERROR(VLOOKUP(Ticker,AA:AB,2,FALSE),\"---\")","v":"BOVESPA - Sao Paulo Stock Exchange"},null,null,null,null,"Banco Alfa de Investimento SA","BRIV3","ByteCoin","BCN","Rough Rice","RR","RR%3DF","Acadian Emerging Markets I","AEMZX","GBP/USD","GBPUSD","Caesars Entertainment Corporation","CZR","AES Tiete Energia SA","TIET3","BOVESPA - Sao Paulo Stock Exchange"]
[null,null,null,null,null,null,null,null,null,null,null,null,"Banco Alfa de Investimento SA","BRIV4","Cardano","ADA","Silver ","SI","SI%3DF","Adirondack Small Cap","ADKSX","NZD/USD","NZDUSD","Callon Petroleum Company","CPE","AES Tiete Energia SA","TIET4","BOVESPA - Sao Paulo Stock Exchange"]
[null,null,null,null,null,null,null,null,null,null,null,null,"Banco Bradesco SA","BBDC4","ChainLink","LINK","Soybean Meal","SM","SM%3DF","AdvisorOne CLS Global Aggressive Eq N","CLACX","USD/CAD","USDCAD","Canadian Natural Resources Limited","CNQ","Alfa Holdings SA","RPAD6","BOVESPA - Sao Paulo Stock Exchange"]
[null,null,null,null,null,null,null,null,null,null,null,null,"Banco Bradesco SA","BBDC3","Civic","CVC","Soybean Oil Futures","BO","BO%3DF","AIG Focused Alpha Large-Cap W","SFLWX","USD/CHF","USDCHF","Celgene Corporation","CELG","Aliansce Shopping Centers SA","ALSC3","BOVESPA - Sao Paulo Stock Exchange"]
[null,null,null,null,null,null,null,null,null,null,null,null,"Banco BTG Pactual SA","BPAC5","CounterParty","XCP","Soybeans","S","S%3DF","AIG Focused Dividend Strategy A","FDSAX","USD/CNY","USDCNY","CEMEX, S.A.B. de C.V.","CX","Alpargatas SA","ALPA3","BOVESPA - Sao Paulo Stock Exchange"]
[null,null,null,null,null,null,null,null,null,null,null,null,"Banco da Amazonia SA","BAZA3","Decred","DCR","Sugar No. 11 (World) Futures","SB","SB%3DF","AIG Focused Multi-Cap Growth C","FOCCX","USD/HKD","USDHKD","CEMEX, S.A.B. de C.V.","CXMSF","Alpargatas SA","ALPA4","BOVESPA - Sao Paulo Stock Exchange"]
[null,null,null,null,null,null,null,null,null,null,null,null,"Banco do Brasil SA","BBAS3","Dentacoin","DCN",null,null,null,"AIG Focused Multi-Cap Growth W","FOCWX","USD/IDR","USDIDR","Chesapeake Energy Corporation","CHK","Alupar Investimento SA","ALUP11","BOVESPA - Sao Paulo Stock Exchange"]
[null,null,null,null,null,null,null,null,null,null,null,null,"Banco do Estado de Sergipe SA","BGIP4","DigiByte","DGB",null,null,null,"AIG Small-Cap W","SASWX","USD/INR","USDINR","Chevron Corporation","CVX","Ambev SA","ABEV3","BOVESPA - Sao Paulo Stock Exchange"]
[null,null,null,null,null,null,null,null,null,null,null,null,"Banco do Estado do Rio Grande do Sul SA","BRSR6","DigitalCash","DASH",null,null,null,"Akre Focus Instl","AKRIX","USD/JPY","USDJPY","Cisco Systems, Inc.","CSCO","Ampla Energia e Servicos SA","CBEE3","BOVESPA - Sao Paulo Stock Exchange"]
[null,null,null,null,null,null,null,null,null,null,null,null,"Banco do Estado do Rio Grande do Sul SA","BRSR3","Digix DAO","DGD",null,null,null,"Akre Focus Retail","AKREX","USD/MXN","USDMXN","Citigroup Inc.","C","Anima Holding SA","ANIM3","BOVESPA - Sao Paulo Stock Exchange"]
[null,null,null,null,null,null,null,null,null,null,null,null,"Banco Indusval SA","IDVL4","district0x","DNT",null,null,null,"Akre Focus Supra Institutional","AKRSX","USD/MYR","USDMYR","Citizens Financial Group, Inc.","CFG","Arezzo Industria E Comercio SA","ARZZ3","BOVESPA - Sao Paulo Stock Exchange"]
[null,null,null,null,null,null,null,null,null,null,null,null,"Banco Mercantil de Investimentos SA","BMIN4","Dogecoin","DOGE",null,null,null,"Alger Balanced I-2","ABLOX","USD/PHP","USDPHP","Cleveland-Cliffs Inc.","CLF","Atacadao SA","CRFB3","BOVESPA - Sao Paulo Stock Exchange"]
[null,null,null,null,null,null,null,null,null,null,null,null,"Banco Mercantil do Brasil SA","BMEB3","Edgeless","EDG",null,null,null,"Alger Capital Appreciation Focus A","ALAFX","USD/RUB","USDRUB","Colony NorthStar, Inc.","CLNS","ATOM Empreendimentos e Participacoes SA","ATOM3","BOVESPA - Sao Paulo Stock Exchange"]
[null,null,null,null,null,null,null,null,null,null,null,null,"Banco Mercantil do Brasil SA","BMEB4","EOS","EOS",null,null,null,"Alger Capital Appreciation Focus C","ALCFX","USD/SGD","USDSGD","Comcast Corporation","CMCSA","Azevedo & Travassos SA","AZEV4","BOVESPA - Sao Paulo Stock Exchange"]
[null,null,null,null,null,null,null,null,null,null,null,null,"Banco Pan SA","BPAN4","Ethereum","ETH",null,null,null,"Alger Capital Appreciation Focus I","ALGRX","USD/THB","USDTHB","Conagra Brands, Inc.","CAG","Azul SA","AZUL4","BOVESPA - Sao Paulo Stock Exchange"]
[null,null,null,null,null,null,null,null,null,null,null,null,"Banco Pine SA","PINE4","Ethereum Classic","ETC",null,null,null,"Alger Capital Appreciation Focus Z","ALZFX","USD/ZAR","USDZAR","ConocoPhillips","COP","B2W Companhia Digital","BTOW3","BOVESPA - Sao Paulo Stock Exchange"]
[null,null,null,null,null,null,null,null,null,null,null,null,"Banco Santander Brasil SA","SANB3","Exchange Union","XUC",null,null,null,"Alger Small Cap Focus Z","AGOZX",null,null,"Constellation Brands, Inc.","STZ","B3 SA Brasil Bolsa Balcao","B3SA3","BOVESPA - Sao Paulo Stock Exchange"]
[null,null,null,null,null,null,null,null,null,null,null,null,"Banco Santander Brasil SA","SANB11","Factoids","FCT",null,null,null,"AllianzGI Technology C","RCGTX",null,null,"Copart, Inc.","CPRT","Bahema SA","BAHI3","BOVESPA - Sao Paulo Stock Exchange"]
[null,null,null,null,null,null,null,null,null,null,null,null,"Banco Santander Brasil SA","SANB4","FairCoin","FAIR",null,null,null,"Altegris/AACA Opportunistic Real Estt A","RAAAX",null,null,"Corning Incorporated","GLW","Banco ABC Brasil SA","ABCB4","BOVESPA - Sao Paulo Stock Exchange"]
[null,null,null,null,null,null,null,null,null,null,null,null,"Banestes SA Banco do Estado Esprt Santo","BEES3","FirstCoin","FRST",null,null,null,"Altegris/AACA Opportunistic Real Estt I","RAAIX",null,null,"CVS Health Corporation","CVS","Banco Alfa de Investimento SA","BRIV3","BOVESPA - Sao Paulo Stock Exchange"]
[null,null,null,null,null,null,null,null,null,null,null,null,"Banestes SA Banco do Estado Esprt Santo","BEES4","FunFair","FUN",null,null,null,"Altegris/AACA Opportunistic Real Estt N","RAANX",null,null,"Delta Air Lines, Inc.","DAL","Banco Alfa de Investimento SA","BRIV4","BOVESPA - Sao Paulo Stock Exchange"]
[null,null,null,null,null,null,null,null,null,null,null,null,"Bardella SA Industrias Mecanicas","BDLL4","Gamecredits","GAME",null,null,null,"American Beacon Balanced Instl","AADBX",null,null,"Denbury Resources Inc.","DNR","Banco Bradesco SA","BBDC4","BOVESPA - Sao Paulo Stock Exchange"]
[null,null,null,null,null,null,null,null,null,null,null,null,"Battistella Administracao Part SA APABA","BTTL4","Gas","GAS",null,null,null,"American Beacon Balanced Y","ACBYX",null,null,"Deutsche Bank Aktiengesellschaft","DB","Banco Bradesco SA","BBDC3","BOVESPA - Sao Paulo Stock Exchange"]
[null,null,null,null,null,null,null,null,null,null,null,null,"Battistella Administracao Part SA APABA","BTTL3","Gnosis","GNO",null,null,null,"American Beacon Bridgeway Lg Cp Gr Y","BLYYX",null,null,"Devon Energy Corporation","DVN","Banco BTG Pactual SA","BPAC5","BOVESPA - Sao Paulo Stock Exchange"]
[null,null,null,null,null,null,null,null,null,null,null,null,"Baumer SA","BALM4","Golem Network Token","GNT",null,null,null,"American Beacon Bridgeway Lg Cp Val Inst","BRLVX",null,null,"DowDuPont Inc.","DWDP","Banco da Amazonia SA","BAZA3","BOVESPA - Sao Paulo Stock Exchange"]
[null,null,null,null,null,null,null,null,null,null,null,null,"BB Seguridade Participacoes SA","BBSE3","Hshare","HSR",null,null,null,"American Beacon International Eq A","AIEAX",null,null,"Dr Pepper Snapple Group, Inc.","DPS","Banco do Brasil SA","BBAS3","BOVESPA - Sao Paulo Stock Exchange"]
[null,null,null,null,null,null,null,null,null,null,null,null,"Bicicletas Monark SA","BMKS3","ICON Project","ICX",null,null,null,"American Beacon International Eq Adv","AAISX",null,null,"eBay Inc.","EBAY","Banco do Estado de Sergipe SA","BGIP4","BOVESPA - Sao Paulo Stock Exchange"]
[null,null,null,null,null,null,null,null,null,null,null,null,"Biomm SA","BIOM3","Iconomi","ICN",null,null,null,"American Beacon International Eq C","AILCX",null,null,"Enbridge Energy Partners, L.P.","EEP","Banco do Estado do Rio Grande do Sul SA","BRSR6","BOVESPA - Sao Paulo Stock Exchange"]
[null,null,null,null,null,null,null,null,null,null,null,null,"Biosev SA","BSEV3","iExec","RLC",null,null,null,"American Beacon International Eq Instl","AAIEX",null,null,"Enbridge Inc.","ENB","Banco do Estado do Rio Grande do Sul SA","BRSR3","BOVESPA - Sao Paulo Stock Exchange"]
[null,null,null,null,null,null,null,null,null,null,null,null,"Biotoscana Investments SA","GBIO33","IOCoin","IOC",null,null,null,"American Beacon Mid-Cap Value A","ABMAX",null,null,"Encana Corporation","ECA","Banco Indusval SA","IDVL4","BOVESPA - Sao Paulo Stock Exchange"]
[null,null,null,null,null,null,null,null,null,null,null,null,"BK Brasil Operacao e Assessr Rstrnts SA","BKBR3","IOTA","IOT",null,null,null,"American Beacon Mid-Cap Value C","AMCCX",null,null,"Endo International plc","ENDP","Banco Mercantil de Investimentos SA","BMIN4","BOVESPA - Sao Paulo Stock Exchange"]
[null,null,null,null,null,null,null,null,null,null,null,null,"Bombril SA","BOBR4","Kin","KIN",null,null,null,"American Beacon Mid-Cap Value Inv","AMPAX",null,null,"Ensco plc","ESV","Banco Mercantil do Brasil SA","BMEB3","BOVESPA - Sao Paulo Stock Exchange"]
[null,null,null,null,null,null,null,null,null,null,null,null,"BR Insurance Corretora de Seguros SA","BRIN3","Komodo","KMD",null,null,null,"American Beacon SGA Global Growth C","SGACX",null,null,"Exelixis, Inc.","EXEL","Banco Mercantil do Brasil SA","BMEB4","BOVESPA - Sao Paulo Stock Exchange"]
[null,null,null,null,null,null,null,null,null,null,null,null,"BR Malls Participacoes SA","BRML3","Kyber Network","KNC",null,null,null,"American Beacon SGA Global Growth Inv","SGAPX",null,null,"Exelon Corporation","EXC","Banco Pan SA","BPAN4","BOVESPA - Sao Paulo Stock Exchange"]
[null,null,null,null,null,null,null,null,null,null,null,null,"BR Properties SA","BRPR3","Lisk","LSK",null,null,null,"American Beacon Small Cp Val Adv","AASSX",null,null,"Exxon Mobil Corporation","XOM","Banco Pine SA","PINE4","BOVESPA - Sao Paulo Stock Exchange"]
[null,null,null,null,null,null,null,null,null,null,null,null,"Bradespar SA","BRAP4","Litecoin","LTC",null,null,null,"American Beacon Small Cp Val Inst","AVFIX",null,null,"Facebook, Inc.","FB","Banco Santander Brasil SA","SANB3","BOVESPA - Sao Paulo Stock Exchange"]
[null,null,null,null,null,null,null,null,null,null,null,null,"Bradespar SA","BRAP3","Loopring","LRC",null,null,null,"American Beacon Small Cp Val Inv","AVPAX",null,null,"Fifth Third Bancorp","FITB","Banco Santander Brasil SA","SANB11","BOVESPA - Sao Paulo Stock Exchange"]
[null,null,null,null,null,null,null,null,null,null,null,null,"Brasil Brokers Participacoes SA","BBRK3","Lykke","LKK",null,null,null,"American Century Balanced I","ABINX",null,null,"First Data Corporation","FDC","Banco Santander Brasil SA","SANB4","BOVESPA - Sao Paulo Stock Exchange"]
[null,null,null,null,null,null,null,null,null,null,null,null,"Brasil Pharma SA","BPHA3","MaidSafe Coin","MAID",null,null,null,"American Century Balanced Inv","TWBIX",null,null,"Ford Motor Company","F","Banestes SA Banco do Estado Esprt Santo","BEES3","BOVESPA - Sao Paulo Stock Exchange"]
[null,null,null,null,null,null,null,null,null,null,null,null,"Brasilagro Companhia Braslr Propds Agrcl","AGRO3","MCAP","MCAP",null,null,null,"American Century Disciplined Growth C","ADCCX",null,null,"Franklin Resources, Inc.","BEN","Banestes SA Banco do Estado Esprt Santo","BEES4","BOVESPA - Sao Paulo Stock Exchange"]
[null,null,null,null,null,null,null,null,null,null,null,null,"Braskem SA","BRKM3","Melon","MLN",null,null,null,"American Century Mid Cap Value C","ACCLX",null,null,"Freeport-McMoRan Inc.","FCX","Bardella SA Industrias Mecanicas","BDLL4","BOVESPA - Sao Paulo Stock Exchange"]
[null,null,null,null,null,null,null,null,null,null,null,null,"Braskem SA","BRKM5","Metal","MTL",null,null,null,"American Century Mid Cap Value I","AVUAX",null,null,"General Electric Company","GE","Battistella Administracao Part SA APABA","BTTL4","BOVESPA - Sao Paulo Stock Exchange"]
[null,null,null,null,null,null,null,null,null,null,null,null,"BRF SA","BRFS3","Metaverse","ETP",null,null,null,"American Century Mid Cap Value Inv","ACMVX",null,null,"General Mills, Inc.","GIS","Battistella Administracao Part SA APABA","BTTL3","BOVESPA - Sao Paulo Stock Exchange"]
[null,null,null,null,null,null,null,null,null,null,null,null,"Camil Alimentos SA","CAML3","MobileGo","MGO",null,null,null,"American Century Mid Cap Value R","AMVRX",null,null,"General Motors Company","GM","Baumer SA","BALM4","BOVESPA - Sao Paulo Stock Exchange"]
[null,null,null,null,null,null,null,null,null,null,null,null,"CCR SA","CCRO3","Monaco","MCO",null,null,null,"American Century Mid Cap Value R6","AMDVX",null,null,"Gerdau S.A.","GGB","BB Seguridade Participacoes SA","BBSE3","BOVESPA - Sao Paulo Stock Exchange"]
[null,null,null,null,null,null,null,null,null,null,null,null,"CCX Carvao da Colombia SA","CCXC3","MonaCoin","MONA",null,null,null,"American Century One Choice 2055 Inv","AREVX",null,null,"GGP Inc.","GGP","Bicicletas Monark SA","BMKS3","BOVESPA - Sao Paulo Stock Exchange"]
[null,null,null,null,null,null,null,null,null,null,null,null,"Celulose Irani SA","RANI3","Monero","XMR",null,null,null,"American Century One Choice 2055 R","AREOX",null,null,"Groupon, Inc.","GRPN","Biomm SA","BIOM3","BOVESPA - Sao Paulo Stock Exchange"]
[null,null,null,null,null,null,null,null,null,null,null,null,"Celulose Irani SA","RANI4","Nano","XRB",null,null,null,"American Century One Choice Agrsv Inv","AOGIX",null,null,"Halliburton Company","HAL","Biosev SA","BSEV3","BOVESPA - Sao Paulo Stock Exchange"]
[null,null,null,null,null,null,null,null,null,null,null,null,"Cemepe Investimentos SA","MAPT4","NavCoin","NAV",null,null,null,"American Century One Choice VryAgrsv Inv","AOVIX",null,null,"Hewlett Packard Enterprise Company","HPE","Biotoscana Investments SA","GBIO33","BOVESPA - Sao Paulo Stock Exchange"]
[null,null,null,null,null,null,null,null,null,null,null,null,"Centrais Eletricas Brasileiras SA","ELET6","Neblio","NEBL",null,null,null,"American Century Real Estate C","ARYCX",null,null,"Host Hotels & Resorts, Inc.","HST","BK Brasil Operacao e Assessr Rstrnts SA","BKBR3","BOVESPA - Sao Paulo Stock Exchange"]
[null,null,null,null,null,null,null,null,null,null,null,null,"Centrais Eletricas Brasileiras SA","ELET3","NEM","XEM",null,null,null,"American Century Real Estate R6","AREDX",null,null,"HP Inc.","HPQ","Bombril SA","BOBR4","BOVESPA - Sao Paulo Stock Exchange"]
[null,null,null,null,null,null,null,null,null,null,null,null,"Centrais Eletricas de Santa Catarina SA","CLSC4","NEO","NEO",null,null,null,"American Century Select A","TWCAX",null,null,"Huntington Bancshares Incorporated","HBAN","BR Insurance Corretora de Seguros SA","BRIN3","BOVESPA - Sao Paulo Stock Exchange"]
[null,null,null,null,null,null,null,null,null,null,null,null,"Centrais Eletricas do Para SA Celpa","CELP3","Nexus","NXS",null,null,null,"American Century Select C","ACSLX",null,null,"HUYA Inc.","HUYA","BR Malls Participacoes SA","BRML3","BOVESPA - Sao Paulo Stock Exchange"]
[null,null,null,null,null,null,null,null,null,null,null,null,"Centro de Imagem Diagnosticos SA","AALR3","NoLimitCoin","NLC2",null,null,null,"American Century Select I","TWSIX",null,null,"Infosys Limited","INFY","BR Properties SA","BRPR3","BOVESPA - Sao Paulo Stock Exchange"]
[null,null,null,null,null,null,null,null,null,null,null,null,"CESP Companhia Energetica de Sao Paulo","CESP5","Nxt","NXT",null,null,null,"American Century Select Inv","TWCIX",null,null,"Intel Corporation","INTC","Bradespar SA","BRAP4","BOVESPA - Sao Paulo Stock Exchange"]
[null,null,null,null,null,null,null,null,null,null,null,null,"CESP Companhia Energetica de Sao Paulo","CESP3","OmiseGo","OMG",null,null,null,"American Century Select R","ASERX",null,null,"iQIYI, Inc.","IQ","Bradespar SA","BRAP3","BOVESPA - Sao Paulo Stock Exchange"]
[null,null,null,null,null,null,null,null,null,null,null,null,"CESP Companhia Energetica de Sao Paulo","CESP6","Particl","PART",null,null,null,"American Century Select R6","ASDEX",null,null,"Itaú Unibanco Holding S.A.","ITUB","Brasil Brokers Participacoes SA","BBRK3","BOVESPA - Sao Paulo Stock Exchange"]
[null,null,null,null,null,null,null,null,null,null,null,null,"Cia De Fiacao E Tecidos Cedro Cachoeira","CEDO4","Populous","PPT",null,null,null,"American Century Ultra C","TWCCX",null,null,"JD.com, Inc.","JD","Brasil Pharma SA","BPHA3","BOVESPA - Sao Paulo Stock Exchange"]
[null,null,null,null,null,null,null,null,null,null,null,null,"CIA DE SANEAMENTO","SAPR11","Private Instant Verified Transaction","PIVX",null,null,null,"American Century Ultra R6","AULDX",null,null,"Johnson & Johnson","JNJ","Brasilagro Companhia Braslr Propds Agrcl","AGRO3","BOVESPA - Sao Paulo Stock Exchange"]
[null,null,null,null,null,null,null,null,null,null,null,null,"Cia Hering","HGTX3","QTUM","QTUM",null,null,null,"American Century Zero Coupon 2020 Adv","ACTEX",null,null,"JPMorgan Chase & Co.","JPM","Braskem SA","BRKM3","BOVESPA - Sao Paulo Stock Exchange"]
[null,null,null,null,null,null,null,null,null,null,null,null,"Cielo SA","CIEL3","Quantum Resistant Ledger","QRL",null,null,null,"American Century Zero Coupon 2020 Inv","BTTTX",null,null,"KB Home","KBH","Braskem SA","BRKM5","BOVESPA - Sao Paulo Stock Exchange"]
[null,null,null,null,null,null,null,null,null,null,null,null,"Companhia Brasileira de Distribuicao","PCAR4","Quoine Liquid","QASH",null,null,null,"American Century Zero Coupon 2025 Inv","BTTRX",null,null,"KeyCorp","KEY","BRF SA","BRFS3","BOVESPA - Sao Paulo Stock Exchange"]
[null,null,null,null,null,null,null,null,null,null,null,null,"Companhia de Ferro Ligas da Bah Frbs","FESA4","Ripple","XRP",null,null,null,"AMG Chicago Equity Partners Balanced I","MBESX",null,null,"Kinder Morgan, Inc.","KMI","Camil Alimentos SA","CAML3","BOVESPA - Sao Paulo Stock Exchange"]
[null,null,null,null,null,null,null,null,null,null,null,null,"Companhia de Gas de Sao Paulo - COMGAS","CGAS3","Salt Lending","SALT",null,null,null,"AMG Chicago Equity Partners Balanced N","MBEAX",null,null,"Kinross Gold Corporation","KGC","CCR SA","CCRO3","BOVESPA - Sao Paulo Stock Exchange"]
[null,null,null,null,null,null,null,null,null,null,null,null,"Companhia de Gas de Sao Paulo - COMGAS","CGAS5","Siacoin","SC",null,null,null,"AMG Chicago Equity Partners Balanced Z","MBEYX",null,null,"Marathon Oil Corporation","MRO","CCX Carvao da Colombia SA","CCXC3","BOVESPA - Sao Paulo Stock Exchange"]
[null,null,null,null,null,null,null,null,null,null,null,null,"Companhia de Locacao das Americas","LCAM3","SingularDTV","SNGLS",null,null,null,"AMG GW&K Small Cap Core N","GWETX",null,null,"Marathon Petroleum Corporation","MPC","Celulose Irani SA","RANI3","BOVESPA - Sao Paulo Stock Exchange"]
[null,null,null,null,null,null,null,null,null,null,null,null,"Companhia de Participacoes Alianca Bahia","PEAB3","SmartCash","SMART",null,null,null,"AMG Managers Cadence Emerging Cos I","MECIX",null,null,"Marvell Technology Group Ltd.","MRVL","Celulose Irani SA","RANI4","BOVESPA - Sao Paulo Stock Exchange"]
[null,null,null,null,null,null,null,null,null,null,null,null,"Companhia de Saneamento Basico-Sabesp","SBSP3","SONM","SNM",null,null,null,"AMG Managers Cadence Emerging Cos N","MECAX",null,null,"Merck & Co., Inc.","MRK","Cemepe Investimentos SA","MAPT4","BOVESPA - Sao Paulo Stock Exchange"]
[null,null,null,null,null,null,null,null,null,null,null,null,"Companhia de Saneamento de Minas Gerais","CSMG3","Status Network Token","SNT",null,null,null,"AMG Managers Emerging Opportunities N","MMCFX",null,null,"MetLife, Inc.","MET","Centrais Eletricas Brasileiras SA","ELET6","BOVESPA - Sao Paulo Stock Exchange"]
[null,null,null,null,null,null,null,null,null,null,null,null,"Companhia de Saneamento Parana SANEPAR","SAPR4","Steem","STEEM",null,null,null,"AMG Managers Fairpointe Mid Cap N","CHTTX",null,null,"MGM Resorts International","MGM","Centrais Eletricas Brasileiras SA","ELET3","BOVESPA - Sao Paulo Stock Exchange"]
[null,null,null,null,null,null,null,null,null,null,null,null,"Companhia de Saneamento Parana SANEPAR","SAPR3","Stellar","XLM",null,null,null,"AMG Managers Loomis Sayles Bond I","MGBIX",null,null,"Micron Technology, Inc.","MU","Centrais Eletricas de Santa Catarina SA","CLSC4","BOVESPA - Sao Paulo Stock Exchange"]
[null,null,null,null,null,null,null,null,null,null,null,null,"Companhia de Tecidos Nrt d Mns COTEMINAS","CTNM4","Storj","STORJ",null,null,null,"AMG Managers Loomis Sayles Bond N","MGFIX",null,null,"Microsoft Corporation","MSFT","Centrais Eletricas do Para SA Celpa","CELP3","BOVESPA - Sao Paulo Stock Exchange"]
[null,null,null,null,null,null,null,null,null,null,null,null,"Companhia de Tecidos Nrt d Mns COTEMINAS","CTNM3","Stratis","STRAT",null,null,null,"AMG Managers Silvercrest Small Cap I","ACRTX",null,null,"Mondelez International, Inc.","MDLZ","Centro de Imagem Diagnosticos SA","AALR3","BOVESPA - Sao Paulo Stock Exchange"]
[null,null,null,null,null,null,null,null,null,null,null,null,"Companhia Energetica de Brasilia CEB","CEBR6","Substratum Network","SUB",null,null,null,"AMG Managers Silvercrest Small Cap N","ASCTX",null,null,"Morgan Stanley","MS","CESP Companhia Energetica de Sao Paulo","CESP5","BOVESPA - Sao Paulo Stock Exchange"]
[null,null,null,null,null,null,null,null,null,null,null,null,"Companhia Energetica de Brasilia CEB","CEBR5","SysCoin","SYS",null,null,null,"AMG Managers Skyline Special Equities N","SKSEX",null,null,"Nabors Industries Ltd.","NBR","CESP Companhia Energetica de Sao Paulo","CESP3","BOVESPA - Sao Paulo Stock Exchange"]
[null,null,null,null,null,null,null,null,null,null,null,null,"Companhia Energetica de Minas Gers CEMIG","CMIG3","TenX","PAY",null,null,null,"AMG TimesSquare International SmallCap N","TCMPX",null,null,"Netflix, Inc.","NFLX","CESP Companhia Energetica de Sao Paulo","CESP6","BOVESPA - Sao Paulo Stock Exchange"]
[null,null,null,null,null,null,null,null,null,null,null,null,"Companhia Energetica de Minas Gers CEMIG","CMIG4","Tether","USDT",null,null,null,"AMG TimesSquare International SmallCap Z","TCMIX",null,null,"NIKE, Inc.","NKE","Cia De Fiacao E Tecidos Cedro Cachoeira","CEDO4","BOVESPA - Sao Paulo Stock Exchange"]
[null,null,null,null,null,null,null,null,null,null,null,null,"Companhia Energetica do Ceara - COELCE","COCE5","Token as a Service","TAAS",null,null,null,"AMG TimesSquare Mid Cap Growth N","TMDPX",null,null,"Nokia Corporation","NOK","CIA DE SANEAMENTO","SAPR11","BOVESPA - Sao Paulo Stock Exchange"]
[null,null,null,null,null,null,null,null,null,null,null,null,"Companhia Energetica do Ceara - COELCE","COCE3","Tronix","TRX",null,null,null,"AMG TimesSquare Mid Cap Growth Z","TMDIX",null,null,"NVIDIA Corporation","NVDA","Cia Hering","HGTX3","BOVESPA - Sao Paulo Stock Exchange"]
[null,null,null,null,null,null,null,null,null,null,null,null,"Companhia Energetica do Maranhao Cemar","ENMA3B","Ubiq","UBQ",null,null,null,"AMG TimesSquare Small Cap Growth N","TSCPX",null,null,"Oasis Petroleum Inc.","OAS","Cielo SA","CIEL3","BOVESPA - Sao Paulo Stock Exchange"]
[null,null,null,null,null,null,null,null,null,null,null,null,"Companhia Estadual de Distribuicao","CEED4","Vechain","VEN",null,null,null,"AMG TimesSquare Small Cap Growth Z","TSCIX",null,null,"ON Semiconductor Corporation","ON","Companhia Brasileira de Distribuicao","PCAR4","BOVESPA - Sao Paulo Stock Exchange"]
[null,null,null,null,null,null,null,null,null,null,null,null,"Companhia Melhoramentos de Sao Paulo","MSPA3","Verge","XVG",null,null,null,"AQR Large Cap Defensive Style I","AUEIX",null,null,"Oracle Corporation","ORCL","Companhia de Ferro Ligas da Bah Frbs","FESA4","BOVESPA - Sao Paulo Stock Exchange"]
[null,null,null,null,null,null,null,null,null,null,null,null,"Companhia Paranaense de Energia - COPEL","CPLE3","Veritaseum","VERI",null,null,null,"AQR Large Cap Defensive Style N","AUENX",null,null,"PayPal Holdings, Inc.","PYPL","Companhia de Gas de Sao Paulo - COMGAS","CGAS3","BOVESPA - Sao Paulo Stock Exchange"]
[null,null,null,null,null,null,null,null,null,null,null,null,"Companhia Paranaense de Energia - COPEL","CPLE6","VertCoin","VTC",null,null,null,"AQR Large Cap Defensive Style R6","QUERX",null,null,"Petróleo Brasileiro S.A. - Petrobras","PBR","Companhia de Gas de Sao Paulo - COMGAS","CGAS5","BOVESPA - Sao Paulo Stock Exchange"]
[null,null,null,null,null,null,null,null,null,null,null,null,"Companhia Siderurgica Nacional","CSNA3","Waltonchain","WTC",null,null,null,"AQR Large Cap Momentum Style R6","QMORX",null,null,"Petróleo Brasileiro S.A. - Petrobras","PBR-A","Companhia de Locacao das Americas","LCAM3","BOVESPA - Sao Paulo Stock Exchange"]
[null,null,null,null,null,null,null,null,null,null,null,null,"Companhia Tecidos Santanense","CTSA3","Waves","WAVES",null,null,null,"AQR TM Small Cap Momentum Style R6","QTSRX",null,null,"Pfizer Inc.","PFE","Companhia de Participacoes Alianca Bahia","PEAB3","BOVESPA - Sao Paulo Stock Exchange"]
[null,null,null,null,null,null,null,null,null,null,null,null,"Companhia Tecidos Santanense","CTSA4","Wings DAO","WINGS",null,null,null,"Artisan Global Value Advisor","APDGX",null,null,"QUALCOMM Incorporated","QCOM","Companhia de Saneamento Basico-Sabesp","SBSP3","BOVESPA - Sao Paulo Stock Exchange"]
[null,null,null,null,null,null,null,null,null,null,null,null,"Construtora Tenda SA","TEND3","ZCash","ZEC",null,null,null,"Artisan Global Value Institutional","APHGX",null,null,"Regions Financial Corporation","RF","Companhia de Saneamento de Minas Gerais","CSMG3","BOVESPA - Sao Paulo Stock Exchange"]
[null,null,null,null,null,null,null,null,null,null,null,null,"Cosan Logistica SA","RLOG3","ZCoin","XZC",null,null,null,"Artisan Global Value Investor","ARTGX",null,null,"Sirius XM Holdings Inc.","SIRI","Companhia de Saneamento Parana SANEPAR","SAPR4","BOVESPA - Sao Paulo Stock Exchange"]
[null,null,null,null,null,null,null,null,null,null,null,null,"Cosan Ltd","CZLT33","ZenCash","ZEN",null,null,null,"Artisan International Value Advisor","APDKX",null,null,"Snap Inc.","SNAP","Companhia de Saneamento Parana SANEPAR","SAPR3","BOVESPA - Sao Paulo Stock Exchange"]
[null,null,null,null,null,null,null,null,null,null,null,null,"Cosan SA Industria e Comercio","CSAN3",null,null,null,null,null,"Artisan International Value Instl","APHKX",null,null,"Southwestern Energy Company","SWN","Companhia de Tecidos Nrt d Mns COTEMINAS","CTNM4","BOVESPA - Sao Paulo Stock Exchange"]
[null,null,null,null,null,null,null,null,null,null,null,null,"CPFL Energia S.A.","CPFE3",null,null,null,null,null,"Artisan International Value Investor","ARTKX",null,null,"Sprint Corporation","S","Companhia de Tecidos Nrt d Mns COTEMINAS","CTNM3","BOVESPA - Sao Paulo Stock Exchange"]
[null,null,null,null,null,null,null,null,null,null,null,null,"CPFL Energias Renovaveis SA","CPRE3",null,null,null,null,null,"Astor Sector Allocation C","CSPGX",null,null,"Square, Inc.","SQ","Companhia Energetica de Brasilia CEB","CEBR6","BOVESPA - Sao Paulo Stock Exchange"]
[null,null,null,null,null,null,null,null,null,null,null,null,"CR2 Empreendimentos Imobiliarios SA","CRDE3",null,null,null,null,null,"Astor Sector Allocation I","STARX",null,null,"Starbucks Corporation","SBUX","Companhia Energetica de Brasilia CEB","CEBR5","BOVESPA - Sao Paulo Stock Exchange"]
[null,null,null,null,null,null,null,null,null,null,null,null,"Cremer SA","CREM3",null,null,null,null,null,"ATAC Inflation Rotation Investor","ATACX",null,null,"Symantec Corporation","SYMC","Companhia Energetica de Minas Gers CEMIG","CMIG3","BOVESPA - Sao Paulo Stock Exchange"]
[null,null,null,null,null,null,null,null,null,null,null,null,"CSHG JHSF PRIME OF","HGJH11",null,null,null,null,null,"Ave Maria Growth","AVEGX",null,null,"Taiwan Semiconductor Manufacturing Company Limited","TSM","Companhia Energetica de Minas Gers CEMIG","CMIG4","BOVESPA - Sao Paulo Stock Exchange"]
[null,null,null,null,null,null,null,null,null,null,null,null,"CSU Cardsystem SA","CARD3",null,null,null,null,null,"Ave Maria Rising Dividend","AVEDX",null,null,"Tencent Holdings Limited","TCEHY","Companhia Energetica do Ceara - COELCE","COCE5","BOVESPA - Sao Paulo Stock Exchange"]
[null,null,null,null,null,null,null,null,null,null,null,null,"CTEEP Cia Transm Energia Eletr Paulista","TRPL3",null,null,null,null,null,"Baillie Gifford EAFE 3","BGEUX",null,null,"Tesla, Inc.","TSLA","Companhia Energetica do Ceara - COELCE","COCE3","BOVESPA - Sao Paulo Stock Exchange"]
[null,null,null,null,null,null,null,null,null,null,null,null,"CTEEP Cia Transm Energia Eletr Paulista","TRPL4",null,null,null,null,null,"Baron Asset Instl","BARIX",null,null,"Teva Pharmaceutical Industries Limited","TEVA","Companhia Energetica do Maranhao Cemar","ENMA3B","BOVESPA - Sao Paulo Stock Exchange"]
[null,null,null,null,null,null,null,null,null,null,null,null,"CVC Brasil Operadora e Agencia de","CVCB3",null,null,null,null,null,"Baron Asset R6","BARUX",null,null,"The AES Corporation","AES","Companhia Estadual de Distribuicao","CEED4","BOVESPA - Sao Paulo Stock Exchange"]
[null,null,null,null,null,null,null,null,null,null,null,null,"Cyrela Brazil Realty SA Emprdts e Prtpcs","CYRE3",null,null,null,null,null,"Baron Asset Retail","BARAX",null,null,"The Bank of New York Mellon Corporation","BK","Companhia Melhoramentos de Sao Paulo","MSPA3","BOVESPA - Sao Paulo Stock Exchange"]
[null,null,null,null,null,null,null,null,null,null,null,null,"Cyrela Commercial Propertes SA Emp Partp","CCPR3",null,null,null,null,null,"Baron Discovery Institutional","BDFIX",null,null,"The Charles Schwab Corporation","SCHW","Companhia Paranaense de Energia - COPEL","CPLE3","BOVESPA - Sao Paulo Stock Exchange"]
[null,null,null,null,null,null,null,null,null,null,null,null,"Diagnosticos da America SA","DASA3",null,null,null,null,null,"Baron Discovery Retail","BDFFX",null,null,"The Coca-Cola Company","KO","Companhia Paranaense de Energia - COPEL","CPLE6","BOVESPA - Sao Paulo Stock Exchange"]
[null,null,null,null,null,null,null,null,null,null,null,null,"Dimed SA Distribuidora de Medicamentos","PNVL3",null,null,null,null,null,"Baron Fifth Avenue Growth Instl","BFTIX",null,null,"The Gap, Inc.","GPS","Companhia Siderurgica Nacional","CSNA3","BOVESPA - Sao Paulo Stock Exchange"]
[null,null,null,null,null,null,null,null,null,null,null,null,"Dimed SA Distribuidora de Medicamentos","PNVL4",null,null,null,null,null,"Baron Fifth Avenue Growth R6","BFTUX",null,null,"The Kroger Co.","KR","Companhia Tecidos Santanense","CTSA3","BOVESPA - Sao Paulo Stock Exchange"]
[null,null,null,null,null,null,null,null,null,null,null,null,"Direcional Engenharia SA","DIRR3",null,null,null,null,null,"Baron Global Advantage R6","BGLUX",null,null,"The Walt Disney Company","DIS","Companhia Tecidos Santanense","CTSA4","BOVESPA - Sao Paulo Stock Exchange"]
[null,null,null,null,null,null,null,null,null,null,null,null,"Dohler S.A.","DOHL4",null,null,null,null,null,"Baron International Growth Institutional","BINIX",null,null,"The Williams Companies, Inc.","WMB","Construtora Tenda SA","TEND3","BOVESPA - Sao Paulo Stock Exchange"]
[null,null,null,null,null,null,null,null,null,null,null,null,"Dtcom - Direct to Company SA","DTCY3",null,null,null,null,null,"Baron International Growth Retail","BIGFX",null,null,"Time Warner Inc.","TWX","Cosan Logistica SA","RLOG3","BOVESPA - Sao Paulo Stock Exchange"]
[null,null,null,null,null,null,null,null,null,null,null,null,"DUFRY AG","DAGB33",null,null,null,null,null,"Baron Partners Institutional","BPTIX",null,null,"Transocean Ltd.","RIG","Cosan Ltd","CZLT33","BOVESPA - Sao Paulo Stock Exchange"]
[null,null,null,null,null,null,null,null,null,null,null,null,"Duratex SA","DTEX3",null,null,null,null,null,"Baron Partners R6","BPTUX",null,null,"Twenty-First Century Fox, Inc.","FOXA","Cosan SA Industria e Comercio","CSAN3","BOVESPA - Sao Paulo Stock Exchange"]
[null,null,null,null,null,null,null,null,null,null,null,null,"Ecorodovias Infraestrutura e Logistic SA","ECOR3",null,null,null,null,null,"Baron Partners Retail","BPTRX",null,null,"Twitter, Inc.","TWTR","CPFL Energia S.A.","CPFE3","BOVESPA - Sao Paulo Stock Exchange"]
[null,null,null,null,null,null,null,null,null,null,null,null,"EDP Energias do Brasil SA","ENBR3",null,null,null,null,null,"Baron Real Estate Retail","BREFX",null,null,"U.S. Bancorp","USB","CPFL Energias Renovaveis SA","CPRE3","BOVESPA - Sao Paulo Stock Exchange"]
[null,null,null,null,null,null,null,null,null,null,null,null,"Electro Aco Altona SA","EALT4",null,null,null,null,null,"BBH Partner Fund - International Eq I","BBHLX",null,null,"Under Armour, Inc.","UAA","CR2 Empreendimentos Imobiliarios SA","CRDE3","BOVESPA - Sao Paulo Stock Exchange"]
[null,null,null,null,null,null,null,null,null,null,null,null,"Elekeiroz SA","ELEK4",null,null,null,null,null,"Becker Value Equity Institutional","BVEIX",null,null,"United States Steel Corporation","X","Cremer SA","CREM3","BOVESPA - Sao Paulo Stock Exchange"]
[null,null,null,null,null,null,null,null,null,null,null,null,"Elekeiroz SA","ELEK3",null,null,null,null,null,"Becker Value Equity Retail","BVEFX",null,null,"Vale S.A.","VALE","CSHG JHSF PRIME OF","HGJH11","BOVESPA - Sao Paulo Stock Exchange"]
[null,null,null,null,null,null,null,null,null,null,null,null,"Eletropaulo Metropolitn Eltrcd Sao Paulo","ELPL3",null,null,null,null,null,"Berkshire Focus","BFOCX",null,null,"Valeant Pharmaceuticals International, Inc.","VRX","CSU Cardsystem SA","CARD3","BOVESPA - Sao Paulo Stock Exchange"]
[null,null,null,null,null,null,null,null,null,null,null,null,"Embraer SA","EMBR3",null,null,null,null,null,"BlackRock Advantage LgCp Val Retiremt","MKLVX",null,null,"VEREIT, Inc.","VER","CTEEP Cia Transm Energia Eletr Paulista","TRPL3","BOVESPA - Sao Paulo Stock Exchange"]
[null,null,null,null,null,null,null,null,null,null,null,null,"Empresa Metropolitana Energias SA EMAE","EMAE4",null,null,null,null,null,"BlackRock Health Sciences Opps Instl","SHSSX",null,null,"Verizon Communications Inc.","VZ","CTEEP Cia Transm Energia Eletr Paulista","TRPL4","BOVESPA - Sao Paulo Stock Exchange"]
[null,null,null,null,null,null,null,null,null,null,null,null,"Empresa Nacional Comercio Redito Prtcpcs","ECPR3",null,null,null,null,null,"BlackRock Health Sciences Opps Inv A","SHSAX",null,null,"Vertex Pharmaceuticals Incorporated","VRTX","CVC Brasil Operadora e Agencia de","CVCB3","BOVESPA - Sao Paulo Stock Exchange"]
[null,null,null,null,null,null,null,null,null,null,null,null,"Energisa SA","ENGI4",null,null,null,null,null,"BlackRock Health Sciences Opps K","SHSKX",null,null,"Vipshop Holdings Limited","VIPS","Cyrela Brazil Realty SA Emprdts e Prtpcs","CYRE3","BOVESPA - Sao Paulo Stock Exchange"]
[null,null,null,null,null,null,null,null,null,null,null,null,"Energisa SA","ENGI3",null,null,null,null,null,"BlackRock Health Sciences Opps R","BHSRX",null,null,"Visa Inc.","V","Cyrela Commercial Propertes SA Emp Partp","CCPR3","BOVESPA - Sao Paulo Stock Exchange"]
[null,null,null,null,null,null,null,null,null,null,null,null,"Energisa SA","ENGI11",null,null,null,null,null,"BlackRock Health Sciences Opps Svc","SHISX",null,null,"Walgreens Boots Alliance, Inc.","WBA","Diagnosticos da America SA","DASA3","BOVESPA - Sao Paulo Stock Exchange"]
[null,null,null,null,null,null,null,null,null,null,null,null,"Eneva SA","ENEV3",null,null,null,null,null,"BlackRock Mid-Cap Growth Equity Inv A","BMGAX",null,null,"Walmart Inc.","WMT","Dimed SA Distribuidora de Medicamentos","PNVL3","BOVESPA - Sao Paulo Stock Exchange"]
[null,null,null,null,null,null,null,null,null,null,null,null,"Engie Brasil Energia SA","EGIE3",null,null,null,null,null,"BlackRock Mid-Cap Growth Equity Inv C","BMGCX",null,null,"Weatherford International plc","WFT","Dimed SA Distribuidora de Medicamentos","PNVL4","BOVESPA - Sao Paulo Stock Exchange"]
[null,null,null,null,null,null,null,null,null,null,null,null,"Equatorial Energia SA","EQTL3",null,null,null,null,null,"BlackRock Technology Opportunities Svc","BSTSX",null,null,"Wells Fargo & Company","WFC","Direcional Engenharia SA","DIRR3","BOVESPA - Sao Paulo Stock Exchange"]
[null,null,null,null,null,null,null,null,null,null,null,null,"Estacio Participacoes SA","ESTC3",null,null,null,null,null,"BMO Large-Cap Growth A","BALGX",null,null,"WPX Energy, Inc.","WPX","Dohler S.A.","DOHL4","BOVESPA - Sao Paulo Stock Exchange"]
[null,null,null,null,null,null,null,null,null,null,null,null,"Eternit SA","ETER3",null,null,null,null,null,"BMO Large-Cap Growth I","MLCIX",null,null,"Yamana Gold Inc.","AUY","Dtcom - Direct to Company SA","DTCY3","BOVESPA - Sao Paulo Stock Exchange"]
[null,null,null,null,null,null,null,null,null,null,null,null,"Eucatex SA Industria e Comercio","EUCA4",null,null,null,null,null,"BMO Large-Cap Growth R6","BLGRX",null,null,"Zillow Group, Inc.","Z","DUFRY AG","DAGB33","BOVESPA - Sao Paulo Stock Exchange"]
[null,null,null,null,null,null,null,null,null,null,null,null,"EVEN Construtora e Incorporadora SA","EVEN3",null,null,null,null,null,"BMO Large-Cap Growth Y","MASTX",null,null,"Zynga Inc.","ZNGA","Duratex SA","DTEX3","BOVESPA - Sao Paulo Stock Exchange"]
[null,null,null,null,null,null,null,null,null,null,null,null,"Excelsior Alimentos SA","BAUH4",null,null,null,null,null,"BNY Mellon Focused Equity Opp Inv","MFOIX",null,null,null,null,"Ecorodovias Infraestrutura e Logistic SA","ECOR3","BOVESPA - Sao Paulo Stock Exchange"]
[null,null,null,null,null,null,null,null,null,null,null,null,"EZTEC Empreendimentos e Participacoes SA","EZTC3",null,null,null,null,null,"BNY Mellon Focused Equity Opp M","MFOMX",null,null,null,null,"EDP Energias do Brasil SA","ENBR3","BOVESPA - Sao Paulo Stock Exchange"]
[null,null,null,null,null,null,null,null,null,null,null,null,"Fertilizantes Heringer SA","FHER3",null,null,null,null,null,"BNY Mellon Mid Cap Multi-Strategy Inv","MIMSX",null,null,null,null,"Electro Aco Altona SA","EALT4","BOVESPA - Sao Paulo Stock Exchange"]
[null,null,null,null,null,null,null,null,null,null,null,null,"Fibria Celulose SA","FIBR3",null,null,null,null,null,"Boston Partners All Cap Value Instl","BPAIX",null,null,null,null,"Elekeiroz SA","ELEK4","BOVESPA - Sao Paulo Stock Exchange"]
[null,null,null,null,null,null,null,null,null,null,null,null,"Financeira Alfa SA Credt Fincmnt Invmtos","CRIV4",null,null,null,null,null,"Boston Partners All Cap Value Inv","BPAVX",null,null,null,null,"Elekeiroz SA","ELEK3","BOVESPA - Sao Paulo Stock Exchange"]
[null,null,null,null,null,null,null,null,null,null,null,null,"Fleury SA","FLRY3",null,null,null,null,null,"Boston Partners Global Equity Instl","BPGIX",null,null,null,null,"Eletropaulo Metropolitn Eltrcd Sao Paulo","ELPL3","BOVESPA - Sao Paulo Stock Exchange"]
[null,null,null,null,null,null,null,null,null,null,null,null,"Forjas Taurus SA","FJTA3",null,null,null,null,null,"Boston Partners Long/Short Equity Instl","BPLSX",null,null,null,null,"Embraer SA","EMBR3","BOVESPA - Sao Paulo Stock Exchange"]
[null,null,null,null,null,null,null,null,null,null,null,null,"Forjas Taurus SA","FJTA4",null,null,null,null,null,"Boston Partners Long/Short Equity Inv","BPLEX",null,null,null,null,"Empresa Metropolitana Energias SA EMAE","EMAE4","BOVESPA - Sao Paulo Stock Exchange"]
[null,null,null,null,null,null,null,null,null,null,null,null,"Fras-le SA","FRAS3",null,null,null,null,null,"Boston Partners Long/Short Rsrch Instl","BPIRX",null,null,null,null,"Empresa Nacional Comercio Redito Prtcpcs","ECPR3","BOVESPA - Sao Paulo Stock Exchange"]
[null,null,null,null,null,null,null,null,null,null,null,null,"Gafisa SA","GFSA3",null,null,null,null,null,"Boston Partners Small Cap Value II I","BPSIX",null,null,null,null,"Energisa SA","ENGI4","BOVESPA - Sao Paulo Stock Exchange"]
[null,null,null,null,null,null,null,null,null,null,null,null,"General Shopping Brasil SA","GSHP3",null,null,null,null,null,"Boston Partners Small Cap Value II Inv","BPSCX",null,null,null,null,"Energisa SA","ENGI3","BOVESPA - Sao Paulo Stock Exchange"]
[null,null,null,null,null,null,null,null,null,null,null,null,"Gerdau SA","GGBR4",null,null,null,null,null,"Boston Trust Asset Management","BTBFX",null,null,null,null,"Energisa SA","ENGI11","BOVESPA - Sao Paulo Stock Exchange"]
[null,null,null,null,null,null,null,null,null,null,null,null,"Gerdau SA","GGBR3",null,null,null,null,null,"Boston Trust Midcap","BTMFX",null,null,null,null,"Eneva SA","ENEV3","BOVESPA - Sao Paulo Stock Exchange"]
[null,null,null,null,null,null,null,null,null,null,null,null,"Gol Linhas Aereas Inteligentes SA","GOLL4",null,null,null,null,null,"BP Capital TwinLine Energy A","BPEAX",null,null,null,null,"Engie Brasil Energia SA","EGIE3","BOVESPA - Sao Paulo Stock Exchange"]
[null,null,null,null,null,null,null,null,null,null,null,null,"GP Investments Limited","GPIV33",null,null,null,null,null,"Brandes International Equity A","BIEAX",null,null,null,null,"Equatorial Energia SA","EQTL3","BOVESPA - Sao Paulo Stock Exchange"]
[null,null,null,null,null,null,null,null,null,null,null,null,"GPC Participacoes SA em Recuperacao Jdcl","GPCP3",null,null,null,null,null,"Brandes International Equity C","BIECX",null,null,null,null,"Estacio Participacoes SA","ESTC3","BOVESPA - Sao Paulo Stock Exchange"]
[null,null,null,null,null,null,null,null,null,null,null,null,"Grazziotin SA","CGRA3",null,null,null,null,null,"Brandes International Equity I","BIIEX",null,null,null,null,"Eternit SA","ETER3","BOVESPA - Sao Paulo Stock Exchange"]
[null,null,null,null,null,null,null,null,null,null,null,null,"Grazziotin SA","CGRA4",null,null,null,null,null,"Brown Advisory Sustainable Growth Inv","BIAWX",null,null,null,null,"Eucatex SA Industria e Comercio","EUCA4","BOVESPA - Sao Paulo Stock Exchange"]
[null,null,null,null,null,null,null,null,null,null,null,null,"Grendene SA","GRND3",null,null,null,null,null,"Brown Capital Mgmt Small Co Instl","BCSSX",null,null,null,null,"EVEN Construtora e Incorporadora SA","EVEN3","BOVESPA - Sao Paulo Stock Exchange"]
[null,null,null,null,null,null,null,null,null,null,null,null,"Guararapes Confeccoes SA","GUAR4",null,null,null,null,null,"Brown Capital Mgmt Small Co Inv","BCSIX",null,null,null,null,"Excelsior Alimentos SA","BAUH4","BOVESPA - Sao Paulo Stock Exchange"]
[null,null,null,null,null,null,null,null,null,null,null,null,"Guararapes Confeccoes SA","GUAR3",null,null,null,null,null,"Buffalo Discovery","BUFTX",null,null,null,null,"EZTEC Empreendimentos e Participacoes SA","EZTC3","BOVESPA - Sao Paulo Stock Exchange"]
[null,null,null,null,null,null,null,null,null,null,null,null,"Haga S/A Industria E Comercio","HAGA4",null,null,null,null,null,"Buffalo Emerging Opportunities","BUFOX",null,null,null,null,"Fertilizantes Heringer SA","FHER3","BOVESPA - Sao Paulo Stock Exchange"]
[null,null,null,null,null,null,null,null,null,null,null,null,"Hapvida Participacoes e Investimentos SA","HAPV3",null,null,null,null,null,"Buffalo International","BUFIX",null,null,null,null,"Fibria Celulose SA","FIBR3","BOVESPA - Sao Paulo Stock Exchange"]
[null,null,null,null,null,null,null,null,null,null,null,null,"Helbor Empreendimentos SA","HBOR3",null,null,null,null,null,"Buffalo Large Cap","BUFEX",null,null,null,null,"Financeira Alfa SA Credt Fincmnt Invmtos","CRIV4","BOVESPA - Sao Paulo Stock Exchange"]
[null,null,null,null,null,null,null,null,null,null,null,null,"Hercules SA - Fabrica de Talheres","HETA4",null,null,null,null,null,"Calamos Growth & Income C","CVTCX",null,null,null,null,"Fleury SA","FLRY3","BOVESPA - Sao Paulo Stock Exchange"]
[null,null,null,null,null,null,null,null,null,null,null,null,"Hoteis Othon SA","HOOT4",null,null,null,null,null,"Calamos Growth & Income I","CGIIX",null,null,null,null,"Forjas Taurus SA","FJTA3","BOVESPA - Sao Paulo Stock Exchange"]
[null,null,null,null,null,null,null,null,null,null,null,null,"Hypera SA","HYPE3",null,null,null,null,null,"Calvert Aggressive Allocation I","CAGIX",null,null,null,null,"Forjas Taurus SA","FJTA4","BOVESPA - Sao Paulo Stock Exchange"]
[null,null,null,null,null,null,null,null,null,null,null,null,"Ideiasnet SA","IDNT3",null,null,null,null,null,"Calvert Balanced C","CSGCX",null,null,null,null,"Fras-le SA","FRAS3","BOVESPA - Sao Paulo Stock Exchange"]
[null,null,null,null,null,null,null,null,null,null,null,null,"Igb Eletronica SA","IGBR3",null,null,null,null,null,"Calvert Balanced I","CBAIX",null,null,null,null,"Gafisa SA","GFSA3","BOVESPA - Sao Paulo Stock Exchange"]
[null,null,null,null,null,null,null,null,null,null,null,null,"Iguatemi Empresa de Shopping Centers SA","IGTA3",null,null,null,null,null,"Calvert Conservative Allocation A","CCLAX",null,null,null,null,"General Shopping Brasil SA","GSHP3","BOVESPA - Sao Paulo Stock Exchange"]
[null,null,null,null,null,null,null,null,null,null,null,null,"Industrias JB Duarte SA","JBDU3",null,null,null,null,null,"Calvert Conservative Allocation C","CALCX",null,null,null,null,"Gerdau SA","GGBR4","BOVESPA - Sao Paulo Stock Exchange"]
[null,null,null,null,null,null,null,null,null,null,null,null,"Industrias JB Duarte SA","JBDU4",null,null,null,null,null,"Calvert Conservative Allocation I","CFAIX",null,null,null,null,"Gerdau SA","GGBR3","BOVESPA - Sao Paulo Stock Exchange"]
[null,null,null,null,null,null,null,null,null,null,null,null,"Industrias Romi SA","ROMI3",null,null,null,null,null,"Calvert Emerging Markets Equity A","CVMAX",null,null,null,null,"Gol Linhas Aereas Inteligentes SA","GOLL4","BOVESPA - Sao Paulo Stock Exchange"]
[null,null,null,null,null,null,null,null,null,null,null,null,"Inepar SA Industria e Construcoes","INEP4",null,null,null,null,null,"Calvert Emerging Markets Equity I","CVMIX",null,null,null,null,"GP Investments Limited","GPIV33","BOVESPA - Sao Paulo Stock Exchange"]
[null,null,null,null,null,null,null,null,null,null,null,null,"Inepar SA Industria e Construcoes","INEP3",null,null,null,null,null,"Calvert Global Water A","CFWAX",null,null,null,null,"GPC Participacoes SA em Recuperacao Jdcl","GPCP3","BOVESPA - Sao Paulo Stock Exchange"]
[null,null,null,null,null,null,null,null,null,null,null,null,"Instituto Hermes Pardini SA","PARD3",null,null,null,null,null,"Calvert Global Water C","CFWCX",null,null,null,null,"Grazziotin SA","CGRA3","BOVESPA - Sao Paulo Stock Exchange"]
[null,null,null,null,null,null,null,null,null,null,null,null,"Iochpe Maxion SA","MYPK3",null,null,null,null,null,"Calvert Long-Term Income I","CLDIX",null,null,null,null,"Grazziotin SA","CGRA4","BOVESPA - Sao Paulo Stock Exchange"]
[null,null,null,null,null,null,null,null,null,null,null,null,"IRB Brasil Resseguros SA","IRBR3",null,null,null,null,null,"Calvert Moderate Allocation A","CMAAX",null,null,null,null,"Grendene SA","GRND3","BOVESPA - Sao Paulo Stock Exchange"]
[null,null,null,null,null,null,null,null,null,null,null,null,"iShares Ibovespa Index","BOVA11",null,null,null,null,null,"Calvert Short Duration Income C","CDICX",null,null,null,null,"Guararapes Confeccoes SA","GUAR4","BOVESPA - Sao Paulo Stock Exchange"]
[null,null,null,null,null,null,null,null,null,null,null,null,"Itau Unibanco Holding SA","ITUB3",null,null,null,null,null,"Calvert Short Duration Income I","CDSIX",null,null,null,null,"Guararapes Confeccoes SA","GUAR3","BOVESPA - Sao Paulo Stock Exchange"]
[null,null,null,null,null,null,null,null,null,null,null,null,"Itau Unibanco Holding SA","ITUB4",null,null,null,null,null,"Calvert Small-Cap A","CCVAX",null,null,null,null,"Haga S/A Industria E Comercio","HAGA4","BOVESPA - Sao Paulo Stock Exchange"]
[null,null,null,null,null,null,null,null,null,null,null,null,"Itausa - Investimentos Itau SA","ITSA3",null,null,null,null,null,"Calvert Small-Cap C","CSCCX",null,null,null,null,"Hapvida Participacoes e Investimentos SA","HAPV3","BOVESPA - Sao Paulo Stock Exchange"]
[null,null,null,null,null,null,null,null,null,null,null,null,"Itausa - Investimentos Itau SA","ITSA4",null,null,null,null,null,"Calvert Small-Cap I","CSVIX",null,null,null,null,"Helbor Empreendimentos SA","HBOR3","BOVESPA - Sao Paulo Stock Exchange"]
[null,null,null,null,null,null,null,null,null,null,null,null,"Itautec S.A.","ITEC3",null,null,null,null,null,"Calvert US Large Cap Core Rspnb Idx A","CSXAX",null,null,null,null,"Hercules SA - Fabrica de Talheres","HETA4","BOVESPA - Sao Paulo Stock Exchange"]
[null,null,null,null,null,null,null,null,null,null,null,null,"JBS SA","JBSS3",null,null,null,null,null,"Calvert US Large Cap Core Rspnb Idx C","CSXCX",null,null,null,null,"Hoteis Othon SA","HOOT4","BOVESPA - Sao Paulo Stock Exchange"]
[null,null,null,null,null,null,null,null,null,null,null,null,"JHSF Participacoes SA","JHSF3",null,null,null,null,null,"Calvert US Large Cap Core Rspnb Idx I","CISIX",null,null,null,null,"Hypera SA","HYPE3","BOVESPA - Sao Paulo Stock Exchange"]
[null,null,null,null,null,null,null,null,null,null,null,null,"Joao Fortes Engenharia S.A.","JFEN3",null,null,null,null,null,"Cambiar Global Ultra Focus Investor","CAMAX",null,null,null,null,"Ideiasnet SA","IDNT3","BOVESPA - Sao Paulo Stock Exchange"]
[null,null,null,null,null,null,null,null,null,null,null,null,"JSL SA","JSLG3",null,null,null,null,null,"Cambiar International Equity Instl","CAMYX",null,null,null,null,"Igb Eletronica SA","IGBR3","BOVESPA - Sao Paulo Stock Exchange"]
[null,null,null,null,null,null,null,null,null,null,null,null,"Karsten SA","CTKA4",null,null,null,null,null,"Cambiar Opportunity Inv","CAMOX",null,null,null,null,"Iguatemi Empresa de Shopping Centers SA","IGTA3","BOVESPA - Sao Paulo Stock Exchange"]
[null,null,null,null,null,null,null,null,null,null,null,null,"Kepler Weber SA","KEPL3",null,null,null,null,null,"Carillon ClariVest Capital Apprec R5","HRCMX",null,null,null,null,"Industrias JB Duarte SA","JBDU3","BOVESPA - Sao Paulo Stock Exchange"]
[null,null,null,null,null,null,null,null,null,null,null,null,"Klabin SA","KLBN4",null,null,null,null,null,"Carillon ClariVest Capital Apprec R6","HRCUX",null,null,null,null,"Industrias JB Duarte SA","JBDU4","BOVESPA - Sao Paulo Stock Exchange"]
[null,null,null,null,null,null,null,null,null,null,null,null,"Klabin SA","KLBN3",null,null,null,null,null,"Catalyst Dynamic Alpha A","CPEAX",null,null,null,null,"Industrias Romi SA","ROMI3","BOVESPA - Sao Paulo Stock Exchange"]
[null,null,null,null,null,null,null,null,null,null,null,null,"Klabin SA","KLBN11",null,null,null,null,null,"Catalyst Dynamic Alpha C","CPECX",null,null,null,null,"Inepar SA Industria e Construcoes","INEP4","BOVESPA - Sao Paulo Stock Exchange"]
[null,null,null,null,null,null,null,null,null,null,null,null,"Kroton Educacional SA","KROT3",null,null,null,null,null,"Catalyst Dynamic Alpha I","CPEIX",null,null,null,null,"Inepar SA Industria e Construcoes","INEP3","BOVESPA - Sao Paulo Stock Exchange"]
[null,null,null,null,null,null,null,null,null,null,null,null,"Light SA","LIGT3",null,null,null,null,null,"Causeway International Value Inv","CIVVX",null,null,null,null,"Instituto Hermes Pardini SA","PARD3","BOVESPA - Sao Paulo Stock Exchange"]
[null,null,null,null,null,null,null,null,null,null,null,null,"Linx SA","LINX3",null,null,null,null,null,"CGM Realty","CGMRX",null,null,null,null,"Iochpe Maxion SA","MYPK3","BOVESPA - Sao Paulo Stock Exchange"]
[null,null,null,null,null,null,null,null,null,null,null,null,"Localiza Rent a Car SA","RENT3",null,null,null,null,null,"Champlain Mid Cap Adv","CIPMX",null,null,null,null,"IRB Brasil Resseguros SA","IRBR3","BOVESPA - Sao Paulo Stock Exchange"]
[null,null,null,null,null,null,null,null,null,null,null,null,"Log-in Logistica Intermodal SA","LOGN3",null,null,null,null,null,"Champlain Mid Cap Institutional","CIPIX",null,null,null,null,"iShares Ibovespa Index","BOVA11","BOVESPA - Sao Paulo Stock Exchange"]
[null,null,null,null,null,null,null,null,null,null,null,null,"Lojas Americanas SA","LAME4",null,null,null,null,null,"Champlain Small Company Adv","CIPSX",null,null,null,null,"Itau Unibanco Holding SA","ITUB3","BOVESPA - Sao Paulo Stock Exchange"]
[null,null,null,null,null,null,null,null,null,null,null,null,"Lojas Americanas SA","LAME3",null,null,null,null,null,"Champlain Small Company Institutional","CIPNX",null,null,null,null,"Itau Unibanco Holding SA","ITUB4","BOVESPA - Sao Paulo Stock Exchange"]
[null,null,null,null,null,null,null,null,null,null,null,null,"Lojas Renner SA","LREN3",null,null,null,null,null,"CIBC Atlas Disciplined Equity Instl","AWEIX",null,null,null,null,"Itausa - Investimentos Itau SA","ITSA3","BOVESPA - Sao Paulo Stock Exchange"]
[null,null,null,null,null,null,null,null,null,null,null,null,"LPS Brasil - Consultoria de Imoveis SA","LPSB3",null,null,null,null,null,"Clifford Capital Partners Institutional","CLIFX",null,null,null,null,"Itausa - Investimentos Itau SA","ITSA4","BOVESPA - Sao Paulo Stock Exchange"]
[null,null,null,null,null,null,null,null,null,null,null,null,"Lupatech SA","LUPA3",null,null,null,null,null,"Clifford Capital Partners Investor","CLFFX",null,null,null,null,"Itautec S.A.","ITEC3","BOVESPA - Sao Paulo Stock Exchange"]
[null,null,null,null,null,null,null,null,null,null,null,null,"M. Dias Branco SA Ind Com de Alimentos","MDIA3",null,null,null,null,null,"Clipper","CFIMX",null,null,null,null,"JBS SA","JBSS3","BOVESPA - Sao Paulo Stock Exchange"]
[null,null,null,null,null,null,null,null,null,null,null,null,"Magazine Luiza SA","MGLU3",null,null,null,null,null,"Cohen & Steers Instl Realty Shares","CSRIX",null,null,null,null,"JHSF Participacoes SA","JHSF3","BOVESPA - Sao Paulo Stock Exchange"]
[null,null,null,null,null,null,null,null,null,null,null,null,"Magnesita Refratarios SA","MAGG3",null,null,null,null,null,"Cohen & Steers Realty Shares","CSRSX",null,null,null,null,"Joao Fortes Engenharia S.A.","JFEN3","BOVESPA - Sao Paulo Stock Exchange"]
[null,null,null,null,null,null,null,null,null,null,null,null,"Mahle Metal Leve SA","LEVE3",null,null,null,null,null,"Columbia Acorn European C","CAECX",null,null,null,null,"JSL SA","JSLG3","BOVESPA - Sao Paulo Stock Exchange"]
[null,null,null,null,null,null,null,null,null,null,null,null,"Mangels Industrial SA","MGEL4",null,null,null,null,null,"Columbia Acorn European Inst2","CAEEX",null,null,null,null,"Karsten SA","CTKA4","BOVESPA - Sao Paulo Stock Exchange"]
[null,null,null,null,null,null,null,null,null,null,null,null,"Manufatura de Brinquedos Estrela SA","ESTR4",null,null,null,null,null,"Columbia Balanced A","CBLAX",null,null,null,null,"Kepler Weber SA","KEPL3","BOVESPA - Sao Paulo Stock Exchange"]
[null,null,null,null,null,null,null,null,null,null,null,null,"Marcopolo SA","POMO4",null,null,null,null,null,"Columbia Balanced Adv","CBDRX",null,null,null,null,"Klabin SA","KLBN4","BOVESPA - Sao Paulo Stock Exchange"]
[null,null,null,null,null,null,null,null,null,null,null,null,"Marcopolo SA","POMO3",null,null,null,null,null,"Columbia Balanced Inst","CBALX",null,null,null,null,"Klabin SA","KLBN3","BOVESPA - Sao Paulo Stock Exchange"]
[null,null,null,null,null,null,null,null,null,null,null,null,"Marfrig Global Foods SA","MRFG3",null,null,null,null,null,"Columbia Balanced Inst2","CLREX",null,null,null,null,"Klabin SA","KLBN11","BOVESPA - Sao Paulo Stock Exchange"]
[null,null,null,null,null,null,null,null,null,null,null,null,"Marisa Lojas SA","AMAR3",null,null,null,null,null,"Columbia Balanced Inst3","CBDYX",null,null,null,null,"Kroton Educacional SA","KROT3","BOVESPA - Sao Paulo Stock Exchange"]
[null,null,null,null,null,null,null,null,null,null,null,null,"Mendes Junior Engenharia SA","MEND5",null,null,null,null,null,"Columbia Contrarian Core Adv","CORRX",null,null,null,null,"Light SA","LIGT3","BOVESPA - Sao Paulo Stock Exchange"]
[null,null,null,null,null,null,null,null,null,null,null,null,"Mercantil do Brasil Financeira SA CFI","MERC4",null,null,null,null,null,"Columbia Contrarian Core C","LCCCX",null,null,null,null,"Linx SA","LINX3","BOVESPA - Sao Paulo Stock Exchange"]
[null,null,null,null,null,null,null,null,null,null,null,null,"Metalfrio Solutions SA","FRIO3",null,null,null,null,null,"Columbia Contrarian Core Inst","SMGIX",null,null,null,null,"Localiza Rent a Car SA","RENT3","BOVESPA - Sao Paulo Stock Exchange"]
[null,null,null,null,null,null,null,null,null,null,null,null,"Metalgrafica Iguacu SA","MTIG4",null,null,null,null,null,"Columbia Contrarian Core Inst3","COFYX",null,null,null,null,"Log-in Logistica Intermodal SA","LOGN3","BOVESPA - Sao Paulo Stock Exchange"]
[null,null,null,null,null,null,null,null,null,null,null,null,"Metalurgica Gerdau S.A.","GOAU4",null,null,null,null,null,"Columbia Contrarian Core R","CCCRX",null,null,null,null,"Lojas Americanas SA","LAME4","BOVESPA - Sao Paulo Stock Exchange"]
[null,null,null,null,null,null,null,null,null,null,null,null,"Metalurgica Gerdau S.A.","GOAU3",null,null,null,null,null,"Columbia Global Strategic Equity A","NLGIX",null,null,null,null,"Lojas Americanas SA","LAME3","BOVESPA - Sao Paulo Stock Exchange"]
[null,null,null,null,null,null,null,null,null,null,null,null,"Metisa Metalurgica Timboense SA","MTSA4",null,null,null,null,null,"Columbia Global Strategic Equity Inst","NGPAX",null,null,null,null,"Lojas Renner SA","LREN3","BOVESPA - Sao Paulo Stock Exchange"]
[null,null,null,null,null,null,null,null,null,null,null,null,"Mills Estruturas Servicos","MILS3",null,null,null,null,null,"Columbia Global Technology Growth Adv","CTYRX",null,null,null,null,"LPS Brasil - Consultoria de Imoveis SA","LPSB3","BOVESPA - Sao Paulo Stock Exchange"]
[null,null,null,null,null,null,null,null,null,null,null,null,"Minerva SA","BEEF3",null,null,null,null,null,"Columbia Global Technology Growth C","CTHCX",null,null,null,null,"Lupatech SA","LUPA3","BOVESPA - Sao Paulo Stock Exchange"]
[null,null,null,null,null,null,null,null,null,null,null,null,"Minupar Participacoes SA","MNPR3",null,null,null,null,null,"Columbia Global Technology Growth Inst","CMTFX",null,null,null,null,"M. Dias Branco SA Ind Com de Alimentos","MDIA3","BOVESPA - Sao Paulo Stock Exchange"]
[null,null,null,null,null,null,null,null,null,null,null,null,"MMX MINERACAO E ME","MMXM11",null,null,null,null,null,"Columbia Global Technology Growth Inst2","CTHRX",null,null,null,null,"Magazine Luiza SA","MGLU3","BOVESPA - Sao Paulo Stock Exchange"]
[null,null,null,null,null,null,null,null,null,null,null,null,"MMX Mineracao e Metalicos SA","MMXM3",null,null,null,null,null,"Columbia Global Technology Growth Inst3","CGTUX",null,null,null,null,"Magnesita Refratarios SA","MAGG3","BOVESPA - Sao Paulo Stock Exchange"]
[null,null,null,null,null,null,null,null,null,null,null,null,"Movida Participacoes SA","MOVI3",null,null,null,null,null,"Columbia Large Cap Enhanced Core A","NMIAX",null,null,null,null,"Mahle Metal Leve SA","LEVE3","BOVESPA - Sao Paulo Stock Exchange"]
[null,null,null,null,null,null,null,null,null,null,null,null,"MRV Engenharia e Participacoes SA","MRVE3",null,null,null,null,null,"Columbia Large Cap Enhanced Core Inst2","CLNCX",null,null,null,null,"Mangels Industrial SA","MGEL4","BOVESPA - Sao Paulo Stock Exchange"]
[null,null,null,null,null,null,null,null,null,null,null,null,"Multiplan Empreendiment. Imobiliarios SA","MULT3",null,null,null,null,null,"Columbia Large Cap Index A","NEIAX",null,null,null,null,"Manufatura de Brinquedos Estrela SA","ESTR4","BOVESPA - Sao Paulo Stock Exchange"]
[null,null,null,null,null,null,null,null,null,null,null,null,"Multiplus SA","MPLU3",null,null,null,null,null,"Columbia Large Cap Index Inst","NINDX",null,null,null,null,"Marcopolo SA","POMO4","BOVESPA - Sao Paulo Stock Exchange"]
[null,null,null,null,null,null,null,null,null,null,null,null,"Mundial SA Produtos de Consumo","MNDL3",null,null,null,null,null,"Columbia Large Cap Index Inst2","CLXRX",null,null,null,null,"Marcopolo SA","POMO3","BOVESPA - Sao Paulo Stock Exchange"]
[null,null,null,null,null,null,null,null,null,null,null,null,"Natura Cosmeticos SA","NATU3",null,null,null,null,null,"Columbia Select Global Growth Inst2","CADIX",null,null,null,null,"Marfrig Global Foods SA","MRFG3","BOVESPA - Sao Paulo Stock Exchange"]
[null,null,null,null,null,null,null,null,null,null,null,null,"Nordon Industrias Metalurgicas SA","NORD3",null,null,null,null,null,"Columbia Select Global Growth R","COGRX",null,null,null,null,"Marisa Lojas SA","AMAR3","BOVESPA - Sao Paulo Stock Exchange"]
[null,null,null,null,null,null,null,null,null,null,null,null,"Nutriplant Industria e Comercio SA","NUTR3",null,null,null,null,null,"Columbia Select Large-Cap Value A","SLVAX",null,null,null,null,"Mendes Junior Engenharia SA","MEND5","BOVESPA - Sao Paulo Stock Exchange"]
[null,null,null,null,null,null,null,null,null,null,null,null,"Odontoprev SA","ODPV3",null,null,null,null,null,"Columbia Select Large-Cap Value Adv","CSERX",null,null,null,null,"Mercantil do Brasil Financeira SA CFI","MERC4","BOVESPA - Sao Paulo Stock Exchange"]
[null,null,null,null,null,null,null,null,null,null,null,null,"Oi SA","OIBR3",null,null,null,null,null,"Columbia Select Large-Cap Value Inst","CSVZX",null,null,null,null,"Metalfrio Solutions SA","FRIO3","BOVESPA - Sao Paulo Stock Exchange"]
[null,null,null,null,null,null,null,null,null,null,null,null,"Oi SA","OIBR4",null,null,null,null,null,"Columbia Select Large-Cap Value Inst2","SLVIX",null,null,null,null,"Metalgrafica Iguacu SA","MTIG4","BOVESPA - Sao Paulo Stock Exchange"]
[null,null,null,null,null,null,null,null,null,null,null,null,"Oleo e Gas Participacoes SA","OGXP3",null,null,null,null,null,"Columbia Select Large-Cap Value Inst3","CSRYX",null,null,null,null,"Metalurgica Gerdau S.A.","GOAU4","BOVESPA - Sao Paulo Stock Exchange"]
[null,null,null,null,null,null,null,null,null,null,null,null,"Omega Geracao SA","OMGE3",null,null,null,null,null,"Columbia Select Smaller-Cap Value A","SSCVX",null,null,null,null,"Metalurgica Gerdau S.A.","GOAU3","BOVESPA - Sao Paulo Stock Exchange"]
[null,null,null,null,null,null,null,null,null,null,null,null,"OSX BRASIL SA","OSXB3",null,null,null,null,null,"Columbia Select Smaller-Cap Value Inst","CSSZX",null,null,null,null,"Metisa Metalurgica Timboense SA","MTSA4","BOVESPA - Sao Paulo Stock Exchange"]
[null,null,null,null,null,null,null,null,null,null,null,null,"Ouro Fino Saude Animal Participacoes SA","OFSA3",null,null,null,null,null,"Columbia Seligman Comms & Info A","SLMCX",null,null,null,null,"Mills Estruturas Servicos","MILS3","BOVESPA - Sao Paulo Stock Exchange"]
[null,null,null,null,null,null,null,null,null,null,null,null,"Panatlantica SA","PATI3",null,null,null,null,null,"Columbia Seligman Comms & Info Adv","SCIOX",null,null,null,null,"Minerva SA","BEEF3","BOVESPA - Sao Paulo Stock Exchange"]
[null,null,null,null,null,null,null,null,null,null,null,null,"Panatlantica SA","PATI4",null,null,null,null,null,"Columbia Seligman Comms & Info Inst","CCIZX",null,null,null,null,"Minupar Participacoes SA","MNPR3","BOVESPA - Sao Paulo Stock Exchange"]
[null,null,null,null,null,null,null,null,null,null,null,null,"Parana Banco SA","PRBC4",null,null,null,null,null,"Columbia Seligman Comms & Info R","SCIRX",null,null,null,null,"MMX MINERACAO E ME","MMXM11","BOVESPA - Sao Paulo Stock Exchange"]
[null,null,null,null,null,null,null,null,null,null,null,null,"Paranapanema SA","PMAM3",null,null,null,null,null,"Columbia Seligman Global Tech Adv","CCHRX",null,null,null,null,"MMX Mineracao e Metalicos SA","MMXM3","BOVESPA - Sao Paulo Stock Exchange"]
[null,null,null,null,null,null,null,null,null,null,null,null,"PBG SA","PTBL3",null,null,null,null,null,"Columbia Seligman Global Tech C","SHTCX",null,null,null,null,"Movida Participacoes SA","MOVI3","BOVESPA - Sao Paulo Stock Exchange"]
[null,null,null,null,null,null,null,null,null,null,null,null,"PDG Realty SA Empreend e Participacoes","PDGR3",null,null,null,null,null,"Columbia Seligman Global Tech Inst","CSGZX",null,null,null,null,"MRV Engenharia e Participacoes SA","MRVE3","BOVESPA - Sao Paulo Stock Exchange"]
[null,null,null,null,null,null,null,null,null,null,null,null,"Petro Rio SA","PRIO3",null,null,null,null,null,"Columbia Seligman Global Tech R","SGTRX",null,null,null,null,"Multiplan Empreendiment. Imobiliarios SA","MULT3","BOVESPA - Sao Paulo Stock Exchange"]
[null,null,null,null,null,null,null,null,null,null,null,null,"Petrobras Distribuidora SA PN","BRDT3",null,null,null,null,null,"Conestoga Small Cap Institutional","CCALX",null,null,null,null,"Multiplus SA","MPLU3","BOVESPA - Sao Paulo Stock Exchange"]
[null,null,null,null,null,null,null,null,null,null,null,null,"Petroleo Brasileiro SA Petrobras","PETR3",null,null,null,null,null,"Conestoga Small Cap Investors","CCASX",null,null,null,null,"Mundial SA Produtos de Consumo","MNDL3","BOVESPA - Sao Paulo Stock Exchange"]
[null,null,null,null,null,null,null,null,null,null,null,null,"Petroleo Brasileiro SA Petrobras","PETR4",null,null,null,null,null,"Conestoga SMid Cap Institutional","CCSGX",null,null,null,null,"Natura Cosmeticos SA","NATU3","BOVESPA - Sao Paulo Stock Exchange"]
[null,null,null,null,null,null,null,null,null,null,null,null,"Pettenati SA Industria Textil","PTNT4",null,null,null,null,null,"Congress Mid Cap Growth Institutional","IMIDX",null,null,null,null,"Nordon Industrias Metalurgicas SA","NORD3","BOVESPA - Sao Paulo Stock Exchange"]
[null,null,null,null,null,null,null,null,null,null,null,null,"Plascar Participacoes Industrias SA","PLAS3",null,null,null,null,null,"Congress Mid Cap Growth Retail","CMIDX",null,null,null,null,"Nutriplant Industria e Comercio SA","NUTR3","BOVESPA - Sao Paulo Stock Exchange"]
[null,null,null,null,null,null,null,null,null,null,null,null,"Porto Seguro SA","PSSA3",null,null,null,null,null,"Congress SMid Core Opportunity Instl","IACOX",null,null,null,null,"Odontoprev SA","ODPV3","BOVESPA - Sao Paulo Stock Exchange"]
[null,null,null,null,null,null,null,null,null,null,null,null,"Positivo Tecnologia SA","POSI3",null,null,null,null,null,"CornerCap Small-Cap Value Institutional","CSCJX",null,null,null,null,"Oi SA","OIBR3","BOVESPA - Sao Paulo Stock Exchange"]
[null,null,null,null,null,null,null,null,null,null,null,null,"PPLA Participations Ltd","BPAC11",null,null,null,null,null,"CornerCap Small-Cap Value Investor","CSCVX",null,null,null,null,"Oi SA","OIBR4","BOVESPA - Sao Paulo Stock Exchange"]
[null,null,null,null,null,null,null,null,null,null,null,null,"Profarma Distribuidora de Produts Frm SA","PFRM3",null,null,null,null,null,"Crawford Dividend Opportunity","CDOFX",null,null,null,null,"Oleo e Gas Participacoes SA","OGXP3","BOVESPA - Sao Paulo Stock Exchange"]
[null,null,null,null,null,null,null,null,null,null,null,null,"Qgep Participacoes SA","QGEP3",null,null,null,null,null,"Crawford Dividend Opportunity C","CDOCX",null,null,null,null,"Omega Geracao SA","OMGE3","BOVESPA - Sao Paulo Stock Exchange"]
[null,null,null,null,null,null,null,null,null,null,null,null,"Qualicorp SA","QUAL3",null,null,null,null,null,"CRM Small Cap Value Inv","CRMSX",null,null,null,null,"OSX BRASIL SA","OSXB3","BOVESPA - Sao Paulo Stock Exchange"]
[null,null,null,null,null,null,null,null,null,null,null,null,"Raia Drogasil SA","RADL3",null,null,null,null,null,"Crossmark Steward Global Eq Inc A","SGIDX",null,null,null,null,"Ouro Fino Saude Animal Participacoes SA","OFSA3","BOVESPA - Sao Paulo Stock Exchange"]
[null,null,null,null,null,null,null,null,null,null,null,null,"Randon SA Implementos e Participacoes","RAPT4",null,null,null,null,null,"Crossmark Steward Lrg Cap Enh Idx A","SEEKX",null,null,null,null,"Panatlantica SA","PATI3","BOVESPA - Sao Paulo Stock Exchange"]
[null,null,null,null,null,null,null,null,null,null,null,null,"Randon SA Implementos e Participacoes","RAPT3",null,null,null,null,null,"Crossmark Steward Sm-Md Cp Enh Idx A","TRDFX",null,null,null,null,"Panatlantica SA","PATI4","BOVESPA - Sao Paulo Stock Exchange"]
[null,null,null,null,null,null,null,null,null,null,null,null,"Recrusul SA","RCSL4",null,null,null,null,null,"Crossmark Steward Sm-Md Cp Enh Idx Instl","SCECX",null,null,null,null,"Parana Banco SA","PRBC4","BOVESPA - Sao Paulo Stock Exchange"]
[null,null,null,null,null,null,null,null,null,null,null,null,"Recrusul SA","RCSL3",null,null,null,null,null,"Deutsche Equity 500 Index Institutional","BTIIX",null,null,null,null,"Paranapanema SA","PMAM3","BOVESPA - Sao Paulo Stock Exchange"]
[null,null,null,null,null,null,null,null,null,null,null,null,"Rede Energia SA","REDE3",null,null,null,null,null,"Deutsche Equity 500 Index S","BTIEX",null,null,null,null,"PBG SA","PTBL3","BOVESPA - Sao Paulo Stock Exchange"]
[null,null,null,null,null,null,null,null,null,null,null,null,"Refinaria de Petroleos d Mng S em Rcp Jd","RPMG3",null,null,null,null,null,"Deutsche S&P 500 Index C","SXPCX",null,null,null,null,"PDG Realty SA Empreend e Participacoes","PDGR3","BOVESPA - Sao Paulo Stock Exchange"]
[null,null,null,null,null,null,null,null,null,null,null,null,"Renova Energia SA","RNEW11",null,null,null,null,null,"DF Dent Midcap Growth Investor","DFDMX",null,null,null,null,"Petro Rio SA","PRIO3","BOVESPA - Sao Paulo Stock Exchange"]
[null,null,null,null,null,null,null,null,null,null,null,null,"Renova Energia SA","RNEW4",null,null,null,null,null,"Diamond Hill All Cap Select I","DHLTX",null,null,null,null,"Petrobras Distribuidora SA PN","BRDT3","BOVESPA - Sao Paulo Stock Exchange"]
[null,null,null,null,null,null,null,null,null,null,null,null,"Renova Energia SA","RNEW3",null,null,null,null,null,"Diamond Hill All Cap Select Y","DHTYX",null,null,null,null,"Petroleo Brasileiro SA Petrobras","PETR3","BOVESPA - Sao Paulo Stock Exchange"]
[null,null,null,null,null,null,null,null,null,null,null,null,"Restoque Comercio e Confecos de Roups SA","LLIS3",null,null,null,null,null,"Diamond Hill Large Cap A","DHLAX",null,null,null,null,"Petroleo Brasileiro SA Petrobras","PETR4","BOVESPA - Sao Paulo Stock Exchange"]
[null,null,null,null,null,null,null,null,null,null,null,null,"RIO BRAVO CREDITO","RBCB11",null,null,null,null,null,"Diamond Hill Large Cap I","DHLRX",null,null,null,null,"Pettenati SA Industria Textil","PTNT4","BOVESPA - Sao Paulo Stock Exchange"]
[null,null,null,null,null,null,null,null,null,null,null,null,"Rio Paranapanema Energia SA","GEPA3",null,null,null,null,null,"Diamond Hill Large Cap Y","DHLYX",null,null,null,null,"Plascar Participacoes Industrias SA","PLAS3","BOVESPA - Sao Paulo Stock Exchange"]
[null,null,null,null,null,null,null,null,null,null,null,null,"Rio Paranapanema Energia SA","GEPA4",null,null,null,null,null,"Diamond Hill Long-Short C","DHFCX",null,null,null,null,"Porto Seguro SA","PSSA3","BOVESPA - Sao Paulo Stock Exchange"]
[null,null,null,null,null,null,null,null,null,null,null,null,"RNI Negocios Imobiliarios SA","RDNI3",null,null,null,null,null,"Diamond Hill Long-Short I","DHLSX",null,null,null,null,"Positivo Tecnologia SA","POSI3","BOVESPA - Sao Paulo Stock Exchange"]
[null,null,null,null,null,null,null,null,null,null,null,null,"Rossi Residencial SA","RSID3",null,null,null,null,null,"Diamond Hill Long-Short Y","DIAYX",null,null,null,null,"PPLA Participations Ltd","BPAC11","BOVESPA - Sao Paulo Stock Exchange"]
[null,null,null,null,null,null,null,null,null,null,null,null,"RUMO SA","RAIL3",null,null,null,null,null,"Diamond Hill Research Opportunities C","DROCX",null,null,null,null,"Profarma Distribuidora de Produts Frm SA","PFRM3","BOVESPA - Sao Paulo Stock Exchange"]
[null,null,null,null,null,null,null,null,null,null,null,null,"Sansuy SA Industria de Plasticos","SNSY5",null,null,null,null,null,"Diamond Hill Research Opportunities Y","DROYX",null,null,null,null,"Qgep Participacoes SA","QGEP3","BOVESPA - Sao Paulo Stock Exchange"]
[null,null,null,null,null,null,null,null,null,null,null,null,"Santos Brasil Participacoes SA","STBP3",null,null,null,null,null,"Diamond Hill Small-Mid Cap A","DHMAX",null,null,null,null,"Qualicorp SA","QUAL3","BOVESPA - Sao Paulo Stock Exchange"]
[null,null,null,null,null,null,null,null,null,null,null,null,"Sao Carlos Empreendimentos e Part. SA","SCAR3",null,null,null,null,null,"Diamond Hill Small-Mid Cap C","DHMCX",null,null,null,null,"Raia Drogasil SA","RADL3","BOVESPA - Sao Paulo Stock Exchange"]
[null,null,null,null,null,null,null,null,null,null,null,null,"Sao Martinho SA","SMTO3",null,null,null,null,null,"Diamond Hill Small-Mid Cap I","DHMIX",null,null,null,null,"Randon SA Implementos e Participacoes","RAPT4","BOVESPA - Sao Paulo Stock Exchange"]
[null,null,null,null,null,null,null,null,null,null,null,null,"Saraiva SA Livreiros Editores","SLED3",null,null,null,null,null,"Diamond Hill Small-Mid Cap Y","DHMYX",null,null,null,null,"Randon SA Implementos e Participacoes","RAPT3","BOVESPA - Sao Paulo Stock Exchange"]
[null,null,null,null,null,null,null,null,null,null,null,null,"Saraiva SA Livreiros Editores","SLED4",null,null,null,null,null,"Direxion Mthly NASDAQ-100 Bull 2X Inv","DXQLX",null,null,null,null,"Recrusul SA","RCSL4","BOVESPA - Sao Paulo Stock Exchange"]
[null,null,null,null,null,null,null,null,null,null,null,null,"Schulz SA","SHUL4",null,null,null,null,null,"Disciplined Growth Investors","DGIFX",null,null,null,null,"Recrusul SA","RCSL3","BOVESPA - Sao Paulo Stock Exchange"]
[null,null,null,null,null,null,null,null,null,null,null,null,"Senior Solution SA","SNSL3",null,null,null,null,null,"Dodge & Cox Balanced","DODBX",null,null,null,null,"Rede Energia SA","REDE3","BOVESPA - Sao Paulo Stock Exchange"]
[null,null,null,null,null,null,null,null,null,null,null,null,"Ser Educacional SA","SEER3",null,null,null,null,null,"Dodge & Cox International Stock","DODFX",null,null,null,null,"Refinaria de Petroleos d Mng S em Rcp Jd","RPMG3","BOVESPA - Sao Paulo Stock Exchange"]
[null,null,null,null,null,null,null,null,null,null,null,null,"SLC Agricola S.A.","SLCE3",null,null,null,null,null,"Dodge & Cox Stock","DODGX",null,null,null,null,"Renova Energia SA","RNEW11","BOVESPA - Sao Paulo Stock Exchange"]
[null,null,null,null,null,null,null,null,null,null,null,null,"Smiles Fidelidade SA","SMLS3",null,null,null,null,null,"DoubleLine Shiller Enhanced CAPE I","DSEEX",null,null,null,null,"Renova Energia SA","RNEW4","BOVESPA - Sao Paulo Stock Exchange"]
[null,null,null,null,null,null,null,null,null,null,null,null,"Somos Educacao SA","SEDU3",null,null,null,null,null,"DoubleLine Shiller Enhanced CAPE N","DSENX",null,null,null,null,"Renova Energia SA","RNEW3","BOVESPA - Sao Paulo Stock Exchange"]
[null,null,null,null,null,null,null,null,null,null,null,null,"Sonae Sierra Brasil SA","SSBR3",null,null,null,null,null,"Dreyfus Diversified Emerging Markets C","DBECX",null,null,null,null,"Restoque Comercio e Confecos de Roups SA","LLIS3","BOVESPA - Sao Paulo Stock Exchange"]
[null,null,null,null,null,null,null,null,null,null,null,null,"Springer SA","SPRI3",null,null,null,null,null,"Dreyfus Diversified Emerging Markets I","SBCEX",null,null,null,null,"RIO BRAVO CREDITO","RBCB11","BOVESPA - Sao Paulo Stock Exchange"]
[null,null,null,null,null,null,null,null,null,null,null,null,"Springs Global Participacoes SA","SGPS3",null,null,null,null,null,"Dreyfus Diversified Emerging Markets Y","SBYEX",null,null,null,null,"Rio Paranapanema Energia SA","GEPA3","BOVESPA - Sao Paulo Stock Exchange"]
[null,null,null,null,null,null,null,null,null,null,null,null,"Sul America SA","SULA11",null,null,null,null,null,"Dreyfus Global Stock A","DGLAX",null,null,null,null,"Rio Paranapanema Energia SA","GEPA4","BOVESPA - Sao Paulo Stock Exchange"]
[null,null,null,null,null,null,null,null,null,null,null,null,"Suzano Papel e Celulose SA","SUZB3",null,null,null,null,null,"Dreyfus Global Stock I","DGLRX",null,null,null,null,"RNI Negocios Imobiliarios SA","RDNI3","BOVESPA - Sao Paulo Stock Exchange"]
[null,null,null,null,null,null,null,null,null,null,null,null,"T4f Entretenimento SA","SHOW3",null,null,null,null,null,"Dreyfus Instl S&P 500 Stock Index I","DSPIX",null,null,null,null,"Rossi Residencial SA","RSID3","BOVESPA - Sao Paulo Stock Exchange"]
[null,null,null,null,null,null,null,null,null,null,null,null,"Tarpon Investimentos SA","TRPN3",null,null,null,null,null,"Dreyfus Mid Cap Index I","DMIDX",null,null,null,null,"RUMO SA","RAIL3","BOVESPA - Sao Paulo Stock Exchange"]
[null,null,null,null,null,null,null,null,null,null,null,null,"Tec Toy S.A.","TOYB3",null,null,null,null,null,"Dreyfus Mid Cap Index Inv","PESPX",null,null,null,null,"Sansuy SA Industria de Plasticos","SNSY5","BOVESPA - Sao Paulo Stock Exchange"]
[null,null,null,null,null,null,null,null,null,null,null,null,"Tec Toy S.A.","TOYB4",null,null,null,null,null,"Dreyfus Opportunistic Small Cap I","DOPIX",null,null,null,null,"Santos Brasil Participacoes SA","STBP3","BOVESPA - Sao Paulo Stock Exchange"]
[null,null,null,null,null,null,null,null,null,null,null,null,"Technos SA","TECN3",null,null,null,null,null,"Dreyfus Opportunistic Small Cap Inv","DSCVX",null,null,null,null,"Sao Carlos Empreendimentos e Part. SA","SCAR3","BOVESPA - Sao Paulo Stock Exchange"]
[null,null,null,null,null,null,null,null,null,null,null,null,"Tecnisa SA","TCSA3",null,null,null,null,null,"Dreyfus Opportunistic Small Cap Y","DSCYX",null,null,null,null,"Sao Martinho SA","SMTO3","BOVESPA - Sao Paulo Stock Exchange"]
[null,null,null,null,null,null,null,null,null,null,null,null,"Tecnosolo Engenharia SA","TCNO3",null,null,null,null,null,"Dreyfus Small Cap Stock Index I","DISIX",null,null,null,null,"Saraiva SA Livreiros Editores","SLED3","BOVESPA - Sao Paulo Stock Exchange"]
[null,null,null,null,null,null,null,null,null,null,null,null,"Tecnosolo Engenharia SA","TCNO4",null,null,null,null,null,"Dreyfus Small Cap Stock Index Inv","DISSX",null,null,null,null,"Saraiva SA Livreiros Editores","SLED4","BOVESPA - Sao Paulo Stock Exchange"]
[null,null,null,null,null,null,null,null,null,null,null,null,"Tegma Gestao Logistica SA","TGMA3",null,null,null,null,null,"Dreyfus Structured MidCap Y","DPSYX",null,null,null,null,"Schulz SA","SHUL4","BOVESPA - Sao Paulo Stock Exchange"]
[null,null,null,null,null,null,null,null,null,null,null,null,"Teka Tecelagem Kuehnrich SA","TEKA4",null,null,null,null,null,"Dreyfus/The Boston Co Small Cap Gr I","SSETX",null,null,null,null,"Senior Solution SA","SNSL3","BOVESPA - Sao Paulo Stock Exchange"]
[null,null,null,null,null,null,null,null,null,null,null,null,"Telecomunicacoes Brasileiras SA TELEBRAS","TELB4",null,null,null,null,null,"Driehaus Emerging Markets Growth Inv","DREGX",null,null,null,null,"Ser Educacional SA","SEER3","BOVESPA - Sao Paulo Stock Exchange"]
[null,null,null,null,null,null,null,null,null,null,null,null,"Telecomunicacoes Brasileiras SA TELEBRAS","TELB3",null,null,null,null,null,"Driehaus Micro Cap Growth","DMCRX",null,null,null,null,"SLC Agricola S.A.","SLCE3","BOVESPA - Sao Paulo Stock Exchange"]
[null,null,null,null,null,null,null,null,null,null,null,null,"Telefonica Brasil SA","VIVT4",null,null,null,null,null,"Dunham International Stock A","DAINX",null,null,null,null,"Smiles Fidelidade SA","SMLS3","BOVESPA - Sao Paulo Stock Exchange"]
[null,null,null,null,null,null,null,null,null,null,null,null,"Telefonica Brasil SA","VIVT3",null,null,null,null,null,"Dunham International Stock C","DCINX",null,null,null,null,"Somos Educacao SA","SEDU3","BOVESPA - Sao Paulo Stock Exchange"]
[null,null,null,null,null,null,null,null,null,null,null,null,"TIM Participacoes SA","TIMP3",null,null,null,null,null,"Dunham International Stock N","DNINX",null,null,null,null,"Sonae Sierra Brasil SA","SSBR3","BOVESPA - Sao Paulo Stock Exchange"]
[null,null,null,null,null,null,null,null,null,null,null,null,"Totvs SA","TOTS3",null,null,null,null,null,"Dunham Monthly Distribution A","DAMDX",null,null,null,null,"Springer SA","SPRI3","BOVESPA - Sao Paulo Stock Exchange"]
[null,null,null,null,null,null,null,null,null,null,null,null,"TPI Triunfo Participacoes e Invest. SA","TPIS3",null,null,null,null,null,"Dunham Monthly Distribution C","DCMDX",null,null,null,null,"Springs Global Participacoes SA","SGPS3","BOVESPA - Sao Paulo Stock Exchange"]
[null,null,null,null,null,null,null,null,null,null,null,null,"Transmissora Alianca Energia Eletrica SA","TAEE3",null,null,null,null,null,"Dunham Monthly Distribution N","DNMDX",null,null,null,null,"Sul America SA","SULA11","BOVESPA - Sao Paulo Stock Exchange"]
[null,null,null,null,null,null,null,null,null,null,null,null,"Transmissora Alianca Energia Eletrica SA","TAEE11",null,null,null,null,null,"Eaton Vance Focused Growth Opps A","EAFGX",null,null,null,null,"Suzano Papel e Celulose SA","SUZB3","BOVESPA - Sao Paulo Stock Exchange"]
[null,null,null,null,null,null,null,null,null,null,null,null,"Transmissora Alianca Energia Eletrica SA","TAEE4",null,null,null,null,null,"Edgewood Growth Instl","EGFIX",null,null,null,null,"T4f Entretenimento SA","SHOW3","BOVESPA - Sao Paulo Stock Exchange"]
[null,null,null,null,null,null,null,null,null,null,null,null,"Trisul SA","TRIS3",null,null,null,null,null,"Edgewood Growth Retail","EGFFX",null,null,null,null,"Tarpon Investimentos SA","TRPN3","BOVESPA - Sao Paulo Stock Exchange"]
[null,null,null,null,null,null,null,null,null,null,null,null,"Tupy SA","TUPY3",null,null,null,null,null,"Emerald Banking and Finance A","HSSAX",null,null,null,null,"Tec Toy S.A.","TOYB3","BOVESPA - Sao Paulo Stock Exchange"]
[null,null,null,null,null,null,null,null,null,null,null,null,"Ultrapar Participacoes SA","UGPA3",null,null,null,null,null,"Emerald Banking and Finance C","HSSCX",null,null,null,null,"Tec Toy S.A.","TOYB4","BOVESPA - Sao Paulo Stock Exchange"]
[null,null,null,null,null,null,null,null,null,null,null,null,"UNICASA Industria de Moveis S/A","UCAS3",null,null,null,null,null,"Emerald Banking and Finance Instl","HSSIX",null,null,null,null,"Technos SA","TECN3","BOVESPA - Sao Paulo Stock Exchange"]
[null,null,null,null,null,null,null,null,null,null,null,null,"Unipar Carbocloro SA","UNIP6",null,null,null,null,null,"Emerald Banking and Finance Investor","FFBFX",null,null,null,null,"Tecnisa SA","TCSA3","BOVESPA - Sao Paulo Stock Exchange"]
[null,null,null,null,null,null,null,null,null,null,null,null,"Unipar Carbocloro SA","UNIP3",null,null,null,null,null,"Emerald Growth A","HSPGX",null,null,null,null,"Tecnosolo Engenharia SA","TCNO3","BOVESPA - Sao Paulo Stock Exchange"]
[null,null,null,null,null,null,null,null,null,null,null,null,"Unipar Carbocloro SA","UNIP5",null,null,null,null,null,"Emerald Growth Investor","FFGRX",null,null,null,null,"Tecnosolo Engenharia SA","TCNO4","BOVESPA - Sao Paulo Stock Exchange"]
[null,null,null,null,null,null,null,null,null,null,null,null,"Usinas Siderurgicas de Minas Grs SA Usms","USIM3",null,null,null,null,null,"EntrepreneurShares Global Instl","ENTIX",null,null,null,null,"Tegma Gestao Logistica SA","TGMA3","BOVESPA - Sao Paulo Stock Exchange"]
[null,null,null,null,null,null,null,null,null,null,null,null,"Usinas Siderurgicas de Minas Grs SA Usms","USIM5",null,null,null,null,null,"Evermore Global Value Institutional","EVGIX",null,null,null,null,"Teka Tecelagem Kuehnrich SA","TEKA4","BOVESPA - Sao Paulo Stock Exchange"]
[null,null,null,null,null,null,null,null,null,null,null,null,"Vale SA","VALE3",null,null,null,null,null,"Evermore Global Value Investor","EVGBX",null,null,null,null,"Telecomunicacoes Brasileiras SA TELEBRAS","TELB4","BOVESPA - Sao Paulo Stock Exchange"]
[null,null,null,null,null,null,null,null,null,null,null,null,"Valid Solucoes E Servicos De Seguranca","VLID3",null,null,null,null,null,"FAM Small Cap Investor","FAMFX",null,null,null,null,"Telecomunicacoes Brasileiras SA TELEBRAS","TELB3","BOVESPA - Sao Paulo Stock Exchange"]
[null,null,null,null,null,null,null,null,null,null,null,null,"Via Varejo SA","VVAR4",null,null,null,null,null,"FAM Value Investor","FAMVX",null,null,null,null,"Telefonica Brasil SA","VIVT4","BOVESPA - Sao Paulo Stock Exchange"]
[null,null,null,null,null,null,null,null,null,null,null,null,"Via Varejo SA","VVAR3",null,null,null,null,null,"Federated Global Allocation A","FSTBX",null,null,null,null,"Telefonica Brasil SA","VIVT3","BOVESPA - Sao Paulo Stock Exchange"]
[null,null,null,null,null,null,null,null,null,null,null,null,"Via Varejo SA","VVAR11",null,null,null,null,null,"Federated Global Allocation B","FSBBX",null,null,null,null,"TIM Participacoes SA","TIMP3","BOVESPA - Sao Paulo Stock Exchange"]
[null,null,null,null,null,null,null,null,null,null,null,null,"Viver Incorporadora e Construtora SA","VIVR3",null,null,null,null,null,"Federated Global Allocation C","FSBCX",null,null,null,null,"Totvs SA","TOTS3","BOVESPA - Sao Paulo Stock Exchange"]
[null,null,null,null,null,null,null,null,null,null,null,null,"Vulcabras Azaleia SA","VULC3",null,null,null,null,null,"Federated Global Allocation Instl","SBFIX",null,null,null,null,"TPI Triunfo Participacoes e Invest. SA","TPIS3","BOVESPA - Sao Paulo Stock Exchange"]
[null,null,null,null,null,null,null,null,null,null,null,null,"Weg SA","WEGE3",null,null,null,null,null,"Federated Global Allocation R","FSBKX",null,null,null,null,"Transmissora Alianca Energia Eletrica SA","TAEE3","BOVESPA - Sao Paulo Stock Exchange"]
[null,null,null,null,null,null,null,null,null,null,null,null,"Wetzel SA","MWET4",null,null,null,null,null,"Federated International Leaders A","FGFAX",null,null,null,null,"Transmissora Alianca Energia Eletrica SA","TAEE11","BOVESPA - Sao Paulo Stock Exchange"]
[null,null,null,null,null,null,null,null,null,null,null,null,"Whirlpool SA","WHRL4",null,null,null,null,null,"Federated International Leaders R6","FGRSX",null,null,null,null,"Transmissora Alianca Energia Eletrica SA","TAEE4","BOVESPA - Sao Paulo Stock Exchange"]
[null,null,null,null,null,null,null,null,null,null,null,null,"Whirlpool SA","WHRL3",null,null,null,null,null,"Federated Kaufmann Large Cap Instl","KLCIX",null,null,null,null,"Trisul SA","TRIS3","BOVESPA - Sao Paulo Stock Exchange"]
[null,null,null,null,null,null,null,null,null,null,null,null,"Wilson Sons","WSON33",null,null,null,null,null,"Federated Kaufmann Small Cap A","FKASX",null,null,null,null,"Tupy SA","TUPY3","BOVESPA - Sao Paulo Stock Exchange"]
[null,null,null,null,null,null,null,null,null,null,null,null,"Wiz Solucoes e Corretagem de Seguros SA","WIZS3",null,null,null,null,null,"Federated Kaufmann Small Cap R","FKKSX",null,null,null,null,"Ultrapar Participacoes SA","UGPA3","BOVESPA - Sao Paulo Stock Exchange"]
[null,null,null,null,null,null,null,null,null,null,null,null,"WLM Industria e Comercio SA","WLMM4",null,null,null,null,null,"Federated MDT Large Cap Value A","FSTRX",null,null,null,null,"UNICASA Industria de Moveis S/A","UCAS3","BOVESPA - Sao Paulo Stock Exchange"]
[null,null,null,null,null,null,null,null,null,null,null,null,null,null,null,null,null,null,null,"Federated MDT Large Cap Value Instl","FMSTX",null,null,null,null,"Unipar Carbocloro SA","UNIP6","BOVESPA - Sao Paulo Stock Exchange"]
[null,null,null,null,null,null,null,null,null,null,null,null,null,null,null,null,null,null,null,"Federated MDT Large Cap Value R6","FSTLX",null,null,null,null,"Unipar Carbocloro SA","UNIP3","BOVESPA - Sao Paulo Stock Exchange"]
[null,null,null,null,null,null,null,null,null,null,null,null,null,null,null,null,null,null,null,"Federated MDT Large Cap Value Service","FSTKX",null,null,null,null,"Unipar Carbocloro SA","UNIP5","BOVESPA - Sao Paulo Stock Exchange"]
[null,null,null,null,null,null,null,null,null,null,null,null,null,null,null,null,null,null,null,"Federated MDT Mid Cap Growth R6","FGSKX",null,null,null,null,"Usinas Siderurgicas de Minas Grs SA Usms","USIM3","BOVESPA - Sao Paulo Stock Exchange"]
[null,null,null,null,null,null,null,null,null,null,null,null,null,null,null,null,null,null,null,"Federated MDT Small Cap Core A","QASCX",null,null,null,null,"Usinas Siderurgicas de Minas Grs SA Usms","USIM5","BOVESPA - Sao Paulo Stock Exchange"]
[null,null,null,null,null,null,null,null,null,null,null,null,null,null,null,null,null,null,null,"Federated MDT Small Cap Core C","QCSCX",null,null,null,null,"Vale SA","VALE3","BOVESPA - Sao Paulo Stock Exchange"]
[null,null,null,null,null,null,null,null,null,null,null,null,null,null,null,null,null,null,null,"Federated MDT Small Cap Core Instl","QISCX",null,null,null,null,"Valid Solucoes E Servicos De Seguranca","VLID3","BOVESPA - Sao Paulo Stock Exchange"]
[null,null,null,null,null,null,null,null,null,null,null,null,null,null,null,null,null,null,null,"Federated MDT Small Cap Growth A","QASGX",null,null,null,null,"Via Varejo SA","VVAR4","BOVESPA - Sao Paulo Stock Exchange"]
[null,null,null,null,null,null,null,null,null,null,null,null,null,null,null,null,null,null,null,"Federated MDT Small Cap Growth C","QCSGX",null,null,null,null,"Via Varejo SA","VVAR3","BOVESPA - Sao Paulo Stock Exchange"]
[null,null,null,null,null,null,null,null,null,null,null,null,null,null,null,null,null,null,null,"Federated MDT Small Cap Growth Instl","QISGX",null,null,null,null,"Via Varejo SA","VVAR11","BOVESPA - Sao Paulo Stock Exchange"]
[null,null,null,null,null,null,null,null,null,null,null,null,null,null,null,null,null,null,null,"Federated MDT Small Cap Growth R6","QLSGX",null,null,null,null,"Viver Incorporadora e Construtora SA","VIVR3","BOVESPA - Sao Paulo Stock Exchange"]
[null,null,null,null,null,null,null,null,null,null,null,null,null,null,null,null,null,null,null,"Federated Mid-Cap Index Instl","FMCRX",null,null,null,null,"Vulcabras Azaleia SA","VULC3","BOVESPA - Sao Paulo Stock Exchange"]
[null,null,null,null,null,null,null,null,null,null,null,null,null,null,null,null,null,null,null,"Federated Mid-Cap Index R6","FMCLX",null,null,null,null,"Weg SA","WEGE3","BOVESPA - Sao Paulo Stock Exchange"]
[null,null,null,null,null,null,null,null,null,null,null,null,null,null,null,null,null,null,null,"Federated Mid-Cap Index Svc","FMDCX",null,null,null,null,"Wetzel SA","MWET4","BOVESPA - Sao Paulo Stock Exchange"]
[null,null,null,null,null,null,null,null,null,null,null,null,null,null,null,null,null,null,null,"Fidelity 500 Index Institutional","FXSIX",null,null,null,null,"Whirlpool SA","WHRL4","BOVESPA - Sao Paulo Stock Exchange"]
[null,null,null,null,null,null,null,null,null,null,null,null,null,null,null,null,null,null,null,"Fidelity 500 Index Institutional Prem","FXAIX",null,null,null,null,"Whirlpool SA","WHRL3","BOVESPA - Sao Paulo Stock Exchange"]
[null,null,null,null,null,null,null,null,null,null,null,null,null,null,null,null,null,null,null,"Fidelity 500 Index Investor","FUSEX",null,null,null,null,"Wilson Sons","WSON33","BOVESPA - Sao Paulo Stock Exchange"]
[null,null,null,null,null,null,null,null,null,null,null,null,null,null,null,null,null,null,null,"Fidelity 500 Index Premium","FUSVX",null,null,null,null,"Wiz Solucoes e Corretagem de Seguros SA","WIZS3","BOVESPA - Sao Paulo Stock Exchange"]
[null,null,null,null,null,null,null,null,null,null,null,null,null,null,null,null,null,null,null,"Fidelity Advisor Asset Manager 50% M","FFTMX",null,null,null,null,"WLM Industria e Comercio SA","WLMM4","BOVESPA - Sao Paulo Stock Exchange"]
[null,null,null,null,null,null,null,null,null,null,null,null,null,null,null,null,null,null,null,"Fidelity Advisor Asset Manager 70% A","FAASX",null,null,null,null,"0x","ZRX","Cryptocurrencies"]
[null,null,null,null,null,null,null,null,null,null,null,null,null,null,null,null,null,null,null,"Fidelity Advisor Asset Manager 70% C","FCASX",null,null,null,null,"AdEx","ADX","Cryptocurrencies"]
[null,null,null,null,null,null,null,null,null,null,null,null,null,null,null,null,null,null,null,"Fidelity Advisor Asset Manager 70% I","FAAIX",null,null,null,null,"Aeternity","AE","Cryptocurrencies"]
[null,null,null,null,null,null,null,null,null,null,null,null,null,null,null,null,null,null,null,"Fidelity Advisor Asset Manager 70% M","FTASX",null,null,null,null,"Aragon","ANT","Cryptocurrencies"]
[null,null,null,null,null,null,null,null,null,null,null,null,null,null,null,null,null,null,null,"Fidelity Advisor Asset Manager 85% A","FEYAX",null,null,null,null,"Ardor","ARDR","Cryptocurrencies"]
[null,null,null,null,null,null,null,null,null,null,null,null,null,null,null,null,null,null,null,"Fidelity Advisor Asset Manager 85% C","FEYCX",null,null,null,null,"ARK","ARK","Cryptocurrencies"]
[null,null,null,null,null,null,null,null,null,null,null,null,null,null,null,null,null,null,null,"Fidelity Advisor Asset Manager 85% I","FEYIX",null,null,null,null,"ATB coin","ATB","Cryptocurrencies"]
[null,null,null,null,null,null,null,null,null,null,null,null,null,null,null,null,null,null,null,"Fidelity Advisor Asset Manager 85% M","FEYTX",null,null,null,null,"Augur","REP","Cryptocurrencies"]
[null,null,null,null,null,null,null,null,null,null,null,null,null,null,null,null,null,null,null,"Fidelity Advisor Balanced A","FABLX",null,null,null,null,"Autumncoin","ATM","Cryptocurrencies"]
[null,null,null,null,null,null,null,null,null,null,null,null,null,null,null,null,null,null,null,"Fidelity Advisor Balanced C","FABCX",null,null,null,null,"Bancor Network Token","BNT","Cryptocurrencies"]
[null,null,null,null,null,null,null,null,null,null,null,null,null,null,null,null,null,null,null,"Fidelity Advisor Balanced I","FAIOX",null,null,null,null,"Basic Attention Token","BAT","Cryptocurrencies"]
[null,null,null,null,null,null,null,null,null,null,null,null,null,null,null,null,null,null,null,"Fidelity Advisor Balanced M","FAIGX",null,null,null,null,"Binance Coin","BNB","Cryptocurrencies"]
[null,null,null,null,null,null,null,null,null,null,null,null,null,null,null,null,null,null,null,"Fidelity Advisor Balanced Z","FZAAX",null,null,null,null,"Bitcoin","BTC","Cryptocurrencies"]
[null,null,null,null,null,null,null,null,null,null,null,null,null,null,null,null,null,null,null,"Fidelity Advisor Biotechnology A","FBTAX",null,null,null,null,"Bitcoin Cash / BCC","BCH","Cryptocurrencies"]
[null,null,null,null,null,null,null,null,null,null,null,null,null,null,null,null,null,null,null,"Fidelity Advisor Biotechnology I","FBTIX",null,null,null,null,"Bitcoin Gold","BTG","Cryptocurrencies"]
[null,null,null,null,null,null,null,null,null,null,null,null,null,null,null,null,null,null,null,"Fidelity Advisor Biotechnology M","FBTTX",null,null,null,null,"BitcoinDark","BTCD","Cryptocurrencies"]
[null,null,null,null,null,null,null,null,null,null,null,null,null,null,null,null,null,null,null,"Fidelity Advisor China Region A","FHKAX",null,null,null,null,"BitConnect Coin","BCCOIN","Cryptocurrencies"]
[null,null,null,null,null,null,null,null,null,null,null,null,null,null,null,null,null,null,null,"Fidelity Advisor China Region I","FHKIX",null,null,null,null,"Bitquence","BQX","Cryptocurrencies"]
[null,null,null,null,null,null,null,null,null,null,null,null,null,null,null,null,null,null,null,"Fidelity Advisor Consumer Staples I","FDIGX",null,null,null,null,"Bitshares","BTS","Cryptocurrencies"]
[null,null,null,null,null,null,null,null,null,null,null,null,null,null,null,null,null,null,null,"Fidelity Advisor Diversified Intl A","FDVAX",null,null,null,null,"BlockNet","BLOCK","Cryptocurrencies"]
[null,null,null,null,null,null,null,null,null,null,null,null,null,null,null,null,null,null,null,"Fidelity Advisor Diversified Intl I","FDVIX",null,null,null,null,"Byteball","GBYTE","Cryptocurrencies"]
[null,null,null,null,null,null,null,null,null,null,null,null,null,null,null,null,null,null,null,"Fidelity Advisor Diversified Intl Z","FZABX",null,null,null,null,"ByteCoin","BCN","Cryptocurrencies"]
[null,null,null,null,null,null,null,null,null,null,null,null,null,null,null,null,null,null,null,"Fidelity Advisor Emerging Asia M","FEATX",null,null,null,null,"Cardano","ADA","Cryptocurrencies"]
[null,null,null,null,null,null,null,null,null,null,null,null,null,null,null,null,null,null,null,"Fidelity Advisor Emerging Markets A","FAMKX",null,null,null,null,"ChainLink","LINK","Cryptocurrencies"]
[null,null,null,null,null,null,null,null,null,null,null,null,null,null,null,null,null,null,null,"Fidelity Advisor Emerging Markets C","FMCKX",null,null,null,null,"Civic","CVC","Cryptocurrencies"]
[null,null,null,null,null,null,null,null,null,null,null,null,null,null,null,null,null,null,null,"Fidelity Advisor Emerging Markets I","FIMKX",null,null,null,null,"CounterParty","XCP","Cryptocurrencies"]
[null,null,null,null,null,null,null,null,null,null,null,null,null,null,null,null,null,null,null,"Fidelity Advisor Emerging Markets Z","FZAEX",null,null,null,null,"Decred","DCR","Cryptocurrencies"]
[null,null,null,null,null,null,null,null,null,null,null,null,null,null,null,null,null,null,null,"Fidelity Advisor Energy I","FANIX",null,null,null,null,"Dentacoin","DCN","Cryptocurrencies"]
[null,null,null,null,null,null,null,null,null,null,null,null,null,null,null,null,null,null,null,"Fidelity Advisor Growth Opps Z","FZAHX",null,null,null,null,"DigiByte","DGB","Cryptocurrencies"]
[null,null,null,null,null,null,null,null,null,null,null,null,null,null,null,null,null,null,null,"Fidelity Advisor Health Care C","FHCCX",null,null,null,null,"DigitalCash","DASH","Cryptocurrencies"]
[null,null,null,null,null,null,null,null,null,null,null,null,null,null,null,null,null,null,null,"Fidelity Advisor Health Care I","FHCIX",null,null,null,null,"Digix DAO","DGD","Cryptocurrencies"]
[null,null,null,null,null,null,null,null,null,null,null,null,null,null,null,null,null,null,null,"Fidelity Advisor Health Care M","FACTX",null,null,null,null,"district0x","DNT","Cryptocurrencies"]
[null,null,null,null,null,null,null,null,null,null,null,null,null,null,null,null,null,null,null,"Fidelity Advisor Intl Capital App A","FCPAX",null,null,null,null,"Dogecoin","DOGE","Cryptocurrencies"]
[null,null,null,null,null,null,null,null,null,null,null,null,null,null,null,null,null,null,null,"Fidelity Advisor Intl Capital App C","FCPCX",null,null,null,null,"Edgeless","EDG","Cryptocurrencies"]
[null,null,null,null,null,null,null,null,null,null,null,null,null,null,null,null,null,null,null,"Fidelity Advisor Intl Capital App I","FCPIX",null,null,null,null,"EOS","EOS","Cryptocurrencies"]
[null,null,null,null,null,null,null,null,null,null,null,null,null,null,null,null,null,null,null,"Fidelity Advisor Intl Capital App M","FIATX",null,null,null,null,"Ethereum","ETH","Cryptocurrencies"]
[null,null,null,null,null,null,null,null,null,null,null,null,null,null,null,null,null,null,null,"Fidelity Advisor Intl Capital App Z","FIDZX",null,null,null,null,"Ethereum Classic","ETC","Cryptocurrencies"]
[null,null,null,null,null,null,null,null,null,null,null,null,null,null,null,null,null,null,null,"Fidelity Advisor Intl Small Cap A","FIASX",null,null,null,null,"Exchange Union","XUC","Cryptocurrencies"]
[null,null,null,null,null,null,null,null,null,null,null,null,null,null,null,null,null,null,null,"Fidelity Advisor Intl Small Cap C","FICSX",null,null,null,null,"Factoids","FCT","Cryptocurrencies"]
[null,null,null,null,null,null,null,null,null,null,null,null,null,null,null,null,null,null,null,"Fidelity Advisor Intl Small Cap I","FIXIX",null,null,null,null,"FairCoin","FAIR","Cryptocurrencies"]
[null,null,null,null,null,null,null,null,null,null,null,null,null,null,null,null,null,null,null,"Fidelity Advisor Large Cap A","FALAX",null,null,null,null,"FirstCoin","FRST","Cryptocurrencies"]
[null,null,null,null,null,null,null,null,null,null,null,null,null,null,null,null,null,null,null,"Fidelity Advisor Large Cap I","FALIX",null,null,null,null,"FunFair","FUN","Cryptocurrencies"]
[null,null,null,null,null,null,null,null,null,null,null,null,null,null,null,null,null,null,null,"Fidelity Advisor Large Cap Z","FIDLX",null,null,null,null,"Gamecredits","GAME","Cryptocurrencies"]
[null,null,null,null,null,null,null,null,null,null,null,null,null,null,null,null,null,null,null,"Fidelity Advisor Managed Ret 2020 A","FARVX",null,null,null,null,"Gas","GAS","Cryptocurrencies"]
[null,null,null,null,null,null,null,null,null,null,null,null,null,null,null,null,null,null,null,"Fidelity Advisor Managed Ret 2020 C","FCRVX",null,null,null,null,"Gnosis","GNO","Cryptocurrencies"]
[null,null,null,null,null,null,null,null,null,null,null,null,null,null,null,null,null,null,null,"Fidelity Advisor Managed Ret 2020 I","FIIVX",null,null,null,null,"Golem Network Token","GNT","Cryptocurrencies"]
[null,null,null,null,null,null,null,null,null,null,null,null,null,null,null,null,null,null,null,"Fidelity Advisor Managed Ret 2020 M","FTRVX",null,null,null,null,"Hshare","HSR","Cryptocurrencies"]
[null,null,null,null,null,null,null,null,null,null,null,null,null,null,null,null,null,null,null,"Fidelity Advisor Managed Ret 2025 A","FARFX",null,null,null,null,"ICON Project","ICX","Cryptocurrencies"]
[null,null,null,null,null,null,null,null,null,null,null,null,null,null,null,null,null,null,null,"Fidelity Advisor Managed Ret 2025 C","FCRFX",null,null,null,null,"Iconomi","ICN","Cryptocurrencies"]
[null,null,null,null,null,null,null,null,null,null,null,null,null,null,null,null,null,null,null,"Fidelity Advisor Managed Ret 2025 I","FIRFX",null,null,null,null,"iExec","RLC","Cryptocurrencies"]
[null,null,null,null,null,null,null,null,null,null,null,null,null,null,null,null,null,null,null,"Fidelity Advisor Managed Ret 2025 M","FITTX",null,null,null,null,"IOCoin","IOC","Cryptocurrencies"]
[null,null,null,null,null,null,null,null,null,null,null,null,null,null,null,null,null,null,null,"Fidelity Advisor Managed Retiremt 2005 A","FIOAX",null,null,null,null,"IOTA","IOT","Cryptocurrencies"]
[null,null,null,null,null,null,null,null,null,null,null,null,null,null,null,null,null,null,null,"Fidelity Advisor Managed Retiremt 2005 C","FIOCX",null,null,null,null,"Kin","KIN","Cryptocurrencies"]
[null,null,null,null,null,null,null,null,null,null,null,null,null,null,null,null,null,null,null,"Fidelity Advisor Managed Retiremt 2005 I","FIOIX",null,null,null,null,"Komodo","KMD","Cryptocurrencies"]
[null,null,null,null,null,null,null,null,null,null,null,null,null,null,null,null,null,null,null,"Fidelity Advisor Managed Retiremt 2005 M","FIOTX",null,null,null,null,"Kyber Network","KNC","Cryptocurrencies"]
[null,null,null,null,null,null,null,null,null,null,null,null,null,null,null,null,null,null,null,"Fidelity Advisor Managed Retiremt 2010 I","FRQIX",null,null,null,null,"Lisk","LSK","Cryptocurrencies"]
[null,null,null,null,null,null,null,null,null,null,null,null,null,null,null,null,null,null,null,"Fidelity Advisor Managed Retiremt 2015 C","FCRSX",null,null,null,null,"Litecoin","LTC","Cryptocurrencies"]
[null,null,null,null,null,null,null,null,null,null,null,null,null,null,null,null,null,null,null,"Fidelity Advisor Managed Retiremt 2015 M","FTRSX",null,null,null,null,"Loopring","LRC","Cryptocurrencies"]
[null,null,null,null,null,null,null,null,null,null,null,null,null,null,null,null,null,null,null,"Fidelity Advisor Managed Retiremt Inc I","FRIMX",null,null,null,null,"Lykke","LKK","Cryptocurrencies"]
[null,null,null,null,null,null,null,null,null,null,null,null,null,null,null,null,null,null,null,"Fidelity Advisor Materials A","FMFAX",null,null,null,null,"MaidSafe Coin","MAID","Cryptocurrencies"]
[null,null,null,null,null,null,null,null,null,null,null,null,null,null,null,null,null,null,null,"Fidelity Advisor Materials C","FMFCX",null,null,null,null,"MCAP","MCAP","Cryptocurrencies"]
[null,null,null,null,null,null,null,null,null,null,null,null,null,null,null,null,null,null,null,"Fidelity Advisor Materials I","FMFEX",null,null,null,null,"Melon","MLN","Cryptocurrencies"]
[null,null,null,null,null,null,null,null,null,null,null,null,null,null,null,null,null,null,null,"Fidelity Advisor Materials M","FMFTX",null,null,null,null,"Metal","MTL","Cryptocurrencies"]
[null,null,null,null,null,null,null,null,null,null,null,null,null,null,null,null,null,null,null,"Fidelity Advisor Mid Cap II Z","FZAMX",null,null,null,null,"Metaverse","ETP","Cryptocurrencies"]
[null,null,null,null,null,null,null,null,null,null,null,null,null,null,null,null,null,null,null,"Fidelity Advisor Mid Cap Value C","FMPEX",null,null,null,null,"MobileGo","MGO","Cryptocurrencies"]
[null,null,null,null,null,null,null,null,null,null,null,null,null,null,null,null,null,null,null,"Fidelity Advisor Mid Cap Value I","FMPOX",null,null,null,null,"Monaco","MCO","Cryptocurrencies"]
[null,null,null,null,null,null,null,null,null,null,null,null,null,null,null,null,null,null,null,"Fidelity Advisor Semiconductors A","FELAX",null,null,null,null,"MonaCoin","MONA","Cryptocurrencies"]
[null,null,null,null,null,null,null,null,null,null,null,null,null,null,null,null,null,null,null,"Fidelity Advisor Semiconductors C","FELCX",null,null,null,null,"Monero","XMR","Cryptocurrencies"]
[null,null,null,null,null,null,null,null,null,null,null,null,null,null,null,null,null,null,null,"Fidelity Advisor Semiconductors I","FELIX",null,null,null,null,"Nano","XRB","Cryptocurrencies"]
[null,null,null,null,null,null,null,null,null,null,null,null,null,null,null,null,null,null,null,"Fidelity Advisor Semiconductors M","FELTX",null,null,null,null,"NavCoin","NAV","Cryptocurrencies"]
[null,null,null,null,null,null,null,null,null,null,null,null,null,null,null,null,null,null,null,"Fidelity Advisor Simplicity RMD 2005 A","FARPX",null,null,null,null,"Neblio","NEBL","Cryptocurrencies"]
[null,null,null,null,null,null,null,null,null,null,null,null,null,null,null,null,null,null,null,"Fidelity Advisor Simplicity RMD 2005 I","FRAPX",null,null,null,null,"NEM","XEM","Cryptocurrencies"]
[null,null,null,null,null,null,null,null,null,null,null,null,null,null,null,null,null,null,null,"Fidelity Advisor Simplicity RMD 2010 A","FIARX",null,null,null,null,"NEO","NEO","Cryptocurrencies"]
[null,null,null,null,null,null,null,null,null,null,null,null,null,null,null,null,null,null,null,"Fidelity Advisor Simplicity RMD 2010 I","FIIRX",null,null,null,null,"Nexus","NXS","Cryptocurrencies"]
[null,null,null,null,null,null,null,null,null,null,null,null,null,null,null,null,null,null,null,"Fidelity Advisor Simplicity RMD 2010 M","FTIRX",null,null,null,null,"NoLimitCoin","NLC2","Cryptocurrencies"]
[null,null,null,null,null,null,null,null,null,null,null,null,null,null,null,null,null,null,null,"Fidelity Advisor Simplicity RMD 2015 A","FURAX",null,null,null,null,"Nxt","NXT","Cryptocurrencies"]
[null,null,null,null,null,null,null,null,null,null,null,null,null,null,null,null,null,null,null,"Fidelity Advisor Simplicity RMD 2015 C","FURCX",null,null,null,null,"OmiseGo","OMG","Cryptocurrencies"]
[null,null,null,null,null,null,null,null,null,null,null,null,null,null,null,null,null,null,null,"Fidelity Advisor Simplicity RMD 2015 I","FURIX",null,null,null,null,"Particl","PART","Cryptocurrencies"]
[null,null,null,null,null,null,null,null,null,null,null,null,null,null,null,null,null,null,null,"Fidelity Advisor Simplicity RMD 2020 A","FARWX",null,null,null,null,"Populous","PPT","Cryptocurrencies"]
[null,null,null,null,null,null,null,null,null,null,null,null,null,null,null,null,null,null,null,"Fidelity Advisor Simplicity RMD 2020 C","FCRWX",null,null,null,null,"Private Instant Verified Transaction","PIVX","Cryptocurrencies"]
[null,null,null,null,null,null,null,null,null,null,null,null,null,null,null,null,null,null,null,"Fidelity Advisor Simplicity RMD 2020 M","FTRWX",null,null,null,null,"QTUM","QTUM","Cryptocurrencies"]
[null,null,null,null,null,null,null,null,null,null,null,null,null,null,null,null,null,null,null,"Fidelity Advisor Simplicity RMD Income A","FRNAX",null,null,null,null,"Quantum Resistant Ledger","QRL","Cryptocurrencies"]
[null,null,null,null,null,null,null,null,null,null,null,null,null,null,null,null,null,null,null,"Fidelity Advisor Simplicity RMD Income I","FRNIX",null,null,null,null,"Quoine Liquid","QASH","Cryptocurrencies"]
[null,null,null,null,null,null,null,null,null,null,null,null,null,null,null,null,null,null,null,"Fidelity Advisor Simplicity RMD Income M","FRNTX",null,null,null,null,"Ripple","XRP","Cryptocurrencies"]
[null,null,null,null,null,null,null,null,null,null,null,null,null,null,null,null,null,null,null,"Fidelity Advisor Small Cap Growth A","FCAGX",null,null,null,null,"Salt Lending","SALT","Cryptocurrencies"]
[null,null,null,null,null,null,null,null,null,null,null,null,null,null,null,null,null,null,null,"Fidelity Advisor Small Cap Growth C","FCCGX",null,null,null,null,"Siacoin","SC","Cryptocurrencies"]
[null,null,null,null,null,null,null,null,null,null,null,null,null,null,null,null,null,null,null,"Fidelity Advisor Small Cap Growth I","FCIGX",null,null,null,null,"SingularDTV","SNGLS","Cryptocurrencies"]
[null,null,null,null,null,null,null,null,null,null,null,null,null,null,null,null,null,null,null,"Fidelity Advisor Small Cap Growth M","FCTGX",null,null,null,null,"SmartCash","SMART","Cryptocurrencies"]
[null,null,null,null,null,null,null,null,null,null,null,null,null,null,null,null,null,null,null,"Fidelity Advisor Small Cap Growth Z","FIDGX",null,null,null,null,"SONM","SNM","Cryptocurrencies"]
[null,null,null,null,null,null,null,null,null,null,null,null,null,null,null,null,null,null,null,"Fidelity Advisor Small Cap Value A","FCVAX",null,null,null,null,"Status Network Token","SNT","Cryptocurrencies"]
[null,null,null,null,null,null,null,null,null,null,null,null,null,null,null,null,null,null,null,"Fidelity Advisor Small Cap Value C","FCVCX",null,null,null,null,"Steem","STEEM","Cryptocurrencies"]
[null,null,null,null,null,null,null,null,null,null,null,null,null,null,null,null,null,null,null,"Fidelity Advisor Small Cap Value I","FCVIX",null,null,null,null,"Stellar","XLM","Cryptocurrencies"]
[null,null,null,null,null,null,null,null,null,null,null,null,null,null,null,null,null,null,null,"Fidelity Advisor Strategic Div & Inc A","FASDX",null,null,null,null,"Storj","STORJ","Cryptocurrencies"]
[null,null,null,null,null,null,null,null,null,null,null,null,null,null,null,null,null,null,null,"Fidelity Advisor Strategic Div & Inc I","FSIDX",null,null,null,null,"Stratis","STRAT","Cryptocurrencies"]
[null,null,null,null,null,null,null,null,null,null,null,null,null,null,null,null,null,null,null,"Fidelity Advisor Strategic Div & Inc M","FTSDX",null,null,null,null,"Substratum Network","SUB","Cryptocurrencies"]
[null,null,null,null,null,null,null,null,null,null,null,null,null,null,null,null,null,null,null,"Fidelity Advisor Technology A","FADTX",null,null,null,null,"SysCoin","SYS","Cryptocurrencies"]
[null,null,null,null,null,null,null,null,null,null,null,null,null,null,null,null,null,null,null,"Fidelity Advisor Telecommunications C","FTUCX",null,null,null,null,"TenX","PAY","Cryptocurrencies"]
[null,null,null,null,null,null,null,null,null,null,null,null,null,null,null,null,null,null,null,"Fidelity Advisor Telecommunications I","FTUIX",null,null,null,null,"Tether","USDT","Cryptocurrencies"]
[null,null,null,null,null,null,null,null,null,null,null,null,null,null,null,null,null,null,null,"Fidelity Advisor Worldwide A","FWAFX",null,null,null,null,"Token as a Service","TAAS","Cryptocurrencies"]
[null,null,null,null,null,null,null,null,null,null,null,null,null,null,null,null,null,null,null,"Fidelity Advisor Worldwide C","FWCFX",null,null,null,null,"Tronix","TRX","Cryptocurrencies"]
[null,null,null,null,null,null,null,null,null,null,null,null,null,null,null,null,null,null,null,"Fidelity Advisor Worldwide I","FWIFX",null,null,null,null,"Ubiq","UBQ","Cryptocurrencies"]
[null,null,null,null,null,null,null,null,null,null,null,null,null,null,null,null,null,null,null,"Fidelity Advisor Worldwide M","FWTFX",null,null,null,null,"Vechain","VEN","Cryptocurrencies"]
[null,null,null,null,null,null,null,null,null,null,null,null,null,null,null,null,null,null,null,"Fidelity Asset Manager 70%","FASGX",null,null,null,null,"Verge","XVG","Cryptocurrencies"]
[null,null,null,null,null,null,null,null,null,null,null,null,null,null,null,null,null,null,null,"Fidelity Asset Manager 85%","FAMRX",null,null,null,null,"Veritaseum","VERI","Cryptocurrencies"]
[null,null,null,null,null,null,null,null,null,null,null,null,null,null,null,null,null,null,null,"Fidelity Balanced","FBALX",null,null,null,null,"VertCoin","VTC","Cryptocurrencies"]
[null,null,null,null,null,null,null,null,null,null,null,null,null,null,null,null,null,null,null,"Fidelity Balanced K","FBAKX",null,null,null,null,"Waltonchain","WTC","Cryptocurrencies"]
[null,null,null,null,null,null,null,null,null,null,null,null,null,null,null,null,null,null,null,"Fidelity Blue Chip Growth","FBGRX",null,null,null,null,"Waves","WAVES","Cryptocurrencies"]
[null,null,null,null,null,null,null,null,null,null,null,null,null,null,null,null,null,null,null,"Fidelity Blue Chip Growth K","FBGKX",null,null,null,null,"Wings DAO","WINGS","Cryptocurrencies"]
[null,null,null,null,null,null,null,null,null,null,null,null,null,null,null,null,null,null,null,"Fidelity Contrafund K","FCNKX",null,null,null,null,"ZCash","ZEC","Cryptocurrencies"]
[null,null,null,null,null,null,null,null,null,null,null,null,null,null,null,null,null,null,null,"Fidelity Equity Dividend Income K","FETKX",null,null,null,null,"ZCoin","XZC","Cryptocurrencies"]
[null,null,null,null,null,null,null,null,null,null,null,null,null,null,null,null,null,null,null,"Fidelity Extended Market Index Premium","FSEVX",null,null,null,null,"ZenCash","ZEN","Cryptocurrencies"]
[null,null,null,null,null,null,null,null,null,null,null,null,null,null,null,null,null,null,null,"Fidelity Focused Stock","FTQGX",null,null,null,null,"Brent Crude Oil Last Day Financ","BZ","Commodities"]
[null,null,null,null,null,null,null,null,null,null,null,null,null,null,null,null,null,null,null,"Fidelity Four-in-One Index","FFNOX",null,null,null,null,"Cocoa Futures","CC","Commodities"]
[null,null,null,null,null,null,null,null,null,null,null,null,null,null,null,null,null,null,null,"Fidelity Freedom 2010","FFFCX",null,null,null,null,"Coffee 'C' Futures","KC","Commodities"]
[null,null,null,null,null,null,null,null,null,null,null,null,null,null,null,null,null,null,null,"Fidelity Freedom 2020","FFFDX",null,null,null,null,"Copper","HG","Commodities"]
[null,null,null,null,null,null,null,null,null,null,null,null,null,null,null,null,null,null,null,"Fidelity Freedom 2030","FFFEX",null,null,null,null,"Corn Futures","C","Commodities"]
[null,null,null,null,null,null,null,null,null,null,null,null,null,null,null,null,null,null,null,"Fidelity Growth Discovery K","FGDKX",null,null,null,null,"Cotton No. 2 Futures","CT","Commodities"]
[null,null,null,null,null,null,null,null,null,null,null,null,null,null,null,null,null,null,null,"Fidelity International Capital Apprec","FIVFX",null,null,null,null,"Frozen Concentrated OJ (FCOJ-A)","OJ","Commodities"]
[null,null,null,null,null,null,null,null,null,null,null,null,null,null,null,null,null,null,null,"Fidelity International Index Instl","FSPNX",null,null,null,null,"future for FC","FC","Commodities"]
[null,null,null,null,null,null,null,null,null,null,null,null,null,null,null,null,null,null,null,"Fidelity International Index InstlPrm","FSPSX",null,null,null,null,"future for KW","KW","Commodities"]
[null,null,null,null,null,null,null,null,null,null,null,null,null,null,null,null,null,null,null,"Fidelity International Index Investor","FSIIX",null,null,null,null,"future for LB","LB","Commodities"]
[null,null,null,null,null,null,null,null,null,null,null,null,null,null,null,null,null,null,null,"Fidelity International Index Premium","FSIVX",null,null,null,null,"future for LC","LC","Commodities"]
[null,null,null,null,null,null,null,null,null,null,null,null,null,null,null,null,null,null,null,"Fidelity International Small Cap","FISMX",null,null,null,null,"future for LH","LH","Commodities"]
[null,null,null,null,null,null,null,null,null,null,null,null,null,null,null,null,null,null,null,"Fidelity Japan Smaller Companies","FJSCX",null,null,null,null,"Henry Hub Natural Gas Future","NG","Commodities"]
[null,null,null,null,null,null,null,null,null,null,null,null,null,null,null,null,null,null,null,"Fidelity Large Cap Growth Enhanced Idx","FLGEX",null,null,null,null,"Mont Belvieu LDH Propane (OPIS)","B0","Commodities"]
[null,null,null,null,null,null,null,null,null,null,null,null,null,null,null,null,null,null,null,"Fidelity Large Cap Stock","FLCSX",null,null,null,null,"NY Harbor ULSD Futures","HO","Commodities"]
[null,null,null,null,null,null,null,null,null,null,null,null,null,null,null,null,null,null,null,"Fidelity Managed Retirement 2005","FIROX",null,null,null,null,"Oats","O","Commodities"]
[null,null,null,null,null,null,null,null,null,null,null,null,null,null,null,null,null,null,null,"Fidelity Managed Retirement 2015","FIRSX",null,null,null,null,"Ouro","GC","Commodities"]
[null,null,null,null,null,null,null,null,null,null,null,null,null,null,null,null,null,null,null,"Fidelity Managed Retirement 2020","FIRVX",null,null,null,null,"Palladium Futures","PA","Commodities"]
[null,null,null,null,null,null,null,null,null,null,null,null,null,null,null,null,null,null,null,"Fidelity Managed Retirement Income","FIRMX",null,null,null,null,"Petróleo Crú","CL","Commodities"]
[null,null,null,null,null,null,null,null,null,null,null,null,null,null,null,null,null,null,null,"Fidelity Mid Cap Enhanced Index","FMEIX",null,null,null,null,"Platinum Futures","PL","Commodities"]
[null,null,null,null,null,null,null,null,null,null,null,null,null,null,null,null,null,null,null,"Fidelity Mid Cap Index Institutional","FSTPX",null,null,null,null,"RBOB Gasoline Futures","RB","Commodities"]
[null,null,null,null,null,null,null,null,null,null,null,null,null,null,null,null,null,null,null,"Fidelity Mid Cap Index Instl Prem","FSMDX",null,null,null,null,"Rough Rice","RR","Commodities"]
[null,null,null,null,null,null,null,null,null,null,null,null,null,null,null,null,null,null,null,"Fidelity Mid Cap Index Premium","FSCKX",null,null,null,null,"Silver ","SI","Commodities"]
[null,null,null,null,null,null,null,null,null,null,null,null,null,null,null,null,null,null,null,"Fidelity Mid Cap Value","FSMVX",null,null,null,null,"Soybean Meal","SM","Commodities"]
[null,null,null,null,null,null,null,null,null,null,null,null,null,null,null,null,null,null,null,"Fidelity NASDAQ Composite Index","FNCMX",null,null,null,null,"Soybean Oil Futures","BO","Commodities"]
[null,null,null,null,null,null,null,null,null,null,null,null,null,null,null,null,null,null,null,"Fidelity Nordic","FNORX",null,null,null,null,"Soybeans","S","Commodities"]
[null,null,null,null,null,null,null,null,null,null,null,null,null,null,null,null,null,null,null,"Fidelity Overseas","FOSFX",null,null,null,null,"Sugar No. 11 (World) Futures","SB","Commodities"]
[null,null,null,null,null,null,null,null,null,null,null,null,null,null,null,null,null,null,null,"Fidelity Overseas K","FOSKX",null,null,null,null,"13D Activist A","DDDAX","Fundos"]
[null,null,null,null,null,null,null,null,null,null,null,null,null,null,null,null,null,null,null,"Fidelity Pacific Basin","FPBFX",null,null,null,null,"13D Activist I","DDDIX","Fundos"]
[null,null,null,null,null,null,null,null,null,null,null,null,null,null,null,null,null,null,null,"Fidelity Real Estate Index Instl","FSRNX",null,null,null,null,"AB Concentrated Growth I","WPSIX","Fundos"]
[null,null,null,null,null,null,null,null,null,null,null,null,null,null,null,null,null,null,null,"Fidelity Real Estate Index Investor","FRXIX",null,null,null,null,"AB Core Opportunities K","ADGKX","Fundos"]
[null,null,null,null,null,null,null,null,null,null,null,null,null,null,null,null,null,null,null,"Fidelity Real Estate Index Premium","FSRVX",null,null,null,null,"AB Discovery Value A","ABASX","Fundos"]
[null,null,null,null,null,null,null,null,null,null,null,null,null,null,null,null,null,null,null,"Fidelity Real Estate Investment Port","FRESX",null,null,null,null,"AB Discovery Value Advisor","ABYSX","Fundos"]
[null,null,null,null,null,null,null,null,null,null,null,null,null,null,null,null,null,null,null,"Fidelity Select Air Transportation Port","FSAIX",null,null,null,null,"AB Discovery Value I","ABSIX","Fundos"]
[null,null,null,null,null,null,null,null,null,null,null,null,null,null,null,null,null,null,null,"Fidelity Select Biotechnology","FBIOX",null,null,null,null,"AB Discovery Value K","ABSKX","Fundos"]
[null,null,null,null,null,null,null,null,null,null,null,null,null,null,null,null,null,null,null,"Fidelity Select Chemicals","FSCHX",null,null,null,null,"AB Discovery Value Z","ABSZX","Fundos"]
[null,null,null,null,null,null,null,null,null,null,null,null,null,null,null,null,null,null,null,"Fidelity Select Construction & Hsg Port","FSHOX",null,null,null,null,"AB Large Cap Growth Advisor","APGYX","Fundos"]
[null,null,null,null,null,null,null,null,null,null,null,null,null,null,null,null,null,null,null,"Fidelity Select Consumer Staples Port","FDFAX",null,null,null,null,"AB Large Cap Growth B","APGBX","Fundos"]
[null,null,null,null,null,null,null,null,null,null,null,null,null,null,null,null,null,null,null,"Fidelity Select Defense & Aero Port","FSDAX",null,null,null,null,"AB Large Cap Growth C","APGCX","Fundos"]
[null,null,null,null,null,null,null,null,null,null,null,null,null,null,null,null,null,null,null,"Fidelity Select Energy","FSENX",null,null,null,null,"AB Large Cap Growth K","ALCKX","Fundos"]
[null,null,null,null,null,null,null,null,null,null,null,null,null,null,null,null,null,null,null,"Fidelity Select Health Care","FSPHX",null,null,null,null,"AB Large Cap Growth Z","APGZX","Fundos"]
[null,null,null,null,null,null,null,null,null,null,null,null,null,null,null,null,null,null,null,"Fidelity Select Insurance Port","FSPCX",null,null,null,null,"AB Select US Equity C","AUUCX","Fundos"]
[null,null,null,null,null,null,null,null,null,null,null,null,null,null,null,null,null,null,null,"Fidelity Select IT Services","FBSOX",null,null,null,null,"AB Small Cap Growth Advisor","QUAYX","Fundos"]
[null,null,null,null,null,null,null,null,null,null,null,null,null,null,null,null,null,null,null,"Fidelity Select Leisure","FDLSX",null,null,null,null,"AB Sustainable Global Thematic R","ATERX","Fundos"]
[null,null,null,null,null,null,null,null,null,null,null,null,null,null,null,null,null,null,null,"Fidelity Select Medical Tech and Devcs","FSMEX",null,null,null,null,"Aberdeen Global Infrastructure A","AIAFX","Fundos"]
[null,null,null,null,null,null,null,null,null,null,null,null,null,null,null,null,null,null,null,"Fidelity Select Retailing","FSRPX",null,null,null,null,"Aberdeen Realty Income & Growth A","AIAGX","Fundos"]
[null,null,null,null,null,null,null,null,null,null,null,null,null,null,null,null,null,null,null,"Fidelity Select Software & IT Svcs Port","FSCSX",null,null,null,null,"Aberdeen US Small Cap Equity Inst Svc","GSXIX","Fundos"]
[null,null,null,null,null,null,null,null,null,null,null,null,null,null,null,null,null,null,null,"Fidelity Select Technology","FSPTX",null,null,null,null,"AC Alternatives Discp Long Short C","ACDHX","Fundos"]
[null,null,null,null,null,null,null,null,null,null,null,null,null,null,null,null,null,null,null,"Fidelity Select Telecommunications Port","FSTCX",null,null,null,null,"Acadian Emerging Markets I","AEMZX","Fundos"]
[null,null,null,null,null,null,null,null,null,null,null,null,null,null,null,null,null,null,null,"Fidelity Select Transportation","FSRFX",null,null,null,null,"Adirondack Small Cap","ADKSX","Fundos"]
[null,null,null,null,null,null,null,null,null,null,null,null,null,null,null,null,null,null,null,"Fidelity Simplicity RMD 2010","FIRRX",null,null,null,null,"AdvisorOne CLS Global Aggressive Eq N","CLACX","Fundos"]
[null,null,null,null,null,null,null,null,null,null,null,null,null,null,null,null,null,null,null,"Fidelity Simplicity RMD Income","FIRNX",null,null,null,null,"AIG Focused Alpha Large-Cap W","SFLWX","Fundos"]
[null,null,null,null,null,null,null,null,null,null,null,null,null,null,null,null,null,null,null,"Fidelity Small Cap Discovery","FSCRX",null,null,null,null,"AIG Focused Dividend Strategy A","FDSAX","Fundos"]
[null,null,null,null,null,null,null,null,null,null,null,null,null,null,null,null,null,null,null,"Fidelity Small Cap Index Instl Prem","FSSNX",null,null,null,null,"AIG Focused Multi-Cap Growth C","FOCCX","Fundos"]
[null,null,null,null,null,null,null,null,null,null,null,null,null,null,null,null,null,null,null,"Fidelity Small Cap Value","FCPVX",null,null,null,null,"AIG Focused Multi-Cap Growth W","FOCWX","Fundos"]
[null,null,null,null,null,null,null,null,null,null,null,null,null,null,null,null,null,null,null,"Fidelity Strategic Dividend & Income","FSDIX",null,null,null,null,"AIG Small-Cap W","SASWX","Fundos"]
[null,null,null,null,null,null,null,null,null,null,null,null,null,null,null,null,null,null,null,"Fidelity Total Market Index Instl","FSKTX",null,null,null,null,"Akre Focus Instl","AKRIX","Fundos"]
[null,null,null,null,null,null,null,null,null,null,null,null,null,null,null,null,null,null,null,"Fidelity Total Market Index Instl Prem","FSKAX",null,null,null,null,"Akre Focus Retail","AKREX","Fundos"]
[null,null,null,null,null,null,null,null,null,null,null,null,null,null,null,null,null,null,null,"Fidelity Trend","FTRNX",null,null,null,null,"Akre Focus Supra Institutional","AKRSX","Fundos"]
[null,null,null,null,null,null,null,null,null,null,null,null,null,null,null,null,null,null,null,"Fidelity Value Discovery K","FVDKX",null,null,null,null,"Alger Balanced I-2","ABLOX","Fundos"]
[null,null,null,null,null,null,null,null,null,null,null,null,null,null,null,null,null,null,null,"Fidelity Worldwide","FWWFX",null,null,null,null,"Alger Capital Appreciation Focus A","ALAFX","Fundos"]
[null,null,null,null,null,null,null,null,null,null,null,null,null,null,null,null,null,null,null,"First Eagle Global A","SGENX",null,null,null,null,"Alger Capital Appreciation Focus C","ALCFX","Fundos"]
[null,null,null,null,null,null,null,null,null,null,null,null,null,null,null,null,null,null,null,"First Eagle Global I","SGIIX",null,null,null,null,"Alger Capital Appreciation Focus I","ALGRX","Fundos"]
[null,null,null,null,null,null,null,null,null,null,null,null,null,null,null,null,null,null,null,"First Eagle Gold A","SGGDX",null,null,null,null,"Alger Capital Appreciation Focus Z","ALZFX","Fundos"]
[null,null,null,null,null,null,null,null,null,null,null,null,null,null,null,null,null,null,null,"First Eagle Gold I","FEGIX",null,null,null,null,"Alger Small Cap Focus Z","AGOZX","Fundos"]
[null,null,null,null,null,null,null,null,null,null,null,null,null,null,null,null,null,null,null,"First Eagle Overseas A","SGOVX",null,null,null,null,"AllianzGI Technology C","RCGTX","Fundos"]
[null,null,null,null,null,null,null,null,null,null,null,null,null,null,null,null,null,null,null,"First Eagle Overseas C","FESOX",null,null,null,null,"Altegris/AACA Opportunistic Real Estt A","RAAAX","Fundos"]
[null,null,null,null,null,null,null,null,null,null,null,null,null,null,null,null,null,null,null,"First Eagle Overseas I","SGOIX",null,null,null,null,"Altegris/AACA Opportunistic Real Estt I","RAAIX","Fundos"]
[null,null,null,null,null,null,null,null,null,null,null,null,null,null,null,null,null,null,null,"First Trust/Confluence Small Cap Val A","FOVAX",null,null,null,null,"Altegris/AACA Opportunistic Real Estt N","RAANX","Fundos"]
[null,null,null,null,null,null,null,null,null,null,null,null,null,null,null,null,null,null,null,"FMI International","FMIJX",null,null,null,null,"American Beacon Balanced Instl","AADBX","Fundos"]
[null,null,null,null,null,null,null,null,null,null,null,null,null,null,null,null,null,null,null,"FMI International Institutional","FMIYX",null,null,null,null,"American Beacon Balanced Y","ACBYX","Fundos"]
[null,null,null,null,null,null,null,null,null,null,null,null,null,null,null,null,null,null,null,"FPA Crescent","FPACX",null,null,null,null,"American Beacon Bridgeway Lg Cp Gr Y","BLYYX","Fundos"]
[null,null,null,null,null,null,null,null,null,null,null,null,null,null,null,null,null,null,null,"FPA Paramount","FPRAX",null,null,null,null,"American Beacon Bridgeway Lg Cp Val Inst","BRLVX","Fundos"]
[null,null,null,null,null,null,null,null,null,null,null,null,null,null,null,null,null,null,null,"Franklin Corefolio Allocation Advisor","FCAZX",null,null,null,null,"American Beacon International Eq A","AIEAX","Fundos"]
[null,null,null,null,null,null,null,null,null,null,null,null,null,null,null,null,null,null,null,"Franklin Corefolio Allocation C","FTCLX",null,null,null,null,"American Beacon International Eq Adv","AAISX","Fundos"]
[null,null,null,null,null,null,null,null,null,null,null,null,null,null,null,null,null,null,null,"Franklin Growth Allocation R","FGTRX",null,null,null,null,"American Beacon International Eq C","AILCX","Fundos"]
[null,null,null,null,null,null,null,null,null,null,null,null,null,null,null,null,null,null,null,"Franklin Mutual Financial Services A","TFSIX",null,null,null,null,"American Beacon International Eq Instl","AAIEX","Fundos"]
[null,null,null,null,null,null,null,null,null,null,null,null,null,null,null,null,null,null,null,"Franklin Mutual Shares A","TESIX",null,null,null,null,"American Beacon Mid-Cap Value A","ABMAX","Fundos"]
[null,null,null,null,null,null,null,null,null,null,null,null,null,null,null,null,null,null,null,"Franklin Mutual Shares R","TESRX",null,null,null,null,"American Beacon Mid-Cap Value C","AMCCX","Fundos"]
[null,null,null,null,null,null,null,null,null,null,null,null,null,null,null,null,null,null,null,"Franklin Real Estate Securities Adv","FRLAX",null,null,null,null,"American Beacon Mid-Cap Value Inv","AMPAX","Fundos"]
[null,null,null,null,null,null,null,null,null,null,null,null,null,null,null,null,null,null,null,"Frontier MFG Core Infrastructure Instl","FMGIX",null,null,null,null,"American Beacon SGA Global Growth C","SGACX","Fundos"]
[null,null,null,null,null,null,null,null,null,null,null,null,null,null,null,null,null,null,null,"Frontier MFG Core Infrastructure Service","FCIVX",null,null,null,null,"American Beacon SGA Global Growth Inv","SGAPX","Fundos"]
[null,null,null,null,null,null,null,null,null,null,null,null,null,null,null,null,null,null,null,"Frontier Phocas Small Cap Value Instl","FPSVX",null,null,null,null,"American Beacon Small Cp Val Adv","AASSX","Fundos"]
[null,null,null,null,null,null,null,null,null,null,null,null,null,null,null,null,null,null,null,"Frontier Phocas Small Cap Value Service","FPVSX",null,null,null,null,"American Beacon Small Cp Val Inst","AVFIX","Fundos"]
[null,null,null,null,null,null,null,null,null,null,null,null,null,null,null,null,null,null,null,"Fuller & Thaler Behav Sm-Cp Eq Inst","FTHSX",null,null,null,null,"American Beacon Small Cp Val Inv","AVPAX","Fundos"]
[null,null,null,null,null,null,null,null,null,null,null,null,null,null,null,null,null,null,null,"GAMCO Global Growth A","GGGAX",null,null,null,null,"American Century Balanced I","ABINX","Fundos"]
[null,null,null,null,null,null,null,null,null,null,null,null,null,null,null,null,null,null,null,"GAMCO Global Growth AAA","GICPX",null,null,null,null,"American Century Balanced Inv","TWBIX","Fundos"]
[null,null,null,null,null,null,null,null,null,null,null,null,null,null,null,null,null,null,null,"Glenmede Quant US Large Cap Core Eq","GTLOX",null,null,null,null,"American Century Disciplined Growth C","ADCCX","Fundos"]
[null,null,null,null,null,null,null,null,null,null,null,null,null,null,null,null,null,null,null,"Glenmede Quant US Large Cap Core EqInstl","GTLIX",null,null,null,null,"American Century Mid Cap Value C","ACCLX","Fundos"]
[null,null,null,null,null,null,null,null,null,null,null,null,null,null,null,null,null,null,null,"Glenmede Small Cap Equity Adv","GTCSX",null,null,null,null,"American Century Mid Cap Value I","AVUAX","Fundos"]
[null,null,null,null,null,null,null,null,null,null,null,null,null,null,null,null,null,null,null,"Glenmede Small Cap Equity Instl","GTSCX",null,null,null,null,"American Century Mid Cap Value Inv","ACMVX","Fundos"]
[null,null,null,null,null,null,null,null,null,null,null,null,null,null,null,null,null,null,null,"GMO Emerging Country Debt III","GMCDX",null,null,null,null,"American Century Mid Cap Value R","AMVRX","Fundos"]
[null,null,null,null,null,null,null,null,null,null,null,null,null,null,null,null,null,null,null,"GMO Emerging Country Debt IV","GMDFX",null,null,null,null,"American Century Mid Cap Value R6","AMDVX","Fundos"]
[null,null,null,null,null,null,null,null,null,null,null,null,null,null,null,null,null,null,null,"GMO Emerging Domestic Opportunities II","GEDTX",null,null,null,null,"American Century One Choice 2055 Inv","AREVX","Fundos"]
[null,null,null,null,null,null,null,null,null,null,null,null,null,null,null,null,null,null,null,"GMO Emerging Domestic Opportunities IV","GEDIX",null,null,null,null,"American Century One Choice 2055 R","AREOX","Fundos"]
[null,null,null,null,null,null,null,null,null,null,null,null,null,null,null,null,null,null,null,"GMO Emerging Domestic Opportunities VI","GEDFX",null,null,null,null,"American Century One Choice Agrsv Inv","AOGIX","Fundos"]
[null,null,null,null,null,null,null,null,null,null,null,null,null,null,null,null,null,null,null,"GMO Intl Developed Equity Allc III","GIOTX",null,null,null,null,"American Century One Choice VryAgrsv Inv","AOVIX","Fundos"]
[null,null,null,null,null,null,null,null,null,null,null,null,null,null,null,null,null,null,null,"GMO Opportunistic Income VI","GMODX",null,null,null,null,"American Century Real Estate C","ARYCX","Fundos"]
[null,null,null,null,null,null,null,null,null,null,null,null,null,null,null,null,null,null,null,"GMO Quality III","GQETX",null,null,null,null,"American Century Real Estate R6","AREDX","Fundos"]
[null,null,null,null,null,null,null,null,null,null,null,null,null,null,null,null,null,null,null,"GMO Quality IV","GQEFX",null,null,null,null,"American Century Select A","TWCAX","Fundos"]
[null,null,null,null,null,null,null,null,null,null,null,null,null,null,null,null,null,null,null,"GMO Risk Premium III","GMRPX",null,null,null,null,"American Century Select C","ACSLX","Fundos"]
[null,null,null,null,null,null,null,null,null,null,null,null,null,null,null,null,null,null,null,"GMO Risk Premium VI","GMOKX",null,null,null,null,"American Century Select I","TWSIX","Fundos"]
[null,null,null,null,null,null,null,null,null,null,null,null,null,null,null,null,null,null,null,"GMO SGM Major Markets III","GSMFX",null,null,null,null,"American Century Select Inv","TWCIX","Fundos"]
[null,null,null,null,null,null,null,null,null,null,null,null,null,null,null,null,null,null,null,"GMO SGM Major Markets IV","GSMJX",null,null,null,null,"American Century Select R","ASERX","Fundos"]
[null,null,null,null,null,null,null,null,null,null,null,null,null,null,null,null,null,null,null,"GMO Special Opportunities VI","GSOFX",null,null,null,null,"American Century Select R6","ASDEX","Fundos"]
[null,null,null,null,null,null,null,null,null,null,null,null,null,null,null,null,null,null,null,"GMO Strategic Opportunities Allc III","GBATX",null,null,null,null,"American Century Ultra C","TWCCX","Fundos"]
[null,null,null,null,null,null,null,null,null,null,null,null,null,null,null,null,null,null,null,"Government Street Mid-Cap","GVMCX",null,null,null,null,"American Century Ultra R6","AULDX","Fundos"]
[null,null,null,null,null,null,null,null,null,null,null,null,null,null,null,null,null,null,null,"Grandeur Peak Global Reach Instl","GPRIX",null,null,null,null,"American Century Zero Coupon 2020 Adv","ACTEX","Fundos"]
[null,null,null,null,null,null,null,null,null,null,null,null,null,null,null,null,null,null,null,"Guggenheim Alpha Opportunity A","SAOAX",null,null,null,null,"American Century Zero Coupon 2020 Inv","BTTTX","Fundos"]
[null,null,null,null,null,null,null,null,null,null,null,null,null,null,null,null,null,null,null,"Guggenheim Alpha Opportunity C","SAOCX",null,null,null,null,"American Century Zero Coupon 2025 Inv","BTTRX","Fundos"]
[null,null,null,null,null,null,null,null,null,null,null,null,null,null,null,null,null,null,null,"Guggenheim Alpha Opportunity Instl","SAOIX",null,null,null,null,"AMG Chicago Equity Partners Balanced I","MBESX","Fundos"]
[null,null,null,null,null,null,null,null,null,null,null,null,null,null,null,null,null,null,null,"Guggenheim Alpha Opportunity P","SAOSX",null,null,null,null,"AMG Chicago Equity Partners Balanced N","MBEAX","Fundos"]
[null,null,null,null,null,null,null,null,null,null,null,null,null,null,null,null,null,null,null,"Guggenheim Floating Rate Strats A","GIFAX",null,null,null,null,"AMG Chicago Equity Partners Balanced Z","MBEYX","Fundos"]
[null,null,null,null,null,null,null,null,null,null,null,null,null,null,null,null,null,null,null,"Guggenheim Floating Rate Strats C","GIFCX",null,null,null,null,"AMG GW&K Small Cap Core N","GWETX","Fundos"]
[null,null,null,null,null,null,null,null,null,null,null,null,null,null,null,null,null,null,null,"Guggenheim Floating Rate Strats Instl","GIFIX",null,null,null,null,"AMG Managers Cadence Emerging Cos I","MECIX","Fundos"]
[null,null,null,null,null,null,null,null,null,null,null,null,null,null,null,null,null,null,null,"Guggenheim Floating Rate Strats P","GIFPX",null,null,null,null,"AMG Managers Cadence Emerging Cos N","MECAX","Fundos"]
[null,null,null,null,null,null,null,null,null,null,null,null,null,null,null,null,null,null,null,"Guggenheim Investment Grade Bond A","SIUSX",null,null,null,null,"AMG Managers Emerging Opportunities N","MMCFX","Fundos"]
[null,null,null,null,null,null,null,null,null,null,null,null,null,null,null,null,null,null,null,"Guggenheim Investment Grade Bond C","SDICX",null,null,null,null,"AMG Managers Fairpointe Mid Cap N","CHTTX","Fundos"]
[null,null,null,null,null,null,null,null,null,null,null,null,null,null,null,null,null,null,null,"Guggenheim Investment Grade Bond Instl","GIUSX",null,null,null,null,"AMG Managers Loomis Sayles Bond I","MGBIX","Fundos"]
[null,null,null,null,null,null,null,null,null,null,null,null,null,null,null,null,null,null,null,"Guggenheim Investment Grade Bond P","SIUPX",null,null,null,null,"AMG Managers Loomis Sayles Bond N","MGFIX","Fundos"]
[null,null,null,null,null,null,null,null,null,null,null,null,null,null,null,null,null,null,null,"Guggenheim Large Cap Value Institutional","GILCX",null,null,null,null,"AMG Managers Silvercrest Small Cap I","ACRTX","Fundos"]
[null,null,null,null,null,null,null,null,null,null,null,null,null,null,null,null,null,null,null,"Guggenheim Large Cap Value P","SEGPX",null,null,null,null,"AMG Managers Silvercrest Small Cap N","ASCTX","Fundos"]
[null,null,null,null,null,null,null,null,null,null,null,null,null,null,null,null,null,null,null,"Guggenheim Limited Duration A","GILDX",null,null,null,null,"AMG Managers Skyline Special Equities N","SKSEX","Fundos"]
[null,null,null,null,null,null,null,null,null,null,null,null,null,null,null,null,null,null,null,"Guggenheim Limited Duration Instl","GILHX",null,null,null,null,"AMG TimesSquare International SmallCap N","TCMPX","Fundos"]
[null,null,null,null,null,null,null,null,null,null,null,null,null,null,null,null,null,null,null,"Guggenheim Limited Duration P","GILPX",null,null,null,null,"AMG TimesSquare International SmallCap Z","TCMIX","Fundos"]
[null,null,null,null,null,null,null,null,null,null,null,null,null,null,null,null,null,null,null,"Guggenheim Macro Opportunities A","GIOAX",null,null,null,null,"AMG TimesSquare Mid Cap Growth N","TMDPX","Fundos"]
[null,null,null,null,null,null,null,null,null,null,null,null,null,null,null,null,null,null,null,"Guggenheim Macro Opportunities C","GIOCX",null,null,null,null,"AMG TimesSquare Mid Cap Growth Z","TMDIX","Fundos"]
[null,null,null,null,null,null,null,null,null,null,null,null,null,null,null,null,null,null,null,"Guggenheim Macro Opportunities Instl","GIOIX",null,null,null,null,"AMG TimesSquare Small Cap Growth N","TSCPX","Fundos"]
[null,null,null,null,null,null,null,null,null,null,null,null,null,null,null,null,null,null,null,"Guggenheim Macro Opportunities P","GIOPX",null,null,null,null,"AMG TimesSquare Small Cap Growth Z","TSCIX","Fundos"]
[null,null,null,null,null,null,null,null,null,null,null,null,null,null,null,null,null,null,null,"Guggenheim Risk Managed Real Estt A","GURAX",null,null,null,null,"AQR Large Cap Defensive Style I","AUEIX","Fundos"]
[null,null,null,null,null,null,null,null,null,null,null,null,null,null,null,null,null,null,null,"Guggenheim Risk Managed Real Estt Instl","GURIX",null,null,null,null,"AQR Large Cap Defensive Style N","AUENX","Fundos"]
[null,null,null,null,null,null,null,null,null,null,null,null,null,null,null,null,null,null,null,"Guggenheim StylePlus - Large Core A","SECEX",null,null,null,null,"AQR Large Cap Defensive Style R6","QUERX","Fundos"]
[null,null,null,null,null,null,null,null,null,null,null,null,null,null,null,null,null,null,null,"Guggenheim StylePlus - Large Core C","SFECX",null,null,null,null,"AQR Large Cap Momentum Style R6","QMORX","Fundos"]
[null,null,null,null,null,null,null,null,null,null,null,null,null,null,null,null,null,null,null,"Guggenheim StylePlus - Large Core Instl","GILIX",null,null,null,null,"AQR TM Small Cap Momentum Style R6","QTSRX","Fundos"]
[null,null,null,null,null,null,null,null,null,null,null,null,null,null,null,null,null,null,null,"Guggenheim StylePlus - Large Core P","SFEPX",null,null,null,null,"Artisan Global Value Advisor","APDGX","Fundos"]
[null,null,null,null,null,null,null,null,null,null,null,null,null,null,null,null,null,null,null,"Guggenheim StylePlus - Mid Growth P","SEUPX",null,null,null,null,"Artisan Global Value Institutional","APHGX","Fundos"]
[null,null,null,null,null,null,null,null,null,null,null,null,null,null,null,null,null,null,null,"Guggenheim Total Return Bond A","GIBAX",null,null,null,null,"Artisan Global Value Investor","ARTGX","Fundos"]
[null,null,null,null,null,null,null,null,null,null,null,null,null,null,null,null,null,null,null,"Guggenheim Total Return Bond C","GIBCX",null,null,null,null,"Artisan International Value Advisor","APDKX","Fundos"]
[null,null,null,null,null,null,null,null,null,null,null,null,null,null,null,null,null,null,null,"Guggenheim Total Return Bond Instl","GIBIX",null,null,null,null,"Artisan International Value Instl","APHKX","Fundos"]
[null,null,null,null,null,null,null,null,null,null,null,null,null,null,null,null,null,null,null,"Guggenheim Total Return Bond P","GIBLX",null,null,null,null,"Artisan International Value Investor","ARTKX","Fundos"]
[null,null,null,null,null,null,null,null,null,null,null,null,null,null,null,null,null,null,null,"Guggenheim Total Return Bond R6","GIBRX",null,null,null,null,"Astor Sector Allocation C","CSPGX","Fundos"]
[null,null,null,null,null,null,null,null,null,null,null,null,null,null,null,null,null,null,null,"GuideStone Funds Equity Index Instl","GEQYX",null,null,null,null,"Astor Sector Allocation I","STARX","Fundos"]
[null,null,null,null,null,null,null,null,null,null,null,null,null,null,null,null,null,null,null,"GuideStone Funds Equity Index Investor","GEQZX",null,null,null,null,"ATAC Inflation Rotation Investor","ATACX","Fundos"]
[null,null,null,null,null,null,null,null,null,null,null,null,null,null,null,null,null,null,null,"GuideStone Funds International Eq Instl","GIEYX",null,null,null,null,"Ave Maria Growth","AVEGX","Fundos"]
[null,null,null,null,null,null,null,null,null,null,null,null,null,null,null,null,null,null,null,"Guinness Atkinson Global Inntrs Instl","GINNX",null,null,null,null,"Ave Maria Rising Dividend","AVEDX","Fundos"]
[null,null,null,null,null,null,null,null,null,null,null,null,null,null,null,null,null,null,null,"Guinness Atkinson Global Inntrs Inv","IWIRX",null,null,null,null,"Baillie Gifford EAFE 3","BGEUX","Fundos"]
[null,null,null,null,null,null,null,null,null,null,null,null,null,null,null,null,null,null,null,"Harbor Capital Appreciation Admin","HRCAX",null,null,null,null,"Baron Asset Instl","BARIX","Fundos"]
[null,null,null,null,null,null,null,null,null,null,null,null,null,null,null,null,null,null,null,"Harbor Capital Appreciation Instl","HACAX",null,null,null,null,"Baron Asset R6","BARUX","Fundos"]
[null,null,null,null,null,null,null,null,null,null,null,null,null,null,null,null,null,null,null,"Harbor Capital Appreciation Inv","HCAIX",null,null,null,null,"Baron Asset Retail","BARAX","Fundos"]
[null,null,null,null,null,null,null,null,null,null,null,null,null,null,null,null,null,null,null,"Harbor Global Leaders Instl","HGGAX",null,null,null,null,"Baron Discovery Institutional","BDFIX","Fundos"]
[null,null,null,null,null,null,null,null,null,null,null,null,null,null,null,null,null,null,null,"Harbor Global Leaders Retirement","HNGIX",null,null,null,null,"Baron Discovery Retail","BDFFX","Fundos"]
[null,null,null,null,null,null,null,null,null,null,null,null,null,null,null,null,null,null,null,"Harbor Large Cap Value Inv","HILVX",null,null,null,null,"Baron Fifth Avenue Growth Instl","BFTIX","Fundos"]
[null,null,null,null,null,null,null,null,null,null,null,null,null,null,null,null,null,null,null,"Harbor Mid Cap Value Admin","HRMVX",null,null,null,null,"Baron Fifth Avenue Growth R6","BFTUX","Fundos"]
[null,null,null,null,null,null,null,null,null,null,null,null,null,null,null,null,null,null,null,"Harbor Mid Cap Value Instl","HAMVX",null,null,null,null,"Baron Global Advantage R6","BGLUX","Fundos"]
[null,null,null,null,null,null,null,null,null,null,null,null,null,null,null,null,null,null,null,"Harbor Mid Cap Value Investor","HIMVX",null,null,null,null,"Baron International Growth Institutional","BINIX","Fundos"]
[null,null,null,null,null,null,null,null,null,null,null,null,null,null,null,null,null,null,null,"Harbor Mid Cap Value Retirement","HNMVX",null,null,null,null,"Baron International Growth Retail","BIGFX","Fundos"]
[null,null,null,null,null,null,null,null,null,null,null,null,null,null,null,null,null,null,null,"Harbor Small Cap Growth Instl","HASGX",null,null,null,null,"Baron Partners Institutional","BPTIX","Fundos"]
[null,null,null,null,null,null,null,null,null,null,null,null,null,null,null,null,null,null,null,"Harbor Small Cap Value Admin","HSVRX",null,null,null,null,"Baron Partners R6","BPTUX","Fundos"]
[null,null,null,null,null,null,null,null,null,null,null,null,null,null,null,null,null,null,null,"Harbor Small Cap Value Instl","HASCX",null,null,null,null,"Baron Partners Retail","BPTRX","Fundos"]
[null,null,null,null,null,null,null,null,null,null,null,null,null,null,null,null,null,null,null,"Harbor Small Cap Value Investor","HISVX",null,null,null,null,"Baron Real Estate Retail","BREFX","Fundos"]
[null,null,null,null,null,null,null,null,null,null,null,null,null,null,null,null,null,null,null,"Harding Loevner Emerging Markets Advisor","HLEMX",null,null,null,null,"BBH Partner Fund - International Eq I","BBHLX","Fundos"]
[null,null,null,null,null,null,null,null,null,null,null,null,null,null,null,null,null,null,null,"Harding Loevner Global Equity Advisor","HLMGX",null,null,null,null,"Becker Value Equity Institutional","BVEIX","Fundos"]
[null,null,null,null,null,null,null,null,null,null,null,null,null,null,null,null,null,null,null,"Harding Loevner Global Equity Inst","HLMVX",null,null,null,null,"Becker Value Equity Retail","BVEFX","Fundos"]
[null,null,null,null,null,null,null,null,null,null,null,null,null,null,null,null,null,null,null,"Harding Loevner Instl Emerg Mkts I","HLMEX",null,null,null,null,"Berkshire Focus","BFOCX","Fundos"]
[null,null,null,null,null,null,null,null,null,null,null,null,null,null,null,null,null,null,null,"Harding Loevner Instl Emerg Mkts II","HLEEX",null,null,null,null,"BlackRock Advantage LgCp Val Retiremt","MKLVX","Fundos"]
[null,null,null,null,null,null,null,null,null,null,null,null,null,null,null,null,null,null,null,"Harding Loevner International Eq Instl","HLMIX",null,null,null,null,"BlackRock Health Sciences Opps Instl","SHSSX","Fundos"]
[null,null,null,null,null,null,null,null,null,null,null,null,null,null,null,null,null,null,null,"Harding Loevner International Eq Inv","HLMNX",null,null,null,null,"BlackRock Health Sciences Opps Inv A","SHSAX","Fundos"]
[null,null,null,null,null,null,null,null,null,null,null,null,null,null,null,null,null,null,null,"Hartford Balanced A","ITTAX",null,null,null,null,"BlackRock Health Sciences Opps K","SHSKX","Fundos"]
[null,null,null,null,null,null,null,null,null,null,null,null,null,null,null,null,null,null,null,"Hartford Balanced C","HAFCX",null,null,null,null,"BlackRock Health Sciences Opps R","BHSRX","Fundos"]
[null,null,null,null,null,null,null,null,null,null,null,null,null,null,null,null,null,null,null,"Hartford Balanced I","ITTIX",null,null,null,null,"BlackRock Health Sciences Opps Svc","SHISX","Fundos"]
[null,null,null,null,null,null,null,null,null,null,null,null,null,null,null,null,null,null,null,"Hartford Balanced Y","IHAYX",null,null,null,null,"BlackRock Mid-Cap Growth Equity Inv A","BMGAX","Fundos"]
[null,null,null,null,null,null,null,null,null,null,null,null,null,null,null,null,null,null,null,"Hartford Core Equity R5","HGITX",null,null,null,null,"BlackRock Mid-Cap Growth Equity Inv C","BMGCX","Fundos"]
[null,null,null,null,null,null,null,null,null,null,null,null,null,null,null,null,null,null,null,"Hartford Dividend and Growth C","HDGCX",null,null,null,null,"BlackRock Technology Opportunities Svc","BSTSX","Fundos"]
[null,null,null,null,null,null,null,null,null,null,null,null,null,null,null,null,null,null,null,"Hartford Dividend and Growth I","HDGIX",null,null,null,null,"BMO Large-Cap Growth A","BALGX","Fundos"]
[null,null,null,null,null,null,null,null,null,null,null,null,null,null,null,null,null,null,null,"Hartford Equity Income A","HQIAX",null,null,null,null,"BMO Large-Cap Growth I","MLCIX","Fundos"]
[null,null,null,null,null,null,null,null,null,null,null,null,null,null,null,null,null,null,null,"Hartford Equity Income I","HQIIX",null,null,null,null,"BMO Large-Cap Growth R6","BLGRX","Fundos"]
[null,null,null,null,null,null,null,null,null,null,null,null,null,null,null,null,null,null,null,"Hartford Equity Income R4","HQISX",null,null,null,null,"BMO Large-Cap Growth Y","MASTX","Fundos"]
[null,null,null,null,null,null,null,null,null,null,null,null,null,null,null,null,null,null,null,"Hartford Growth Opportunities A","HGOAX",null,null,null,null,"BNY Mellon Focused Equity Opp Inv","MFOIX","Fundos"]
[null,null,null,null,null,null,null,null,null,null,null,null,null,null,null,null,null,null,null,"Hartford Growth Opportunities I","HGOIX",null,null,null,null,"BNY Mellon Focused Equity Opp M","MFOMX","Fundos"]
[null,null,null,null,null,null,null,null,null,null,null,null,null,null,null,null,null,null,null,"Hartford Growth Opportunities R4","HGOSX",null,null,null,null,"BNY Mellon Mid Cap Multi-Strategy Inv","MIMSX","Fundos"]
[null,null,null,null,null,null,null,null,null,null,null,null,null,null,null,null,null,null,null,"Hartford International Opportunities A","IHOAX",null,null,null,null,"Boston Partners All Cap Value Instl","BPAIX","Fundos"]
[null,null,null,null,null,null,null,null,null,null,null,null,null,null,null,null,null,null,null,"Hartford International Opportunities I","IHOIX",null,null,null,null,"Boston Partners All Cap Value Inv","BPAVX","Fundos"]
[null,null,null,null,null,null,null,null,null,null,null,null,null,null,null,null,null,null,null,"Hartford International Opportunities R3","IHORX",null,null,null,null,"Boston Partners Global Equity Instl","BPGIX","Fundos"]
[null,null,null,null,null,null,null,null,null,null,null,null,null,null,null,null,null,null,null,"Hartford International Opportunities R4","IHOSX",null,null,null,null,"Boston Partners Long/Short Equity Instl","BPLSX","Fundos"]
[null,null,null,null,null,null,null,null,null,null,null,null,null,null,null,null,null,null,null,"Hartford International Opportunities R5","IHOTX",null,null,null,null,"Boston Partners Long/Short Equity Inv","BPLEX","Fundos"]
[null,null,null,null,null,null,null,null,null,null,null,null,null,null,null,null,null,null,null,"Hartford International Opportunities Y","HAOYX",null,null,null,null,"Boston Partners Long/Short Rsrch Instl","BPIRX","Fundos"]
[null,null,null,null,null,null,null,null,null,null,null,null,null,null,null,null,null,null,null,"Hartford International Value I","HILIX",null,null,null,null,"Boston Partners Small Cap Value II I","BPSIX","Fundos"]
[null,null,null,null,null,null,null,null,null,null,null,null,null,null,null,null,null,null,null,"Hartford International Value R3","HILRX",null,null,null,null,"Boston Partners Small Cap Value II Inv","BPSCX","Fundos"]
[null,null,null,null,null,null,null,null,null,null,null,null,null,null,null,null,null,null,null,"Hartford International Value R4","HILSX",null,null,null,null,"Boston Trust Asset Management","BTBFX","Fundos"]
[null,null,null,null,null,null,null,null,null,null,null,null,null,null,null,null,null,null,null,"Hartford MidCap I","HFMIX",null,null,null,null,"Boston Trust Midcap","BTMFX","Fundos"]
[null,null,null,null,null,null,null,null,null,null,null,null,null,null,null,null,null,null,null,"Hartford MidCap R4","HFMSX",null,null,null,null,"BP Capital TwinLine Energy A","BPEAX","Fundos"]
[null,null,null,null,null,null,null,null,null,null,null,null,null,null,null,null,null,null,null,"Hartford Schroders Emerging Mkts Eq A","SEMVX",null,null,null,null,"Brandes International Equity A","BIEAX","Fundos"]
[null,null,null,null,null,null,null,null,null,null,null,null,null,null,null,null,null,null,null,"Hartford Schroders Emerging Mkts Eq I","SEMNX",null,null,null,null,"Brandes International Equity C","BIECX","Fundos"]
[null,null,null,null,null,null,null,null,null,null,null,null,null,null,null,null,null,null,null,"Hartford Schroders Emerging Mkts Eq R4","HHHSX",null,null,null,null,"Brandes International Equity I","BIIEX","Fundos"]
[null,null,null,null,null,null,null,null,null,null,null,null,null,null,null,null,null,null,null,"Hartford Schroders Emerging Mkts Eq SDR","SEMTX",null,null,null,null,"Brown Advisory Sustainable Growth Inv","BIAWX","Fundos"]
[null,null,null,null,null,null,null,null,null,null,null,null,null,null,null,null,null,null,null,"Hartford Schroders US Small Cap Opps A","SCUVX",null,null,null,null,"Brown Capital Mgmt Small Co Instl","BCSSX","Fundos"]
[null,null,null,null,null,null,null,null,null,null,null,null,null,null,null,null,null,null,null,"Hartford Schroders US Small Cap Opps I","SCUIX",null,null,null,null,"Brown Capital Mgmt Small Co Inv","BCSIX","Fundos"]
[null,null,null,null,null,null,null,null,null,null,null,null,null,null,null,null,null,null,null,"Hartford Schroders US Small Cap Opps R4","HOOSX",null,null,null,null,"Buffalo Discovery","BUFTX","Fundos"]
[null,null,null,null,null,null,null,null,null,null,null,null,null,null,null,null,null,null,null,"Hartford Schroders US Small Cap Opps R5","HOOTX",null,null,null,null,"Buffalo Emerging Opportunities","BUFOX","Fundos"]
[null,null,null,null,null,null,null,null,null,null,null,null,null,null,null,null,null,null,null,"Hartford Schroders US Small Cap Opps SDR","SCURX",null,null,null,null,"Buffalo International","BUFIX","Fundos"]
[null,null,null,null,null,null,null,null,null,null,null,null,null,null,null,null,null,null,null,"Hennessy Cornerstone Mid Cap 30 Inv","HFMDX",null,null,null,null,"Buffalo Large Cap","BUFEX","Fundos"]
[null,null,null,null,null,null,null,null,null,null,null,null,null,null,null,null,null,null,null,"Hennessy Equity and Income Investor","HEIFX",null,null,null,null,"Calamos Growth & Income C","CVTCX","Fundos"]
[null,null,null,null,null,null,null,null,null,null,null,null,null,null,null,null,null,null,null,"Hennessy Focus Institutional","HFCIX",null,null,null,null,"Calamos Growth & Income I","CGIIX","Fundos"]
[null,null,null,null,null,null,null,null,null,null,null,null,null,null,null,null,null,null,null,"Hennessy Focus Investor","HFCSX",null,null,null,null,"Calvert Aggressive Allocation I","CAGIX","Fundos"]
[null,null,null,null,null,null,null,null,null,null,null,null,null,null,null,null,null,null,null,"Hennessy Gas Utility Investor","GASFX",null,null,null,null,"Calvert Balanced C","CSGCX","Fundos"]
[null,null,null,null,null,null,null,null,null,null,null,null,null,null,null,null,null,null,null,"Hennessy Japan Institutional","HJPIX",null,null,null,null,"Calvert Balanced I","CBAIX","Fundos"]
[null,null,null,null,null,null,null,null,null,null,null,null,null,null,null,null,null,null,null,"Hennessy Japan Investor","HJPNX",null,null,null,null,"Calvert Conservative Allocation A","CCLAX","Fundos"]
[null,null,null,null,null,null,null,null,null,null,null,null,null,null,null,null,null,null,null,"Hennessy Japan Small Cap Institutional","HJSIX",null,null,null,null,"Calvert Conservative Allocation C","CALCX","Fundos"]
[null,null,null,null,null,null,null,null,null,null,null,null,null,null,null,null,null,null,null,"Hennessy Japan Small Cap Investor","HJPSX",null,null,null,null,"Calvert Conservative Allocation I","CFAIX","Fundos"]
[null,null,null,null,null,null,null,null,null,null,null,null,null,null,null,null,null,null,null,"Hennessy Large Cap Financial Instl","HILFX",null,null,null,null,"Calvert Emerging Markets Equity A","CVMAX","Fundos"]
[null,null,null,null,null,null,null,null,null,null,null,null,null,null,null,null,null,null,null,"Hennessy Large Cap Financial Investor","HLFNX",null,null,null,null,"Calvert Emerging Markets Equity I","CVMIX","Fundos"]
[null,null,null,null,null,null,null,null,null,null,null,null,null,null,null,null,null,null,null,"Hennessy Small Cap Financial Instl","HISFX",null,null,null,null,"Calvert Global Water A","CFWAX","Fundos"]
[null,null,null,null,null,null,null,null,null,null,null,null,null,null,null,null,null,null,null,"Hennessy Small Cap Financial Investor","HSFNX",null,null,null,null,"Calvert Global Water C","CFWCX","Fundos"]
[null,null,null,null,null,null,null,null,null,null,null,null,null,null,null,null,null,null,null,"Hilton Tactical Income A","HCYAX",null,null,null,null,"Calvert Long-Term Income I","CLDIX","Fundos"]
[null,null,null,null,null,null,null,null,null,null,null,null,null,null,null,null,null,null,null,"Hilton Tactical Income C","HCYCX",null,null,null,null,"Calvert Moderate Allocation A","CMAAX","Fundos"]
[null,null,null,null,null,null,null,null,null,null,null,null,null,null,null,null,null,null,null,"Hilton Tactical Income Instl","HCYIX",null,null,null,null,"Calvert Short Duration Income C","CDICX","Fundos"]
[null,null,null,null,null,null,null,null,null,null,null,null,null,null,null,null,null,null,null,"Hotchkis & Wiley Diversified Value C","HWCCX",null,null,null,null,"Calvert Short Duration Income I","CDSIX","Fundos"]
[null,null,null,null,null,null,null,null,null,null,null,null,null,null,null,null,null,null,null,"Hotchkis & Wiley Large Cap Value C","HWLCX",null,null,null,null,"Calvert Small-Cap A","CCVAX","Fundos"]
[null,null,null,null,null,null,null,null,null,null,null,null,null,null,null,null,null,null,null,"Hotchkis & Wiley Small Cap Value I","HWSIX",null,null,null,null,"Calvert Small-Cap C","CSCCX","Fundos"]
[null,null,null,null,null,null,null,null,null,null,null,null,null,null,null,null,null,null,null,"Hotchkis & Wiley Value Opps A","HWAAX",null,null,null,null,"Calvert Small-Cap I","CSVIX","Fundos"]
[null,null,null,null,null,null,null,null,null,null,null,null,null,null,null,null,null,null,null,"Hotchkis & Wiley Value Opps Instl","HWAIX",null,null,null,null,"Calvert US Large Cap Core Rspnb Idx A","CSXAX","Fundos"]
[null,null,null,null,null,null,null,null,null,null,null,null,null,null,null,null,null,null,null,"Hundredfold Select Alternative Inv","HFSAX",null,null,null,null,"Calvert US Large Cap Core Rspnb Idx C","CSXCX","Fundos"]
[null,null,null,null,null,null,null,null,null,null,null,null,null,null,null,null,null,null,null,"ICM Small Company","ICSCX",null,null,null,null,"Calvert US Large Cap Core Rspnb Idx I","CISIX","Fundos"]
[null,null,null,null,null,null,null,null,null,null,null,null,null,null,null,null,null,null,null,"Independent Franchise Partners US Equity","IFPUX",null,null,null,null,"Cambiar Global Ultra Focus Investor","CAMAX","Fundos"]
[null,null,null,null,null,null,null,null,null,null,null,null,null,null,null,null,null,null,null,"iShares S&P 500 Index Institutional","BSPIX",null,null,null,null,"Cambiar International Equity Instl","CAMYX","Fundos"]
[null,null,null,null,null,null,null,null,null,null,null,null,null,null,null,null,null,null,null,"iShares S&P 500 Index Investor A","BSPAX",null,null,null,null,"Cambiar Opportunity Inv","CAMOX","Fundos"]
[null,null,null,null,null,null,null,null,null,null,null,null,null,null,null,null,null,null,null,"IVA Worldwide A","IVWAX",null,null,null,null,"Carillon ClariVest Capital Apprec R5","HRCMX","Fundos"]
[null,null,null,null,null,null,null,null,null,null,null,null,null,null,null,null,null,null,null,"Jackson Square SMID-Cap Growth Instl","JSMTX",null,null,null,null,"Carillon ClariVest Capital Apprec R6","HRCUX","Fundos"]
[null,null,null,null,null,null,null,null,null,null,null,null,null,null,null,null,null,null,null,"Jackson Square SMID-Cap Growth Inv","JSMVX",null,null,null,null,"Catalyst Dynamic Alpha A","CPEAX","Fundos"]
[null,null,null,null,null,null,null,null,null,null,null,null,null,null,null,null,null,null,null,"Jackson Square SMID-Cap Growth IS","DCGTX",null,null,null,null,"Catalyst Dynamic Alpha C","CPECX","Fundos"]
[null,null,null,null,null,null,null,null,null,null,null,null,null,null,null,null,null,null,null,"JAG Large Cap Growth A","JLGAX",null,null,null,null,"Catalyst Dynamic Alpha I","CPEIX","Fundos"]
[null,null,null,null,null,null,null,null,null,null,null,null,null,null,null,null,null,null,null,"James Alpha Global Real Estate Invsmts A","JAREX",null,null,null,null,"Causeway International Value Inv","CIVVX","Fundos"]
[null,null,null,null,null,null,null,null,null,null,null,null,null,null,null,null,null,null,null,"James Alpha Global Real Estate Invsmts C","JACRX",null,null,null,null,"CGM Realty","CGMRX","Fundos"]
[null,null,null,null,null,null,null,null,null,null,null,null,null,null,null,null,null,null,null,"James Alpha Global Real Estate Invsmts I","JARIX",null,null,null,null,"Champlain Mid Cap Adv","CIPMX","Fundos"]
[null,null,null,null,null,null,null,null,null,null,null,null,null,null,null,null,null,null,null,"James Balanced: Golden Rainbow Instl","GLRIX",null,null,null,null,"Champlain Mid Cap Institutional","CIPIX","Fundos"]
[null,null,null,null,null,null,null,null,null,null,null,null,null,null,null,null,null,null,null,"James Micro Cap","JMCRX",null,null,null,null,"Champlain Small Company Adv","CIPSX","Fundos"]
[null,null,null,null,null,null,null,null,null,null,null,null,null,null,null,null,null,null,null,"Janus Henderson Enterprise A","JDMAX",null,null,null,null,"Champlain Small Company Institutional","CIPNX","Fundos"]
[null,null,null,null,null,null,null,null,null,null,null,null,null,null,null,null,null,null,null,"Janus Henderson Enterprise C","JGRCX",null,null,null,null,"CIBC Atlas Disciplined Equity Instl","AWEIX","Fundos"]
[null,null,null,null,null,null,null,null,null,null,null,null,null,null,null,null,null,null,null,"Janus Henderson Enterprise I","JMGRX",null,null,null,null,"Clifford Capital Partners Institutional","CLIFX","Fundos"]
[null,null,null,null,null,null,null,null,null,null,null,null,null,null,null,null,null,null,null,"Janus Henderson Enterprise N","JDMNX",null,null,null,null,"Clifford Capital Partners Investor","CLFFX","Fundos"]
[null,null,null,null,null,null,null,null,null,null,null,null,null,null,null,null,null,null,null,"Janus Henderson Enterprise R","JDMRX",null,null,null,null,"Clipper","CFIMX","Fundos"]
[null,null,null,null,null,null,null,null,null,null,null,null,null,null,null,null,null,null,null,"Janus Henderson Enterprise S","JGRTX",null,null,null,null,"Cohen & Steers Instl Realty Shares","CSRIX","Fundos"]
[null,null,null,null,null,null,null,null,null,null,null,null,null,null,null,null,null,null,null,"Janus Henderson Enterprise T","JAENX",null,null,null,null,"Cohen & Steers Realty Shares","CSRSX","Fundos"]
[null,null,null,null,null,null,null,null,null,null,null,null,null,null,null,null,null,null,null,"Janus Henderson Forty A","JDCAX",null,null,null,null,"Columbia Acorn European C","CAECX","Fundos"]
[null,null,null,null,null,null,null,null,null,null,null,null,null,null,null,null,null,null,null,"Janus Henderson Forty C","JACCX",null,null,null,null,"Columbia Acorn European Inst2","CAEEX","Fundos"]
[null,null,null,null,null,null,null,null,null,null,null,null,null,null,null,null,null,null,null,"Janus Henderson Forty I","JCAPX",null,null,null,null,"Columbia Balanced A","CBLAX","Fundos"]
[null,null,null,null,null,null,null,null,null,null,null,null,null,null,null,null,null,null,null,"Janus Henderson Forty N","JFRNX",null,null,null,null,"Columbia Balanced Adv","CBDRX","Fundos"]
[null,null,null,null,null,null,null,null,null,null,null,null,null,null,null,null,null,null,null,"Janus Henderson Forty R","JDCRX",null,null,null,null,"Columbia Balanced Inst","CBALX","Fundos"]
[null,null,null,null,null,null,null,null,null,null,null,null,null,null,null,null,null,null,null,"Janus Henderson Forty S","JARTX",null,null,null,null,"Columbia Balanced Inst2","CLREX","Fundos"]
[null,null,null,null,null,null,null,null,null,null,null,null,null,null,null,null,null,null,null,"Janus Henderson Global Life Sciences A","JFNAX",null,null,null,null,"Columbia Balanced Inst3","CBDYX","Fundos"]
[null,null,null,null,null,null,null,null,null,null,null,null,null,null,null,null,null,null,null,"Janus Henderson Global Life Sciences C","JFNCX",null,null,null,null,"Columbia Contrarian Core Adv","CORRX","Fundos"]
[null,null,null,null,null,null,null,null,null,null,null,null,null,null,null,null,null,null,null,"Janus Henderson Global Life Sciences D","JNGLX",null,null,null,null,"Columbia Contrarian Core C","LCCCX","Fundos"]
[null,null,null,null,null,null,null,null,null,null,null,null,null,null,null,null,null,null,null,"Janus Henderson Global Life Sciences I","JFNIX",null,null,null,null,"Columbia Contrarian Core Inst","SMGIX","Fundos"]
[null,null,null,null,null,null,null,null,null,null,null,null,null,null,null,null,null,null,null,"Janus Henderson Global Life Sciences S","JFNSX",null,null,null,null,"Columbia Contrarian Core Inst3","COFYX","Fundos"]
[null,null,null,null,null,null,null,null,null,null,null,null,null,null,null,null,null,null,null,"Janus Henderson Global Life Sciences T","JAGLX",null,null,null,null,"Columbia Contrarian Core R","CCCRX","Fundos"]
[null,null,null,null,null,null,null,null,null,null,null,null,null,null,null,null,null,null,null,"Janus Henderson Global Select C","JORCX",null,null,null,null,"Columbia Global Strategic Equity A","NLGIX","Fundos"]
[null,null,null,null,null,null,null,null,null,null,null,null,null,null,null,null,null,null,null,"Janus Henderson Growth And Income A","JDNAX",null,null,null,null,"Columbia Global Strategic Equity Inst","NGPAX","Fundos"]
[null,null,null,null,null,null,null,null,null,null,null,null,null,null,null,null,null,null,null,"Janus Henderson Triton D","JANIX",null,null,null,null,"Columbia Global Technology Growth Adv","CTYRX","Fundos"]
[null,null,null,null,null,null,null,null,null,null,null,null,null,null,null,null,null,null,null,"Janus Henderson Triton I","JSMGX",null,null,null,null,"Columbia Global Technology Growth C","CTHCX","Fundos"]
[null,null,null,null,null,null,null,null,null,null,null,null,null,null,null,null,null,null,null,"Janus Henderson Triton N","JGMNX",null,null,null,null,"Columbia Global Technology Growth Inst","CMTFX","Fundos"]
[null,null,null,null,null,null,null,null,null,null,null,null,null,null,null,null,null,null,null,"Janus Henderson Triton R","JGMRX",null,null,null,null,"Columbia Global Technology Growth Inst2","CTHRX","Fundos"]
[null,null,null,null,null,null,null,null,null,null,null,null,null,null,null,null,null,null,null,"Janus Henderson Triton S","JGMIX",null,null,null,null,"Columbia Global Technology Growth Inst3","CGTUX","Fundos"]
[null,null,null,null,null,null,null,null,null,null,null,null,null,null,null,null,null,null,null,"Janus Henderson Venture C","JVTCX",null,null,null,null,"Columbia Large Cap Enhanced Core A","NMIAX","Fundos"]
[null,null,null,null,null,null,null,null,null,null,null,null,null,null,null,null,null,null,null,"Janus Henderson Venture D","JANVX",null,null,null,null,"Columbia Large Cap Enhanced Core Inst2","CLNCX","Fundos"]
[null,null,null,null,null,null,null,null,null,null,null,null,null,null,null,null,null,null,null,"Janus Henderson Venture I","JVTIX",null,null,null,null,"Columbia Large Cap Index A","NEIAX","Fundos"]
[null,null,null,null,null,null,null,null,null,null,null,null,null,null,null,null,null,null,null,"Janus Henderson Venture N","JVTNX",null,null,null,null,"Columbia Large Cap Index Inst","NINDX","Fundos"]
[null,null,null,null,null,null,null,null,null,null,null,null,null,null,null,null,null,null,null,"Janus Henderson Venture S","JVTSX",null,null,null,null,"Columbia Large Cap Index Inst2","CLXRX","Fundos"]
[null,null,null,null,null,null,null,null,null,null,null,null,null,null,null,null,null,null,null,"Janus Henderson Venture T","JAVTX",null,null,null,null,"Columbia Select Global Growth Inst2","CADIX","Fundos"]
[null,null,null,null,null,null,null,null,null,null,null,null,null,null,null,null,null,null,null,"Jensen Quality Growth I","JENIX",null,null,null,null,"Columbia Select Global Growth R","COGRX","Fundos"]
[null,null,null,null,null,null,null,null,null,null,null,null,null,null,null,null,null,null,null,"Jensen Quality Growth J","JENSX",null,null,null,null,"Columbia Select Large-Cap Value A","SLVAX","Fundos"]
[null,null,null,null,null,null,null,null,null,null,null,null,null,null,null,null,null,null,null,"Jensen Quality Growth Y","JENYX",null,null,null,null,"Columbia Select Large-Cap Value Adv","CSERX","Fundos"]
[null,null,null,null,null,null,null,null,null,null,null,null,null,null,null,null,null,null,null,"JHancock Bond A","JHNBX",null,null,null,null,"Columbia Select Large-Cap Value Inst","CSVZX","Fundos"]
[null,null,null,null,null,null,null,null,null,null,null,null,null,null,null,null,null,null,null,"JHancock Bond B","JHBBX",null,null,null,null,"Columbia Select Large-Cap Value Inst2","SLVIX","Fundos"]
[null,null,null,null,null,null,null,null,null,null,null,null,null,null,null,null,null,null,null,"JHancock Bond C","JHCBX",null,null,null,null,"Columbia Select Large-Cap Value Inst3","CSRYX","Fundos"]
[null,null,null,null,null,null,null,null,null,null,null,null,null,null,null,null,null,null,null,"JHancock Bond I","JHBIX",null,null,null,null,"Columbia Select Smaller-Cap Value A","SSCVX","Fundos"]
[null,null,null,null,null,null,null,null,null,null,null,null,null,null,null,null,null,null,null,"JHancock Bond R4","JBFRX",null,null,null,null,"Columbia Select Smaller-Cap Value Inst","CSSZX","Fundos"]
[null,null,null,null,null,null,null,null,null,null,null,null,null,null,null,null,null,null,null,"Johnson Enhanced Return","JENHX",null,null,null,null,"Columbia Seligman Comms & Info A","SLMCX","Fundos"]
[null,null,null,null,null,null,null,null,null,null,null,null,null,null,null,null,null,null,null,"Johnson Institutional Core Bond","JIBFX",null,null,null,null,"Columbia Seligman Comms & Info Adv","SCIOX","Fundos"]
[null,null,null,null,null,null,null,null,null,null,null,null,null,null,null,null,null,null,null,"JPMorgan Diversified A","JDVAX",null,null,null,null,"Columbia Seligman Comms & Info Inst","CCIZX","Fundos"]
[null,null,null,null,null,null,null,null,null,null,null,null,null,null,null,null,null,null,null,"JPMorgan Diversified I","JDVSX",null,null,null,null,"Columbia Seligman Comms & Info R","SCIRX","Fundos"]
[null,null,null,null,null,null,null,null,null,null,null,null,null,null,null,null,null,null,null,"JPMorgan Emerging Markets Equity I","JEMSX",null,null,null,null,"Columbia Seligman Global Tech Adv","CCHRX","Fundos"]
[null,null,null,null,null,null,null,null,null,null,null,null,null,null,null,null,null,null,null,"JPMorgan Hedged Equity R5","JHQPX",null,null,null,null,"Columbia Seligman Global Tech C","SHTCX","Fundos"]
[null,null,null,null,null,null,null,null,null,null,null,null,null,null,null,null,null,null,null,"JPMorgan International Uncons Eq I","IUESX",null,null,null,null,"Columbia Seligman Global Tech Inst","CSGZX","Fundos"]
[null,null,null,null,null,null,null,null,null,null,null,null,null,null,null,null,null,null,null,"JPMorgan Intrepid Growth A","JIGAX",null,null,null,null,"Columbia Seligman Global Tech R","SGTRX","Fundos"]
[null,null,null,null,null,null,null,null,null,null,null,null,null,null,null,null,null,null,null,"JPMorgan Intrepid Growth C","JCICX",null,null,null,null,"Conestoga Small Cap Institutional","CCALX","Fundos"]
[null,null,null,null,null,null,null,null,null,null,null,null,null,null,null,null,null,null,null,"JPMorgan Intrepid Growth I","JPGSX",null,null,null,null,"Conestoga Small Cap Investors","CCASX","Fundos"]
[null,null,null,null,null,null,null,null,null,null,null,null,null,null,null,null,null,null,null,"JPMorgan Intrepid Growth R2","JIGZX",null,null,null,null,"Conestoga SMid Cap Institutional","CCSGX","Fundos"]
[null,null,null,null,null,null,null,null,null,null,null,null,null,null,null,null,null,null,null,"JPMorgan Intrepid Growth R5","JGIRX",null,null,null,null,"Congress Mid Cap Growth Institutional","IMIDX","Fundos"]
[null,null,null,null,null,null,null,null,null,null,null,null,null,null,null,null,null,null,null,"JPMorgan Intrepid Growth R6","JGISX",null,null,null,null,"Congress Mid Cap Growth Retail","CMIDX","Fundos"]
[null,null,null,null,null,null,null,null,null,null,null,null,null,null,null,null,null,null,null,"JPMorgan Intrepid Mid Cap C","ODMCX",null,null,null,null,"Congress SMid Core Opportunity Instl","IACOX","Fundos"]
[null,null,null,null,null,null,null,null,null,null,null,null,null,null,null,null,null,null,null,"JPMorgan Intrepid Mid Cap I","WOOPX",null,null,null,null,"CornerCap Small-Cap Value Institutional","CSCJX","Fundos"]
[null,null,null,null,null,null,null,null,null,null,null,null,null,null,null,null,null,null,null,"JPMorgan Large Cap Growth R6","JLGMX",null,null,null,null,"CornerCap Small-Cap Value Investor","CSCVX","Fundos"]
[null,null,null,null,null,null,null,null,null,null,null,null,null,null,null,null,null,null,null,"JPMorgan Large Cap Value A","OLVAX",null,null,null,null,"Crawford Dividend Opportunity","CDOFX","Fundos"]
[null,null,null,null,null,null,null,null,null,null,null,null,null,null,null,null,null,null,null,"JPMorgan Mid Cap Equity A","JCMAX",null,null,null,null,"Crawford Dividend Opportunity C","CDOCX","Fundos"]
[null,null,null,null,null,null,null,null,null,null,null,null,null,null,null,null,null,null,null,"JPMorgan Mid Cap Equity I","VSNGX",null,null,null,null,"CRM Small Cap Value Inv","CRMSX","Fundos"]
[null,null,null,null,null,null,null,null,null,null,null,null,null,null,null,null,null,null,null,"JPMorgan Small Cap Core R5","VSSCX",null,null,null,null,"Crossmark Steward Global Eq Inc A","SGIDX","Fundos"]
[null,null,null,null,null,null,null,null,null,null,null,null,null,null,null,null,null,null,null,"JPMorgan SmartRetirement 2040 A","SMTAX",null,null,null,null,"Crossmark Steward Lrg Cap Enh Idx A","SEEKX","Fundos"]
[null,null,null,null,null,null,null,null,null,null,null,null,null,null,null,null,null,null,null,"JPMorgan SmartRetirement 2040 C","SMTCX",null,null,null,null,"Crossmark Steward Sm-Md Cp Enh Idx A","TRDFX","Fundos"]
[null,null,null,null,null,null,null,null,null,null,null,null,null,null,null,null,null,null,null,"JPMorgan SmartRetirement 2040 I","SMTSX",null,null,null,null,"Crossmark Steward Sm-Md Cp Enh Idx Instl","SCECX","Fundos"]
[null,null,null,null,null,null,null,null,null,null,null,null,null,null,null,null,null,null,null,"JPMorgan SmartRetirement 2040 R5","SMTIX",null,null,null,null,"Deutsche Equity 500 Index Institutional","BTIIX","Fundos"]
[null,null,null,null,null,null,null,null,null,null,null,null,null,null,null,null,null,null,null,"JPMorgan SmartRetirement 2040 R6","SMTYX",null,null,null,null,"Deutsche Equity 500 Index S","BTIEX","Fundos"]
[null,null,null,null,null,null,null,null,null,null,null,null,null,null,null,null,null,null,null,"JPMorgan SmartRetirement 2050 C","JTSCX",null,null,null,null,"Deutsche S&P 500 Index C","SXPCX","Fundos"]
[null,null,null,null,null,null,null,null,null,null,null,null,null,null,null,null,null,null,null,"JPMorgan SmartRetirement 2050 I","JTSSX",null,null,null,null,"DF Dent Midcap Growth Investor","DFDMX","Fundos"]
[null,null,null,null,null,null,null,null,null,null,null,null,null,null,null,null,null,null,null,"JPMorgan SmartRetirement 2050 R5","JTSIX",null,null,null,null,"Diamond Hill All Cap Select I","DHLTX","Fundos"]
[null,null,null,null,null,null,null,null,null,null,null,null,null,null,null,null,null,null,null,"JPMorgan SmartRetirement 2050 R6","JTSYX",null,null,null,null,"Diamond Hill All Cap Select Y","DHTYX","Fundos"]
[null,null,null,null,null,null,null,null,null,null,null,null,null,null,null,null,null,null,null,"JPMorgan SmartRetirement Blend 2030 R6","JRBYX",null,null,null,null,"Diamond Hill Large Cap A","DHLAX","Fundos"]
[null,null,null,null,null,null,null,null,null,null,null,null,null,null,null,null,null,null,null,"JPMorgan SmartRetirement Blend 2035 R5","JPBRX",null,null,null,null,"Diamond Hill Large Cap I","DHLRX","Fundos"]
[null,null,null,null,null,null,null,null,null,null,null,null,null,null,null,null,null,null,null,"JPMorgan SmartRetirement Blend 2035 R6","JPYRX",null,null,null,null,"Diamond Hill Large Cap Y","DHLYX","Fundos"]
[null,null,null,null,null,null,null,null,null,null,null,null,null,null,null,null,null,null,null,"JPMorgan SmartRetirement Blend 2040 I","JOBEX",null,null,null,null,"Diamond Hill Long-Short C","DHFCX","Fundos"]
[null,null,null,null,null,null,null,null,null,null,null,null,null,null,null,null,null,null,null,"JPMorgan SmartRetirement Blend 2040 R5","JOBBX",null,null,null,null,"Diamond Hill Long-Short I","DHLSX","Fundos"]
[null,null,null,null,null,null,null,null,null,null,null,null,null,null,null,null,null,null,null,"JPMorgan SmartRetirement Blend 2045 R5","JMBRX",null,null,null,null,"Diamond Hill Long-Short Y","DIAYX","Fundos"]
[null,null,null,null,null,null,null,null,null,null,null,null,null,null,null,null,null,null,null,"JPMorgan SmartRetirement Blend 2045 R6","JMYAX",null,null,null,null,"Diamond Hill Research Opportunities C","DROCX","Fundos"]
[null,null,null,null,null,null,null,null,null,null,null,null,null,null,null,null,null,null,null,"JPMorgan SmartRetirement Blend Inc I","JIJSX",null,null,null,null,"Diamond Hill Research Opportunities Y","DROYX","Fundos"]
[null,null,null,null,null,null,null,null,null,null,null,null,null,null,null,null,null,null,null,"JPMorgan SmartRetirement Blend Inc R5","JIBBX",null,null,null,null,"Diamond Hill Small-Mid Cap A","DHMAX","Fundos"]
[null,null,null,null,null,null,null,null,null,null,null,null,null,null,null,null,null,null,null,"JPMorgan Tax Aware Equity I","JPDEX",null,null,null,null,"Diamond Hill Small-Mid Cap C","DHMCX","Fundos"]
[null,null,null,null,null,null,null,null,null,null,null,null,null,null,null,null,null,null,null,"JPMorgan US Equity I","JUESX",null,null,null,null,"Diamond Hill Small-Mid Cap I","DHMIX","Fundos"]
[null,null,null,null,null,null,null,null,null,null,null,null,null,null,null,null,null,null,null,"JPMorgan US Equity L","JMUEX",null,null,null,null,"Diamond Hill Small-Mid Cap Y","DHMYX","Fundos"]
[null,null,null,null,null,null,null,null,null,null,null,null,null,null,null,null,null,null,null,"JPMorgan US Equity R2","JUEZX",null,null,null,null,"Direxion Mthly NASDAQ-100 Bull 2X Inv","DXQLX","Fundos"]
[null,null,null,null,null,null,null,null,null,null,null,null,null,null,null,null,null,null,null,"JPMorgan US Equity R3","JUEPX",null,null,null,null,"Disciplined Growth Investors","DGIFX","Fundos"]
[null,null,null,null,null,null,null,null,null,null,null,null,null,null,null,null,null,null,null,"JPMorgan US Equity R5","JUSRX",null,null,null,null,"Dodge & Cox Balanced","DODBX","Fundos"]
[null,null,null,null,null,null,null,null,null,null,null,null,null,null,null,null,null,null,null,"JPMorgan US Research Enhanced Equity A","JDEAX",null,null,null,null,"Dodge & Cox International Stock","DODFX","Fundos"]
[null,null,null,null,null,null,null,null,null,null,null,null,null,null,null,null,null,null,null,"JPMorgan US Research Enhanced Equity L","JPIEX",null,null,null,null,"Dodge & Cox Stock","DODGX","Fundos"]
[null,null,null,null,null,null,null,null,null,null,null,null,null,null,null,null,null,null,null,"JPMorgan Value Advantage A","JVAAX",null,null,null,null,"DoubleLine Shiller Enhanced CAPE I","DSEEX","Fundos"]
[null,null,null,null,null,null,null,null,null,null,null,null,null,null,null,null,null,null,null,"JPMorgan Value Advantage C","JVACX",null,null,null,null,"DoubleLine Shiller Enhanced CAPE N","DSENX","Fundos"]
[null,null,null,null,null,null,null,null,null,null,null,null,null,null,null,null,null,null,null,"JPMorgan Value Advantage I","JVASX",null,null,null,null,"Dreyfus Diversified Emerging Markets C","DBECX","Fundos"]
[null,null,null,null,null,null,null,null,null,null,null,null,null,null,null,null,null,null,null,"JPMorgan Value Advantage L","JVAIX",null,null,null,null,"Dreyfus Diversified Emerging Markets I","SBCEX","Fundos"]
[null,null,null,null,null,null,null,null,null,null,null,null,null,null,null,null,null,null,null,"JPMorgan Value Advantage R5","JVARX",null,null,null,null,"Dreyfus Diversified Emerging Markets Y","SBYEX","Fundos"]
[null,null,null,null,null,null,null,null,null,null,null,null,null,null,null,null,null,null,null,"JPMorgan Value Advantage R6","JVAYX",null,null,null,null,"Dreyfus Global Stock A","DGLAX","Fundos"]
[null,null,null,null,null,null,null,null,null,null,null,null,null,null,null,null,null,null,null,"Keeley Mid Cap Dividend Value A","KMDVX",null,null,null,null,"Dreyfus Global Stock I","DGLRX","Fundos"]
[null,null,null,null,null,null,null,null,null,null,null,null,null,null,null,null,null,null,null,"Kinetics Alternative Income Advisor C","KWICX",null,null,null,null,"Dreyfus Instl S&P 500 Stock Index I","DSPIX","Fundos"]
[null,null,null,null,null,null,null,null,null,null,null,null,null,null,null,null,null,null,null,"Kinetics Market Opportunities Inst","KMKYX",null,null,null,null,"Dreyfus Mid Cap Index I","DMIDX","Fundos"]
[null,null,null,null,null,null,null,null,null,null,null,null,null,null,null,null,null,null,null,"Kinetics Market Opportunities No Load","KMKNX",null,null,null,null,"Dreyfus Mid Cap Index Inv","PESPX","Fundos"]
[null,null,null,null,null,null,null,null,null,null,null,null,null,null,null,null,null,null,null,"Lazard Emerging Markets Equity Open","LZOEX",null,null,null,null,"Dreyfus Opportunistic Small Cap I","DOPIX","Fundos"]
[null,null,null,null,null,null,null,null,null,null,null,null,null,null,null,null,null,null,null,"Lazard Emerging Markets Equity R6","RLEMX",null,null,null,null,"Dreyfus Opportunistic Small Cap Inv","DSCVX","Fundos"]
[null,null,null,null,null,null,null,null,null,null,null,null,null,null,null,null,null,null,null,"Lazard Global Listed Infrastructure Inst","GLIFX",null,null,null,null,"Dreyfus Opportunistic Small Cap Y","DSCYX","Fundos"]
[null,null,null,null,null,null,null,null,null,null,null,null,null,null,null,null,null,null,null,"Lazard Global Listed Infrastructure Open","GLFOX",null,null,null,null,"Dreyfus Small Cap Stock Index I","DISIX","Fundos"]
[null,null,null,null,null,null,null,null,null,null,null,null,null,null,null,null,null,null,null,"Lazard International Strategic Eq Instl","LISIX",null,null,null,null,"Dreyfus Small Cap Stock Index Inv","DISSX","Fundos"]
[null,null,null,null,null,null,null,null,null,null,null,null,null,null,null,null,null,null,null,"Lazard International Strategic Eq R6","RLITX",null,null,null,null,"Dreyfus Structured MidCap Y","DPSYX","Fundos"]
[null,null,null,null,null,null,null,null,null,null,null,null,null,null,null,null,null,null,null,"Lazard US Equity Concentrated Instl","LEVIX",null,null,null,null,"Dreyfus/The Boston Co Small Cap Gr I","SSETX","Fundos"]
[null,null,null,null,null,null,null,null,null,null,null,null,null,null,null,null,null,null,null,"Lazard US Equity Concentrated Open","LEVOX",null,null,null,null,"Driehaus Emerging Markets Growth Inv","DREGX","Fundos"]
[null,null,null,null,null,null,null,null,null,null,null,null,null,null,null,null,null,null,null,"Leland Thomson Reuters Vntr Cptl Idx A","LDVAX",null,null,null,null,"Driehaus Micro Cap Growth","DMCRX","Fundos"]
[null,null,null,null,null,null,null,null,null,null,null,null,null,null,null,null,null,null,null,"Leuthold Core Investment I","LCRIX",null,null,null,null,"Dunham International Stock A","DAINX","Fundos"]
[null,null,null,null,null,null,null,null,null,null,null,null,null,null,null,null,null,null,null,"Leuthold Core Investment Retail","LCORX",null,null,null,null,"Dunham International Stock C","DCINX","Fundos"]
[null,null,null,null,null,null,null,null,null,null,null,null,null,null,null,null,null,null,null,"Leuthold Global Industries Institutional","LGIIX",null,null,null,null,"Dunham International Stock N","DNINX","Fundos"]
[null,null,null,null,null,null,null,null,null,null,null,null,null,null,null,null,null,null,null,"Leuthold Global Industries Retail","LGINX",null,null,null,null,"Dunham Monthly Distribution A","DAMDX","Fundos"]
[null,null,null,null,null,null,null,null,null,null,null,null,null,null,null,null,null,null,null,"LKCM Balanced","LKBAX",null,null,null,null,"Dunham Monthly Distribution C","DCMDX","Fundos"]
[null,null,null,null,null,null,null,null,null,null,null,null,null,null,null,null,null,null,null,"Loomis Sayles Global Allocation A","LGMAX",null,null,null,null,"Dunham Monthly Distribution N","DNMDX","Fundos"]
[null,null,null,null,null,null,null,null,null,null,null,null,null,null,null,null,null,null,null,"Loomis Sayles Global Allocation C","LGMCX",null,null,null,null,"Eaton Vance Focused Growth Opps A","EAFGX","Fundos"]
[null,null,null,null,null,null,null,null,null,null,null,null,null,null,null,null,null,null,null,"Loomis Sayles Global Allocation Y","LSWWX",null,null,null,null,"Edgewood Growth Instl","EGFIX","Fundos"]
[null,null,null,null,null,null,null,null,null,null,null,null,null,null,null,null,null,null,null,"Loomis Sayles Growth N","LGRNX",null,null,null,null,"Edgewood Growth Retail","EGFFX","Fundos"]
[null,null,null,null,null,null,null,null,null,null,null,null,null,null,null,null,null,null,null,"Loomis Sayles Growth Y","LSGRX",null,null,null,null,"Emerald Banking and Finance A","HSSAX","Fundos"]
[null,null,null,null,null,null,null,null,null,null,null,null,null,null,null,null,null,null,null,"Loomis Sayles Small Cap Growth N","LSSNX",null,null,null,null,"Emerald Banking and Finance C","HSSCX","Fundos"]
[null,null,null,null,null,null,null,null,null,null,null,null,null,null,null,null,null,null,null,"Loomis Sayles Small Cap Value Admin","LSVAX",null,null,null,null,"Emerald Banking and Finance Instl","HSSIX","Fundos"]
[null,null,null,null,null,null,null,null,null,null,null,null,null,null,null,null,null,null,null,"Loomis Sayles Small Cap Value Instl","LSSCX",null,null,null,null,"Emerald Banking and Finance Investor","FFBFX","Fundos"]
[null,null,null,null,null,null,null,null,null,null,null,null,null,null,null,null,null,null,null,"Loomis Sayles Small Cap Value N","LSCNX",null,null,null,null,"Emerald Growth A","HSPGX","Fundos"]
[null,null,null,null,null,null,null,null,null,null,null,null,null,null,null,null,null,null,null,"Loomis Sayles Small Cap Value Retail","LSCRX",null,null,null,null,"Emerald Growth Investor","FFGRX","Fundos"]
[null,null,null,null,null,null,null,null,null,null,null,null,null,null,null,null,null,null,null,"Lord Abbett Growth Leaders B","GLABX",null,null,null,null,"EntrepreneurShares Global Instl","ENTIX","Fundos"]
[null,null,null,null,null,null,null,null,null,null,null,null,null,null,null,null,null,null,null,"Lord Abbett Micro Cap Growth I","LMIYX",null,null,null,null,"Evermore Global Value Institutional","EVGIX","Fundos"]
[null,null,null,null,null,null,null,null,null,null,null,null,null,null,null,null,null,null,null,"Lord Abbett Micro Cap Value I","LMVYX",null,null,null,null,"Evermore Global Value Investor","EVGBX","Fundos"]
[null,null,null,null,null,null,null,null,null,null,null,null,null,null,null,null,null,null,null,"Lord Abbett Multi-Asset Focused Gr C","LDSCX",null,null,null,null,"FAM Small Cap Investor","FAMFX","Fundos"]
[null,null,null,null,null,null,null,null,null,null,null,null,null,null,null,null,null,null,null,"LSV Value Equity Investor","LVAEX",null,null,null,null,"FAM Value Investor","FAMVX","Fundos"]
[null,null,null,null,null,null,null,null,null,null,null,null,null,null,null,null,null,null,null,"Lyrical US Value Equity Institutional","LYRIX",null,null,null,null,"Federated Global Allocation A","FSTBX","Fundos"]
[null,null,null,null,null,null,null,null,null,null,null,null,null,null,null,null,null,null,null,"Lyrical US Value Equity Investor","LYRBX",null,null,null,null,"Federated Global Allocation B","FSBBX","Fundos"]
[null,null,null,null,null,null,null,null,null,null,null,null,null,null,null,null,null,null,null,"Macquarie Pooled Large Cap Value","DPDEX",null,null,null,null,"Federated Global Allocation C","FSBCX","Fundos"]
[null,null,null,null,null,null,null,null,null,null,null,null,null,null,null,null,null,null,null,"MainStay Income Builder B","MKTRX",null,null,null,null,"Federated Global Allocation Instl","SBFIX","Fundos"]
[null,null,null,null,null,null,null,null,null,null,null,null,null,null,null,null,null,null,null,"MainStay Income Builder Inv","MTINX",null,null,null,null,"Federated Global Allocation R","FSBKX","Fundos"]
[null,null,null,null,null,null,null,null,null,null,null,null,null,null,null,null,null,null,null,"MainStay Income Builder R3","MTXVX",null,null,null,null,"Federated International Leaders A","FGFAX","Fundos"]
[null,null,null,null,null,null,null,null,null,null,null,null,null,null,null,null,null,null,null,"MainStay MacKay Convertible B","MCSVX",null,null,null,null,"Federated International Leaders R6","FGRSX","Fundos"]
[null,null,null,null,null,null,null,null,null,null,null,null,null,null,null,null,null,null,null,"MainStay MacKay Convertible I","MCNVX",null,null,null,null,"Federated Kaufmann Large Cap Instl","KLCIX","Fundos"]
[null,null,null,null,null,null,null,null,null,null,null,null,null,null,null,null,null,null,null,"MainStay MacKay Convertible Investor","MCINX",null,null,null,null,"Federated Kaufmann Small Cap A","FKASX","Fundos"]
[null,null,null,null,null,null,null,null,null,null,null,null,null,null,null,null,null,null,null,"MainStay MacKay S&P 500 Index Inv","MYSPX",null,null,null,null,"Federated Kaufmann Small Cap R","FKKSX","Fundos"]
[null,null,null,null,null,null,null,null,null,null,null,null,null,null,null,null,null,null,null,"Mairs & Power Balanced Inv","MAPOX",null,null,null,null,"Federated MDT Large Cap Value A","FSTRX","Fundos"]
[null,null,null,null,null,null,null,null,null,null,null,null,null,null,null,null,null,null,null,"Mairs & Power Growth Inv","MPGFX",null,null,null,null,"Federated MDT Large Cap Value Instl","FMSTX","Fundos"]
[null,null,null,null,null,null,null,null,null,null,null,null,null,null,null,null,null,null,null,"Mairs & Power Small Cap","MSCFX",null,null,null,null,"Federated MDT Large Cap Value R6","FSTLX","Fundos"]
[null,null,null,null,null,null,null,null,null,null,null,null,null,null,null,null,null,null,null,"Managers Institutional Micro-Cap","MIMFX",null,null,null,null,"Federated MDT Large Cap Value Service","FSTKX","Fundos"]
[null,null,null,null,null,null,null,null,null,null,null,null,null,null,null,null,null,null,null,"Manning & Napier Rainier Intl Discv I","RAIIX",null,null,null,null,"Federated MDT Mid Cap Growth R6","FGSKX","Fundos"]
[null,null,null,null,null,null,null,null,null,null,null,null,null,null,null,null,null,null,null,"Manning & Napier Rainier Intl Discv K","RISAX",null,null,null,null,"Federated MDT Small Cap Core A","QASCX","Fundos"]
[null,null,null,null,null,null,null,null,null,null,null,null,null,null,null,null,null,null,null,"Marsico Global","MGLBX",null,null,null,null,"Federated MDT Small Cap Core C","QCSCX","Fundos"]
[null,null,null,null,null,null,null,null,null,null,null,null,null,null,null,null,null,null,null,"Matthew 25","MXXVX",null,null,null,null,"Federated MDT Small Cap Core Instl","QISCX","Fundos"]
[null,null,null,null,null,null,null,null,null,null,null,null,null,null,null,null,null,null,null,"Matthews Asia Dividend Instl","MIPIX",null,null,null,null,"Federated MDT Small Cap Growth A","QASGX","Fundos"]
[null,null,null,null,null,null,null,null,null,null,null,null,null,null,null,null,null,null,null,"Matthews Asia Growth Investor","MPACX",null,null,null,null,"Federated MDT Small Cap Growth C","QCSGX","Fundos"]
[null,null,null,null,null,null,null,null,null,null,null,null,null,null,null,null,null,null,null,"Matthews China Dividend Instl","MICDX",null,null,null,null,"Federated MDT Small Cap Growth Instl","QISGX","Fundos"]
[null,null,null,null,null,null,null,null,null,null,null,null,null,null,null,null,null,null,null,"Matthews China Dividend Investor","MCDFX",null,null,null,null,"Federated MDT Small Cap Growth R6","QLSGX","Fundos"]
[null,null,null,null,null,null,null,null,null,null,null,null,null,null,null,null,null,null,null,"Matthews India Instl","MIDNX",null,null,null,null,"Federated Mid-Cap Index Instl","FMCRX","Fundos"]
[null,null,null,null,null,null,null,null,null,null,null,null,null,null,null,null,null,null,null,"Matthews India Investor","MINDX",null,null,null,null,"Federated Mid-Cap Index R6","FMCLX","Fundos"]
[null,null,null,null,null,null,null,null,null,null,null,null,null,null,null,null,null,null,null,"Matthews Japan Instl","MIJFX",null,null,null,null,"Federated Mid-Cap Index Svc","FMDCX","Fundos"]
[null,null,null,null,null,null,null,null,null,null,null,null,null,null,null,null,null,null,null,"Matthews Pacific Tiger Instl","MIPTX",null,null,null,null,"Fidelity 500 Index Institutional","FXSIX","Fundos"]
[null,null,null,null,null,null,null,null,null,null,null,null,null,null,null,null,null,null,null,"Matthews Pacific Tiger Investor","MAPTX",null,null,null,null,"Fidelity 500 Index Institutional Prem","FXAIX","Fundos"]
[null,null,null,null,null,null,null,null,null,null,null,null,null,null,null,null,null,null,null,"Meeder Quantex Adviser","QNTAX",null,null,null,null,"Fidelity 500 Index Investor","FUSEX","Fundos"]
[null,null,null,null,null,null,null,null,null,null,null,null,null,null,null,null,null,null,null,"Meeder Quantex Institutional","QNTIX",null,null,null,null,"Fidelity 500 Index Premium","FUSVX","Fundos"]
[null,null,null,null,null,null,null,null,null,null,null,null,null,null,null,null,null,null,null,"Meeder Quantex Retail","FLCGX",null,null,null,null,"Fidelity Advisor Asset Manager 50% M","FFTMX","Fundos"]
[null,null,null,null,null,null,null,null,null,null,null,null,null,null,null,null,null,null,null,"Meridian Contrarian A","MFCAX",null,null,null,null,"Fidelity Advisor Asset Manager 70% A","FAASX","Fundos"]
[null,null,null,null,null,null,null,null,null,null,null,null,null,null,null,null,null,null,null,"Meridian Contrarian C","MFCCX",null,null,null,null,"Fidelity Advisor Asset Manager 70% C","FCASX","Fundos"]
[null,null,null,null,null,null,null,null,null,null,null,null,null,null,null,null,null,null,null,"Meridian Contrarian Investor","MFCIX",null,null,null,null,"Fidelity Advisor Asset Manager 70% I","FAAIX","Fundos"]
[null,null,null,null,null,null,null,null,null,null,null,null,null,null,null,null,null,null,null,"Meridian Growth Investor","MRIGX",null,null,null,null,"Fidelity Advisor Asset Manager 70% M","FTASX","Fundos"]
[null,null,null,null,null,null,null,null,null,null,null,null,null,null,null,null,null,null,null,"Meridian Small Cap Growth A","MSGAX",null,null,null,null,"Fidelity Advisor Asset Manager 85% A","FEYAX","Fundos"]
[null,null,null,null,null,null,null,null,null,null,null,null,null,null,null,null,null,null,null,"Meridian Small Cap Growth Institutional","MSGRX",null,null,null,null,"Fidelity Advisor Asset Manager 85% C","FEYCX","Fundos"]
[null,null,null,null,null,null,null,null,null,null,null,null,null,null,null,null,null,null,null,"Meritage Growth Equity Institutional","MPGIX",null,null,null,null,"Fidelity Advisor Asset Manager 85% I","FEYIX","Fundos"]
[null,null,null,null,null,null,null,null,null,null,null,null,null,null,null,null,null,null,null,"Meritage Growth Equity Investor","MPGEX",null,null,null,null,"Fidelity Advisor Asset Manager 85% M","FEYTX","Fundos"]
[null,null,null,null,null,null,null,null,null,null,null,null,null,null,null,null,null,null,null,"MFS Instl International Equity","MIEIX",null,null,null,null,"Fidelity Advisor Balanced A","FABLX","Fundos"]
[null,null,null,null,null,null,null,null,null,null,null,null,null,null,null,null,null,null,null,"Mondrian International Equity","DPIEX",null,null,null,null,"Fidelity Advisor Balanced C","FABCX","Fundos"]
[null,null,null,null,null,null,null,null,null,null,null,null,null,null,null,null,null,null,null,"Morgan Stanley Inst Frontier Mkts A","MFMPX",null,null,null,null,"Fidelity Advisor Balanced I","FAIOX","Fundos"]
[null,null,null,null,null,null,null,null,null,null,null,null,null,null,null,null,null,null,null,"Morgan Stanley Inst Frontier Mkts IS","MSRFX",null,null,null,null,"Fidelity Advisor Balanced M","FAIGX","Fundos"]
[null,null,null,null,null,null,null,null,null,null,null,null,null,null,null,null,null,null,null,"Morgan Stanley Inst Global Advtg A","MIGPX",null,null,null,null,"Fidelity Advisor Balanced Z","FZAAX","Fundos"]
[null,null,null,null,null,null,null,null,null,null,null,null,null,null,null,null,null,null,null,"Morgan Stanley Inst Global Advtg I","MIGIX",null,null,null,null,"Fidelity Advisor Biotechnology A","FBTAX","Fundos"]
[null,null,null,null,null,null,null,null,null,null,null,null,null,null,null,null,null,null,null,"Morgan Stanley Inst Global Franchise L","MSFLX",null,null,null,null,"Fidelity Advisor Biotechnology I","FBTIX","Fundos"]
[null,null,null,null,null,null,null,null,null,null,null,null,null,null,null,null,null,null,null,"Morgan Stanley Inst Global Opp I","MGGIX",null,null,null,null,"Fidelity Advisor Biotechnology M","FBTTX","Fundos"]
[null,null,null,null,null,null,null,null,null,null,null,null,null,null,null,null,null,null,null,"Morgan Stanley Inst Global Opp L","MGGLX",null,null,null,null,"Fidelity Advisor China Region A","FHKAX","Fundos"]
[null,null,null,null,null,null,null,null,null,null,null,null,null,null,null,null,null,null,null,"Morgan Stanley Inst International Opp A","MIOPX",null,null,null,null,"Fidelity Advisor China Region I","FHKIX","Fundos"]
[null,null,null,null,null,null,null,null,null,null,null,null,null,null,null,null,null,null,null,"Morgan Stanley Inst International Opp C","MSOCX",null,null,null,null,"Fidelity Advisor Consumer Staples I","FDIGX","Fundos"]
[null,null,null,null,null,null,null,null,null,null,null,null,null,null,null,null,null,null,null,"Nationwide Geneva Small Cap Gr A","NWHZX",null,null,null,null,"Fidelity Advisor Diversified Intl A","FDVAX","Fundos"]
[null,null,null,null,null,null,null,null,null,null,null,null,null,null,null,null,null,null,null,"Nationwide Mid Cap Market Idx A","GMXAX",null,null,null,null,"Fidelity Advisor Diversified Intl I","FDVIX","Fundos"]
[null,null,null,null,null,null,null,null,null,null,null,null,null,null,null,null,null,null,null,"Nationwide Mid Cap Market Idx C","GMCCX",null,null,null,null,"Fidelity Advisor Diversified Intl Z","FZABX","Fundos"]
[null,null,null,null,null,null,null,null,null,null,null,null,null,null,null,null,null,null,null,"Nationwide Mid Cap Market Idx Instl Svc","NWXQX",null,null,null,null,"Fidelity Advisor Emerging Asia M","FEATX","Fundos"]
[null,null,null,null,null,null,null,null,null,null,null,null,null,null,null,null,null,null,null,"Nationwide S&P 500 Index A","GRMAX",null,null,null,null,"Fidelity Advisor Emerging Markets A","FAMKX","Fundos"]
[null,null,null,null,null,null,null,null,null,null,null,null,null,null,null,null,null,null,null,"Nationwide S&P 500 Index C","GRMCX",null,null,null,null,"Fidelity Advisor Emerging Markets C","FMCKX","Fundos"]
[null,null,null,null,null,null,null,null,null,null,null,null,null,null,null,null,null,null,null,"Nationwide S&P 500 Index Instl Svc","GRISX",null,null,null,null,"Fidelity Advisor Emerging Markets I","FIMKX","Fundos"]
[null,null,null,null,null,null,null,null,null,null,null,null,null,null,null,null,null,null,null,"Nationwide S&P 500 Index R6","GRMIX",null,null,null,null,"Fidelity Advisor Emerging Markets Z","FZAEX","Fundos"]
[null,null,null,null,null,null,null,null,null,null,null,null,null,null,null,null,null,null,null,"Nationwide Small Company Growth A","NWSAX",null,null,null,null,"Fidelity Advisor Energy I","FANIX","Fundos"]
[null,null,null,null,null,null,null,null,null,null,null,null,null,null,null,null,null,null,null,"Nationwide WCM Focused Sm Cp A","NWGPX",null,null,null,null,"Fidelity Advisor Growth Opps Z","FZAHX","Fundos"]
[null,null,null,null,null,null,null,null,null,null,null,null,null,null,null,null,null,null,null,"Nationwide WCM Focused Sm Cp C","NWGQX",null,null,null,null,"Fidelity Advisor Health Care C","FHCCX","Fundos"]
[null,null,null,null,null,null,null,null,null,null,null,null,null,null,null,null,null,null,null,"Nationwide WCM Focused Sm Cp Instl Svc","NWGSX",null,null,null,null,"Fidelity Advisor Health Care I","FHCIX","Fundos"]
[null,null,null,null,null,null,null,null,null,null,null,null,null,null,null,null,null,null,null,"Nationwide WCM Focused Sm Cp R6","NWKEX",null,null,null,null,"Fidelity Advisor Health Care M","FACTX","Fundos"]
[null,null,null,null,null,null,null,null,null,null,null,null,null,null,null,null,null,null,null,"Nationwide Ziegler NYSEArcaTech100InsSvc","NWJFX",null,null,null,null,"Fidelity Advisor Intl Capital App A","FCPAX","Fundos"]
[null,null,null,null,null,null,null,null,null,null,null,null,null,null,null,null,null,null,null,"Natixis Oakmark A","NEFOX",null,null,null,null,"Fidelity Advisor Intl Capital App C","FCPCX","Fundos"]
[null,null,null,null,null,null,null,null,null,null,null,null,null,null,null,null,null,null,null,"Natixis US Equity Opportunities A","NEFSX",null,null,null,null,"Fidelity Advisor Intl Capital App I","FCPIX","Fundos"]
[null,null,null,null,null,null,null,null,null,null,null,null,null,null,null,null,null,null,null,"Natixis US Equity Opportunities Y","NESYX",null,null,null,null,"Fidelity Advisor Intl Capital App M","FIATX","Fundos"]
[null,null,null,null,null,null,null,null,null,null,null,null,null,null,null,null,null,null,null,"Natixis Vaughan Nelson Small Cap Value A","NEFJX",null,null,null,null,"Fidelity Advisor Intl Capital App Z","FIDZX","Fundos"]
[null,null,null,null,null,null,null,null,null,null,null,null,null,null,null,null,null,null,null,"Natixis Vaughan Nelson Small Cap Value Y","NEJYX",null,null,null,null,"Fidelity Advisor Intl Small Cap A","FIASX","Fundos"]
[null,null,null,null,null,null,null,null,null,null,null,null,null,null,null,null,null,null,null,"Needham Aggressive Growth Institutional","NEAIX",null,null,null,null,"Fidelity Advisor Intl Small Cap C","FICSX","Fundos"]
[null,null,null,null,null,null,null,null,null,null,null,null,null,null,null,null,null,null,null,"Needham Aggressive Growth Retail","NEAGX",null,null,null,null,"Fidelity Advisor Intl Small Cap I","FIXIX","Fundos"]
[null,null,null,null,null,null,null,null,null,null,null,null,null,null,null,null,null,null,null,"Needham Small Cap Growth Institutional","NESIX",null,null,null,null,"Fidelity Advisor Large Cap A","FALAX","Fundos"]
[null,null,null,null,null,null,null,null,null,null,null,null,null,null,null,null,null,null,null,"Neuberger Berman Genesis Instl","NBGIX",null,null,null,null,"Fidelity Advisor Large Cap I","FALIX","Fundos"]
[null,null,null,null,null,null,null,null,null,null,null,null,null,null,null,null,null,null,null,"Neuberger Berman Genesis Inv","NBGNX",null,null,null,null,"Fidelity Advisor Large Cap Z","FIDLX","Fundos"]
[null,null,null,null,null,null,null,null,null,null,null,null,null,null,null,null,null,null,null,"Neuberger Berman Genesis Tr","NBGEX",null,null,null,null,"Fidelity Advisor Managed Ret 2020 A","FARVX","Fundos"]
[null,null,null,null,null,null,null,null,null,null,null,null,null,null,null,null,null,null,null,"Nicholas II I","NCTWX",null,null,null,null,"Fidelity Advisor Managed Ret 2020 C","FCRVX","Fundos"]
[null,null,null,null,null,null,null,null,null,null,null,null,null,null,null,null,null,null,null,"Nicholas II N","NNTWX",null,null,null,null,"Fidelity Advisor Managed Ret 2020 I","FIIVX","Fundos"]
[null,null,null,null,null,null,null,null,null,null,null,null,null,null,null,null,null,null,null,"Nicholas Limited Edition N","NNLEX",null,null,null,null,"Fidelity Advisor Managed Ret 2020 M","FTRVX","Fundos"]
[null,null,null,null,null,null,null,null,null,null,null,null,null,null,null,null,null,null,null,"North Star Dividend I","NSDVX",null,null,null,null,"Fidelity Advisor Managed Ret 2025 A","FARFX","Fundos"]
[null,null,null,null,null,null,null,null,null,null,null,null,null,null,null,null,null,null,null,"Northern Large Cap Core","NOLCX",null,null,null,null,"Fidelity Advisor Managed Ret 2025 C","FCRFX","Fundos"]
[null,null,null,null,null,null,null,null,null,null,null,null,null,null,null,null,null,null,null,"Northern Mid Cap Index","NOMIX",null,null,null,null,"Fidelity Advisor Managed Ret 2025 I","FIRFX","Fundos"]
[null,null,null,null,null,null,null,null,null,null,null,null,null,null,null,null,null,null,null,"Northern Small Cap Value","NOSGX",null,null,null,null,"Fidelity Advisor Managed Ret 2025 M","FITTX","Fundos"]
[null,null,null,null,null,null,null,null,null,null,null,null,null,null,null,null,null,null,null,"Northern Stock Index","NOSIX",null,null,null,null,"Fidelity Advisor Managed Retiremt 2005 A","FIOAX","Fundos"]
[null,null,null,null,null,null,null,null,null,null,null,null,null,null,null,null,null,null,null,"Nuveen Equity Long/Short A","NELAX",null,null,null,null,"Fidelity Advisor Managed Retiremt 2005 C","FIOCX","Fundos"]
[null,null,null,null,null,null,null,null,null,null,null,null,null,null,null,null,null,null,null,"Nuveen Equity Long/Short C","NELCX",null,null,null,null,"Fidelity Advisor Managed Retiremt 2005 I","FIOIX","Fundos"]
[null,null,null,null,null,null,null,null,null,null,null,null,null,null,null,null,null,null,null,"Nuveen Equity Long/Short I","NELIX",null,null,null,null,"Fidelity Advisor Managed Retiremt 2005 M","FIOTX","Fundos"]
[null,null,null,null,null,null,null,null,null,null,null,null,null,null,null,null,null,null,null,"Nuveen Equity Market Neutral A","NMAEX",null,null,null,null,"Fidelity Advisor Managed Retiremt 2010 I","FRQIX","Fundos"]
[null,null,null,null,null,null,null,null,null,null,null,null,null,null,null,null,null,null,null,"Nuveen Equity Market Neutral I","NIMEX",null,null,null,null,"Fidelity Advisor Managed Retiremt 2015 C","FCRSX","Fundos"]
[null,null,null,null,null,null,null,null,null,null,null,null,null,null,null,null,null,null,null,"Nuveen High Yield Municipal Bond A","NHMAX",null,null,null,null,"Fidelity Advisor Managed Retiremt 2015 M","FTRSX","Fundos"]
[null,null,null,null,null,null,null,null,null,null,null,null,null,null,null,null,null,null,null,"Nuveen High Yield Municipal Bond C","NHCCX",null,null,null,null,"Fidelity Advisor Managed Retiremt Inc I","FRIMX","Fundos"]
[null,null,null,null,null,null,null,null,null,null,null,null,null,null,null,null,null,null,null,"Nuveen High Yield Municipal Bond C2","NHMCX",null,null,null,null,"Fidelity Advisor Materials A","FMFAX","Fundos"]
[null,null,null,null,null,null,null,null,null,null,null,null,null,null,null,null,null,null,null,"Nuveen High Yield Municipal Bond I","NHMRX",null,null,null,null,"Fidelity Advisor Materials C","FMFCX","Fundos"]
[null,null,null,null,null,null,null,null,null,null,null,null,null,null,null,null,null,null,null,"Nuveen High Yield Municipal Bond R6","NHMFX",null,null,null,null,"Fidelity Advisor Materials I","FMFEX","Fundos"]
[null,null,null,null,null,null,null,null,null,null,null,null,null,null,null,null,null,null,null,"Nuveen International Growth Fd R6","NBQFX",null,null,null,null,"Fidelity Advisor Materials M","FMFTX","Fundos"]
[null,null,null,null,null,null,null,null,null,null,null,null,null,null,null,null,null,null,null,"Nuveen Large Cap Core A","NLACX",null,null,null,null,"Fidelity Advisor Mid Cap II Z","FZAMX","Fundos"]
[null,null,null,null,null,null,null,null,null,null,null,null,null,null,null,null,null,null,null,"Nuveen Large Cap Core C","NLCDX",null,null,null,null,"Fidelity Advisor Mid Cap Value C","FMPEX","Fundos"]
[null,null,null,null,null,null,null,null,null,null,null,null,null,null,null,null,null,null,null,"Nuveen Large Cap Core I","NLCIX",null,null,null,null,"Fidelity Advisor Mid Cap Value I","FMPOX","Fundos"]
[null,null,null,null,null,null,null,null,null,null,null,null,null,null,null,null,null,null,null,"Nuveen Large Cap Growth C","NLCGX",null,null,null,null,"Fidelity Advisor Semiconductors A","FELAX","Fundos"]
[null,null,null,null,null,null,null,null,null,null,null,null,null,null,null,null,null,null,null,"Nuveen Large Cap Select C","FLYCX",null,null,null,null,"Fidelity Advisor Semiconductors C","FELCX","Fundos"]
[null,null,null,null,null,null,null,null,null,null,null,null,null,null,null,null,null,null,null,"Nuveen Large Cap Select I","FLRYX",null,null,null,null,"Fidelity Advisor Semiconductors I","FELIX","Fundos"]
[null,null,null,null,null,null,null,null,null,null,null,null,null,null,null,null,null,null,null,"Nuveen Large-Cap Value A","NNGAX",null,null,null,null,"Fidelity Advisor Semiconductors M","FELTX","Fundos"]
[null,null,null,null,null,null,null,null,null,null,null,null,null,null,null,null,null,null,null,"Nuveen Mid Cap Value C","FACSX",null,null,null,null,"Fidelity Advisor Simplicity RMD 2005 A","FARPX","Fundos"]
[null,null,null,null,null,null,null,null,null,null,null,null,null,null,null,null,null,null,null,"Nuveen NWQ Flexible Income A","NWQAX",null,null,null,null,"Fidelity Advisor Simplicity RMD 2005 I","FRAPX","Fundos"]
[null,null,null,null,null,null,null,null,null,null,null,null,null,null,null,null,null,null,null,"Nuveen NWQ Flexible Income C","NWQCX",null,null,null,null,"Fidelity Advisor Simplicity RMD 2010 A","FIARX","Fundos"]
[null,null,null,null,null,null,null,null,null,null,null,null,null,null,null,null,null,null,null,"Nuveen NWQ Flexible Income I","NWQIX",null,null,null,null,"Fidelity Advisor Simplicity RMD 2010 I","FIIRX","Fundos"]
[null,null,null,null,null,null,null,null,null,null,null,null,null,null,null,null,null,null,null,"Nuveen NWQ Flexible Income R6","NQWFX",null,null,null,null,"Fidelity Advisor Simplicity RMD 2010 M","FTIRX","Fundos"]
[null,null,null,null,null,null,null,null,null,null,null,null,null,null,null,null,null,null,null,"Nuveen NWQ Small-Cap Value C","NSCCX",null,null,null,null,"Fidelity Advisor Simplicity RMD 2015 A","FURAX","Fundos"]
[null,null,null,null,null,null,null,null,null,null,null,null,null,null,null,null,null,null,null,"Nuveen NWQ Small-Cap Value I","NSCRX",null,null,null,null,"Fidelity Advisor Simplicity RMD 2015 C","FURCX","Fundos"]
[null,null,null,null,null,null,null,null,null,null,null,null,null,null,null,null,null,null,null,"Nuveen NWQ Small-Cap Value R6","NSCFX",null,null,null,null,"Fidelity Advisor Simplicity RMD 2015 I","FURIX","Fundos"]
[null,null,null,null,null,null,null,null,null,null,null,null,null,null,null,null,null,null,null,"Nuveen Preferred Secs & Inc R6","NPSFX",null,null,null,null,"Fidelity Advisor Simplicity RMD 2020 A","FARWX","Fundos"]
[null,null,null,null,null,null,null,null,null,null,null,null,null,null,null,null,null,null,null,"Nuveen Real Asset Income A","NRIAX",null,null,null,null,"Fidelity Advisor Simplicity RMD 2020 C","FCRWX","Fundos"]
[null,null,null,null,null,null,null,null,null,null,null,null,null,null,null,null,null,null,null,"Nuveen Real Asset Income C","NRICX",null,null,null,null,"Fidelity Advisor Simplicity RMD 2020 M","FTRWX","Fundos"]
[null,null,null,null,null,null,null,null,null,null,null,null,null,null,null,null,null,null,null,"Nuveen Real Asset Income I","NRIIX",null,null,null,null,"Fidelity Advisor Simplicity RMD Income A","FRNAX","Fundos"]
[null,null,null,null,null,null,null,null,null,null,null,null,null,null,null,null,null,null,null,"Nuveen Real Asset Income R6","NRIFX",null,null,null,null,"Fidelity Advisor Simplicity RMD Income I","FRNIX","Fundos"]
[null,null,null,null,null,null,null,null,null,null,null,null,null,null,null,null,null,null,null,"Nuveen Real Estate Securities A","FREAX",null,null,null,null,"Fidelity Advisor Simplicity RMD Income M","FRNTX","Fundos"]
[null,null,null,null,null,null,null,null,null,null,null,null,null,null,null,null,null,null,null,"Nuveen Real Estate Securities I","FARCX",null,null,null,null,"Fidelity Advisor Small Cap Growth A","FCAGX","Fundos"]
[null,null,null,null,null,null,null,null,null,null,null,null,null,null,null,null,null,null,null,"Nuveen Real Estate Securities R3","FRSSX",null,null,null,null,"Fidelity Advisor Small Cap Growth C","FCCGX","Fundos"]
[null,null,null,null,null,null,null,null,null,null,null,null,null,null,null,null,null,null,null,"Nuveen Small Cap Growth Opp I","FIMPX",null,null,null,null,"Fidelity Advisor Small Cap Growth I","FCIGX","Fundos"]
[null,null,null,null,null,null,null,null,null,null,null,null,null,null,null,null,null,null,null,"Nuveen Small Cap Value A","FSCAX",null,null,null,null,"Fidelity Advisor Small Cap Growth M","FCTGX","Fundos"]
[null,null,null,null,null,null,null,null,null,null,null,null,null,null,null,null,null,null,null,"Nuveen Small Cap Value C","FSCVX",null,null,null,null,"Fidelity Advisor Small Cap Growth Z","FIDGX","Fundos"]
[null,null,null,null,null,null,null,null,null,null,null,null,null,null,null,null,null,null,null,"Nuveen Small Cap Value I","FSCCX",null,null,null,null,"Fidelity Advisor Small Cap Value A","FCVAX","Fundos"]
[null,null,null,null,null,null,null,null,null,null,null,null,null,null,null,null,null,null,null,"Nuveen Small Cap Value R6","FSCWX",null,null,null,null,"Fidelity Advisor Small Cap Value C","FCVCX","Fundos"]
[null,null,null,null,null,null,null,null,null,null,null,null,null,null,null,null,null,null,null,"Nuveen Symphony Credit Opportunities I","NCOIX",null,null,null,null,"Fidelity Advisor Small Cap Value I","FCVIX","Fundos"]
[null,null,null,null,null,null,null,null,null,null,null,null,null,null,null,null,null,null,null,"Nuveen Symphony Floating Rate Income A","NFRAX",null,null,null,null,"Fidelity Advisor Strategic Div & Inc A","FASDX","Fundos"]
[null,null,null,null,null,null,null,null,null,null,null,null,null,null,null,null,null,null,null,"Nuveen Symphony Floating Rate Income C","NFFCX",null,null,null,null,"Fidelity Advisor Strategic Div & Inc I","FSIDX","Fundos"]
[null,null,null,null,null,null,null,null,null,null,null,null,null,null,null,null,null,null,null,"Nuveen Symphony Floating Rate Income R6","NFRFX",null,null,null,null,"Fidelity Advisor Strategic Div & Inc M","FTSDX","Fundos"]
[null,null,null,null,null,null,null,null,null,null,null,null,null,null,null,null,null,null,null,"Nuveen Symphony Low Volatility Equity R6","NOPFX",null,null,null,null,"Fidelity Advisor Technology A","FADTX","Fundos"]
[null,null,null,null,null,null,null,null,null,null,null,null,null,null,null,null,null,null,null,"Nuveen Symphony Small Cap Core I","NSSIX",null,null,null,null,"Fidelity Advisor Telecommunications C","FTUCX","Fundos"]
[null,null,null,null,null,null,null,null,null,null,null,null,null,null,null,null,null,null,null,"Oppenheimer Global Allocation C","QGRCX",null,null,null,null,"Fidelity Advisor Telecommunications I","FTUIX","Fundos"]
[null,null,null,null,null,null,null,null,null,null,null,null,null,null,null,null,null,null,null,"Oppenheimer Global Allocation R","QGRNX",null,null,null,null,"Fidelity Advisor Worldwide A","FWAFX","Fundos"]
[null,null,null,null,null,null,null,null,null,null,null,null,null,null,null,null,null,null,null,"Oppenheimer Global Value R","GLVNX",null,null,null,null,"Fidelity Advisor Worldwide C","FWCFX","Fundos"]
[null,null,null,null,null,null,null,null,null,null,null,null,null,null,null,null,null,null,null,"Oppenheimer Main Street B","OMSBX",null,null,null,null,"Fidelity Advisor Worldwide I","FWIFX","Fundos"]
[null,null,null,null,null,null,null,null,null,null,null,null,null,null,null,null,null,null,null,"Oppenheimer Main Street I","OMSIX",null,null,null,null,"Fidelity Advisor Worldwide M","FWTFX","Fundos"]
[null,null,null,null,null,null,null,null,null,null,null,null,null,null,null,null,null,null,null,"Oppenheimer Main Street R","OMGNX",null,null,null,null,"Fidelity Asset Manager 70%","FASGX","Fundos"]
[null,null,null,null,null,null,null,null,null,null,null,null,null,null,null,null,null,null,null,"Oppenheimer Main Street Y","MIGYX",null,null,null,null,"Fidelity Asset Manager 85%","FAMRX","Fundos"]
[null,null,null,null,null,null,null,null,null,null,null,null,null,null,null,null,null,null,null,"Oppenheimer Real Estate C","ORECX",null,null,null,null,"Fidelity Balanced","FBALX","Fundos"]
[null,null,null,null,null,null,null,null,null,null,null,null,null,null,null,null,null,null,null,"Oppenheimer Real Estate R","ORENX",null,null,null,null,"Fidelity Balanced K","FBAKX","Fundos"]
[null,null,null,null,null,null,null,null,null,null,null,null,null,null,null,null,null,null,null,"PACE International Equity A","PWGAX",null,null,null,null,"Fidelity Blue Chip Growth","FBGRX","Fundos"]
[null,null,null,null,null,null,null,null,null,null,null,null,null,null,null,null,null,null,null,"PACE International Equity C","PWGCX",null,null,null,null,"Fidelity Blue Chip Growth K","FBGKX","Fundos"]
[null,null,null,null,null,null,null,null,null,null,null,null,null,null,null,null,null,null,null,"PACE International Equity P","PCIEX",null,null,null,null,"Fidelity Contrafund K","FCNKX","Fundos"]
[null,null,null,null,null,null,null,null,null,null,null,null,null,null,null,null,null,null,null,"PACE International Equity Y","PWIYX",null,null,null,null,"Fidelity Equity Dividend Income K","FETKX","Fundos"]
[null,null,null,null,null,null,null,null,null,null,null,null,null,null,null,null,null,null,null,"Paradigm Micro-Cap","PVIVX",null,null,null,null,"Fidelity Extended Market Index Premium","FSEVX","Fundos"]
[null,null,null,null,null,null,null,null,null,null,null,null,null,null,null,null,null,null,null,"Parnassus","PARNX",null,null,null,null,"Fidelity Focused Stock","FTQGX","Fundos"]
[null,null,null,null,null,null,null,null,null,null,null,null,null,null,null,null,null,null,null,"Parnassus Core Equity Institutional","PRILX",null,null,null,null,"Fidelity Four-in-One Index","FFNOX","Fundos"]
[null,null,null,null,null,null,null,null,null,null,null,null,null,null,null,null,null,null,null,"Parnassus Core Equity Investor","PRBLX",null,null,null,null,"Fidelity Freedom 2010","FFFCX","Fundos"]
[null,null,null,null,null,null,null,null,null,null,null,null,null,null,null,null,null,null,null,"Parnassus Endeavor Institutional","PFPWX",null,null,null,null,"Fidelity Freedom 2020","FFFDX","Fundos"]
[null,null,null,null,null,null,null,null,null,null,null,null,null,null,null,null,null,null,null,"Parnassus Endeavor Investor","PARWX",null,null,null,null,"Fidelity Freedom 2030","FFFEX","Fundos"]
[null,null,null,null,null,null,null,null,null,null,null,null,null,null,null,null,null,null,null,"Parnassus Institutional","PFPRX",null,null,null,null,"Fidelity Growth Discovery K","FGDKX","Fundos"]
[null,null,null,null,null,null,null,null,null,null,null,null,null,null,null,null,null,null,null,"Parnassus Mid Cap Institutional","PFPMX",null,null,null,null,"Fidelity International Capital Apprec","FIVFX","Fundos"]
[null,null,null,null,null,null,null,null,null,null,null,null,null,null,null,null,null,null,null,"Parnassus Mid-Cap","PARMX",null,null,null,null,"Fidelity International Index Instl","FSPNX","Fundos"]
[null,null,null,null,null,null,null,null,null,null,null,null,null,null,null,null,null,null,null,"Payden Equity Income","PYVLX",null,null,null,null,"Fidelity International Index InstlPrm","FSPSX","Fundos"]
[null,null,null,null,null,null,null,null,null,null,null,null,null,null,null,null,null,null,null,"Payden Equity Income SI","PYVSX",null,null,null,null,"Fidelity International Index Investor","FSIIX","Fundos"]
[null,null,null,null,null,null,null,null,null,null,null,null,null,null,null,null,null,null,null,"Pear Tree Polaris Fgn Val Sm Cap Instl","QUSIX",null,null,null,null,"Fidelity International Index Premium","FSIVX","Fundos"]
[null,null,null,null,null,null,null,null,null,null,null,null,null,null,null,null,null,null,null,"Pear Tree Polaris Fgn Val Sm Cap Ord","QUSOX",null,null,null,null,"Fidelity International Small Cap","FISMX","Fundos"]
[null,null,null,null,null,null,null,null,null,null,null,null,null,null,null,null,null,null,null,"Pear Tree Polaris Foreign Value Instl","QFVIX",null,null,null,null,"Fidelity Japan Smaller Companies","FJSCX","Fundos"]
[null,null,null,null,null,null,null,null,null,null,null,null,null,null,null,null,null,null,null,"Pear Tree Polaris Foreign Value Ord","QFVOX",null,null,null,null,"Fidelity Large Cap Growth Enhanced Idx","FLGEX","Fundos"]
[null,null,null,null,null,null,null,null,null,null,null,null,null,null,null,null,null,null,null,"Performance Trust Municipal Bond Instl","PTIMX",null,null,null,null,"Fidelity Large Cap Stock","FLCSX","Fundos"]
[null,null,null,null,null,null,null,null,null,null,null,null,null,null,null,null,null,null,null,"Performance Trust Municipal Bond Retail","PTRMX",null,null,null,null,"Fidelity Managed Retirement 2005","FIROX","Fundos"]
[null,null,null,null,null,null,null,null,null,null,null,null,null,null,null,null,null,null,null,"Performance Trust Strategic Bond","PTIAX",null,null,null,null,"Fidelity Managed Retirement 2015","FIRSX","Fundos"]
[null,null,null,null,null,null,null,null,null,null,null,null,null,null,null,null,null,null,null,"PGIM Balanced B","PBFBX",null,null,null,null,"Fidelity Managed Retirement 2020","FIRVX","Fundos"]
[null,null,null,null,null,null,null,null,null,null,null,null,null,null,null,null,null,null,null,"PGIM Balanced C","PABCX",null,null,null,null,"Fidelity Managed Retirement Income","FIRMX","Fundos"]
[null,null,null,null,null,null,null,null,null,null,null,null,null,null,null,null,null,null,null,"PGIM Balanced R","PALRX",null,null,null,null,"Fidelity Mid Cap Enhanced Index","FMEIX","Fundos"]
[null,null,null,null,null,null,null,null,null,null,null,null,null,null,null,null,null,null,null,"PGIM Balanced Z","PABFX",null,null,null,null,"Fidelity Mid Cap Index Institutional","FSTPX","Fundos"]
[null,null,null,null,null,null,null,null,null,null,null,null,null,null,null,null,null,null,null,"PGIM Jennison Equity Opportunity A","PJIAX",null,null,null,null,"Fidelity Mid Cap Index Instl Prem","FSMDX","Fundos"]
[null,null,null,null,null,null,null,null,null,null,null,null,null,null,null,null,null,null,null,"PGIM Jennison Equity Opportunity C","PJGCX",null,null,null,null,"Fidelity Mid Cap Index Premium","FSCKX","Fundos"]
[null,null,null,null,null,null,null,null,null,null,null,null,null,null,null,null,null,null,null,"PGIM Jennison Global Opportunities R6","PRJQX",null,null,null,null,"Fidelity Mid Cap Value","FSMVX","Fundos"]
[null,null,null,null,null,null,null,null,null,null,null,null,null,null,null,null,null,null,null,"PGIM Jennison Growth B","PJFBX",null,null,null,null,"Fidelity NASDAQ Composite Index","FNCMX","Fundos"]
[null,null,null,null,null,null,null,null,null,null,null,null,null,null,null,null,null,null,null,"PGIM QMA Large-Cap Core Equity A","PTMAX",null,null,null,null,"Fidelity Nordic","FNORX","Fundos"]
[null,null,null,null,null,null,null,null,null,null,null,null,null,null,null,null,null,null,null,"PGIM QMA Large-Cap Core Equity B","PTMBX",null,null,null,null,"Fidelity Overseas","FOSFX","Fundos"]
[null,null,null,null,null,null,null,null,null,null,null,null,null,null,null,null,null,null,null,"PGIM QMA Large-Cap Core Equity Z","PTEZX",null,null,null,null,"Fidelity Overseas K","FOSKX","Fundos"]
[null,null,null,null,null,null,null,null,null,null,null,null,null,null,null,null,null,null,null,"PGIM QMA Mid-Cap Value A","SPRAX",null,null,null,null,"Fidelity Pacific Basin","FPBFX","Fundos"]
[null,null,null,null,null,null,null,null,null,null,null,null,null,null,null,null,null,null,null,"PGIM QMA Mid-Cap Value B","SVUBX",null,null,null,null,"Fidelity Real Estate Index Instl","FSRNX","Fundos"]
[null,null,null,null,null,null,null,null,null,null,null,null,null,null,null,null,null,null,null,"PGIM QMA Mid-Cap Value C","NCBVX",null,null,null,null,"Fidelity Real Estate Index Investor","FRXIX","Fundos"]
[null,null,null,null,null,null,null,null,null,null,null,null,null,null,null,null,null,null,null,"PGIM QMA Mid-Cap Value R","SDVRX",null,null,null,null,"Fidelity Real Estate Index Premium","FSRVX","Fundos"]
[null,null,null,null,null,null,null,null,null,null,null,null,null,null,null,null,null,null,null,"PGIM QMA Mid-Cap Value Z","SPVZX",null,null,null,null,"Fidelity Real Estate Investment Port","FRESX","Fundos"]
[null,null,null,null,null,null,null,null,null,null,null,null,null,null,null,null,null,null,null,"PGIM QMA Small-Cap Value C","TRACX",null,null,null,null,"Fidelity Select Air Transportation Port","FSAIX","Fundos"]
[null,null,null,null,null,null,null,null,null,null,null,null,null,null,null,null,null,null,null,"PGIM QMA Stock Index A","PSIAX",null,null,null,null,"Fidelity Select Biotechnology","FBIOX","Fundos"]
[null,null,null,null,null,null,null,null,null,null,null,null,null,null,null,null,null,null,null,"PGIM QMA Stock Index C","PSICX",null,null,null,null,"Fidelity Select Chemicals","FSCHX","Fundos"]
[null,null,null,null,null,null,null,null,null,null,null,null,null,null,null,null,null,null,null,"PGIM QMA Stock Index I","PDSIX",null,null,null,null,"Fidelity Select Construction & Hsg Port","FSHOX","Fundos"]
[null,null,null,null,null,null,null,null,null,null,null,null,null,null,null,null,null,null,null,"PGIM QMA Stock Index Z","PSIFX",null,null,null,null,"Fidelity Select Consumer Staples Port","FDFAX","Fundos"]
[null,null,null,null,null,null,null,null,null,null,null,null,null,null,null,null,null,null,null,"Phocas Real Estate","PHREX",null,null,null,null,"Fidelity Select Defense & Aero Port","FSDAX","Fundos"]
[null,null,null,null,null,null,null,null,null,null,null,null,null,null,null,null,null,null,null,"Pin Oak Equity","POGSX",null,null,null,null,"Fidelity Select Energy","FSENX","Fundos"]
[null,null,null,null,null,null,null,null,null,null,null,null,null,null,null,null,null,null,null,"Plumb Balanced","PLBBX",null,null,null,null,"Fidelity Select Health Care","FSPHX","Fundos"]
[null,null,null,null,null,null,null,null,null,null,null,null,null,null,null,null,null,null,null,"Polen Growth Institutional","POLIX",null,null,null,null,"Fidelity Select Insurance Port","FSPCX","Fundos"]
[null,null,null,null,null,null,null,null,null,null,null,null,null,null,null,null,null,null,null,"Polen Growth Investor","POLRX",null,null,null,null,"Fidelity Select IT Services","FBSOX","Fundos"]
[null,null,null,null,null,null,null,null,null,null,null,null,null,null,null,null,null,null,null,"Poplar Forest Partners A","PFPFX",null,null,null,null,"Fidelity Select Leisure","FDLSX","Fundos"]
[null,null,null,null,null,null,null,null,null,null,null,null,null,null,null,null,null,null,null,"Poplar Forest Partners Institutional","IPFPX",null,null,null,null,"Fidelity Select Medical Tech and Devcs","FSMEX","Fundos"]
[null,null,null,null,null,null,null,null,null,null,null,null,null,null,null,null,null,null,null,"Praxis Growth Index I","MMDEX",null,null,null,null,"Fidelity Select Retailing","FSRPX","Fundos"]
[null,null,null,null,null,null,null,null,null,null,null,null,null,null,null,null,null,null,null,"PRIMECAP Odyssey Aggressive Growth","POAGX",null,null,null,null,"Fidelity Select Software & IT Svcs Port","FSCSX","Fundos"]
[null,null,null,null,null,null,null,null,null,null,null,null,null,null,null,null,null,null,null,"PRIMECAP Odyssey Growth","POGRX",null,null,null,null,"Fidelity Select Technology","FSPTX","Fundos"]
[null,null,null,null,null,null,null,null,null,null,null,null,null,null,null,null,null,null,null,"PRIMECAP Odyssey Stock","POSKX",null,null,null,null,"Fidelity Select Telecommunications Port","FSTCX","Fundos"]
[null,null,null,null,null,null,null,null,null,null,null,null,null,null,null,null,null,null,null,"ProFunds Biotechnology UltraSector Inv","BIPIX",null,null,null,null,"Fidelity Select Transportation","FSRFX","Fundos"]
[null,null,null,null,null,null,null,null,null,null,null,null,null,null,null,null,null,null,null,"ProFunds Biotechnology UltraSector Svc","BIPSX",null,null,null,null,"Fidelity Simplicity RMD 2010","FIRRX","Fundos"]
[null,null,null,null,null,null,null,null,null,null,null,null,null,null,null,null,null,null,null,"ProFunds Consumer Goods UltraSector","CNPSX",null,null,null,null,"Fidelity Simplicity RMD Income","FIRNX","Fundos"]
[null,null,null,null,null,null,null,null,null,null,null,null,null,null,null,null,null,null,null,"ProFunds Consumer Goods UltraSector Inv","CNPIX",null,null,null,null,"Fidelity Small Cap Discovery","FSCRX","Fundos"]
[null,null,null,null,null,null,null,null,null,null,null,null,null,null,null,null,null,null,null,"ProFunds Consumer Services Ultra Sec Inv","CYPIX",null,null,null,null,"Fidelity Small Cap Index Instl Prem","FSSNX","Fundos"]
[null,null,null,null,null,null,null,null,null,null,null,null,null,null,null,null,null,null,null,"ProFunds Consumer Services Ultra Sec Svc","CYPSX",null,null,null,null,"Fidelity Small Cap Value","FCPVX","Fundos"]
[null,null,null,null,null,null,null,null,null,null,null,null,null,null,null,null,null,null,null,"ProFunds Internet UltraSector Inv","INPIX",null,null,null,null,"Fidelity Strategic Dividend & Income","FSDIX","Fundos"]
[null,null,null,null,null,null,null,null,null,null,null,null,null,null,null,null,null,null,null,"ProFunds Internet UltraSector Svc","INPSX",null,null,null,null,"Fidelity Total Market Index Instl","FSKTX","Fundos"]
[null,null,null,null,null,null,null,null,null,null,null,null,null,null,null,null,null,null,null,"ProFunds Mid Cap Growth Inv","MGPIX",null,null,null,null,"Fidelity Total Market Index Instl Prem","FSKAX","Fundos"]
[null,null,null,null,null,null,null,null,null,null,null,null,null,null,null,null,null,null,null,"ProFunds NASDAQ-100 Inv","OTPIX",null,null,null,null,"Fidelity Trend","FTRNX","Fundos"]
[null,null,null,null,null,null,null,null,null,null,null,null,null,null,null,null,null,null,null,"ProFunds NASDAQ-100 Svc","OTPSX",null,null,null,null,"Fidelity Value Discovery K","FVDKX","Fundos"]
[null,null,null,null,null,null,null,null,null,null,null,null,null,null,null,null,null,null,null,"ProFunds Small Cap Growth Inv","SGPIX",null,null,null,null,"Fidelity Worldwide","FWWFX","Fundos"]
[null,null,null,null,null,null,null,null,null,null,null,null,null,null,null,null,null,null,null,"ProFunds UltraMid Cap Inv","UMPIX",null,null,null,null,"First Eagle Global A","SGENX","Fundos"]
[null,null,null,null,null,null,null,null,null,null,null,null,null,null,null,null,null,null,null,"ProFunds UltraMid Cap Svc","UMPSX",null,null,null,null,"First Eagle Global I","SGIIX","Fundos"]
[null,null,null,null,null,null,null,null,null,null,null,null,null,null,null,null,null,null,null,"ProFunds UltraNASDAQ-100 Inv","UOPIX",null,null,null,null,"First Eagle Gold A","SGGDX","Fundos"]
[null,null,null,null,null,null,null,null,null,null,null,null,null,null,null,null,null,null,null,"ProFunds UltraNASDAQ-100 Svc","UOPSX",null,null,null,null,"First Eagle Gold I","FEGIX","Fundos"]
[null,null,null,null,null,null,null,null,null,null,null,null,null,null,null,null,null,null,null,"ProFunds UltraSector Oil & Gas Investor","ENPIX",null,null,null,null,"First Eagle Overseas A","SGOVX","Fundos"]
[null,null,null,null,null,null,null,null,null,null,null,null,null,null,null,null,null,null,null,"ProFunds UltraSector Oil & Gas Svc","ENPSX",null,null,null,null,"First Eagle Overseas C","FESOX","Fundos"]
[null,null,null,null,null,null,null,null,null,null,null,null,null,null,null,null,null,null,null,"Prospector Opportunity","POPFX",null,null,null,null,"First Eagle Overseas I","SGOIX","Fundos"]
[null,null,null,null,null,null,null,null,null,null,null,null,null,null,null,null,null,null,null,"RBC Small Cap Core A","TEEAX",null,null,null,null,"First Trust/Confluence Small Cap Val A","FOVAX","Fundos"]
[null,null,null,null,null,null,null,null,null,null,null,null,null,null,null,null,null,null,null,"RBC Small Cap Core R6","RBRCX",null,null,null,null,"FMI International","FMIJX","Fundos"]
[null,null,null,null,null,null,null,null,null,null,null,null,null,null,null,null,null,null,null,"Red Oak Technology Select","ROGSX",null,null,null,null,"FMI International Institutional","FMIYX","Fundos"]
[null,null,null,null,null,null,null,null,null,null,null,null,null,null,null,null,null,null,null,"Redwood Managed Volatility I","RWDIX",null,null,null,null,"FPA Crescent","FPACX","Fundos"]
[null,null,null,null,null,null,null,null,null,null,null,null,null,null,null,null,null,null,null,"Redwood Managed Volatility Y","RWDYX",null,null,null,null,"FPA Paramount","FPRAX","Fundos"]
[null,null,null,null,null,null,null,null,null,null,null,null,null,null,null,null,null,null,null,"Riverbridge Growth Institutional","RIVBX",null,null,null,null,"Franklin Corefolio Allocation Advisor","FCAZX","Fundos"]
[null,null,null,null,null,null,null,null,null,null,null,null,null,null,null,null,null,null,null,"RMB Mendon Financial Long/Short A","RMBFX",null,null,null,null,"Franklin Corefolio Allocation C","FTCLX","Fundos"]
[null,null,null,null,null,null,null,null,null,null,null,null,null,null,null,null,null,null,null,"RMB Mendon Financial Long/Short C","RMBCX",null,null,null,null,"Franklin Growth Allocation R","FGTRX","Fundos"]
[null,null,null,null,null,null,null,null,null,null,null,null,null,null,null,null,null,null,null,"RMB Mendon Financial Long/Short I","RMBIX",null,null,null,null,"Franklin Mutual Financial Services A","TFSIX","Fundos"]
[null,null,null,null,null,null,null,null,null,null,null,null,null,null,null,null,null,null,null,"RMB Mendon Financial Services A","RMBKX",null,null,null,null,"Franklin Mutual Shares A","TESIX","Fundos"]
[null,null,null,null,null,null,null,null,null,null,null,null,null,null,null,null,null,null,null,"RMB Mendon Financial Services C","RMBNX",null,null,null,null,"Franklin Mutual Shares R","TESRX","Fundos"]
[null,null,null,null,null,null,null,null,null,null,null,null,null,null,null,null,null,null,null,"Royce International Premier Consultant","RINPX",null,null,null,null,"Franklin Real Estate Securities Adv","FRLAX","Fundos"]
[null,null,null,null,null,null,null,null,null,null,null,null,null,null,null,null,null,null,null,"Rydex Basic Materials A","RYBMX",null,null,null,null,"Frontier MFG Core Infrastructure Instl","FMGIX","Fundos"]
[null,null,null,null,null,null,null,null,null,null,null,null,null,null,null,null,null,null,null,"Rydex Basic Materials C","RYBCX",null,null,null,null,"Frontier MFG Core Infrastructure Service","FCIVX","Fundos"]
[null,null,null,null,null,null,null,null,null,null,null,null,null,null,null,null,null,null,null,"Rydex Basic Materials H","RYBAX",null,null,null,null,"Frontier Phocas Small Cap Value Instl","FPSVX","Fundos"]
[null,null,null,null,null,null,null,null,null,null,null,null,null,null,null,null,null,null,null,"Rydex Basic Materials Inv","RYBIX",null,null,null,null,"Frontier Phocas Small Cap Value Service","FPVSX","Fundos"]
[null,null,null,null,null,null,null,null,null,null,null,null,null,null,null,null,null,null,null,"Rydex Biotechnology Inv","RYOIX",null,null,null,null,"Fuller & Thaler Behav Sm-Cp Eq Inst","FTHSX","Fundos"]
[null,null,null,null,null,null,null,null,null,null,null,null,null,null,null,null,null,null,null,"Rydex Consumer Products A","RYPDX",null,null,null,null,"GAMCO Global Growth A","GGGAX","Fundos"]
[null,null,null,null,null,null,null,null,null,null,null,null,null,null,null,null,null,null,null,"Rydex Consumer Products C","RYCPX",null,null,null,null,"GAMCO Global Growth AAA","GICPX","Fundos"]
[null,null,null,null,null,null,null,null,null,null,null,null,null,null,null,null,null,null,null,"Rydex Consumer Products Inv","RYCIX",null,null,null,null,"Glenmede Quant US Large Cap Core Eq","GTLOX","Fundos"]
[null,null,null,null,null,null,null,null,null,null,null,null,null,null,null,null,null,null,null,"Rydex Dow 2x Strategy A","RYLDX",null,null,null,null,"Glenmede Quant US Large Cap Core EqInstl","GTLIX","Fundos"]
[null,null,null,null,null,null,null,null,null,null,null,null,null,null,null,null,null,null,null,"Rydex Dow 2x Strategy C","RYCYX",null,null,null,null,"Glenmede Small Cap Equity Adv","GTCSX","Fundos"]
[null,null,null,null,null,null,null,null,null,null,null,null,null,null,null,null,null,null,null,"Rydex Dow 2x Strategy H","RYCVX",null,null,null,null,"Glenmede Small Cap Equity Instl","GTSCX","Fundos"]
[null,null,null,null,null,null,null,null,null,null,null,null,null,null,null,null,null,null,null,"Rydex High Yield Strategy A","RYHDX",null,null,null,null,"GMO Emerging Country Debt III","GMCDX","Fundos"]
[null,null,null,null,null,null,null,null,null,null,null,null,null,null,null,null,null,null,null,"Rydex High Yield Strategy C","RYHHX",null,null,null,null,"GMO Emerging Country Debt IV","GMDFX","Fundos"]
[null,null,null,null,null,null,null,null,null,null,null,null,null,null,null,null,null,null,null,"Rydex High Yield Strategy H","RYHGX",null,null,null,null,"GMO Emerging Domestic Opportunities II","GEDTX","Fundos"]
[null,null,null,null,null,null,null,null,null,null,null,null,null,null,null,null,null,null,null,"Rydex Leisure Inv","RYLIX",null,null,null,null,"GMO Emerging Domestic Opportunities IV","GEDIX","Fundos"]
[null,null,null,null,null,null,null,null,null,null,null,null,null,null,null,null,null,null,null,"Rydex NASDAQ-100 2x Strategy C","RYCCX",null,null,null,null,"GMO Emerging Domestic Opportunities VI","GEDFX","Fundos"]
[null,null,null,null,null,null,null,null,null,null,null,null,null,null,null,null,null,null,null,"Rydex NASDAQ-100 2x Strategy H","RYVYX",null,null,null,null,"GMO Intl Developed Equity Allc III","GIOTX","Fundos"]
[null,null,null,null,null,null,null,null,null,null,null,null,null,null,null,null,null,null,null,"Rydex NASDAQ-100 A","RYATX",null,null,null,null,"GMO Opportunistic Income VI","GMODX","Fundos"]
[null,null,null,null,null,null,null,null,null,null,null,null,null,null,null,null,null,null,null,"Rydex NASDAQ-100 C","RYCOX",null,null,null,null,"GMO Quality III","GQETX","Fundos"]
[null,null,null,null,null,null,null,null,null,null,null,null,null,null,null,null,null,null,null,"Rydex NASDAQ-100 H","RYHOX",null,null,null,null,"GMO Quality IV","GQEFX","Fundos"]
[null,null,null,null,null,null,null,null,null,null,null,null,null,null,null,null,null,null,null,"Rydex NASDAQ-100 Inv","RYOCX",null,null,null,null,"GMO Risk Premium III","GMRPX","Fundos"]
[null,null,null,null,null,null,null,null,null,null,null,null,null,null,null,null,null,null,null,"SA International Small Company Investor","SAISX",null,null,null,null,"GMO Risk Premium VI","GMOKX","Fundos"]
[null,null,null,null,null,null,null,null,null,null,null,null,null,null,null,null,null,null,null,"SA US Value Investor","SABTX",null,null,null,null,"GMO SGM Major Markets III","GSMFX","Fundos"]
[null,null,null,null,null,null,null,null,null,null,null,null,null,null,null,null,null,null,null,"Salient Select Income Advisor","FSIMX",null,null,null,null,"GMO SGM Major Markets IV","GSMJX","Fundos"]
[null,null,null,null,null,null,null,null,null,null,null,null,null,null,null,null,null,null,null,"Salient Select Income C","KIFCX",null,null,null,null,"GMO Special Opportunities VI","GSOFX","Fundos"]
[null,null,null,null,null,null,null,null,null,null,null,null,null,null,null,null,null,null,null,"Salient Tactical Real Estate A","KSRAX",null,null,null,null,"GMO Strategic Opportunities Allc III","GBATX","Fundos"]
[null,null,null,null,null,null,null,null,null,null,null,null,null,null,null,null,null,null,null,"Salient Tactical Real Estate Advisor","FRLSX",null,null,null,null,"Government Street Mid-Cap","GVMCX","Fundos"]
[null,null,null,null,null,null,null,null,null,null,null,null,null,null,null,null,null,null,null,"Salient Tactical Real Estate Instl","KSRYX",null,null,null,null,"Grandeur Peak Global Reach Instl","GPRIX","Fundos"]
[null,null,null,null,null,null,null,null,null,null,null,null,null,null,null,null,null,null,null,"Salient Tactical Real Estate Inv","FFSRX",null,null,null,null,"Guggenheim Alpha Opportunity A","SAOAX","Fundos"]
[null,null,null,null,null,null,null,null,null,null,null,null,null,null,null,null,null,null,null,"Sands Capital Global Growth Inst","SCMGX",null,null,null,null,"Guggenheim Alpha Opportunity C","SAOCX","Fundos"]
[null,null,null,null,null,null,null,null,null,null,null,null,null,null,null,null,null,null,null,"Sands Capital Global Growth Inv","SCGVX",null,null,null,null,"Guggenheim Alpha Opportunity Instl","SAOIX","Fundos"]
[null,null,null,null,null,null,null,null,null,null,null,null,null,null,null,null,null,null,null,"Scharf Balanced Opportunity Retail","LOGBX",null,null,null,null,"Guggenheim Alpha Opportunity P","SAOSX","Fundos"]
[null,null,null,null,null,null,null,null,null,null,null,null,null,null,null,null,null,null,null,"Segall Bryant & Hamill MidCp ValDiv Ret","WTMCX",null,null,null,null,"Guggenheim Floating Rate Strats A","GIFAX","Fundos"]
[null,null,null,null,null,null,null,null,null,null,null,null,null,null,null,null,null,null,null,"SEI Aggressive Strategy F (SAAT)","SSGAX",null,null,null,null,"Guggenheim Floating Rate Strats C","GIFCX","Fundos"]
[null,null,null,null,null,null,null,null,null,null,null,null,null,null,null,null,null,null,null,"SEI Core Market Strategy Allc F (SAAT)","SKTAX",null,null,null,null,"Guggenheim Floating Rate Strats Instl","GIFIX","Fundos"]
[null,null,null,null,null,null,null,null,null,null,null,null,null,null,null,null,null,null,null,"SEI Dynamic Asset Allocation A (SIIT)","SDLAX",null,null,null,null,"Guggenheim Floating Rate Strats P","GIFPX","Fundos"]
[null,null,null,null,null,null,null,null,null,null,null,null,null,null,null,null,null,null,null,"SEI Large Cap Index A (SIIT)","LCIAX",null,null,null,null,"Guggenheim Investment Grade Bond A","SIUSX","Fundos"]
[null,null,null,null,null,null,null,null,null,null,null,null,null,null,null,null,null,null,null,"SEI Market Growth Strategy Allc F (SAAT)","SGOAX",null,null,null,null,"Guggenheim Investment Grade Bond C","SDICX","Fundos"]
[null,null,null,null,null,null,null,null,null,null,null,null,null,null,null,null,null,null,null,"SEI Mid-Cap I (SIMT)","SIPIX",null,null,null,null,"Guggenheim Investment Grade Bond Instl","GIUSX","Fundos"]
[null,null,null,null,null,null,null,null,null,null,null,null,null,null,null,null,null,null,null,"SEI Mid-Cap Y (SIMT)","SFDYX",null,null,null,null,"Guggenheim Investment Grade Bond P","SIUPX","Fundos"]
[null,null,null,null,null,null,null,null,null,null,null,null,null,null,null,null,null,null,null,"SEI Moderate Strategy Allc F (SAAT)","SXMAX",null,null,null,null,"Guggenheim Large Cap Value Institutional","GILCX","Fundos"]
[null,null,null,null,null,null,null,null,null,null,null,null,null,null,null,null,null,null,null,"SEI S&P 500 Index A (SIIT)","SPINX",null,null,null,null,"Guggenheim Large Cap Value P","SEGPX","Fundos"]
[null,null,null,null,null,null,null,null,null,null,null,null,null,null,null,null,null,null,null,"SEI S&P 500 Index F (SIMT)","SSPIX",null,null,null,null,"Guggenheim Limited Duration A","GILDX","Fundos"]
[null,null,null,null,null,null,null,null,null,null,null,null,null,null,null,null,null,null,null,"SEI S&P 500 Index I (SIMT)","SPIIX",null,null,null,null,"Guggenheim Limited Duration Instl","GILHX","Fundos"]
[null,null,null,null,null,null,null,null,null,null,null,null,null,null,null,null,null,null,null,"SEI Tax-Managed Agrsv Strat F (SAAT)","SISAX",null,null,null,null,"Guggenheim Limited Duration P","GILPX","Fundos"]
[null,null,null,null,null,null,null,null,null,null,null,null,null,null,null,null,null,null,null,"SEI Tax-Managed Mgd Volatility F (SIMT)","TMMAX",null,null,null,null,"Guggenheim Macro Opportunities A","GIOAX","Fundos"]
[null,null,null,null,null,null,null,null,null,null,null,null,null,null,null,null,null,null,null,"SEI Tax-Managed Mgd Volatility Y (SIMT)","STVYX",null,null,null,null,"Guggenheim Macro Opportunities C","GIOCX","Fundos"]
[null,null,null,null,null,null,null,null,null,null,null,null,null,null,null,null,null,null,null,"SEI US Managed Volatility F (SIMT)","SVOAX",null,null,null,null,"Guggenheim Macro Opportunities Instl","GIOIX","Fundos"]
[null,null,null,null,null,null,null,null,null,null,null,null,null,null,null,null,null,null,null,"SEI US Managed Volatility I (SIMT)","SEVIX",null,null,null,null,"Guggenheim Macro Opportunities P","GIOPX","Fundos"]
[null,null,null,null,null,null,null,null,null,null,null,null,null,null,null,null,null,null,null,"SEI US Managed Volatility Y (SIMT)","SUSYX",null,null,null,null,"Guggenheim Risk Managed Real Estt A","GURAX","Fundos"]
[null,null,null,null,null,null,null,null,null,null,null,null,null,null,null,null,null,null,null,"Sierra Tactical Core Income A","SSIZX",null,null,null,null,"Guggenheim Risk Managed Real Estt Instl","GURIX","Fundos"]
[null,null,null,null,null,null,null,null,null,null,null,null,null,null,null,null,null,null,null,"Sierra Tactical Core Income R","SSIRX",null,null,null,null,"Guggenheim StylePlus - Large Core A","SECEX","Fundos"]
[null,null,null,null,null,null,null,null,null,null,null,null,null,null,null,null,null,null,null,"Sierra Tactical Core Income Y","SSIYX",null,null,null,null,"Guggenheim StylePlus - Large Core C","SFECX","Fundos"]
[null,null,null,null,null,null,null,null,null,null,null,null,null,null,null,null,null,null,null,"Sit Balanced","SIBAX",null,null,null,null,"Guggenheim StylePlus - Large Core Instl","GILIX","Fundos"]
[null,null,null,null,null,null,null,null,null,null,null,null,null,null,null,null,null,null,null,"Sit Dividend Growth I","SDVGX",null,null,null,null,"Guggenheim StylePlus - Large Core P","SFEPX","Fundos"]
[null,null,null,null,null,null,null,null,null,null,null,null,null,null,null,null,null,null,null,"Sit Dividend Growth S","SDVSX",null,null,null,null,"Guggenheim StylePlus - Mid Growth P","SEUPX","Fundos"]
[null,null,null,null,null,null,null,null,null,null,null,null,null,null,null,null,null,null,null,"Smead Value A","SVFAX",null,null,null,null,"Guggenheim Total Return Bond A","GIBAX","Fundos"]
[null,null,null,null,null,null,null,null,null,null,null,null,null,null,null,null,null,null,null,"Smead Value Investor","SMVLX",null,null,null,null,"Guggenheim Total Return Bond C","GIBCX","Fundos"]
[null,null,null,null,null,null,null,null,null,null,null,null,null,null,null,null,null,null,null,"Smead Value R1","SVFDX",null,null,null,null,"Guggenheim Total Return Bond Instl","GIBIX","Fundos"]
[null,null,null,null,null,null,null,null,null,null,null,null,null,null,null,null,null,null,null,"Smead Value R2","SVFKX",null,null,null,null,"Guggenheim Total Return Bond P","GIBLX","Fundos"]
[null,null,null,null,null,null,null,null,null,null,null,null,null,null,null,null,null,null,null,"Smead Value Y","SVFYX",null,null,null,null,"Guggenheim Total Return Bond R6","GIBRX","Fundos"]
[null,null,null,null,null,null,null,null,null,null,null,null,null,null,null,null,null,null,null,"Sound Shore Institutional","SSHVX",null,null,null,null,"GuideStone Funds Equity Index Instl","GEQYX","Fundos"]
[null,null,null,null,null,null,null,null,null,null,null,null,null,null,null,null,null,null,null,"SSgA Dynamic Small Cap I","SSSJX",null,null,null,null,"GuideStone Funds Equity Index Investor","GEQZX","Fundos"]
[null,null,null,null,null,null,null,null,null,null,null,null,null,null,null,null,null,null,null,"SSgA S&P 500 Index N","SVSPX",null,null,null,null,"GuideStone Funds International Eq Instl","GIEYX","Fundos"]
[null,null,null,null,null,null,null,null,null,null,null,null,null,null,null,null,null,null,null,"State Street Instl Premier Growth Eq Inv","SSPGX",null,null,null,null,"Guinness Atkinson Global Inntrs Instl","GINNX","Fundos"]
[null,null,null,null,null,null,null,null,null,null,null,null,null,null,null,null,null,null,null,"State Street Instl Small-Cap Equity Svc","SSQSX",null,null,null,null,"Guinness Atkinson Global Inntrs Inv","IWIRX","Fundos"]
[null,null,null,null,null,null,null,null,null,null,null,null,null,null,null,null,null,null,null,"Summit GI US Low Volatility Equity A","LVOLX",null,null,null,null,"Harbor Capital Appreciation Admin","HRCAX","Fundos"]
[null,null,null,null,null,null,null,null,null,null,null,null,null,null,null,null,null,null,null,"Summit GI US Low Volatility Equity I","SILVX",null,null,null,null,"Harbor Capital Appreciation Instl","HACAX","Fundos"]
[null,null,null,null,null,null,null,null,null,null,null,null,null,null,null,null,null,null,null,"T. Rowe Price Balanced","RPBAX",null,null,null,null,"Harbor Capital Appreciation Inv","HCAIX","Fundos"]
[null,null,null,null,null,null,null,null,null,null,null,null,null,null,null,null,null,null,null,"T. Rowe Price Balanced I","RBAIX",null,null,null,null,"Harbor Global Leaders Instl","HGGAX","Fundos"]
[null,null,null,null,null,null,null,null,null,null,null,null,null,null,null,null,null,null,null,"T. Rowe Price Blue Chip Growth","TRBCX",null,null,null,null,"Harbor Global Leaders Retirement","HNGIX","Fundos"]
[null,null,null,null,null,null,null,null,null,null,null,null,null,null,null,null,null,null,null,"T. Rowe Price Blue Chip Growth Advisor","PABGX",null,null,null,null,"Harbor Large Cap Value Inv","HILVX","Fundos"]
[null,null,null,null,null,null,null,null,null,null,null,null,null,null,null,null,null,null,null,"T. Rowe Price Blue Chip Growth I","TBCIX",null,null,null,null,"Harbor Mid Cap Value Admin","HRMVX","Fundos"]
[null,null,null,null,null,null,null,null,null,null,null,null,null,null,null,null,null,null,null,"T. Rowe Price Blue Chip Growth R","RRBGX",null,null,null,null,"Harbor Mid Cap Value Instl","HAMVX","Fundos"]
[null,null,null,null,null,null,null,null,null,null,null,null,null,null,null,null,null,null,null,"T. Rowe Price Capital Appreciation","PRWCX",null,null,null,null,"Harbor Mid Cap Value Investor","HIMVX","Fundos"]
[null,null,null,null,null,null,null,null,null,null,null,null,null,null,null,null,null,null,null,"T. Rowe Price Capital Appreciation Adv","PACLX",null,null,null,null,"Harbor Mid Cap Value Retirement","HNMVX","Fundos"]
[null,null,null,null,null,null,null,null,null,null,null,null,null,null,null,null,null,null,null,"T. Rowe Price Capital Appreciation I","TRAIX",null,null,null,null,"Harbor Small Cap Growth Instl","HASGX","Fundos"]
[null,null,null,null,null,null,null,null,null,null,null,null,null,null,null,null,null,null,null,"T. Rowe Price Capital Opportunity","PRCOX",null,null,null,null,"Harbor Small Cap Value Admin","HSVRX","Fundos"]
[null,null,null,null,null,null,null,null,null,null,null,null,null,null,null,null,null,null,null,"T. Rowe Price Capital Opportunity Adv","PACOX",null,null,null,null,"Harbor Small Cap Value Instl","HASCX","Fundos"]
[null,null,null,null,null,null,null,null,null,null,null,null,null,null,null,null,null,null,null,"T. Rowe Price Capital Opportunity I","PCCOX",null,null,null,null,"Harbor Small Cap Value Investor","HISVX","Fundos"]
[null,null,null,null,null,null,null,null,null,null,null,null,null,null,null,null,null,null,null,"T. Rowe Price Comm & Tech I","TTMIX",null,null,null,null,"Harding Loevner Emerging Markets Advisor","HLEMX","Fundos"]
[null,null,null,null,null,null,null,null,null,null,null,null,null,null,null,null,null,null,null,"T. Rowe Price Comm & Tech Investor","PRMTX",null,null,null,null,"Harding Loevner Global Equity Advisor","HLMGX","Fundos"]
[null,null,null,null,null,null,null,null,null,null,null,null,null,null,null,null,null,null,null,"T. Rowe Price Diversified Mid Cap Gr","PRDMX",null,null,null,null,"Harding Loevner Global Equity Inst","HLMVX","Fundos"]
[null,null,null,null,null,null,null,null,null,null,null,null,null,null,null,null,null,null,null,"T. Rowe Price Dividend Growth","PRDGX",null,null,null,null,"Harding Loevner Instl Emerg Mkts I","HLMEX","Fundos"]
[null,null,null,null,null,null,null,null,null,null,null,null,null,null,null,null,null,null,null,"T. Rowe Price Dividend Growth Advisor","TADGX",null,null,null,null,"Harding Loevner Instl Emerg Mkts II","HLEEX","Fundos"]
[null,null,null,null,null,null,null,null,null,null,null,null,null,null,null,null,null,null,null,"T. Rowe Price Dividend Growth I","PDGIX",null,null,null,null,"Harding Loevner International Eq Instl","HLMIX","Fundos"]
[null,null,null,null,null,null,null,null,null,null,null,null,null,null,null,null,null,null,null,"T. Rowe Price Emerging Markets Stock","PRMSX",null,null,null,null,"Harding Loevner International Eq Inv","HLMNX","Fundos"]
[null,null,null,null,null,null,null,null,null,null,null,null,null,null,null,null,null,null,null,"T. Rowe Price Emerging Markets Stock I","PRZIX",null,null,null,null,"Hartford Balanced A","ITTAX","Fundos"]
[null,null,null,null,null,null,null,null,null,null,null,null,null,null,null,null,null,null,null,"T. Rowe Price Equity Index 500","PREIX",null,null,null,null,"Hartford Balanced C","HAFCX","Fundos"]
[null,null,null,null,null,null,null,null,null,null,null,null,null,null,null,null,null,null,null,"T. Rowe Price Equity Index 500 I","PRUIX",null,null,null,null,"Hartford Balanced I","ITTIX","Fundos"]
[null,null,null,null,null,null,null,null,null,null,null,null,null,null,null,null,null,null,null,"T. Rowe Price Extended Equity Market Idx","PEXMX",null,null,null,null,"Hartford Balanced Y","IHAYX","Fundos"]
[null,null,null,null,null,null,null,null,null,null,null,null,null,null,null,null,null,null,null,"T. Rowe Price Financial Services","PRISX",null,null,null,null,"Hartford Core Equity R5","HGITX","Fundos"]
[null,null,null,null,null,null,null,null,null,null,null,null,null,null,null,null,null,null,null,"T. Rowe Price Financial Services I","TFIFX",null,null,null,null,"Hartford Dividend and Growth C","HDGCX","Fundos"]
[null,null,null,null,null,null,null,null,null,null,null,null,null,null,null,null,null,null,null,"T. Rowe Price Global Growth Stock Adv","PAGLX",null,null,null,null,"Hartford Dividend and Growth I","HDGIX","Fundos"]
[null,null,null,null,null,null,null,null,null,null,null,null,null,null,null,null,null,null,null,"T. Rowe Price Global Stock","PRGSX",null,null,null,null,"Hartford Equity Income A","HQIAX","Fundos"]
[null,null,null,null,null,null,null,null,null,null,null,null,null,null,null,null,null,null,null,"T. Rowe Price Global Stock Adv","PAGSX",null,null,null,null,"Hartford Equity Income I","HQIIX","Fundos"]
[null,null,null,null,null,null,null,null,null,null,null,null,null,null,null,null,null,null,null,"T. Rowe Price Global Technology","PRGTX",null,null,null,null,"Hartford Equity Income R4","HQISX","Fundos"]
[null,null,null,null,null,null,null,null,null,null,null,null,null,null,null,null,null,null,null,"T. Rowe Price Growth & Income","PRGIX",null,null,null,null,"Hartford Growth Opportunities A","HGOAX","Fundos"]
[null,null,null,null,null,null,null,null,null,null,null,null,null,null,null,null,null,null,null,"T. Rowe Price Growth Stock","PRGFX",null,null,null,null,"Hartford Growth Opportunities I","HGOIX","Fundos"]
[null,null,null,null,null,null,null,null,null,null,null,null,null,null,null,null,null,null,null,"T. Rowe Price Growth Stock Adv","TRSAX",null,null,null,null,"Hartford Growth Opportunities R4","HGOSX","Fundos"]
[null,null,null,null,null,null,null,null,null,null,null,null,null,null,null,null,null,null,null,"T. Rowe Price Growth Stock I","PRUFX",null,null,null,null,"Hartford International Opportunities A","IHOAX","Fundos"]
[null,null,null,null,null,null,null,null,null,null,null,null,null,null,null,null,null,null,null,"T. Rowe Price Growth Stock R","RRGSX",null,null,null,null,"Hartford International Opportunities I","IHOIX","Fundos"]
[null,null,null,null,null,null,null,null,null,null,null,null,null,null,null,null,null,null,null,"T. Rowe Price Health Sciences","PRHSX",null,null,null,null,"Hartford International Opportunities R3","IHORX","Fundos"]
[null,null,null,null,null,null,null,null,null,null,null,null,null,null,null,null,null,null,null,"T. Rowe Price Health Sciences I","THISX",null,null,null,null,"Hartford International Opportunities R4","IHOSX","Fundos"]
[null,null,null,null,null,null,null,null,null,null,null,null,null,null,null,null,null,null,null,"T. Rowe Price Instl Emerging Mkts Eq","IEMFX",null,null,null,null,"Hartford International Opportunities R5","IHOTX","Fundos"]
[null,null,null,null,null,null,null,null,null,null,null,null,null,null,null,null,null,null,null,"T. Rowe Price Instl Glbl Gr Eq","RPIGX",null,null,null,null,"Hartford International Opportunities Y","HAOYX","Fundos"]
[null,null,null,null,null,null,null,null,null,null,null,null,null,null,null,null,null,null,null,"T. Rowe Price Instl Large Cap Core Gr","TPLGX",null,null,null,null,"Hartford International Value I","HILIX","Fundos"]
[null,null,null,null,null,null,null,null,null,null,null,null,null,null,null,null,null,null,null,"T. Rowe Price Instl Large Cap Growth","TRLGX",null,null,null,null,"Hartford International Value R3","HILRX","Fundos"]
[null,null,null,null,null,null,null,null,null,null,null,null,null,null,null,null,null,null,null,"T. Rowe Price Instl Large Cap Value","TILCX",null,null,null,null,"Hartford International Value R4","HILSX","Fundos"]
[null,null,null,null,null,null,null,null,null,null,null,null,null,null,null,null,null,null,null,"T. Rowe Price Instl Mid-Cap Equity Gr","PMEGX",null,null,null,null,"Hartford MidCap I","HFMIX","Fundos"]
[null,null,null,null,null,null,null,null,null,null,null,null,null,null,null,null,null,null,null,"T. Rowe Price Instl Small-Cap Stock","TRSSX",null,null,null,null,"Hartford MidCap R4","HFMSX","Fundos"]
[null,null,null,null,null,null,null,null,null,null,null,null,null,null,null,null,null,null,null,"T. Rowe Price International Discovery","PRIDX",null,null,null,null,"Hartford Schroders Emerging Mkts Eq A","SEMVX","Fundos"]
[null,null,null,null,null,null,null,null,null,null,null,null,null,null,null,null,null,null,null,"T. Rowe Price International Discovery I","TIDDX",null,null,null,null,"Hartford Schroders Emerging Mkts Eq I","SEMNX","Fundos"]
[null,null,null,null,null,null,null,null,null,null,null,null,null,null,null,null,null,null,null,"T. Rowe Price International Stock Adv","PAITX",null,null,null,null,"Hartford Schroders Emerging Mkts Eq R4","HHHSX","Fundos"]
[null,null,null,null,null,null,null,null,null,null,null,null,null,null,null,null,null,null,null,"T. Rowe Price International Stock I","PRIUX",null,null,null,null,"Hartford Schroders Emerging Mkts Eq SDR","SEMTX","Fundos"]
[null,null,null,null,null,null,null,null,null,null,null,null,null,null,null,null,null,null,null,"T. Rowe Price Latin America","PRLAX",null,null,null,null,"Hartford Schroders US Small Cap Opps A","SCUVX","Fundos"]
[null,null,null,null,null,null,null,null,null,null,null,null,null,null,null,null,null,null,null,"T. Rowe Price Mid-Cap Growth","RPMGX",null,null,null,null,"Hartford Schroders US Small Cap Opps I","SCUIX","Fundos"]
[null,null,null,null,null,null,null,null,null,null,null,null,null,null,null,null,null,null,null,"T. Rowe Price Mid-Cap Growth Adv","PAMCX",null,null,null,null,"Hartford Schroders US Small Cap Opps R4","HOOSX","Fundos"]
[null,null,null,null,null,null,null,null,null,null,null,null,null,null,null,null,null,null,null,"T. Rowe Price Mid-Cap Growth I","RPTIX",null,null,null,null,"Hartford Schroders US Small Cap Opps R5","HOOTX","Fundos"]
[null,null,null,null,null,null,null,null,null,null,null,null,null,null,null,null,null,null,null,"T. Rowe Price Mid-Cap Growth R","RRMGX",null,null,null,null,"Hartford Schroders US Small Cap Opps SDR","SCURX","Fundos"]
[null,null,null,null,null,null,null,null,null,null,null,null,null,null,null,null,null,null,null,"T. Rowe Price Mid-Cap Value","TRMCX",null,null,null,null,"Hennessy Cornerstone Mid Cap 30 Inv","HFMDX","Fundos"]
[null,null,null,null,null,null,null,null,null,null,null,null,null,null,null,null,null,null,null,"T. Rowe Price Mid-Cap Value Adv","TAMVX",null,null,null,null,"Hennessy Equity and Income Investor","HEIFX","Fundos"]
[null,null,null,null,null,null,null,null,null,null,null,null,null,null,null,null,null,null,null,"T. Rowe Price Mid-Cap Value I","TRMIX",null,null,null,null,"Hennessy Focus Institutional","HFCIX","Fundos"]
[null,null,null,null,null,null,null,null,null,null,null,null,null,null,null,null,null,null,null,"T. Rowe Price Mid-Cap Value R","RRMVX",null,null,null,null,"Hennessy Focus Investor","HFCSX","Fundos"]
[null,null,null,null,null,null,null,null,null,null,null,null,null,null,null,null,null,null,null,"T. Rowe Price New America Growth","PRWAX",null,null,null,null,"Hennessy Gas Utility Investor","GASFX","Fundos"]
[null,null,null,null,null,null,null,null,null,null,null,null,null,null,null,null,null,null,null,"T. Rowe Price New America Growth Advisor","PAWAX",null,null,null,null,"Hennessy Japan Institutional","HJPIX","Fundos"]
[null,null,null,null,null,null,null,null,null,null,null,null,null,null,null,null,null,null,null,"T. Rowe Price New America Growth I","PNAIX",null,null,null,null,"Hennessy Japan Investor","HJPNX","Fundos"]
[null,null,null,null,null,null,null,null,null,null,null,null,null,null,null,null,null,null,null,"T. Rowe Price New Asia","PRASX",null,null,null,null,"Hennessy Japan Small Cap Institutional","HJSIX","Fundos"]
[null,null,null,null,null,null,null,null,null,null,null,null,null,null,null,null,null,null,null,"T. Rowe Price New Horizons","PRNHX",null,null,null,null,"Hennessy Japan Small Cap Investor","HJPSX","Fundos"]
[null,null,null,null,null,null,null,null,null,null,null,null,null,null,null,null,null,null,null,"T. Rowe Price New Horizons I","PRJIX",null,null,null,null,"Hennessy Large Cap Financial Instl","HILFX","Fundos"]
[null,null,null,null,null,null,null,null,null,null,null,null,null,null,null,null,null,null,null,"T. Rowe Price Personal Strat Bal","TRPBX",null,null,null,null,"Hennessy Large Cap Financial Investor","HLFNX","Fundos"]
[null,null,null,null,null,null,null,null,null,null,null,null,null,null,null,null,null,null,null,"T. Rowe Price Personal Strat Bal I","TPPAX",null,null,null,null,"Hennessy Small Cap Financial Instl","HISFX","Fundos"]
[null,null,null,null,null,null,null,null,null,null,null,null,null,null,null,null,null,null,null,"T. Rowe Price Personal Strat Gr","TRSGX",null,null,null,null,"Hennessy Small Cap Financial Investor","HSFNX","Fundos"]
[null,null,null,null,null,null,null,null,null,null,null,null,null,null,null,null,null,null,null,"T. Rowe Price Personal Strat Gr I","TGIPX",null,null,null,null,"Hilton Tactical Income A","HCYAX","Fundos"]
[null,null,null,null,null,null,null,null,null,null,null,null,null,null,null,null,null,null,null,"T. Rowe Price Personal Strat Inc","PRSIX",null,null,null,null,"Hilton Tactical Income C","HCYCX","Fundos"]
[null,null,null,null,null,null,null,null,null,null,null,null,null,null,null,null,null,null,null,"T. Rowe Price Personal Strat Inc I","PPIPX",null,null,null,null,"Hilton Tactical Income Instl","HCYIX","Fundos"]
[null,null,null,null,null,null,null,null,null,null,null,null,null,null,null,null,null,null,null,"T. Rowe Price QM US Small-Cap Gr Eq","PRDSX",null,null,null,null,"Hotchkis & Wiley Diversified Value C","HWCCX","Fundos"]
[null,null,null,null,null,null,null,null,null,null,null,null,null,null,null,null,null,null,null,"T. Rowe Price QM US Small-Cap Gr Eq Adv","TQAAX",null,null,null,null,"Hotchkis & Wiley Large Cap Value C","HWLCX","Fundos"]
[null,null,null,null,null,null,null,null,null,null,null,null,null,null,null,null,null,null,null,"T. Rowe Price QM US Small-Cap Gr Eq I","TQAIX",null,null,null,null,"Hotchkis & Wiley Small Cap Value I","HWSIX","Fundos"]
[null,null,null,null,null,null,null,null,null,null,null,null,null,null,null,null,null,null,null,"T. Rowe Price Real Estate Advisor","PAREX",null,null,null,null,"Hotchkis & Wiley Value Opps A","HWAAX","Fundos"]
[null,null,null,null,null,null,null,null,null,null,null,null,null,null,null,null,null,null,null,"T. Rowe Price Retirement 2010","TRRAX",null,null,null,null,"Hotchkis & Wiley Value Opps Instl","HWAIX","Fundos"]
[null,null,null,null,null,null,null,null,null,null,null,null,null,null,null,null,null,null,null,"T. Rowe Price Retirement 2010 Advisor","PARAX",null,null,null,null,"Hundredfold Select Alternative Inv","HFSAX","Fundos"]
[null,null,null,null,null,null,null,null,null,null,null,null,null,null,null,null,null,null,null,"T. Rowe Price Retirement 2010 R","RRTAX",null,null,null,null,"ICM Small Company","ICSCX","Fundos"]
[null,null,null,null,null,null,null,null,null,null,null,null,null,null,null,null,null,null,null,"T. Rowe Price Retirement 2020","TRRBX",null,null,null,null,"Independent Franchise Partners US Equity","IFPUX","Fundos"]
[null,null,null,null,null,null,null,null,null,null,null,null,null,null,null,null,null,null,null,"T. Rowe Price Retirement 2020 Advisor","PARBX",null,null,null,null,"iShares S&P 500 Index Institutional","BSPIX","Fundos"]
[null,null,null,null,null,null,null,null,null,null,null,null,null,null,null,null,null,null,null,"T. Rowe Price Retirement 2020 R","RRTBX",null,null,null,null,"iShares S&P 500 Index Investor A","BSPAX","Fundos"]
[null,null,null,null,null,null,null,null,null,null,null,null,null,null,null,null,null,null,null,"T. Rowe Price Retirement 2025","TRRHX",null,null,null,null,"IVA Worldwide A","IVWAX","Fundos"]
[null,null,null,null,null,null,null,null,null,null,null,null,null,null,null,null,null,null,null,"T. Rowe Price Retirement 2025 Advisor","PARJX",null,null,null,null,"Jackson Square SMID-Cap Growth Instl","JSMTX","Fundos"]
[null,null,null,null,null,null,null,null,null,null,null,null,null,null,null,null,null,null,null,"T. Rowe Price Retirement 2025 R","RRTNX",null,null,null,null,"Jackson Square SMID-Cap Growth Inv","JSMVX","Fundos"]
[null,null,null,null,null,null,null,null,null,null,null,null,null,null,null,null,null,null,null,"T. Rowe Price Retirement 2030","TRRCX",null,null,null,null,"Jackson Square SMID-Cap Growth IS","DCGTX","Fundos"]
[null,null,null,null,null,null,null,null,null,null,null,null,null,null,null,null,null,null,null,"T. Rowe Price Retirement 2030 Advisor","PARCX",null,null,null,null,"JAG Large Cap Growth A","JLGAX","Fundos"]
[null,null,null,null,null,null,null,null,null,null,null,null,null,null,null,null,null,null,null,"T. Rowe Price Retirement 2030 R","RRTCX",null,null,null,null,"James Alpha Global Real Estate Invsmts A","JAREX","Fundos"]
[null,null,null,null,null,null,null,null,null,null,null,null,null,null,null,null,null,null,null,"T. Rowe Price Retirement 2035","TRRJX",null,null,null,null,"James Alpha Global Real Estate Invsmts C","JACRX","Fundos"]
[null,null,null,null,null,null,null,null,null,null,null,null,null,null,null,null,null,null,null,"T. Rowe Price Retirement 2035 Advisor","PARKX",null,null,null,null,"James Alpha Global Real Estate Invsmts I","JARIX","Fundos"]
[null,null,null,null,null,null,null,null,null,null,null,null,null,null,null,null,null,null,null,"T. Rowe Price Retirement 2035 R","RRTPX",null,null,null,null,"James Balanced: Golden Rainbow Instl","GLRIX","Fundos"]
[null,null,null,null,null,null,null,null,null,null,null,null,null,null,null,null,null,null,null,"T. Rowe Price Retirement 2040","TRRDX",null,null,null,null,"James Micro Cap","JMCRX","Fundos"]
[null,null,null,null,null,null,null,null,null,null,null,null,null,null,null,null,null,null,null,"T. Rowe Price Retirement 2040 Advisor","PARDX",null,null,null,null,"Janus Henderson Enterprise A","JDMAX","Fundos"]
[null,null,null,null,null,null,null,null,null,null,null,null,null,null,null,null,null,null,null,"T. Rowe Price Retirement 2040 R","RRTDX",null,null,null,null,"Janus Henderson Enterprise C","JGRCX","Fundos"]
[null,null,null,null,null,null,null,null,null,null,null,null,null,null,null,null,null,null,null,"T. Rowe Price Retirement 2045","TRRKX",null,null,null,null,"Janus Henderson Enterprise I","JMGRX","Fundos"]
[null,null,null,null,null,null,null,null,null,null,null,null,null,null,null,null,null,null,null,"T. Rowe Price Retirement 2045 Advisor","PARLX",null,null,null,null,"Janus Henderson Enterprise N","JDMNX","Fundos"]
[null,null,null,null,null,null,null,null,null,null,null,null,null,null,null,null,null,null,null,"T. Rowe Price Retirement 2045 R","RRTRX",null,null,null,null,"Janus Henderson Enterprise R","JDMRX","Fundos"]
[null,null,null,null,null,null,null,null,null,null,null,null,null,null,null,null,null,null,null,"T. Rowe Price Retirement 2050","TRRMX",null,null,null,null,"Janus Henderson Enterprise S","JGRTX","Fundos"]
[null,null,null,null,null,null,null,null,null,null,null,null,null,null,null,null,null,null,null,"T. Rowe Price Retirement 2050 Advisor","PARFX",null,null,null,null,"Janus Henderson Enterprise T","JAENX","Fundos"]
[null,null,null,null,null,null,null,null,null,null,null,null,null,null,null,null,null,null,null,"T. Rowe Price Retirement 2050 R","RRTFX",null,null,null,null,"Janus Henderson Forty A","JDCAX","Fundos"]
[null,null,null,null,null,null,null,null,null,null,null,null,null,null,null,null,null,null,null,"T. Rowe Price Retirement 2055","TRRNX",null,null,null,null,"Janus Henderson Forty C","JACCX","Fundos"]
[null,null,null,null,null,null,null,null,null,null,null,null,null,null,null,null,null,null,null,"T. Rowe Price Retirement 2055 Advisor","PAROX",null,null,null,null,"Janus Henderson Forty I","JCAPX","Fundos"]
[null,null,null,null,null,null,null,null,null,null,null,null,null,null,null,null,null,null,null,"T. Rowe Price Retirement 2055 R","RRTVX",null,null,null,null,"Janus Henderson Forty N","JFRNX","Fundos"]
[null,null,null,null,null,null,null,null,null,null,null,null,null,null,null,null,null,null,null,"T. Rowe Price Retirement Balanced Adv","PARIX",null,null,null,null,"Janus Henderson Forty R","JDCRX","Fundos"]
[null,null,null,null,null,null,null,null,null,null,null,null,null,null,null,null,null,null,null,"T. Rowe Price Science & Tech","PRSCX",null,null,null,null,"Janus Henderson Forty S","JARTX","Fundos"]
[null,null,null,null,null,null,null,null,null,null,null,null,null,null,null,null,null,null,null,"T. Rowe Price Science & Tech I","TSNIX",null,null,null,null,"Janus Henderson Global Life Sciences A","JFNAX","Fundos"]
[null,null,null,null,null,null,null,null,null,null,null,null,null,null,null,null,null,null,null,"T. Rowe Price Small-Cap Stock","OTCFX",null,null,null,null,"Janus Henderson Global Life Sciences C","JFNCX","Fundos"]
[null,null,null,null,null,null,null,null,null,null,null,null,null,null,null,null,null,null,null,"T. Rowe Price Small-Cap Stock Adv","PASSX",null,null,null,null,"Janus Henderson Global Life Sciences D","JNGLX","Fundos"]
[null,null,null,null,null,null,null,null,null,null,null,null,null,null,null,null,null,null,null,"T. Rowe Price Small-Cap Stock I","OTIIX",null,null,null,null,"Janus Henderson Global Life Sciences I","JFNIX","Fundos"]
[null,null,null,null,null,null,null,null,null,null,null,null,null,null,null,null,null,null,null,"T. Rowe Price Small-Cap Value","PRSVX",null,null,null,null,"Janus Henderson Global Life Sciences S","JFNSX","Fundos"]
[null,null,null,null,null,null,null,null,null,null,null,null,null,null,null,null,null,null,null,"T. Rowe Price Small-Cap Value Adv","PASVX",null,null,null,null,"Janus Henderson Global Life Sciences T","JAGLX","Fundos"]
[null,null,null,null,null,null,null,null,null,null,null,null,null,null,null,null,null,null,null,"T. Rowe Price Small-Cap Value I","PRVIX",null,null,null,null,"Janus Henderson Global Select C","JORCX","Fundos"]
[null,null,null,null,null,null,null,null,null,null,null,null,null,null,null,null,null,null,null,"T. Rowe Price Total Equity Market Idx","POMIX",null,null,null,null,"Janus Henderson Growth And Income A","JDNAX","Fundos"]
[null,null,null,null,null,null,null,null,null,null,null,null,null,null,null,null,null,null,null,"T. Rowe Price US Large-Cap Core","TRULX",null,null,null,null,"Janus Henderson Triton D","JANIX","Fundos"]
[null,null,null,null,null,null,null,null,null,null,null,null,null,null,null,null,null,null,null,"T. Rowe Price US Large-Cap Core Adv","PAULX",null,null,null,null,"Janus Henderson Triton I","JSMGX","Fundos"]
[null,null,null,null,null,null,null,null,null,null,null,null,null,null,null,null,null,null,null,"T. Rowe Price Value","TRVLX",null,null,null,null,"Janus Henderson Triton N","JGMNX","Fundos"]
[null,null,null,null,null,null,null,null,null,null,null,null,null,null,null,null,null,null,null,"T. Rowe Price Value Adv","PAVLX",null,null,null,null,"Janus Henderson Triton R","JGMRX","Fundos"]
[null,null,null,null,null,null,null,null,null,null,null,null,null,null,null,null,null,null,null,"T. Rowe Price Value I","TRPIX",null,null,null,null,"Janus Henderson Triton S","JGMIX","Fundos"]
[null,null,null,null,null,null,null,null,null,null,null,null,null,null,null,null,null,null,null,"Tarkio","TARKX",null,null,null,null,"Janus Henderson Venture C","JVTCX","Fundos"]
[null,null,null,null,null,null,null,null,null,null,null,null,null,null,null,null,null,null,null,"TCM Small Cap Growth","TCMSX",null,null,null,null,"Janus Henderson Venture D","JANVX","Fundos"]
[null,null,null,null,null,null,null,null,null,null,null,null,null,null,null,null,null,null,null,"TCW Select Equities N","TGCNX",null,null,null,null,"Janus Henderson Venture I","JVTIX","Fundos"]
[null,null,null,null,null,null,null,null,null,null,null,null,null,null,null,null,null,null,null,"Templeton Developing Markets C","TDMTX",null,null,null,null,"Janus Henderson Venture N","JVTNX","Fundos"]
[null,null,null,null,null,null,null,null,null,null,null,null,null,null,null,null,null,null,null,"Templeton Ins Foreign Smaller Co Ser Adv","TFSCX",null,null,null,null,"Janus Henderson Venture S","JVTSX","Fundos"]
[null,null,null,null,null,null,null,null,null,null,null,null,null,null,null,null,null,null,null,"Templeton Instl Intl Eq Ser Primary","TFEQX",null,null,null,null,"Janus Henderson Venture T","JAVTX","Fundos"]
[null,null,null,null,null,null,null,null,null,null,null,null,null,null,null,null,null,null,null,"Templeton Instl Intl Eq Ser Service","TFESX",null,null,null,null,"Jensen Quality Growth I","JENIX","Fundos"]
[null,null,null,null,null,null,null,null,null,null,null,null,null,null,null,null,null,null,null,"TETON Westwood Mighty Mites A","WMMAX",null,null,null,null,"Jensen Quality Growth J","JENSX","Fundos"]
[null,null,null,null,null,null,null,null,null,null,null,null,null,null,null,null,null,null,null,"TETON Westwood Mighty Mites AAA","WEMMX",null,null,null,null,"Jensen Quality Growth Y","JENYX","Fundos"]
[null,null,null,null,null,null,null,null,null,null,null,null,null,null,null,null,null,null,null,"TETON Westwood Mighty Mites C","WMMCX",null,null,null,null,"JHancock Bond A","JHNBX","Fundos"]
[null,null,null,null,null,null,null,null,null,null,null,null,null,null,null,null,null,null,null,"TETON Westwood Mighty Mites I","WEIMX",null,null,null,null,"JHancock Bond B","JHBBX","Fundos"]
[null,null,null,null,null,null,null,null,null,null,null,null,null,null,null,null,null,null,null,"TETON Westwood SmallCap Equity AAA","WESCX",null,null,null,null,"JHancock Bond C","JHCBX","Fundos"]
[null,null,null,null,null,null,null,null,null,null,null,null,null,null,null,null,null,null,null,"Third Avenue Real Estate Value Instl","TAREX",null,null,null,null,"JHancock Bond I","JHBIX","Fundos"]
[null,null,null,null,null,null,null,null,null,null,null,null,null,null,null,null,null,null,null,"Third Avenue Real Estate Value Investor","TVRVX",null,null,null,null,"JHancock Bond R4","JBFRX","Fundos"]
[null,null,null,null,null,null,null,null,null,null,null,null,null,null,null,null,null,null,null,"Thornburg Global Opportunities I","THOIX",null,null,null,null,"Johnson Enhanced Return","JENHX","Fundos"]
[null,null,null,null,null,null,null,null,null,null,null,null,null,null,null,null,null,null,null,"Thornburg Global Opportunities R3","THORX",null,null,null,null,"Johnson Institutional Core Bond","JIBFX","Fundos"]
[null,null,null,null,null,null,null,null,null,null,null,null,null,null,null,null,null,null,null,"Thornburg International Value A","TGVAX",null,null,null,null,"JPMorgan Diversified A","JDVAX","Fundos"]
[null,null,null,null,null,null,null,null,null,null,null,null,null,null,null,null,null,null,null,"Thornburg International Value I","TGVIX",null,null,null,null,"JPMorgan Diversified I","JDVSX","Fundos"]
[null,null,null,null,null,null,null,null,null,null,null,null,null,null,null,null,null,null,null,"Thornburg International Value R3","TGVRX",null,null,null,null,"JPMorgan Emerging Markets Equity I","JEMSX","Fundos"]
[null,null,null,null,null,null,null,null,null,null,null,null,null,null,null,null,null,null,null,"Thornburg International Value R5","TIVRX",null,null,null,null,"JPMorgan Hedged Equity R5","JHQPX","Fundos"]
[null,null,null,null,null,null,null,null,null,null,null,null,null,null,null,null,null,null,null,"Thornburg International Value R6","TGIRX",null,null,null,null,"JPMorgan International Uncons Eq I","IUESX","Fundos"]
[null,null,null,null,null,null,null,null,null,null,null,null,null,null,null,null,null,null,null,"Thornburg Investment Income Builder A","TIBAX",null,null,null,null,"JPMorgan Intrepid Growth A","JIGAX","Fundos"]
[null,null,null,null,null,null,null,null,null,null,null,null,null,null,null,null,null,null,null,"Thornburg Investment Income Builder C","TIBCX",null,null,null,null,"JPMorgan Intrepid Growth C","JCICX","Fundos"]
[null,null,null,null,null,null,null,null,null,null,null,null,null,null,null,null,null,null,null,"Thornburg Investment Income Builder I","TIBIX",null,null,null,null,"JPMorgan Intrepid Growth I","JPGSX","Fundos"]
[null,null,null,null,null,null,null,null,null,null,null,null,null,null,null,null,null,null,null,"Thornburg Investment Income Builder R4","TIBGX",null,null,null,null,"JPMorgan Intrepid Growth R2","JIGZX","Fundos"]
[null,null,null,null,null,null,null,null,null,null,null,null,null,null,null,null,null,null,null,"Thornburg Investment Income Builder R5","TIBMX",null,null,null,null,"JPMorgan Intrepid Growth R5","JGIRX","Fundos"]
[null,null,null,null,null,null,null,null,null,null,null,null,null,null,null,null,null,null,null,"Thrivent Aggressive Allocation A","TAAAX",null,null,null,null,"JPMorgan Intrepid Growth R6","JGISX","Fundos"]
[null,null,null,null,null,null,null,null,null,null,null,null,null,null,null,null,null,null,null,"Thrivent Aggressive Allocation S","TAAIX",null,null,null,null,"JPMorgan Intrepid Mid Cap C","ODMCX","Fundos"]
[null,null,null,null,null,null,null,null,null,null,null,null,null,null,null,null,null,null,null,"Thrivent Mid Cap Stock S","TMSIX",null,null,null,null,"JPMorgan Intrepid Mid Cap I","WOOPX","Fundos"]
[null,null,null,null,null,null,null,null,null,null,null,null,null,null,null,null,null,null,null,"TIAA-CREF Growth & Income Retail","TIIRX",null,null,null,null,"JPMorgan Large Cap Growth R6","JLGMX","Fundos"]
[null,null,null,null,null,null,null,null,null,null,null,null,null,null,null,null,null,null,null,"TIAA-CREF Large-Cap Growth Advisor","TILHX",null,null,null,null,"JPMorgan Large Cap Value A","OLVAX","Fundos"]
[null,null,null,null,null,null,null,null,null,null,null,null,null,null,null,null,null,null,null,"TIAA-CREF Large-Cap Growth Premier","TILPX",null,null,null,null,"JPMorgan Mid Cap Equity A","JCMAX","Fundos"]
[null,null,null,null,null,null,null,null,null,null,null,null,null,null,null,null,null,null,null,"TIAA-CREF Large-Cap Growth R","TILRX",null,null,null,null,"JPMorgan Mid Cap Equity I","VSNGX","Fundos"]
[null,null,null,null,null,null,null,null,null,null,null,null,null,null,null,null,null,null,null,"TIAA-CREF Large-Cap Growth Retail","TIRTX",null,null,null,null,"JPMorgan Small Cap Core R5","VSSCX","Fundos"]
[null,null,null,null,null,null,null,null,null,null,null,null,null,null,null,null,null,null,null,"TIAA-CREF Large-Cap Value Instl","TRLIX",null,null,null,null,"JPMorgan SmartRetirement 2040 A","SMTAX","Fundos"]
[null,null,null,null,null,null,null,null,null,null,null,null,null,null,null,null,null,null,null,"Timothy Plan Small Cap Value I","TPVIX",null,null,null,null,"JPMorgan SmartRetirement 2040 C","SMTCX","Fundos"]
[null,null,null,null,null,null,null,null,null,null,null,null,null,null,null,null,null,null,null,"Toreador Core Institutional","TORZX",null,null,null,null,"JPMorgan SmartRetirement 2040 I","SMTSX","Fundos"]
[null,null,null,null,null,null,null,null,null,null,null,null,null,null,null,null,null,null,null,"Touchstone Balanced A","SEBLX",null,null,null,null,"JPMorgan SmartRetirement 2040 R5","SMTIX","Fundos"]
[null,null,null,null,null,null,null,null,null,null,null,null,null,null,null,null,null,null,null,"Touchstone Balanced Y","SIBLX",null,null,null,null,"JPMorgan SmartRetirement 2040 R6","SMTYX","Fundos"]
[null,null,null,null,null,null,null,null,null,null,null,null,null,null,null,null,null,null,null,"Touchstone Dynamic Equity A","TDEAX",null,null,null,null,"JPMorgan SmartRetirement 2050 C","JTSCX","Fundos"]
[null,null,null,null,null,null,null,null,null,null,null,null,null,null,null,null,null,null,null,"Touchstone Dynamic Equity Y","TDEYX",null,null,null,null,"JPMorgan SmartRetirement 2050 I","JTSSX","Fundos"]
[null,null,null,null,null,null,null,null,null,null,null,null,null,null,null,null,null,null,null,"Touchstone International Equity A","SWRLX",null,null,null,null,"JPMorgan SmartRetirement 2050 R5","JTSIX","Fundos"]
[null,null,null,null,null,null,null,null,null,null,null,null,null,null,null,null,null,null,null,"Touchstone International Equity C","SWFCX",null,null,null,null,"JPMorgan SmartRetirement 2050 R6","JTSYX","Fundos"]
[null,null,null,null,null,null,null,null,null,null,null,null,null,null,null,null,null,null,null,"Touchstone International Equity Y","SIIEX",null,null,null,null,"JPMorgan SmartRetirement Blend 2030 R6","JRBYX","Fundos"]
[null,null,null,null,null,null,null,null,null,null,null,null,null,null,null,null,null,null,null,"Touchstone International Growth Opps A","TGGAX",null,null,null,null,"JPMorgan SmartRetirement Blend 2035 R5","JPBRX","Fundos"]
[null,null,null,null,null,null,null,null,null,null,null,null,null,null,null,null,null,null,null,"Touchstone International Growth Opps Ins","DSMGX",null,null,null,null,"JPMorgan SmartRetirement Blend 2035 R6","JPYRX","Fundos"]
[null,null,null,null,null,null,null,null,null,null,null,null,null,null,null,null,null,null,null,"Touchstone International Growth Opps Y","TYGGX",null,null,null,null,"JPMorgan SmartRetirement Blend 2040 I","JOBEX","Fundos"]
[null,null,null,null,null,null,null,null,null,null,null,null,null,null,null,null,null,null,null,"Touchstone Large Cap Focused A","SENCX",null,null,null,null,"JPMorgan SmartRetirement Blend 2040 R5","JOBBX","Fundos"]
[null,null,null,null,null,null,null,null,null,null,null,null,null,null,null,null,null,null,null,"Touchstone Large Cap Focused C","SCSCX",null,null,null,null,"JPMorgan SmartRetirement Blend 2045 R5","JMBRX","Fundos"]
[null,null,null,null,null,null,null,null,null,null,null,null,null,null,null,null,null,null,null,"Touchstone Large Cap Focused Y","SICWX",null,null,null,null,"JPMorgan SmartRetirement Blend 2045 R6","JMYAX","Fundos"]
[null,null,null,null,null,null,null,null,null,null,null,null,null,null,null,null,null,null,null,"Touchstone Large Company Growth A","TSAGX",null,null,null,null,"JPMorgan SmartRetirement Blend Inc I","JIJSX","Fundos"]
[null,null,null,null,null,null,null,null,null,null,null,null,null,null,null,null,null,null,null,"Touchstone Large Company Growth Instl","DSMLX",null,null,null,null,"JPMorgan SmartRetirement Blend Inc R5","JIBBX","Fundos"]
[null,null,null,null,null,null,null,null,null,null,null,null,null,null,null,null,null,null,null,"Touchstone Large Company Growth Y","TLGYX",null,null,null,null,"JPMorgan Tax Aware Equity I","JPDEX","Fundos"]
[null,null,null,null,null,null,null,null,null,null,null,null,null,null,null,null,null,null,null,"Touchstone Mid Cap Growth A","TEGAX",null,null,null,null,"JPMorgan US Equity I","JUESX","Fundos"]
[null,null,null,null,null,null,null,null,null,null,null,null,null,null,null,null,null,null,null,"Touchstone Mid Cap Growth C","TOECX",null,null,null,null,"JPMorgan US Equity L","JMUEX","Fundos"]
[null,null,null,null,null,null,null,null,null,null,null,null,null,null,null,null,null,null,null,"Touchstone Mid Cap Growth Inst","TEGIX",null,null,null,null,"JPMorgan US Equity R2","JUEZX","Fundos"]
[null,null,null,null,null,null,null,null,null,null,null,null,null,null,null,null,null,null,null,"Touchstone Mid Cap Growth Y","TEGYX",null,null,null,null,"JPMorgan US Equity R3","JUEPX","Fundos"]
[null,null,null,null,null,null,null,null,null,null,null,null,null,null,null,null,null,null,null,"Touchstone Mid Cap Value Inst","TCVIX",null,null,null,null,"JPMorgan US Equity R5","JUSRX","Fundos"]
[null,null,null,null,null,null,null,null,null,null,null,null,null,null,null,null,null,null,null,"Touchstone Sands Capital Inst Gr","CISGX",null,null,null,null,"JPMorgan US Research Enhanced Equity A","JDEAX","Fundos"]
[null,null,null,null,null,null,null,null,null,null,null,null,null,null,null,null,null,null,null,"Touchstone Sustainability & Imp Eq A","TEQAX",null,null,null,null,"JPMorgan US Research Enhanced Equity L","JPIEX","Fundos"]
[null,null,null,null,null,null,null,null,null,null,null,null,null,null,null,null,null,null,null,"Touchstone Sustainability & Imp Eq Instl","TROCX",null,null,null,null,"JPMorgan Value Advantage A","JVAAX","Fundos"]
[null,null,null,null,null,null,null,null,null,null,null,null,null,null,null,null,null,null,null,"Touchstone Sustainability & Imp Eq Y","TIQIX",null,null,null,null,"JPMorgan Value Advantage C","JVACX","Fundos"]
[null,null,null,null,null,null,null,null,null,null,null,null,null,null,null,null,null,null,null,"Towle Deep Value","TDVFX",null,null,null,null,"JPMorgan Value Advantage I","JVASX","Fundos"]
[null,null,null,null,null,null,null,null,null,null,null,null,null,null,null,null,null,null,null,"Transamerica Asset Allocation Growth A","IAAAX",null,null,null,null,"JPMorgan Value Advantage L","JVAIX","Fundos"]
[null,null,null,null,null,null,null,null,null,null,null,null,null,null,null,null,null,null,null,"Transamerica Capital Growth C","ILLLX",null,null,null,null,"JPMorgan Value Advantage R5","JVARX","Fundos"]
[null,null,null,null,null,null,null,null,null,null,null,null,null,null,null,null,null,null,null,"Transamerica Multi-Managed Balanced R6","TAMMX",null,null,null,null,"JPMorgan Value Advantage R6","JVAYX","Fundos"]
[null,null,null,null,null,null,null,null,null,null,null,null,null,null,null,null,null,null,null,"Transamerica Multi-Mgd Balanced A","IBALX",null,null,null,null,"Keeley Mid Cap Dividend Value A","KMDVX","Fundos"]
[null,null,null,null,null,null,null,null,null,null,null,null,null,null,null,null,null,null,null,"Transamerica Multi-Mgd Balanced B","IBABX",null,null,null,null,"Kinetics Alternative Income Advisor C","KWICX","Fundos"]
[null,null,null,null,null,null,null,null,null,null,null,null,null,null,null,null,null,null,null,"Tributary Small Company Instl Plus","FOSBX",null,null,null,null,"Kinetics Market Opportunities Inst","KMKYX","Fundos"]
[null,null,null,null,null,null,null,null,null,null,null,null,null,null,null,null,null,null,null,"Tweedy, Browne Global Value","TBGVX",null,null,null,null,"Kinetics Market Opportunities No Load","KMKNX","Fundos"]
[null,null,null,null,null,null,null,null,null,null,null,null,null,null,null,null,null,null,null,"UBS US Sustainable Equity C","BNQCX",null,null,null,null,"Lazard Emerging Markets Equity Open","LZOEX","Fundos"]
[null,null,null,null,null,null,null,null,null,null,null,null,null,null,null,null,null,null,null,"Undiscovered Managers Behavioral Val A","UBVAX",null,null,null,null,"Lazard Emerging Markets Equity R6","RLEMX","Fundos"]
[null,null,null,null,null,null,null,null,null,null,null,null,null,null,null,null,null,null,null,"Undiscovered Managers Behavioral Val I","UBVSX",null,null,null,null,"Lazard Global Listed Infrastructure Inst","GLIFX","Fundos"]
[null,null,null,null,null,null,null,null,null,null,null,null,null,null,null,null,null,null,null,"Undiscovered Managers Behavioral Val L","UBVLX",null,null,null,null,"Lazard Global Listed Infrastructure Open","GLFOX","Fundos"]
[null,null,null,null,null,null,null,null,null,null,null,null,null,null,null,null,null,null,null,"Undiscovered Managers Behavioral Val R2","UBVRX",null,null,null,null,"Lazard International Strategic Eq Instl","LISIX","Fundos"]
[null,null,null,null,null,null,null,null,null,null,null,null,null,null,null,null,null,null,null,"USAA Growth","USAAX",null,null,null,null,"Lazard International Strategic Eq R6","RLITX","Fundos"]
[null,null,null,null,null,null,null,null,null,null,null,null,null,null,null,null,null,null,null,"USAA Growth and Tax Strategy","USBLX",null,null,null,null,"Lazard US Equity Concentrated Instl","LEVIX","Fundos"]
[null,null,null,null,null,null,null,null,null,null,null,null,null,null,null,null,null,null,null,"USAA Growth Institutional","UIGRX",null,null,null,null,"Lazard US Equity Concentrated Open","LEVOX","Fundos"]
[null,null,null,null,null,null,null,null,null,null,null,null,null,null,null,null,null,null,null,"USAA NASDAQ-100 Index","USNQX",null,null,null,null,"Leland Thomson Reuters Vntr Cptl Idx A","LDVAX","Fundos"]
[null,null,null,null,null,null,null,null,null,null,null,null,null,null,null,null,null,null,null,"USAA S&P 500 Index Member","USSPX",null,null,null,null,"Leuthold Core Investment I","LCRIX","Fundos"]
[null,null,null,null,null,null,null,null,null,null,null,null,null,null,null,null,null,null,null,"USAA S&P 500 Index Reward","USPRX",null,null,null,null,"Leuthold Core Investment Retail","LCORX","Fundos"]
[null,null,null,null,null,null,null,null,null,null,null,null,null,null,null,null,null,null,null,"USAA Science & Technology","USSCX",null,null,null,null,"Leuthold Global Industries Institutional","LGIIX","Fundos"]
[null,null,null,null,null,null,null,null,null,null,null,null,null,null,null,null,null,null,null,"USAA World Growth","USAWX",null,null,null,null,"Leuthold Global Industries Retail","LGINX","Fundos"]
[null,null,null,null,null,null,null,null,null,null,null,null,null,null,null,null,null,null,null,"USAA World Growth Adviser","USWGX",null,null,null,null,"LKCM Balanced","LKBAX","Fundos"]
[null,null,null,null,null,null,null,null,null,null,null,null,null,null,null,null,null,null,null,"Value Line Asset Allocation Instl","VLAIX",null,null,null,null,"Loomis Sayles Global Allocation A","LGMAX","Fundos"]
[null,null,null,null,null,null,null,null,null,null,null,null,null,null,null,null,null,null,null,"Value Line Asset Allocation Investor","VLAAX",null,null,null,null,"Loomis Sayles Global Allocation C","LGMCX","Fundos"]
[null,null,null,null,null,null,null,null,null,null,null,null,null,null,null,null,null,null,null,"VanEck Emerging Markets A","GBFAX",null,null,null,null,"Loomis Sayles Global Allocation Y","LSWWX","Fundos"]
[null,null,null,null,null,null,null,null,null,null,null,null,null,null,null,null,null,null,null,"VanEck Emerging Markets Y","EMRYX",null,null,null,null,"Loomis Sayles Growth N","LGRNX","Fundos"]
[null,null,null,null,null,null,null,null,null,null,null,null,null,null,null,null,null,null,null,"Vanguard Balanced Index Adm","VBIAX",null,null,null,null,"Loomis Sayles Growth Y","LSGRX","Fundos"]
[null,null,null,null,null,null,null,null,null,null,null,null,null,null,null,null,null,null,null,"Vanguard Balanced Index I","VBAIX",null,null,null,null,"Loomis Sayles Small Cap Growth N","LSSNX","Fundos"]
[null,null,null,null,null,null,null,null,null,null,null,null,null,null,null,null,null,null,null,"Vanguard Capital Opportunity Adm","VHCAX",null,null,null,null,"Loomis Sayles Small Cap Value Admin","LSVAX","Fundos"]
[null,null,null,null,null,null,null,null,null,null,null,null,null,null,null,null,null,null,null,"Vanguard Capital Opportunity Inv","VHCOX",null,null,null,null,"Loomis Sayles Small Cap Value Instl","LSSCX","Fundos"]
[null,null,null,null,null,null,null,null,null,null,null,null,null,null,null,null,null,null,null,"Vanguard Dividend Growth Inv","VDIGX",null,null,null,null,"Loomis Sayles Small Cap Value N","LSCNX","Fundos"]
[null,null,null,null,null,null,null,null,null,null,null,null,null,null,null,null,null,null,null,"Vanguard Emerging Mkts Govt Bd Idx Instl","VGIVX",null,null,null,null,"Loomis Sayles Small Cap Value Retail","LSCRX","Fundos"]
[null,null,null,null,null,null,null,null,null,null,null,null,null,null,null,null,null,null,null,"Vanguard Energy Adm","VGELX",null,null,null,null,"Lord Abbett Growth Leaders B","GLABX","Fundos"]
[null,null,null,null,null,null,null,null,null,null,null,null,null,null,null,null,null,null,null,"Vanguard Energy Inv","VGENX",null,null,null,null,"Lord Abbett Micro Cap Growth I","LMIYX","Fundos"]
[null,null,null,null,null,null,null,null,null,null,null,null,null,null,null,null,null,null,null,"Vanguard Equity-Income Adm","VEIRX",null,null,null,null,"Lord Abbett Micro Cap Value I","LMVYX","Fundos"]
[null,null,null,null,null,null,null,null,null,null,null,null,null,null,null,null,null,null,null,"Vanguard Equity-Income Inv","VEIPX",null,null,null,null,"Lord Abbett Multi-Asset Focused Gr C","LDSCX","Fundos"]
[null,null,null,null,null,null,null,null,null,null,null,null,null,null,null,null,null,null,null,"Vanguard Global Equity Inv","VHGEX",null,null,null,null,"LSV Value Equity Investor","LVAEX","Fundos"]
[null,null,null,null,null,null,null,null,null,null,null,null,null,null,null,null,null,null,null,"Vanguard Global Minimum Volatility Admr","VMNVX",null,null,null,null,"Lyrical US Value Equity Institutional","LYRIX","Fundos"]
[null,null,null,null,null,null,null,null,null,null,null,null,null,null,null,null,null,null,null,"Vanguard Growth & Income Adm","VGIAX",null,null,null,null,"Lyrical US Value Equity Investor","LYRBX","Fundos"]
[null,null,null,null,null,null,null,null,null,null,null,null,null,null,null,null,null,null,null,"Vanguard Growth & Income Inv","VQNPX",null,null,null,null,"Macquarie Pooled Large Cap Value","DPDEX","Fundos"]
[null,null,null,null,null,null,null,null,null,null,null,null,null,null,null,null,null,null,null,"Vanguard Growth Index Admiral","VIGAX",null,null,null,null,"MainStay Income Builder B","MKTRX","Fundos"]
[null,null,null,null,null,null,null,null,null,null,null,null,null,null,null,null,null,null,null,"Vanguard High Dividend Yield Index Inv","VHDYX",null,null,null,null,"MainStay Income Builder Inv","MTINX","Fundos"]
[null,null,null,null,null,null,null,null,null,null,null,null,null,null,null,null,null,null,null,"Vanguard Inflation-Protected Secs Adm","VAIPX",null,null,null,null,"MainStay Income Builder R3","MTXVX","Fundos"]
[null,null,null,null,null,null,null,null,null,null,null,null,null,null,null,null,null,null,null,"Vanguard Institutional Index I","VINIX",null,null,null,null,"MainStay MacKay Convertible B","MCSVX","Fundos"]
[null,null,null,null,null,null,null,null,null,null,null,null,null,null,null,null,null,null,null,"Vanguard Institutional Index Instl Pl","VIIIX",null,null,null,null,"MainStay MacKay Convertible I","MCNVX","Fundos"]
[null,null,null,null,null,null,null,null,null,null,null,null,null,null,null,null,null,null,null,"Vanguard Instl Ttl Stk Mkt Idx I","VITNX",null,null,null,null,"MainStay MacKay Convertible Investor","MCINX","Fundos"]
[null,null,null,null,null,null,null,null,null,null,null,null,null,null,null,null,null,null,null,"Vanguard Instl Ttl Stk Mkt Idx InstlPls","VITPX",null,null,null,null,"MainStay MacKay S&P 500 Index Inv","MYSPX","Fundos"]
[null,null,null,null,null,null,null,null,null,null,null,null,null,null,null,null,null,null,null,"Vanguard International Explorer Inv","VINEX",null,null,null,null,"Mairs & Power Balanced Inv","MAPOX","Fundos"]
[null,null,null,null,null,null,null,null,null,null,null,null,null,null,null,null,null,null,null,"Vanguard International Growth Adm","VWILX",null,null,null,null,"Mairs & Power Growth Inv","MPGFX","Fundos"]
[null,null,null,null,null,null,null,null,null,null,null,null,null,null,null,null,null,null,null,"Vanguard International Growth Inv","VWIGX",null,null,null,null,"Mairs & Power Small Cap","MSCFX","Fundos"]
[null,null,null,null,null,null,null,null,null,null,null,null,null,null,null,null,null,null,null,"Vanguard International Value Inv","VTRIX",null,null,null,null,"Managers Institutional Micro-Cap","MIMFX","Fundos"]
[null,null,null,null,null,null,null,null,null,null,null,null,null,null,null,null,null,null,null,"Vanguard LifeStrategy Cnsrv Gr Inv","VSCGX",null,null,null,null,"Manning & Napier Rainier Intl Discv I","RAIIX","Fundos"]
[null,null,null,null,null,null,null,null,null,null,null,null,null,null,null,null,null,null,null,"Vanguard LifeStrategy Growth Inv","VASGX",null,null,null,null,"Manning & Napier Rainier Intl Discv K","RISAX","Fundos"]
[null,null,null,null,null,null,null,null,null,null,null,null,null,null,null,null,null,null,null,"Vanguard LifeStrategy Income Inv","VASIX",null,null,null,null,"Marsico Global","MGLBX","Fundos"]
[null,null,null,null,null,null,null,null,null,null,null,null,null,null,null,null,null,null,null,"Vanguard Mid-Cap Growth Index Admiral","VMGMX",null,null,null,null,"Matthew 25","MXXVX","Fundos"]
[null,null,null,null,null,null,null,null,null,null,null,null,null,null,null,null,null,null,null,"Vanguard Mid-Cap Growth Index Investor","VMGIX",null,null,null,null,"Matthews Asia Dividend Instl","MIPIX","Fundos"]
[null,null,null,null,null,null,null,null,null,null,null,null,null,null,null,null,null,null,null,"Vanguard Morgan Growth Inv","VMRGX",null,null,null,null,"Matthews Asia Growth Investor","MPACX","Fundos"]
[null,null,null,null,null,null,null,null,null,null,null,null,null,null,null,null,null,null,null,"Vanguard PRIMECAP Adm","VPMAX",null,null,null,null,"Matthews China Dividend Instl","MICDX","Fundos"]
[null,null,null,null,null,null,null,null,null,null,null,null,null,null,null,null,null,null,null,"Vanguard PRIMECAP Core Inv","VPCCX",null,null,null,null,"Matthews China Dividend Investor","MCDFX","Fundos"]
[null,null,null,null,null,null,null,null,null,null,null,null,null,null,null,null,null,null,null,"Vanguard PRIMECAP Inv","VPMCX",null,null,null,null,"Matthews India Instl","MIDNX","Fundos"]
[null,null,null,null,null,null,null,null,null,null,null,null,null,null,null,null,null,null,null,"Vanguard Selected Value Inv","VASVX",null,null,null,null,"Matthews India Investor","MINDX","Fundos"]
[null,null,null,null,null,null,null,null,null,null,null,null,null,null,null,null,null,null,null,"Vanguard Strategic Equity Inv","VSEQX",null,null,null,null,"Matthews Japan Instl","MIJFX","Fundos"]
[null,null,null,null,null,null,null,null,null,null,null,null,null,null,null,null,null,null,null,"Vanguard Strategic Small-Cap Equity Inv","VSTCX",null,null,null,null,"Matthews Pacific Tiger Instl","MIPTX","Fundos"]
[null,null,null,null,null,null,null,null,null,null,null,null,null,null,null,null,null,null,null,"Vanguard Tax-Managed Balanced Adm","VTMFX",null,null,null,null,"Matthews Pacific Tiger Investor","MAPTX","Fundos"]
[null,null,null,null,null,null,null,null,null,null,null,null,null,null,null,null,null,null,null,"Vanguard Tax-Managed Capital App Adm","VTCLX",null,null,null,null,"Meeder Quantex Adviser","QNTAX","Fundos"]
[null,null,null,null,null,null,null,null,null,null,null,null,null,null,null,null,null,null,null,"Vanguard Tax-Managed Capital App I","VTCIX",null,null,null,null,"Meeder Quantex Institutional","QNTIX","Fundos"]
[null,null,null,null,null,null,null,null,null,null,null,null,null,null,null,null,null,null,null,"Vanguard Tax-Managed Small Cap Adm","VTMSX",null,null,null,null,"Meeder Quantex Retail","FLCGX","Fundos"]
[null,null,null,null,null,null,null,null,null,null,null,null,null,null,null,null,null,null,null,"Vanguard Tax-Managed Small Cap I","VTSIX",null,null,null,null,"Meridian Contrarian A","MFCAX","Fundos"]
[null,null,null,null,null,null,null,null,null,null,null,null,null,null,null,null,null,null,null,"Vanguard US Growth Admiral","VWUAX",null,null,null,null,"Meridian Contrarian C","MFCCX","Fundos"]
[null,null,null,null,null,null,null,null,null,null,null,null,null,null,null,null,null,null,null,"Vanguard US Growth Inv","VWUSX",null,null,null,null,"Meridian Contrarian Investor","MFCIX","Fundos"]
[null,null,null,null,null,null,null,null,null,null,null,null,null,null,null,null,null,null,null,"Vanguard US Value Inv","VUVLX",null,null,null,null,"Meridian Growth Investor","MRIGX","Fundos"]
[null,null,null,null,null,null,null,null,null,null,null,null,null,null,null,null,null,null,null,"Vanguard Wellesley Income Admiral","VWIAX",null,null,null,null,"Meridian Small Cap Growth A","MSGAX","Fundos"]
[null,null,null,null,null,null,null,null,null,null,null,null,null,null,null,null,null,null,null,"Vanguard Wellesley Income Inv","VWINX",null,null,null,null,"Meridian Small Cap Growth Institutional","MSGRX","Fundos"]
[null,null,null,null,null,null,null,null,null,null,null,null,null,null,null,null,null,null,null,"Vanguard Wellington Admiral","VWENX",null,null,null,null,"Meritage Growth Equity Institutional","MPGIX","Fundos"]
[null,null,null,null,null,null,null,null,null,null,null,null,null,null,null,null,null,null,null,"Vanguard Wellington Inv","VWELX",null,null,null,null,"Meritage Growth Equity Investor","MPGEX","Fundos"]
[null,null,null,null,null,null,null,null,null,null,null,null,null,null,null,null,null,null,null,"Vanguard Windsor Inv","VWNDX",null,null,null,null,"MFS Instl International Equity","MIEIX","Fundos"]
[null,null,null,null,null,null,null,null,null,null,null,null,null,null,null,null,null,null,null,"Victory INCORE Investment Grd Convert A","SBFCX",null,null,null,null,"Mondrian International Equity","DPIEX","Fundos"]
[null,null,null,null,null,null,null,null,null,null,null,null,null,null,null,null,null,null,null,"Victory Integrity Discovery A","MMEAX",null,null,null,null,"Morgan Stanley Inst Frontier Mkts A","MFMPX","Fundos"]
[null,null,null,null,null,null,null,null,null,null,null,null,null,null,null,null,null,null,null,"Victory Integrity Discovery R","MMERX",null,null,null,null,"Morgan Stanley Inst Frontier Mkts IS","MSRFX","Fundos"]
[null,null,null,null,null,null,null,null,null,null,null,null,null,null,null,null,null,null,null,"Victory Integrity Discovery Y","MMEYX",null,null,null,null,"Morgan Stanley Inst Global Advtg A","MIGPX","Fundos"]
[null,null,null,null,null,null,null,null,null,null,null,null,null,null,null,null,null,null,null,"Victory Integrity Mid-Cap Value Y","MYIMX",null,null,null,null,"Morgan Stanley Inst Global Advtg I","MIGIX","Fundos"]
[null,null,null,null,null,null,null,null,null,null,null,null,null,null,null,null,null,null,null,"Victory Munder Mid-Cap Core Growth R","MMSRX",null,null,null,null,"Morgan Stanley Inst Global Franchise L","MSFLX","Fundos"]
[null,null,null,null,null,null,null,null,null,null,null,null,null,null,null,null,null,null,null,"Victory Sycamore Established Value C","VEVCX",null,null,null,null,"Morgan Stanley Inst Global Opp I","MGGIX","Fundos"]
[null,null,null,null,null,null,null,null,null,null,null,null,null,null,null,null,null,null,null,"Victory Sycamore Established Value I","VEVIX",null,null,null,null,"Morgan Stanley Inst Global Opp L","MGGLX","Fundos"]
[null,null,null,null,null,null,null,null,null,null,null,null,null,null,null,null,null,null,null,"Victory Sycamore Established Value R6","VEVRX",null,null,null,null,"Morgan Stanley Inst International Opp A","MIOPX","Fundos"]
[null,null,null,null,null,null,null,null,null,null,null,null,null,null,null,null,null,null,null,"Victory Sycamore Small Company Opp A","SSGSX",null,null,null,null,"Morgan Stanley Inst International Opp C","MSOCX","Fundos"]
[null,null,null,null,null,null,null,null,null,null,null,null,null,null,null,null,null,null,null,"Victory US 500 Enh Vol Wtd Idx I","CUHIX",null,null,null,null,"Nationwide Geneva Small Cap Gr A","NWHZX","Fundos"]
[null,null,null,null,null,null,null,null,null,null,null,null,null,null,null,null,null,null,null,"Virtus Duff & Phelps Glb Rl Estt Secs A","VGSAX",null,null,null,null,"Nationwide Mid Cap Market Idx A","GMXAX","Fundos"]
[null,null,null,null,null,null,null,null,null,null,null,null,null,null,null,null,null,null,null,"Virtus Duff & Phelps Glb Rl Estt Secs C","VGSCX",null,null,null,null,"Nationwide Mid Cap Market Idx C","GMCCX","Fundos"]
[null,null,null,null,null,null,null,null,null,null,null,null,null,null,null,null,null,null,null,"Virtus Duff & Phelps Glb Rl Estt Secs I","VGISX",null,null,null,null,"Nationwide Mid Cap Market Idx Instl Svc","NWXQX","Fundos"]
[null,null,null,null,null,null,null,null,null,null,null,null,null,null,null,null,null,null,null,"Virtus KAR International Small-Cap I","VIISX",null,null,null,null,"Nationwide S&P 500 Index A","GRMAX","Fundos"]
[null,null,null,null,null,null,null,null,null,null,null,null,null,null,null,null,null,null,null,"Virtus KAR International Small-Cap R6","VRISX",null,null,null,null,"Nationwide S&P 500 Index C","GRMCX","Fundos"]
[null,null,null,null,null,null,null,null,null,null,null,null,null,null,null,null,null,null,null,"Virtus KAR Mid-Cap Core A","VMACX",null,null,null,null,"Nationwide S&P 500 Index Instl Svc","GRISX","Fundos"]
[null,null,null,null,null,null,null,null,null,null,null,null,null,null,null,null,null,null,null,"Virtus KAR Mid-Cap Core C","VMCCX",null,null,null,null,"Nationwide S&P 500 Index R6","GRMIX","Fundos"]
[null,null,null,null,null,null,null,null,null,null,null,null,null,null,null,null,null,null,null,"Virtus KAR Mid-Cap Core I","VIMCX",null,null,null,null,"Nationwide Small Company Growth A","NWSAX","Fundos"]
[null,null,null,null,null,null,null,null,null,null,null,null,null,null,null,null,null,null,null,"Virtus KAR Small-Cap Core A","PKSAX",null,null,null,null,"Nationwide WCM Focused Sm Cp A","NWGPX","Fundos"]
[null,null,null,null,null,null,null,null,null,null,null,null,null,null,null,null,null,null,null,"Virtus KAR Small-Cap Core C","PKSCX",null,null,null,null,"Nationwide WCM Focused Sm Cp C","NWGQX","Fundos"]
[null,null,null,null,null,null,null,null,null,null,null,null,null,null,null,null,null,null,null,"Virtus KAR Small-Cap Core I","PKSFX",null,null,null,null,"Nationwide WCM Focused Sm Cp Instl Svc","NWGSX","Fundos"]
[null,null,null,null,null,null,null,null,null,null,null,null,null,null,null,null,null,null,null,"Virtus KAR Small-Cap Core R6","VSCRX",null,null,null,null,"Nationwide WCM Focused Sm Cp R6","NWKEX","Fundos"]
[null,null,null,null,null,null,null,null,null,null,null,null,null,null,null,null,null,null,null,"Virtus KAR Small-Cap Growth A","PSGAX",null,null,null,null,"Nationwide Ziegler NYSEArcaTech100InsSvc","NWJFX","Fundos"]
[null,null,null,null,null,null,null,null,null,null,null,null,null,null,null,null,null,null,null,"Virtus KAR Small-Cap Growth C","PSGCX",null,null,null,null,"Natixis Oakmark A","NEFOX","Fundos"]
[null,null,null,null,null,null,null,null,null,null,null,null,null,null,null,null,null,null,null,"Virtus KAR Small-Cap Growth I","PXSGX",null,null,null,null,"Natixis US Equity Opportunities A","NEFSX","Fundos"]
[null,null,null,null,null,null,null,null,null,null,null,null,null,null,null,null,null,null,null,"Virtus KAR Small-Cap Value R6","VQSRX",null,null,null,null,"Natixis US Equity Opportunities Y","NESYX","Fundos"]
[null,null,null,null,null,null,null,null,null,null,null,null,null,null,null,null,null,null,null,"Virtus Vontobel Global Opportunities A","NWWOX",null,null,null,null,"Natixis Vaughan Nelson Small Cap Value A","NEFJX","Fundos"]
[null,null,null,null,null,null,null,null,null,null,null,null,null,null,null,null,null,null,null,"Virtus Vontobel Global Opportunities I","WWOIX",null,null,null,null,"Natixis Vaughan Nelson Small Cap Value Y","NEJYX","Fundos"]
[null,null,null,null,null,null,null,null,null,null,null,null,null,null,null,null,null,null,null,"Virtus Zevenbergen Innovative Gr Stk I","SCATX",null,null,null,null,"Needham Aggressive Growth Institutional","NEAIX","Fundos"]
[null,null,null,null,null,null,null,null,null,null,null,null,null,null,null,null,null,null,null,"Vivaldi Multi-Strategy A","OMOAX",null,null,null,null,"Needham Aggressive Growth Retail","NEAGX","Fundos"]
[null,null,null,null,null,null,null,null,null,null,null,null,null,null,null,null,null,null,null,"Vivaldi Multi-Strategy I","OMOIX",null,null,null,null,"Needham Small Cap Growth Institutional","NESIX","Fundos"]
[null,null,null,null,null,null,null,null,null,null,null,null,null,null,null,null,null,null,null,"Voya Small Company I","AESGX",null,null,null,null,"Neuberger Berman Genesis Instl","NBGIX","Fundos"]
[null,null,null,null,null,null,null,null,null,null,null,null,null,null,null,null,null,null,null,"Voya Small Company W","ISMWX",null,null,null,null,"Neuberger Berman Genesis Inv","NBGNX","Fundos"]
[null,null,null,null,null,null,null,null,null,null,null,null,null,null,null,null,null,null,null,"Walden Asset Management","WSBFX",null,null,null,null,"Neuberger Berman Genesis Tr","NBGEX","Fundos"]
[null,null,null,null,null,null,null,null,null,null,null,null,null,null,null,null,null,null,null,"Wasatch Core Growth","WGROX",null,null,null,null,"Nicholas II I","NCTWX","Fundos"]
[null,null,null,null,null,null,null,null,null,null,null,null,null,null,null,null,null,null,null,"Wasatch International Growth Instl","WIIGX",null,null,null,null,"Nicholas II N","NNTWX","Fundos"]
[null,null,null,null,null,null,null,null,null,null,null,null,null,null,null,null,null,null,null,"Wasatch Small Cap Growth Investor","WAAEX",null,null,null,null,"Nicholas Limited Edition N","NNLEX","Fundos"]
[null,null,null,null,null,null,null,null,null,null,null,null,null,null,null,null,null,null,null,"Wasatch World Innovators Institutional","WIGTX",null,null,null,null,"North Star Dividend I","NSDVX","Fundos"]
[null,null,null,null,null,null,null,null,null,null,null,null,null,null,null,null,null,null,null,"Wasatch World Innovators Investor","WAGTX",null,null,null,null,"Northern Large Cap Core","NOLCX","Fundos"]
[null,null,null,null,null,null,null,null,null,null,null,null,null,null,null,null,null,null,null,"Wasatch-Hoisington US Treasury","WHOSX",null,null,null,null,"Northern Mid Cap Index","NOMIX","Fundos"]
[null,null,null,null,null,null,null,null,null,null,null,null,null,null,null,null,null,null,null,"Wells Fargo C&B Mid Cap Value Inst","CBMSX",null,null,null,null,"Northern Small Cap Value","NOSGX","Fundos"]
[null,null,null,null,null,null,null,null,null,null,null,null,null,null,null,null,null,null,null,"Wells Fargo Global Small Cap Admin","EKGYX",null,null,null,null,"Northern Stock Index","NOSIX","Fundos"]
[null,null,null,null,null,null,null,null,null,null,null,null,null,null,null,null,null,null,null,"Wells Fargo Global Small Cap C","EKGCX",null,null,null,null,"Nuveen Equity Long/Short A","NELAX","Fundos"]
[null,null,null,null,null,null,null,null,null,null,null,null,null,null,null,null,null,null,null,"Wells Fargo Global Small Cap Inst","EKGIX",null,null,null,null,"Nuveen Equity Long/Short C","NELCX","Fundos"]
[null,null,null,null,null,null,null,null,null,null,null,null,null,null,null,null,null,null,null,"Wells Fargo Growth A","SGRAX",null,null,null,null,"Nuveen Equity Long/Short I","NELIX","Fundos"]
[null,null,null,null,null,null,null,null,null,null,null,null,null,null,null,null,null,null,null,"Wells Fargo Intrinsic World Equity Inst","EWENX",null,null,null,null,"Nuveen Equity Market Neutral A","NMAEX","Fundos"]
[null,null,null,null,null,null,null,null,null,null,null,null,null,null,null,null,null,null,null,"Wells Fargo Large Cap Core Admin","WFLLX",null,null,null,null,"Nuveen Equity Market Neutral I","NIMEX","Fundos"]
[null,null,null,null,null,null,null,null,null,null,null,null,null,null,null,null,null,null,null,"Wells Fargo Large Cap Core Inst","EGOIX",null,null,null,null,"Nuveen High Yield Municipal Bond A","NHMAX","Fundos"]
[null,null,null,null,null,null,null,null,null,null,null,null,null,null,null,null,null,null,null,"Wells Fargo Large Cap Core R","EGOHX",null,null,null,null,"Nuveen High Yield Municipal Bond C","NHCCX","Fundos"]
[null,null,null,null,null,null,null,null,null,null,null,null,null,null,null,null,null,null,null,"Wells Fargo Large Cap Core R6","EGORX",null,null,null,null,"Nuveen High Yield Municipal Bond C2","NHMCX","Fundos"]
[null,null,null,null,null,null,null,null,null,null,null,null,null,null,null,null,null,null,null,"Wells Fargo Small Cap Opportunities Adm","NVSOX",null,null,null,null,"Nuveen High Yield Municipal Bond I","NHMRX","Fundos"]
[null,null,null,null,null,null,null,null,null,null,null,null,null,null,null,null,null,null,null,"Wells Fargo Small Cap Opportunities Inst","WSCOX",null,null,null,null,"Nuveen High Yield Municipal Bond R6","NHMFX","Fundos"]
[null,null,null,null,null,null,null,null,null,null,null,null,null,null,null,null,null,null,null,"Wells Fargo Small Cap Opportunities R6","WSCJX",null,null,null,null,"Nuveen International Growth Fd R6","NBQFX","Fundos"]
[null,null,null,null,null,null,null,null,null,null,null,null,null,null,null,null,null,null,null,"Wells Fargo Small Company Growth Admin","NVSCX",null,null,null,null,"Nuveen Large Cap Core A","NLACX","Fundos"]
[null,null,null,null,null,null,null,null,null,null,null,null,null,null,null,null,null,null,null,"Wells Fargo Small Company Growth Inst","WSCGX",null,null,null,null,"Nuveen Large Cap Core C","NLCDX","Fundos"]
[null,null,null,null,null,null,null,null,null,null,null,null,null,null,null,null,null,null,null,"Western Asset Managed Municipals 1","SMMOX",null,null,null,null,"Nuveen Large Cap Core I","NLCIX","Fundos"]
[null,null,null,null,null,null,null,null,null,null,null,null,null,null,null,null,null,null,null,"Western Asset Managed Municipals A","SHMMX",null,null,null,null,"Nuveen Large Cap Growth C","NLCGX","Fundos"]
[null,null,null,null,null,null,null,null,null,null,null,null,null,null,null,null,null,null,null,"Westwood SmallCap Institutional","WHGSX",null,null,null,null,"Nuveen Large Cap Select C","FLYCX","Fundos"]
[null,null,null,null,null,null,null,null,null,null,null,null,null,null,null,null,null,null,null,"William Blair Emerg Mkts Sm Cp Gr I","BESIX",null,null,null,null,"Nuveen Large Cap Select I","FLRYX","Fundos"]
[null,null,null,null,null,null,null,null,null,null,null,null,null,null,null,null,null,null,null,"William Blair Emerg Mkts Sm Cp Gr Instl","WESJX",null,null,null,null,"Nuveen Large-Cap Value A","NNGAX","Fundos"]
[null,null,null,null,null,null,null,null,null,null,null,null,null,null,null,null,null,null,null,"William Blair Emerg Mkts Sm Cp Gr N","WESNX",null,null,null,null,"Nuveen Mid Cap Value C","FACSX","Fundos"]
[null,null,null,null,null,null,null,null,null,null,null,null,null,null,null,null,null,null,null,"William Blair Emerging Mkts Growth I","WBEIX",null,null,null,null,"Nuveen NWQ Flexible Income A","NWQAX","Fundos"]
[null,null,null,null,null,null,null,null,null,null,null,null,null,null,null,null,null,null,null,"William Blair Emerging Mkts Growth Instl","BIEMX",null,null,null,null,"Nuveen NWQ Flexible Income C","NWQCX","Fundos"]
[null,null,null,null,null,null,null,null,null,null,null,null,null,null,null,null,null,null,null,"William Blair International Ldrs Instl","WILJX",null,null,null,null,"Nuveen NWQ Flexible Income I","NWQIX","Fundos"]
[null,null,null,null,null,null,null,null,null,null,null,null,null,null,null,null,null,null,null,"William Blair International Ldrs N","WILNX",null,null,null,null,"Nuveen NWQ Flexible Income R6","NQWFX","Fundos"]
[null,null,null,null,null,null,null,null,null,null,null,null,null,null,null,null,null,null,null,"William Blair Large Cap Growth I","LCGFX",null,null,null,null,"Nuveen NWQ Small-Cap Value C","NSCCX","Fundos"]
[null,null,null,null,null,null,null,null,null,null,null,null,null,null,null,null,null,null,null,"William Blair Small Cap Growth I","WBSIX",null,null,null,null,"Nuveen NWQ Small-Cap Value I","NSCRX","Fundos"]
[null,null,null,null,null,null,null,null,null,null,null,null,null,null,null,null,null,null,null,"William Blair Small Cap Growth N","WBSNX",null,null,null,null,"Nuveen NWQ Small-Cap Value R6","NSCFX","Fundos"]
[null,null,null,null,null,null,null,null,null,null,null,null,null,null,null,null,null,null,null,"William Blair Small Cap Value I","BVDIX",null,null,null,null,"Nuveen Preferred Secs & Inc R6","NPSFX","Fundos"]
[null,null,null,null,null,null,null,null,null,null,null,null,null,null,null,null,null,null,null,"William Blair Small Cap Value N","WBVDX",null,null,null,null,"Nuveen Real Asset Income A","NRIAX","Fundos"]
[null,null,null,null,null,null,null,null,null,null,null,null,null,null,null,null,null,null,null,"William Blair Small-Mid Cap Gr I","WSMDX",null,null,null,null,"Nuveen Real Asset Income C","NRICX","Fundos"]
[null,null,null,null,null,null,null,null,null,null,null,null,null,null,null,null,null,null,null,"William Blair Small-Mid Cap Gr N","WSMNX",null,null,null,null,"Nuveen Real Asset Income I","NRIIX","Fundos"]
[null,null,null,null,null,null,null,null,null,null,null,null,null,null,null,null,null,null,null,"Wilmington Large-Cap Strategy Instl","WMLIX",null,null,null,null,"Nuveen Real Asset Income R6","NRIFX","Fundos"]
[null,null,null,null,null,null,null,null,null,null,null,null,null,null,null,null,null,null,null,"Wilshire Small Company Growth Instl","WSMGX",null,null,null,null,"Nuveen Real Estate Securities A","FREAX","Fundos"]
[null,null,null,null,null,null,null,null,null,null,null,null,null,null,null,null,null,null,null,"Wilshire Small Company Growth Invmt","DTSGX",null,null,null,null,"Nuveen Real Estate Securities I","FARCX","Fundos"]
[null,null,null,null,null,null,null,null,null,null,null,null,null,null,null,null,null,null,null,"Wilshire Small Company Value Instl","WSMVX",null,null,null,null,"Nuveen Real Estate Securities R3","FRSSX","Fundos"]
[null,null,null,null,null,null,null,null,null,null,null,null,null,null,null,null,null,null,null,"Wilshire Small Company Value Invmt","DTSVX",null,null,null,null,"Nuveen Small Cap Growth Opp I","FIMPX","Fundos"]
[null,null,null,null,null,null,null,null,null,null,null,null,null,null,null,null,null,null,null,"Zacks Small-Cap Core Institutional","ZSCIX",null,null,null,null,"Nuveen Small Cap Value A","FSCAX","Fundos"]
[null,null,null,null,null,null,null,null,null,null,null,null,null,null,null,null,null,null,null,"Zacks Small-Cap Core Inv","ZSCCX",null,null,null,null,"Nuveen Small Cap Value C","FSCVX","Fundos"]
[null,null,null,null,null,null,null,null,null,null,null,null,null,null,null,null,null,null,null,null,null,null,null,null,null,"Nuveen Small Cap Value I","FSCCX","Fundos"]
[null,null,null,null,null,null,null,null,null,null,null,null,null,null,null,null,null,null,null,null,null,null,null,null,null,"Nuveen Small Cap Value R6","FSCWX","Fundos"]
[null,null,null,null,null,null,null,null,null,null,null,null,null,null,null,null,null,null,null,null,null,null,null,null,null,"Nuveen Symphony Credit Opportunities I","NCOIX","Fundos"]
[null,null,null,null,null,null,null,null,null,null,null,null,null,null,null,null,null,null,null,null,null,null,null,null,null,"Nuveen Symphony Floating Rate Income A","NFRAX","Fundos"]
[null,null,null,null,null,null,null,null,null,null,null,null,null,null,null,null,null,null,null,null,null,null,null,null,null,"Nuveen Symphony Floating Rate Income C","NFFCX","Fundos"]
[null,null,null,null,null,null,null,null,null,null,null,null,null,null,null,null,null,null,null,null,null,null,null,null,null,"Nuveen Symphony Floating Rate Income R6","NFRFX","Fundos"]
[null,null,null,null,null,null,null,null,null,null,null,null,null,null,null,null,null,null,null,null,null,null,null,null,null,"Nuveen Symphony Low Volatility Equity R6","NOPFX","Fundos"]
[null,null,null,null,null,null,null,null,null,null,null,null,null,null,null,null,null,null,null,null,null,null,null,null,null,"Nuveen Symphony Small Cap Core I","NSSIX","Fundos"]
[null,null,null,null,null,null,null,null,null,null,null,null,null,null,null,null,null,null,null,null,null,null,null,null,null,"Oppenheimer Global Allocation C","QGRCX","Fundos"]
[null,null,null,null,null,null,null,null,null,null,null,null,null,null,null,null,null,null,null,null,null,null,null,null,null,"Oppenheimer Global Allocation R","QGRNX","Fundos"]
[null,null,null,null,null,null,null,null,null,null,null,null,null,null,null,null,null,null,null,null,null,null,null,null,null,"Oppenheimer Global Value R","GLVNX","Fundos"]
[null,null,null,null,null,null,null,null,null,null,null,null,null,null,null,null,null,null,null,null,null,null,null,null,null,"Oppenheimer Main Street B","OMSBX","Fundos"]
[null,null,null,null,null,null,null,null,null,null,null,null,null,null,null,null,null,null,null,null,null,null,null,null,null,"Oppenheimer Main Street I","OMSIX","Fundos"]
[null,null,null,null,null,null,null,null,null,null,null,null,null,null,null,null,null,null,null,null,null,null,null,null,null,"Oppenheimer Main Street R","OMGNX","Fundos"]
[null,null,null,null,null,null,null,null,null,null,null,null,null,null,null,null,null,null,null,null,null,null,null,null,null,"Oppenheimer Main Street Y","MIGYX","Fundos"]
[null,null,null,null,null,null,null,null,null,null,null,null,null,null,null,null,null,null,null,null,null,null,null,null,null,"Oppenheimer Real Estate C","ORECX","Fundos"]
[null,null,null,null,null,null,null,null,null,null,null,null,null,null,null,null,null,null,null,null,null,null,null,null,null,"Oppenheimer Real Estate R","ORENX","Fundos"]
[null,null,null,null,null,null,null,null,null,null,null,null,null,null,null,null,null,null,null,null,null,null,null,null,null,"PACE International Equity A","PWGAX","Fundos"]
[null,null,null,null,null,null,null,null,null,null,null,null,null,null,null,null,null,null,null,null,null,null,null,null,null,"PACE International Equity C","PWGCX","Fundos"]
[null,null,null,null,null,null,null,null,null,null,null,null,null,null,null,null,null,null,null,null,null,null,null,null,null,"PACE International Equity P","PCIEX","Fundos"]
[null,null,null,null,null,null,null,null,null,null,null,null,null,null,null,null,null,null,null,null,null,null,null,null,null,"PACE International Equity Y","PWIYX","Fundos"]
[null,null,null,null,null,null,null,null,null,null,null,null,null,null,null,null,null,null,null,null,null,null,null,null,null,"Paradigm Micro-Cap","PVIVX","Fundos"]
[null,null,null,null,null,null,null,null,null,null,null,null,null,null,null,null,null,null,null,null,null,null,null,null,null,"Parnassus","PARNX","Fundos"]
[null,null,null,null,null,null,null,null,null,null,null,null,null,null,null,null,null,null,null,null,null,null,null,null,null,"Parnassus Core Equity Institutional","PRILX","Fundos"]
[null,null,null,null,null,null,null,null,null,null,null,null,null,null,null,null,null,null,null,null,null,null,null,null,null,"Parnassus Core Equity Investor","PRBLX","Fundos"]
[null,null,null,null,null,null,null,null,null,null,null,null,null,null,null,null,null,null,null,null,null,null,null,null,null,"Parnassus Endeavor Institutional","PFPWX","Fundos"]
[null,null,null,null,null,null,null,null,null,null,null,null,null,null,null,null,null,null,null,null,null,null,null,null,null,"Parnassus Endeavor Investor","PARWX","Fundos"]
[null,null,null,null,null,null,null,null,null,null,null,null,null,null,null,null,null,null,null,null,null,null,null,null,null,"Parnassus Institutional","PFPRX","Fundos"]
[null,null,null,null,null,null,null,null,null,null,null,null,null,null,null,null,null,null,null,null,null,null,null,null,null,"Parnassus Mid Cap Institutional","PFPMX","Fundos"]
[null,null,null,null,null,null,null,null,null,null,null,null,null,null,null,null,null,null,null,null,null,null,null,null,null,"Parnassus Mid-Cap","PARMX","Fundos"]
[null,null,null,null,null,null,null,null,null,null,null,null,null,null,null,null,null,null,null,null,null,null,null,null,null,"Payden Equity Income","PYVLX","Fundos"]
[null,null,null,null,null,null,null,null,null,null,null,null,null,null,null,null,null,null,null,null,null,null,null,null,null,"Payden Equity Income SI","PYVSX","Fundos"]
[null,null,null,null,null,null,null,null,null,null,null,null,null,null,null,null,null,null,null,null,null,null,null,null,null,"Pear Tree Polaris Fgn Val Sm Cap Instl","QUSIX","Fundos"]
[null,null,null,null,null,null,null,null,null,null,null,null,null,null,null,null,null,null,null,null,null,null,null,null,null,"Pear Tree Polaris Fgn Val Sm Cap Ord","QUSOX","Fundos"]
[null,null,null,null,null,null,null,null,null,null,null,null,null,null,null,null,null,null,null,null,null,null,null,null,null,"Pear Tree Polaris Foreign Value Instl","QFVIX","Fundos"]
[null,null,null,null,null,null,null,null,null,null,null,null,null,null,null,null,null,null,null,null,null,null,null,null,null,"Pear Tree Polaris Foreign Value Ord","QFVOX","Fundos"]
[null,null,null,null,null,null,null,null,null,null,null,null,null,null,null,null,null,null,null,null,null,null,null,null,null,"Performance Trust Municipal Bond Instl","PTIMX","Fundos"]
[null,null,null,null,null,null,null,null,null,null,null,null,null,null,null,null,null,null,null,null,null,null,null,null,null,"Performance Trust Municipal Bond Retail","PTRMX","Fundos"]
[null,null,null,null,null,null,null,null,null,null,null,null,null,null,null,null,null,null,null,null,null,null,null,null,null,"Performance Trust Strategic Bond","PTIAX","Fundos"]
[null,null,null,null,null,null,null,null,null,null,null,null,null,null,null,null,null,null,null,null,null,null,null,null,null,"PGIM Balanced B","PBFBX","Fundos"]
[null,null,null,null,null,null,null,null,null,null,null,null,null,null,null,null,null,null,null,null,null,null,null,null,null,"PGIM Balanced C","PABCX","Fundos"]
[null,null,null,null,null,null,null,null,null,null,null,null,null,null,null,null,null,null,null,null,null,null,null,null,null,"PGIM Balanced R","PALRX","Fundos"]
[null,null,null,null,null,null,null,null,null,null,null,null,null,null,null,null,null,null,null,null,null,null,null,null,null,"PGIM Balanced Z","PABFX","Fundos"]
[null,null,null,null,null,null,null,null,null,null,null,null,null,null,null,null,null,null,null,null,null,null,null,null,null,"PGIM Jennison Equity Opportunity A","PJIAX","Fundos"]
[null,null,null,null,null,null,null,null,null,null,null,null,null,null,null,null,null,null,null,null,null,null,null,null,null,"PGIM Jennison Equity Opportunity C","PJGCX","Fundos"]
[null,null,null,null,null,null,null,null,null,null,null,null,null,null,null,null,null,null,null,null,null,null,null,null,null,"PGIM Jennison Global Opportunities R6","PRJQX","Fundos"]
[null,null,null,null,null,null,null,null,null,null,null,null,null,null,null,null,null,null,null,null,null,null,null,null,null,"PGIM Jennison Growth B","PJFBX","Fundos"]
[null,null,null,null,null,null,null,null,null,null,null,null,null,null,null,null,null,null,null,null,null,null,null,null,null,"PGIM QMA Large-Cap Core Equity A","PTMAX","Fundos"]
[null,null,null,null,null,null,null,null,null,null,null,null,null,null,null,null,null,null,null,null,null,null,null,null,null,"PGIM QMA Large-Cap Core Equity B","PTMBX","Fundos"]
[null,null,null,null,null,null,null,null,null,null,null,null,null,null,null,null,null,null,null,null,null,null,null,null,null,"PGIM QMA Large-Cap Core Equity Z","PTEZX","Fundos"]
[null,null,null,null,null,null,null,null,null,null,null,null,null,null,null,null,null,null,null,null,null,null,null,null,null,"PGIM QMA Mid-Cap Value A","SPRAX","Fundos"]
[null,null,null,null,null,null,null,null,null,null,null,null,null,null,null,null,null,null,null,null,null,null,null,null,null,"PGIM QMA Mid-Cap Value B","SVUBX","Fundos"]
[null,null,null,null,null,null,null,null,null,null,null,null,null,null,null,null,null,null,null,null,null,null,null,null,null,"PGIM QMA Mid-Cap Value C","NCBVX","Fundos"]
[null,null,null,null,null,null,null,null,null,null,null,null,null,null,null,null,null,null,null,null,null,null,null,null,null,"PGIM QMA Mid-Cap Value R","SDVRX","Fundos"]
[null,null,null,null,null,null,null,null,null,null,null,null,null,null,null,null,null,null,null,null,null,null,null,null,null,"PGIM QMA Mid-Cap Value Z","SPVZX","Fundos"]
[null,null,null,null,null,null,null,null,null,null,null,null,null,null,null,null,null,null,null,null,null,null,null,null,null,"PGIM QMA Small-Cap Value C","TRACX","Fundos"]
[null,null,null,null,null,null,null,null,null,null,null,null,null,null,null,null,null,null,null,null,null,null,null,null,null,"PGIM QMA Stock Index A","PSIAX","Fundos"]
[null,null,null,null,null,null,null,null,null,null,null,null,null,null,null,null,null,null,null,null,null,null,null,null,null,"PGIM QMA Stock Index C","PSICX","Fundos"]
[null,null,null,null,null,null,null,null,null,null,null,null,null,null,null,null,null,null,null,null,null,null,null,null,null,"PGIM QMA Stock Index I","PDSIX","Fundos"]
[null,null,null,null,null,null,null,null,null,null,null,null,null,null,null,null,null,null,null,null,null,null,null,null,null,"PGIM QMA Stock Index Z","PSIFX","Fundos"]
[null,null,null,null,null,null,null,null,null,null,null,null,null,null,null,null,null,null,null,null,null,null,null,null,null,"Phocas Real Estate","PHREX","Fundos"]
[null,null,null,null,null,null,null,null,null,null,null,null,null,null,null,null,null,null,null,null,null,null,null,null,null,"Pin Oak Equity","POGSX","Fundos"]
[null,null,null,null,null,null,null,null,null,null,null,null,null,null,null,null,null,null,null,null,null,null,null,null,null,"Plumb Balanced","PLBBX","Fundos"]
[null,null,null,null,null,null,null,null,null,null,null,null,null,null,null,null,null,null,null,null,null,null,null,null,null,"Polen Growth Institutional","POLIX","Fundos"]
[null,null,null,null,null,null,null,null,null,null,null,null,null,null,null,null,null,null,null,null,null,null,null,null,null,"Polen Growth Investor","POLRX","Fundos"]
[null,null,null,null,null,null,null,null,null,null,null,null,null,null,null,null,null,null,null,null,null,null,null,null,null,"Poplar Forest Partners A","PFPFX","Fundos"]
[null,null,null,null,null,null,null,null,null,null,null,null,null,null,null,null,null,null,null,null,null,null,null,null,null,"Poplar Forest Partners Institutional","IPFPX","Fundos"]
[null,null,null,null,null,null,null,null,null,null,null,null,null,null,null,null,null,null,null,null,null,null,null,null,null,"Praxis Growth Index I","MMDEX","Fundos"]
[null,null,null,null,null,null,null,null,null,null,null,null,null,null,null,null,null,null,null,null,null,null,null,null,null,"PRIMECAP Odyssey Aggressive Growth","POAGX","Fundos"]
[null,null,null,null,null,null,null,null,null,null,null,null,null,null,null,null,null,null,null,null,null,null,null,null,null,"PRIMECAP Odyssey Growth","POGRX","Fundos"]
[null,null,null,null,null,null,null,null,null,null,null,null,null,null,null,null,null,null,null,null,null,null,null,null,null,"PRIMECAP Odyssey Stock","POSKX","Fundos"]
[null,null,null,null,null,null,null,null,null,null,null,null,null,null,null,null,null,null,null,null,null,null,null,null,null,"ProFunds Biotechnology UltraSector Inv","BIPIX","Fundos"]
[null,null,null,null,null,null,null,null,null,null,null,null,null,null,null,null,null,null,null,null,null,null,null,null,null,"ProFunds Biotechnology UltraSector Svc","BIPSX","Fundos"]
[null,null,null,null,null,null,null,null,null,null,null,null,null,null,null,null,null,null,null,null,null,null,null,null,null,"ProFunds Consumer Goods UltraSector","CNPSX","Fundos"]
[null,null,null,null,null,null,null,null,null,null,null,null,null,null,null,null,null,null,null,null,null,null,null,null,null,"ProFunds Consumer Goods UltraSector Inv","CNPIX","Fundos"]
[null,null,null,null,null,null,null,null,null,null,null,null,null,null,null,null,null,null,null,null,null,null,null,null,null,"ProFunds Consumer Services Ultra Sec Inv","CYPIX","Fundos"]
[null,null,null,null,null,null,null,null,null,null,null,null,null,null,null,null,null,null,null,null,null,null,null,null,null,"ProFunds Consumer Services Ultra Sec Svc","CYPSX","Fundos"]
[null,null,null,null,null,null,null,null,null,null,null,null,null,null,null,null,null,null,null,null,null,null,null,null,null,"ProFunds Internet UltraSector Inv","INPIX","Fundos"]
[null,null,null,null,null,null,null,null,null,null,null,null,null,null,null,null,null,null,null,null,null,null,null,null,null,"ProFunds Internet UltraSector Svc","INPSX","Fundos"]
[null,null,null,null,null,null,null,null,null,null,null,null,null,null,null,null,null,null,null,null,null,null,null,null,null,"ProFunds Mid Cap Growth Inv","MGPIX","Fundos"]
[null,null,null,null,null,null,null,null,null,null,null,null,null,null,null,null,null,null,null,null,null,null,null,null,null,"ProFunds NASDAQ-100 Inv","OTPIX","Fundos"]
[null,null,null,null,null,null,null,null,null,null,null,null,null,null,null,null,null,null,null,null,null,null,null,null,null,"ProFunds NASDAQ-100 Svc","OTPSX","Fundos"]
[null,null,null,null,null,null,null,null,null,null,null,null,null,null,null,null,null,null,null,null,null,null,null,null,null,"ProFunds Small Cap Growth Inv","SGPIX","Fundos"]
[null,null,null,null,null,null,null,null,null,null,null,null,null,null,null,null,null,null,null,null,null,null,null,null,null,"ProFunds UltraMid Cap Inv","UMPIX","Fundos"]
[null,null,null,null,null,null,null,null,null,null,null,null,null,null,null,null,null,null,null,null,null,null,null,null,null,"ProFunds UltraMid Cap Svc","UMPSX","Fundos"]
[null,null,null,null,null,null,null,null,null,null,null,null,null,null,null,null,null,null,null,null,null,null,null,null,null,"ProFunds UltraNASDAQ-100 Inv","UOPIX","Fundos"]
[null,null,null,null,null,null,null,null,null,null,null,null,null,null,null,null,null,null,null,null,null,null,null,null,null,"ProFunds UltraNASDAQ-100 Svc","UOPSX","Fundos"]
[null,null,null,null,null,null,null,null,null,null,null,null,null,null,null,null,null,null,null,null,null,null,null,null,null,"ProFunds UltraSector Oil & Gas Investor","ENPIX","Fundos"]
[null,null,null,null,null,null,null,null,null,null,null,null,null,null,null,null,null,null,null,null,null,null,null,null,null,"ProFunds UltraSector Oil & Gas Svc","ENPSX","Fundos"]
[null,null,null,null,null,null,null,null,null,null,null,null,null,null,null,null,null,null,null,null,null,null,null,null,null,"Prospector Opportunity","POPFX","Fundos"]
[null,null,null,null,null,null,null,null,null,null,null,null,null,null,null,null,null,null,null,null,null,null,null,null,null,"RBC Small Cap Core A","TEEAX","Fundos"]
[null,null,null,null,null,null,null,null,null,null,null,null,null,null,null,null,null,null,null,null,null,null,null,null,null,"RBC Small Cap Core R6","RBRCX","Fundos"]
[null,null,null,null,null,null,null,null,null,null,null,null,null,null,null,null,null,null,null,null,null,null,null,null,null,"Red Oak Technology Select","ROGSX","Fundos"]
[null,null,null,null,null,null,null,null,null,null,null,null,null,null,null,null,null,null,null,null,null,null,null,null,null,"Redwood Managed Volatility I","RWDIX","Fundos"]
[null,null,null,null,null,null,null,null,null,null,null,null,null,null,null,null,null,null,null,null,null,null,null,null,null,"Redwood Managed Volatility Y","RWDYX","Fundos"]
[null,null,null,null,null,null,null,null,null,null,null,null,null,null,null,null,null,null,null,null,null,null,null,null,null,"Riverbridge Growth Institutional","RIVBX","Fundos"]
[null,null,null,null,null,null,null,null,null,null,null,null,null,null,null,null,null,null,null,null,null,null,null,null,null,"RMB Mendon Financial Long/Short A","RMBFX","Fundos"]
[null,null,null,null,null,null,null,null,null,null,null,null,null,null,null,null,null,null,null,null,null,null,null,null,null,"RMB Mendon Financial Long/Short C","RMBCX","Fundos"]
[null,null,null,null,null,null,null,null,null,null,null,null,null,null,null,null,null,null,null,null,null,null,null,null,null,"RMB Mendon Financial Long/Short I","RMBIX","Fundos"]
[null,null,null,null,null,null,null,null,null,null,null,null,null,null,null,null,null,null,null,null,null,null,null,null,null,"RMB Mendon Financial Services A","RMBKX","Fundos"]
[null,null,null,null,null,null,null,null,null,null,null,null,null,null,null,null,null,null,null,null,null,null,null,null,null,"RMB Mendon Financial Services C","RMBNX","Fundos"]
[null,null,null,null,null,null,null,null,null,null,null,null,null,null,null,null,null,null,null,null,null,null,null,null,null,"Royce International Premier Consultant","RINPX","Fundos"]
[null,null,null,null,null,null,null,null,null,null,null,null,null,null,null,null,null,null,null,null,null,null,null,null,null,"Rydex Basic Materials A","RYBMX","Fundos"]
[null,null,null,null,null,null,null,null,null,null,null,null,null,null,null,null,null,null,null,null,null,null,null,null,null,"Rydex Basic Materials C","RYBCX","Fundos"]
[null,null,null,null,null,null,null,null,null,null,null,null,null,null,null,null,null,null,null,null,null,null,null,null,null,"Rydex Basic Materials H","RYBAX","Fundos"]
[null,null,null,null,null,null,null,null,null,null,null,null,null,null,null,null,null,null,null,null,null,null,null,null,null,"Rydex Basic Materials Inv","RYBIX","Fundos"]
[null,null,null,null,null,null,null,null,null,null,null,null,null,null,null,null,null,null,null,null,null,null,null,null,null,"Rydex Biotechnology Inv","RYOIX","Fundos"]
[null,null,null,null,null,null,null,null,null,null,null,null,null,null,null,null,null,null,null,null,null,null,null,null,null,"Rydex Consumer Products A","RYPDX","Fundos"]
[null,null,null,null,null,null,null,null,null,null,null,null,null,null,null,null,null,null,null,null,null,null,null,null,null,"Rydex Consumer Products C","RYCPX","Fundos"]
[null,null,null,null,null,null,null,null,null,null,null,null,null,null,null,null,null,null,null,null,null,null,null,null,null,"Rydex Consumer Products Inv","RYCIX","Fundos"]
[null,null,null,null,null,null,null,null,null,null,null,null,null,null,null,null,null,null,null,null,null,null,null,null,null,"Rydex Dow 2x Strategy A","RYLDX","Fundos"]
[null,null,null,null,null,null,null,null,null,null,null,null,null,null,null,null,null,null,null,null,null,null,null,null,null,"Rydex Dow 2x Strategy C","RYCYX","Fundos"]
[null,null,null,null,null,null,null,null,null,null,null,null,null,null,null,null,null,null,null,null,null,null,null,null,null,"Rydex Dow 2x Strategy H","RYCVX","Fundos"]
[null,null,null,null,null,null,null,null,null,null,null,null,null,null,null,null,null,null,null,null,null,null,null,null,null,"Rydex High Yield Strategy A","RYHDX","Fundos"]
[null,null,null,null,null,null,null,null,null,null,null,null,null,null,null,null,null,null,null,null,null,null,null,null,null,"Rydex High Yield Strategy C","RYHHX","Fundos"]
[null,null,null,null,null,null,null,null,null,null,null,null,null,null,null,null,null,null,null,null,null,null,null,null,null,"Rydex High Yield Strategy H","RYHGX","Fundos"]
[null,null,null,null,null,null,null,null,null,null,null,null,null,null,null,null,null,null,null,null,null,null,null,null,null,"Rydex Leisure Inv","RYLIX","Fundos"]
[null,null,null,null,null,null,null,null,null,null,null,null,null,null,null,null,null,null,null,null,null,null,null,null,null,"Rydex NASDAQ-100 2x Strategy C","RYCCX","Fundos"]
[null,null,null,null,null,null,null,null,null,null,null,null,null,null,null,null,null,null,null,null,null,null,null,null,null,"Rydex NASDAQ-100 2x Strategy H","RYVYX","Fundos"]
[null,null,null,null,null,null,null,null,null,null,null,null,null,null,null,null,null,null,null,null,null,null,null,null,null,"Rydex NASDAQ-100 A","RYATX","Fundos"]
[null,null,null,null,null,null,null,null,null,null,null,null,null,null,null,null,null,null,null,null,null,null,null,null,null,"Rydex NASDAQ-100 C","RYCOX","Fundos"]
[null,null,null,null,null,null,null,null,null,null,null,null,null,null,null,null,null,null,null,null,null,null,null,null,null,"Rydex NASDAQ-100 H","RYHOX","Fundos"]
[null,null,null,null,null,null,null,null,null,null,null,null,null,null,null,null,null,null,null,null,null,null,null,null,null,"Rydex NASDAQ-100 Inv","RYOCX","Fundos"]
[null,null,null,null,null,null,null,null,null,null,null,null,null,null,null,null,null,null,null,null,null,null,null,null,null,"SA International Small Company Investor","SAISX","Fundos"]
[null,null,null,null,null,null,null,null,null,null,null,null,null,null,null,null,null,null,null,null,null,null,null,null,null,"SA US Value Investor","SABTX","Fundos"]
[null,null,null,null,null,null,null,null,null,null,null,null,null,null,null,null,null,null,null,null,null,null,null,null,null,"Salient Select Income Advisor","FSIMX","Fundos"]
[null,null,null,null,null,null,null,null,null,null,null,null,null,null,null,null,null,null,null,null,null,null,null,null,null,"Salient Select Income C","KIFCX","Fundos"]
[null,null,null,null,null,null,null,null,null,null,null,null,null,null,null,null,null,null,null,null,null,null,null,null,null,"Salient Tactical Real Estate A","KSRAX","Fundos"]
[null,null,null,null,null,null,null,null,null,null,null,null,null,null,null,null,null,null,null,null,null,null,null,null,null,"Salient Tactical Real Estate Advisor","FRLSX","Fundos"]
[null,null,null,null,null,null,null,null,null,null,null,null,null,null,null,null,null,null,null,null,null,null,null,null,null,"Salient Tactical Real Estate Instl","KSRYX","Fundos"]
[null,null,null,null,null,null,null,null,null,null,null,null,null,null,null,null,null,null,null,null,null,null,null,null,null,"Salient Tactical Real Estate Inv","FFSRX","Fundos"]
[null,null,null,null,null,null,null,null,null,null,null,null,null,null,null,null,null,null,null,null,null,null,null,null,null,"Sands Capital Global Growth Inst","SCMGX","Fundos"]
[null,null,null,null,null,null,null,null,null,null,null,null,null,null,null,null,null,null,null,null,null,null,null,null,null,"Sands Capital Global Growth Inv","SCGVX","Fundos"]
[null,null,null,null,null,null,null,null,null,null,null,null,null,null,null,null,null,null,null,null,null,null,null,null,null,"Scharf Balanced Opportunity Retail","LOGBX","Fundos"]
[null,null,null,null,null,null,null,null,null,null,null,null,null,null,null,null,null,null,null,null,null,null,null,null,null,"Segall Bryant & Hamill MidCp ValDiv Ret","WTMCX","Fundos"]
[null,null,null,null,null,null,null,null,null,null,null,null,null,null,null,null,null,null,null,null,null,null,null,null,null,"SEI Aggressive Strategy F (SAAT)","SSGAX","Fundos"]
[null,null,null,null,null,null,null,null,null,null,null,null,null,null,null,null,null,null,null,null,null,null,null,null,null,"SEI Core Market Strategy Allc F (SAAT)","SKTAX","Fundos"]
[null,null,null,null,null,null,null,null,null,null,null,null,null,null,null,null,null,null,null,null,null,null,null,null,null,"SEI Dynamic Asset Allocation A (SIIT)","SDLAX","Fundos"]
[null,null,null,null,null,null,null,null,null,null,null,null,null,null,null,null,null,null,null,null,null,null,null,null,null,"SEI Large Cap Index A (SIIT)","LCIAX","Fundos"]
[null,null,null,null,null,null,null,null,null,null,null,null,null,null,null,null,null,null,null,null,null,null,null,null,null,"SEI Market Growth Strategy Allc F (SAAT)","SGOAX","Fundos"]
[null,null,null,null,null,null,null,null,null,null,null,null,null,null,null,null,null,null,null,null,null,null,null,null,null,"SEI Mid-Cap I (SIMT)","SIPIX","Fundos"]
[null,null,null,null,null,null,null,null,null,null,null,null,null,null,null,null,null,null,null,null,null,null,null,null,null,"SEI Mid-Cap Y (SIMT)","SFDYX","Fundos"]
[null,null,null,null,null,null,null,null,null,null,null,null,null,null,null,null,null,null,null,null,null,null,null,null,null,"SEI Moderate Strategy Allc F (SAAT)","SXMAX","Fundos"]
[null,null,null,null,null,null,null,null,null,null,null,null,null,null,null,null,null,null,null,null,null,null,null,null,null,"SEI S&P 500 Index A (SIIT)","SPINX","Fundos"]
[null,null,null,null,null,null,null,null,null,null,null,null,null,null,null,null,null,null,null,null,null,null,null,null,null,"SEI S&P 500 Index F (SIMT)","SSPIX","Fundos"]
[null,null,null,null,null,null,null,null,null,null,null,null,null,null,null,null,null,null,null,null,null,null,null,null,null,"SEI S&P 500 Index I (SIMT)","SPIIX","Fundos"]
[null,null,null,null,null,null,null,null,null,null,null,null,null,null,null,null,null,null,null,null,null,null,null,null,null,"SEI Tax-Managed Agrsv Strat F (SAAT)","SISAX","Fundos"]
[null,null,null,null,null,null,null,null,null,null,null,null,null,null,null,null,null,null,null,null,null,null,null,null,null,"SEI Tax-Managed Mgd Volatility F (SIMT)","TMMAX","Fundos"]
[null,null,null,null,null,null,null,null,null,null,null,null,null,null,null,null,null,null,null,null,null,null,null,null,null,"SEI Tax-Managed Mgd Volatility Y (SIMT)","STVYX","Fundos"]
[null,null,null,null,null,null,null,null,null,null,null,null,null,null,null,null,null,null,null,null,null,null,null,null,null,"SEI US Managed Volatility F (SIMT)","SVOAX","Fundos"]
[null,null,null,null,null,null,null,null,null,null,null,null,null,null,null,null,null,null,null,null,null,null,null,null,null,"SEI US Managed Volatility I (SIMT)","SEVIX","Fundos"]
[null,null,null,null,null,null,null,null,null,null,null,null,null,null,null,null,null,null,null,null,null,null,null,null,null,"SEI US Managed Volatility Y (SIMT)","SUSYX","Fundos"]
[null,null,null,null,null,null,null,null,null,null,null,null,null,null,null,null,null,null,null,null,null,null,null,null,null,"Sierra Tactical Core Income A","SSIZX","Fundos"]
[null,null,null,null,null,null,null,null,null,null,null,null,null,null,null,null,null,null,null,null,null,null,null,null,null,"Sierra Tactical Core Income R","SSIRX","Fundos"]
[null,null,null,null,null,null,null,null,null,null,null,null,null,null,null,null,null,null,null,null,null,null,null,null,null,"Sierra Tactical Core Income Y","SSIYX","Fundos"]
[null,null,null,null,null,null,null,null,null,null,null,null,null,null,null,null,null,null,null,null,null,null,null,null,null,"Sit Balanced","SIBAX","Fundos"]
[null,null,null,null,null,null,null,null,null,null,null,null,null,null,null,null,null,null,null,null,null,null,null,null,null,"Sit Dividend Growth I","SDVGX","Fundos"]
[null,null,null,null,null,null,null,null,null,null,null,null,null,null,null,null,null,null,null,null,null,null,null,null,null,"Sit Dividend Growth S","SDVSX","Fundos"]
[null,null,null,null,null,null,null,null,null,null,null,null,null,null,null,null,null,null,null,null,null,null,null,null,null,"Smead Value A","SVFAX","Fundos"]
[null,null,null,null,null,null,null,null,null,null,null,null,null,null,null,null,null,null,null,null,null,null,null,null,null,"Smead Value Investor","SMVLX","Fundos"]
[null,null,null,null,null,null,null,null,null,null,null,null,null,null,null,null,null,null,null,null,null,null,null,null,null,"Smead Value R1","SVFDX","Fundos"]
[null,null,null,null,null,null,null,null,null,null,null,null,null,null,null,null,null,null,null,null,null,null,null,null,null,"Smead Value R2","SVFKX","Fundos"]
[null,null,null,null,null,null,null,null,null,null,null,null,null,null,null,null,null,null,null,null,null,null,null,null,null,"Smead Value Y","SVFYX","Fundos"]
[null,null,null,null,null,null,null,null,null,null,null,null,null,null,null,null,null,null,null,null,null,null,null,null,null,"Sound Shore Institutional","SSHVX","Fundos"]
[null,null,null,null,null,null,null,null,null,null,null,null,null,null,null,null,null,null,null,null,null,null,null,null,null,"SSgA Dynamic Small Cap I","SSSJX","Fundos"]
[null,null,null,null,null,null,null,null,null,null,null,null,null,null,null,null,null,null,null,null,null,null,null,null,null,"SSgA S&P 500 Index N","SVSPX","Fundos"]
[null,null,null,null,null,null,null,null,null,null,null,null,null,null,null,null,null,null,null,null,null,null,null,null,null,"State Street Instl Premier Growth Eq Inv","SSPGX","Fundos"]
[null,null,null,null,null,null,null,null,null,null,null,null,null,null,null,null,null,null,null,null,null,null,null,null,null,"State Street Instl Small-Cap Equity Svc","SSQSX","Fundos"]
[null,null,null,null,null,null,null,null,null,null,null,null,null,null,null,null,null,null,null,null,null,null,null,null,null,"Summit GI US Low Volatility Equity A","LVOLX","Fundos"]
[null,null,null,null,null,null,null,null,null,null,null,null,null,null,null,null,null,null,null,null,null,null,null,null,null,"Summit GI US Low Volatility Equity I","SILVX","Fundos"]
[null,null,null,null,null,null,null,null,null,null,null,null,null,null,null,null,null,null,null,null,null,null,null,null,null,"T. Rowe Price Balanced","RPBAX","Fundos"]
[null,null,null,null,null,null,null,null,null,null,null,null,null,null,null,null,null,null,null,null,null,null,null,null,null,"T. Rowe Price Balanced I","RBAIX","Fundos"]
[null,null,null,null,null,null,null,null,null,null,null,null,null,null,null,null,null,null,null,null,null,null,null,null,null,"T. Rowe Price Blue Chip Growth","TRBCX","Fundos"]
[null,null,null,null,null,null,null,null,null,null,null,null,null,null,null,null,null,null,null,null,null,null,null,null,null,"T. Rowe Price Blue Chip Growth Advisor","PABGX","Fundos"]
[null,null,null,null,null,null,null,null,null,null,null,null,null,null,null,null,null,null,null,null,null,null,null,null,null,"T. Rowe Price Blue Chip Growth I","TBCIX","Fundos"]
[null,null,null,null,null,null,null,null,null,null,null,null,null,null,null,null,null,null,null,null,null,null,null,null,null,"T. Rowe Price Blue Chip Growth R","RRBGX","Fundos"]
[null,null,null,null,null,null,null,null,null,null,null,null,null,null,null,null,null,null,null,null,null,null,null,null,null,"T. Rowe Price Capital Appreciation","PRWCX","Fundos"]
[null,null,null,null,null,null,null,null,null,null,null,null,null,null,null,null,null,null,null,null,null,null,null,null,null,"T. Rowe Price Capital Appreciation Adv","PACLX","Fundos"]
[null,null,null,null,null,null,null,null,null,null,null,null,null,null,null,null,null,null,null,null,null,null,null,null,null,"T. Rowe Price Capital Appreciation I","TRAIX","Fundos"]
[null,null,null,null,null,null,null,null,null,null,null,null,null,null,null,null,null,null,null,null,null,null,null,null,null,"T. Rowe Price Capital Opportunity","PRCOX","Fundos"]
[null,null,null,null,null,null,null,null,null,null,null,null,null,null,null,null,null,null,null,null,null,null,null,null,null,"T. Rowe Price Capital Opportunity Adv","PACOX","Fundos"]
[null,null,null,null,null,null,null,null,null,null,null,null,null,null,null,null,null,null,null,null,null,null,null,null,null,"T. Rowe Price Capital Opportunity I","PCCOX","Fundos"]
[null,null,null,null,null,null,null,null,null,null,null,null,null,null,null,null,null,null,null,null,null,null,null,null,null,"T. Rowe Price Comm & Tech I","TTMIX","Fundos"]
[null,null,null,null,null,null,null,null,null,null,null,null,null,null,null,null,null,null,null,null,null,null,null,null,null,"T. Rowe Price Comm & Tech Investor","PRMTX","Fundos"]
[null,null,null,null,null,null,null,null,null,null,null,null,null,null,null,null,null,null,null,null,null,null,null,null,null,"T. Rowe Price Diversified Mid Cap Gr","PRDMX","Fundos"]
[null,null,null,null,null,null,null,null,null,null,null,null,null,null,null,null,null,null,null,null,null,null,null,null,null,"T. Rowe Price Dividend Growth","PRDGX","Fundos"]
[null,null,null,null,null,null,null,null,null,null,null,null,null,null,null,null,null,null,null,null,null,null,null,null,null,"T. Rowe Price Dividend Growth Advisor","TADGX","Fundos"]
[null,null,null,null,null,null,null,null,null,null,null,null,null,null,null,null,null,null,null,null,null,null,null,null,null,"T. Rowe Price Dividend Growth I","PDGIX","Fundos"]
[null,null,null,null,null,null,null,null,null,null,null,null,null,null,null,null,null,null,null,null,null,null,null,null,null,"T. Rowe Price Emerging Markets Stock","PRMSX","Fundos"]
[null,null,null,null,null,null,null,null,null,null,null,null,null,null,null,null,null,null,null,null,null,null,null,null,null,"T. Rowe Price Emerging Markets Stock I","PRZIX","Fundos"]
[null,null,null,null,null,null,null,null,null,null,null,null,null,null,null,null,null,null,null,null,null,null,null,null,null,"T. Rowe Price Equity Index 500","PREIX","Fundos"]
[null,null,null,null,null,null,null,null,null,null,null,null,null,null,null,null,null,null,null,null,null,null,null,null,null,"T. Rowe Price Equity Index 500 I","PRUIX","Fundos"]
[null,null,null,null,null,null,null,null,null,null,null,null,null,null,null,null,null,null,null,null,null,null,null,null,null,"T. Rowe Price Extended Equity Market Idx","PEXMX","Fundos"]
[null,null,null,null,null,null,null,null,null,null,null,null,null,null,null,null,null,null,null,null,null,null,null,null,null,"T. Rowe Price Financial Services","PRISX","Fundos"]
[null,null,null,null,null,null,null,null,null,null,null,null,null,null,null,null,null,null,null,null,null,null,null,null,null,"T. Rowe Price Financial Services I","TFIFX","Fundos"]
[null,null,null,null,null,null,null,null,null,null,null,null,null,null,null,null,null,null,null,null,null,null,null,null,null,"T. Rowe Price Global Growth Stock Adv","PAGLX","Fundos"]
[null,null,null,null,null,null,null,null,null,null,null,null,null,null,null,null,null,null,null,null,null,null,null,null,null,"T. Rowe Price Global Stock","PRGSX","Fundos"]
[null,null,null,null,null,null,null,null,null,null,null,null,null,null,null,null,null,null,null,null,null,null,null,null,null,"T. Rowe Price Global Stock Adv","PAGSX","Fundos"]
[null,null,null,null,null,null,null,null,null,null,null,null,null,null,null,null,null,null,null,null,null,null,null,null,null,"T. Rowe Price Global Technology","PRGTX","Fundos"]
[null,null,null,null,null,null,null,null,null,null,null,null,null,null,null,null,null,null,null,null,null,null,null,null,null,"T. Rowe Price Growth & Income","PRGIX","Fundos"]
[null,null,null,null,null,null,null,null,null,null,null,null,null,null,null,null,null,null,null,null,null,null,null,null,null,"T. Rowe Price Growth Stock","PRGFX","Fundos"]
[null,null,null,null,null,null,null,null,null,null,null,null,null,null,null,null,null,null,null,null,null,null,null,null,null,"T. Rowe Price Growth Stock Adv","TRSAX","Fundos"]
[null,null,null,null,null,null,null,null,null,null,null,null,null,null,null,null,null,null,null,null,null,null,null,null,null,"T. Rowe Price Growth Stock I","PRUFX","Fundos"]
[null,null,null,null,null,null,null,null,null,null,null,null,null,null,null,null,null,null,null,null,null,null,null,null,null,"T. Rowe Price Growth Stock R","RRGSX","Fundos"]
[null,null,null,null,null,null,null,null,null,null,null,null,null,null,null,null,null,null,null,null,null,null,null,null,null,"T. Rowe Price Health Sciences","PRHSX","Fundos"]
[null,null,null,null,null,null,null,null,null,null,null,null,null,null,null,null,null,null,null,null,null,null,null,null,null,"T. Rowe Price Health Sciences I","THISX","Fundos"]
[null,null,null,null,null,null,null,null,null,null,null,null,null,null,null,null,null,null,null,null,null,null,null,null,null,"T. Rowe Price Instl Emerging Mkts Eq","IEMFX","Fundos"]
[null,null,null,null,null,null,null,null,null,null,null,null,null,null,null,null,null,null,null,null,null,null,null,null,null,"T. Rowe Price Instl Glbl Gr Eq","RPIGX","Fundos"]
[null,null,null,null,null,null,null,null,null,null,null,null,null,null,null,null,null,null,null,null,null,null,null,null,null,"T. Rowe Price Instl Large Cap Core Gr","TPLGX","Fundos"]
[null,null,null,null,null,null,null,null,null,null,null,null,null,null,null,null,null,null,null,null,null,null,null,null,null,"T. Rowe Price Instl Large Cap Growth","TRLGX","Fundos"]
[null,null,null,null,null,null,null,null,null,null,null,null,null,null,null,null,null,null,null,null,null,null,null,null,null,"T. Rowe Price Instl Large Cap Value","TILCX","Fundos"]
[null,null,null,null,null,null,null,null,null,null,null,null,null,null,null,null,null,null,null,null,null,null,null,null,null,"T. Rowe Price Instl Mid-Cap Equity Gr","PMEGX","Fundos"]
[null,null,null,null,null,null,null,null,null,null,null,null,null,null,null,null,null,null,null,null,null,null,null,null,null,"T. Rowe Price Instl Small-Cap Stock","TRSSX","Fundos"]
[null,null,null,null,null,null,null,null,null,null,null,null,null,null,null,null,null,null,null,null,null,null,null,null,null,"T. Rowe Price International Discovery","PRIDX","Fundos"]
[null,null,null,null,null,null,null,null,null,null,null,null,null,null,null,null,null,null,null,null,null,null,null,null,null,"T. Rowe Price International Discovery I","TIDDX","Fundos"]
[null,null,null,null,null,null,null,null,null,null,null,null,null,null,null,null,null,null,null,null,null,null,null,null,null,"T. Rowe Price International Stock Adv","PAITX","Fundos"]
[null,null,null,null,null,null,null,null,null,null,null,null,null,null,null,null,null,null,null,null,null,null,null,null,null,"T. Rowe Price International Stock I","PRIUX","Fundos"]
[null,null,null,null,null,null,null,null,null,null,null,null,null,null,null,null,null,null,null,null,null,null,null,null,null,"T. Rowe Price Latin America","PRLAX","Fundos"]
[null,null,null,null,null,null,null,null,null,null,null,null,null,null,null,null,null,null,null,null,null,null,null,null,null,"T. Rowe Price Mid-Cap Growth","RPMGX","Fundos"]
[null,null,null,null,null,null,null,null,null,null,null,null,null,null,null,null,null,null,null,null,null,null,null,null,null,"T. Rowe Price Mid-Cap Growth Adv","PAMCX","Fundos"]
[null,null,null,null,null,null,null,null,null,null,null,null,null,null,null,null,null,null,null,null,null,null,null,null,null,"T. Rowe Price Mid-Cap Growth I","RPTIX","Fundos"]
[null,null,null,null,null,null,null,null,null,null,null,null,null,null,null,null,null,null,null,null,null,null,null,null,null,"T. Rowe Price Mid-Cap Growth R","RRMGX","Fundos"]
[null,null,null,null,null,null,null,null,null,null,null,null,null,null,null,null,null,null,null,null,null,null,null,null,null,"T. Rowe Price Mid-Cap Value","TRMCX","Fundos"]
[null,null,null,null,null,null,null,null,null,null,null,null,null,null,null,null,null,null,null,null,null,null,null,null,null,"T. Rowe Price Mid-Cap Value Adv","TAMVX","Fundos"]
[null,null,null,null,null,null,null,null,null,null,null,null,null,null,null,null,null,null,null,null,null,null,null,null,null,"T. Rowe Price Mid-Cap Value I","TRMIX","Fundos"]
[null,null,null,null,null,null,null,null,null,null,null,null,null,null,null,null,null,null,null,null,null,null,null,null,null,"T. Rowe Price Mid-Cap Value R","RRMVX","Fundos"]
[null,null,null,null,null,null,null,null,null,null,null,null,null,null,null,null,null,null,null,null,null,null,null,null,null,"T. Rowe Price New America Growth","PRWAX","Fundos"]
[null,null,null,null,null,null,null,null,null,null,null,null,null,null,null,null,null,null,null,null,null,null,null,null,null,"T. Rowe Price New America Growth Advisor","PAWAX","Fundos"]
[null,null,null,null,null,null,null,null,null,null,null,null,null,null,null,null,null,null,null,null,null,null,null,null,null,"T. Rowe Price New America Growth I","PNAIX","Fundos"]
[null,null,null,null,null,null,null,null,null,null,null,null,null,null,null,null,null,null,null,null,null,null,null,null,null,"T. Rowe Price New Asia","PRASX","Fundos"]
[null,null,null,null,null,null,null,null,null,null,null,null,null,null,null,null,null,null,null,null,null,null,null,null,null,"T. Rowe Price New Horizons","PRNHX","Fundos"]
[null,null,null,null,null,null,null,null,null,null,null,null,null,null,null,null,null,null,null,null,null,null,null,null,null,"T. Rowe Price New Horizons I","PRJIX","Fundos"]
[null,null,null,null,null,null,null,null,null,null,null,null,null,null,null,null,null,null,null,null,null,null,null,null,null,"T. Rowe Price Personal Strat Bal","TRPBX","Fundos"]
[null,null,null,null,null,null,null,null,null,null,null,null,null,null,null,null,null,null,null,null,null,null,null,null,null,"T. Rowe Price Personal Strat Bal I","TPPAX","Fundos"]
[null,null,null,null,null,null,null,null,null,null,null,null,null,null,null,null,null,null,null,null,null,null,null,null,null,"T. Rowe Price Personal Strat Gr","TRSGX","Fundos"]
[null,null,null,null,null,null,null,null,null,null,null,null,null,null,null,null,null,null,null,null,null,null,null,null,null,"T. Rowe Price Personal Strat Gr I","TGIPX","Fundos"]
[null,null,null,null,null,null,null,null,null,null,null,null,null,null,null,null,null,null,null,null,null,null,null,null,null,"T. Rowe Price Personal Strat Inc","PRSIX","Fundos"]
[null,null,null,null,null,null,null,null,null,null,null,null,null,null,null,null,null,null,null,null,null,null,null,null,null,"T. Rowe Price Personal Strat Inc I","PPIPX","Fundos"]
[null,null,null,null,null,null,null,null,null,null,null,null,null,null,null,null,null,null,null,null,null,null,null,null,null,"T. Rowe Price QM US Small-Cap Gr Eq","PRDSX","Fundos"]
[null,null,null,null,null,null,null,null,null,null,null,null,null,null,null,null,null,null,null,null,null,null,null,null,null,"T. Rowe Price QM US Small-Cap Gr Eq Adv","TQAAX","Fundos"]
[null,null,null,null,null,null,null,null,null,null,null,null,null,null,null,null,null,null,null,null,null,null,null,null,null,"T. Rowe Price QM US Small-Cap Gr Eq I","TQAIX","Fundos"]
[null,null,null,null,null,null,null,null,null,null,null,null,null,null,null,null,null,null,null,null,null,null,null,null,null,"T. Rowe Price Real Estate Advisor","PAREX","Fundos"]
[null,null,null,null,null,null,null,null,null,null,null,null,null,null,null,null,null,null,null,null,null,null,null,null,null,"T. Rowe Price Retirement 2010","TRRAX","Fundos"]
[null,null,null,null,null,null,null,null,null,null,null,null,null,null,null,null,null,null,null,null,null,null,null,null,null,"T. Rowe Price Retirement 2010 Advisor","PARAX","Fundos"]
[null,null,null,null,null,null,null,null,null,null,null,null,null,null,null,null,null,null,null,null,null,null,null,null,null,"T. Rowe Price Retirement 2010 R","RRTAX","Fundos"]
[null,null,null,null,null,null,null,null,null,null,null,null,null,null,null,null,null,null,null,null,null,null,null,null,null,"T. Rowe Price Retirement 2020","TRRBX","Fundos"]
[null,null,null,null,null,null,null,null,null,null,null,null,null,null,null,null,null,null,null,null,null,null,null,null,null,"T. Rowe Price Retirement 2020 Advisor","PARBX","Fundos"]
[null,null,null,null,null,null,null,null,null,null,null,null,null,null,null,null,null,null,null,null,null,null,null,null,null,"T. Rowe Price Retirement 2020 R","RRTBX","Fundos"]
[null,null,null,null,null,null,null,null,null,null,null,null,null,null,null,null,null,null,null,null,null,null,null,null,null,"T. Rowe Price Retirement 2025","TRRHX","Fundos"]
[null,null,null,null,null,null,null,null,null,null,null,null,null,null,null,null,null,null,null,null,null,null,null,null,null,"T. Rowe Price Retirement 2025 Advisor","PARJX","Fundos"]
[null,null,null,null,null,null,null,null,null,null,null,null,null,null,null,null,null,null,null,null,null,null,null,null,null,"T. Rowe Price Retirement 2025 R","RRTNX","Fundos"]
[null,null,null,null,null,null,null,null,null,null,null,null,null,null,null,null,null,null,null,null,null,null,null,null,null,"T. Rowe Price Retirement 2030","TRRCX","Fundos"]
[null,null,null,null,null,null,null,null,null,null,null,null,null,null,null,null,null,null,null,null,null,null,null,null,null,"T. Rowe Price Retirement 2030 Advisor","PARCX","Fundos"]
[null,null,null,null,null,null,null,null,null,null,null,null,null,null,null,null,null,null,null,null,null,null,null,null,null,"T. Rowe Price Retirement 2030 R","RRTCX","Fundos"]
[null,null,null,null,null,null,null,null,null,null,null,null,null,null,null,null,null,null,null,null,null,null,null,null,null,"T. Rowe Price Retirement 2035","TRRJX","Fundos"]
[null,null,null,null,null,null,null,null,null,null,null,null,null,null,null,null,null,null,null,null,null,null,null,null,null,"T. Rowe Price Retirement 2035 Advisor","PARKX","Fundos"]
[null,null,null,null,null,null,null,null,null,null,null,null,null,null,null,null,null,null,null,null,null,null,null,null,null,"T. Rowe Price Retirement 2035 R","RRTPX","Fundos"]
[null,null,null,null,null,null,null,null,null,null,null,null,null,null,null,null,null,null,null,null,null,null,null,null,null,"T. Rowe Price Retirement 2040","TRRDX","Fundos"]
[null,null,null,null,null,null,null,null,null,null,null,null,null,null,null,null,null,null,null,null,null,null,null,null,null,"T. Rowe Price Retirement 2040 Advisor","PARDX","Fundos"]
[null,null,null,null,null,null,null,null,null,null,null,null,null,null,null,null,null,null,null,null,null,null,null,null,null,"T. Rowe Price Retirement 2040 R","RRTDX","Fundos"]
[null,null,null,null,null,null,null,null,null,null,null,null,null,null,null,null,null,null,null,null,null,null,null,null,null,"T. Rowe Price Retirement 2045","TRRKX","Fundos"]
[null,null,null,null,null,null,null,null,null,null,null,null,null,null,null,null,null,null,null,null,null,null,null,null,null,"T. Rowe Price Retirement 2045 Advisor","PARLX","Fundos"]
[null,null,null,null,null,null,null,null,null,null,null,null,null,null,null,null,null,null,null,null,null,null,null,null,null,"T. Rowe Price Retirement 2045 R","RRTRX","Fundos"]
[null,null,null,null,null,null,null,null,null,null,null,null,null,null,null,null,null,null,null,null,null,null,null,null,null,"T. Rowe Price Retirement 2050","TRRMX","Fundos"]
[null,null,null,null,null,null,null,null,null,null,null,null,null,null,null,null,null,null,null,null,null,null,null,null,null,"T. Rowe Price Retirement 2050 Advisor","PARFX","Fundos"]
[null,null,null,null,null,null,null,null,null,null,null,null,null,null,null,null,null,null,null,null,null,null,null,null,null,"T. Rowe Price Retirement 2050 R","RRTFX","Fundos"]
[null,null,null,null,null,null,null,null,null,null,null,null,null,null,null,null,null,null,null,null,null,null,null,null,null,"T. Rowe Price Retirement 2055","TRRNX","Fundos"]
[null,null,null,null,null,null,null,null,null,null,null,null,null,null,null,null,null,null,null,null,null,null,null,null,null,"T. Rowe Price Retirement 2055 Advisor","PAROX","Fundos"]
[null,null,null,null,null,null,null,null,null,null,null,null,null,null,null,null,null,null,null,null,null,null,null,null,null,"T. Rowe Price Retirement 2055 R","RRTVX","Fundos"]
[null,null,null,null,null,null,null,null,null,null,null,null,null,null,null,null,null,null,null,null,null,null,null,null,null,"T. Rowe Price Retirement Balanced Adv","PARIX","Fundos"]
[null,null,null,null,null,null,null,null,null,null,null,null,null,null,null,null,null,null,null,null,null,null,null,null,null,"T. Rowe Price Science & Tech","PRSCX","Fundos"]
[null,null,null,null,null,null,null,null,null,null,null,null,null,null,null,null,null,null,null,null,null,null,null,null,null,"T. Rowe Price Science & Tech I","TSNIX","Fundos"]
[null,null,null,null,null,null,null,null,null,null,null,null,null,null,null,null,null,null,null,null,null,null,null,null,null,"T. Rowe Price Small-Cap Stock","OTCFX","Fundos"]
[null,null,null,null,null,null,null,null,null,null,null,null,null,null,null,null,null,null,null,null,null,null,null,null,null,"T. Rowe Price Small-Cap Stock Adv","PASSX","Fundos"]
[null,null,null,null,null,null,null,null,null,null,null,null,null,null,null,null,null,null,null,null,null,null,null,null,null,"T. Rowe Price Small-Cap Stock I","OTIIX","Fundos"]
[null,null,null,null,null,null,null,null,null,null,null,null,null,null,null,null,null,null,null,null,null,null,null,null,null,"T. Rowe Price Small-Cap Value","PRSVX","Fundos"]
[null,null,null,null,null,null,null,null,null,null,null,null,null,null,null,null,null,null,null,null,null,null,null,null,null,"T. Rowe Price Small-Cap Value Adv","PASVX","Fundos"]
[null,null,null,null,null,null,null,null,null,null,null,null,null,null,null,null,null,null,null,null,null,null,null,null,null,"T. Rowe Price Small-Cap Value I","PRVIX","Fundos"]
[null,null,null,null,null,null,null,null,null,null,null,null,null,null,null,null,null,null,null,null,null,null,null,null,null,"T. Rowe Price Total Equity Market Idx","POMIX","Fundos"]
[null,null,null,null,null,null,null,null,null,null,null,null,null,null,null,null,null,null,null,null,null,null,null,null,null,"T. Rowe Price US Large-Cap Core","TRULX","Fundos"]
[null,null,null,null,null,null,null,null,null,null,null,null,null,null,null,null,null,null,null,null,null,null,null,null,null,"T. Rowe Price US Large-Cap Core Adv","PAULX","Fundos"]
[null,null,null,null,null,null,null,null,null,null,null,null,null,null,null,null,null,null,null,null,null,null,null,null,null,"T. Rowe Price Value","TRVLX","Fundos"]
[null,null,null,null,null,null,null,null,null,null,null,null,null,null,null,null,null,null,null,null,null,null,null,null,null,"T. Rowe Price Value Adv","PAVLX","Fundos"]
[null,null,null,null,null,null,null,null,null,null,null,null,null,null,null,null,null,null,null,null,null,null,null,null,null,"T. Rowe Price Value I","TRPIX","Fundos"]
[null,null,null,null,null,null,null,null,null,null,null,null,null,null,null,null,null,null,null,null,null,null,null,null,null,"Tarkio","TARKX","Fundos"]
[null,null,null,null,null,null,null,null,null,null,null,null,null,null,null,null,null,null,null,null,null,null,null,null,null,"TCM Small Cap Growth","TCMSX","Fundos"]
[null,null,null,null,null,null,null,null,null,null,null,null,null,null,null,null,null,null,null,null,null,null,null,null,null,"TCW Select Equities N","TGCNX","Fundos"]
[null,null,null,null,null,null,null,null,null,null,null,null,null,null,null,null,null,null,null,null,null,null,null,null,null,"Templeton Developing Markets C","TDMTX","Fundos"]
[null,null,null,null,null,null,null,null,null,null,null,null,null,null,null,null,null,null,null,null,null,null,null,null,null,"Templeton Ins Foreign Smaller Co Ser Adv","TFSCX","Fundos"]
[null,null,null,null,null,null,null,null,null,null,null,null,null,null,null,null,null,null,null,null,null,null,null,null,null,"Templeton Instl Intl Eq Ser Primary","TFEQX","Fundos"]
[null,null,null,null,null,null,null,null,null,null,null,null,null,null,null,null,null,null,null,null,null,null,null,null,null,"Templeton Instl Intl Eq Ser Service","TFESX","Fundos"]
[null,null,null,null,null,null,null,null,null,null,null,null,null,null,null,null,null,null,null,null,null,null,null,null,null,"TETON Westwood Mighty Mites A","WMMAX","Fundos"]
[null,null,null,null,null,null,null,null,null,null,null,null,null,null,null,null,null,null,null,null,null,null,null,null,null,"TETON Westwood Mighty Mites AAA","WEMMX","Fundos"]
[null,null,null,null,null,null,null,null,null,null,null,null,null,null,null,null,null,null,null,null,null,null,null,null,null,"TETON Westwood Mighty Mites C","WMMCX","Fundos"]
[null,null,null,null,null,null,null,null,null,null,null,null,null,null,null,null,null,null,null,null,null,null,null,null,null,"TETON Westwood Mighty Mites I","WEIMX","Fundos"]
[null,null,null,null,null,null,null,null,null,null,null,null,null,null,null,null,null,null,null,null,null,null,null,null,null,"TETON Westwood SmallCap Equity AAA","WESCX","Fundos"]
[null,null,null,null,null,null,null,null,null,null,null,null,null,null,null,null,null,null,null,null,null,null,null,null,null,"Third Avenue Real Estate Value Instl","TAREX","Fundos"]
[null,null,null,null,null,null,null,null,null,null,null,null,null,null,null,null,null,null,null,null,null,null,null,null,null,"Third Avenue Real Estate Value Investor","TVRVX","Fundos"]
[null,null,null,null,null,null,null,null,null,null,null,null,null,null,null,null,null,null,null,null,null,null,null,null,null,"Thornburg Global Opportunities I","THOIX","Fundos"]
[null,null,null,null,null,null,null,null,null,null,null,null,null,null,null,null,null,null,null,null,null,null,null,null,null,"Thornburg Global Opportunities R3","THORX","Fundos"]
[null,null,null,null,null,null,null,null,null,null,null,null,null,null,null,null,null,null,null,null,null,null,null,null,null,"Thornburg International Value A","TGVAX","Fundos"]
[null,null,null,null,null,null,null,null,null,null,null,null,null,null,null,null,null,null,null,null,null,null,null,null,null,"Thornburg International Value I","TGVIX","Fundos"]
[null,null,null,null,null,null,null,null,null,null,null,null,null,null,null,null,null,null,null,null,null,null,null,null,null,"Thornburg International Value R3","TGVRX","Fundos"]
[null,null,null,null,null,null,null,null,null,null,null,null,null,null,null,null,null,null,null,null,null,null,null,null,null,"Thornburg International Value R5","TIVRX","Fundos"]
[null,null,null,null,null,null,null,null,null,null,null,null,null,null,null,null,null,null,null,null,null,null,null,null,null,"Thornburg International Value R6","TGIRX","Fundos"]
[null,null,null,null,null,null,null,null,null,null,null,null,null,null,null,null,null,null,null,null,null,null,null,null,null,"Thornburg Investment Income Builder A","TIBAX","Fundos"]
[null,null,null,null,null,null,null,null,null,null,null,null,null,null,null,null,null,null,null,null,null,null,null,null,null,"Thornburg Investment Income Builder C","TIBCX","Fundos"]
[null,null,null,null,null,null,null,null,null,null,null,null,null,null,null,null,null,null,null,null,null,null,null,null,null,"Thornburg Investment Income Builder I","TIBIX","Fundos"]
[null,null,null,null,null,null,null,null,null,null,null,null,null,null,null,null,null,null,null,null,null,null,null,null,null,"Thornburg Investment Income Builder R4","TIBGX","Fundos"]
[null,null,null,null,null,null,null,null,null,null,null,null,null,null,null,null,null,null,null,null,null,null,null,null,null,"Thornburg Investment Income Builder R5","TIBMX","Fundos"]
[null,null,null,null,null,null,null,null,null,null,null,null,null,null,null,null,null,null,null,null,null,null,null,null,null,"Thrivent Aggressive Allocation A","TAAAX","Fundos"]
[null,null,null,null,null,null,null,null,null,null,null,null,null,null,null,null,null,null,null,null,null,null,null,null,null,"Thrivent Aggressive Allocation S","TAAIX","Fundos"]
[null,null,null,null,null,null,null,null,null,null,null,null,null,null,null,null,null,null,null,null,null,null,null,null,null,"Thrivent Mid Cap Stock S","TMSIX","Fundos"]
[null,null,null,null,null,null,null,null,null,null,null,null,null,null,null,null,null,null,null,null,null,null,null,null,null,"TIAA-CREF Growth & Income Retail","TIIRX","Fundos"]
[null,null,null,null,null,null,null,null,null,null,null,null,null,null,null,null,null,null,null,null,null,null,null,null,null,"TIAA-CREF Large-Cap Growth Advisor","TILHX","Fundos"]
[null,null,null,null,null,null,null,null,null,null,null,null,null,null,null,null,null,null,null,null,null,null,null,null,null,"TIAA-CREF Large-Cap Growth Premier","TILPX","Fundos"]
[null,null,null,null,null,null,null,null,null,null,null,null,null,null,null,null,null,null,null,null,null,null,null,null,null,"TIAA-CREF Large-Cap Growth R","TILRX","Fundos"]
[null,null,null,null,null,null,null,null,null,null,null,null,null,null,null,null,null,null,null,null,null,null,null,null,null,"TIAA-CREF Large-Cap Growth Retail","TIRTX","Fundos"]
[null,null,null,null,null,null,null,null,null,null,null,null,null,null,null,null,null,null,null,null,null,null,null,null,null,"TIAA-CREF Large-Cap Value Instl","TRLIX","Fundos"]
[null,null,null,null,null,null,null,null,null,null,null,null,null,null,null,null,null,null,null,null,null,null,null,null,null,"Timothy Plan Small Cap Value I","TPVIX","Fundos"]
[null,null,null,null,null,null,null,null,null,null,null,null,null,null,null,null,null,null,null,null,null,null,null,null,null,"Toreador Core Institutional","TORZX","Fundos"]
[null,null,null,null,null,null,null,null,null,null,null,null,null,null,null,null,null,null,null,null,null,null,null,null,null,"Touchstone Balanced A","SEBLX","Fundos"]
[null,null,null,null,null,null,null,null,null,null,null,null,null,null,null,null,null,null,null,null,null,null,null,null,null,"Touchstone Balanced Y","SIBLX","Fundos"]
[null,null,null,null,null,null,null,null,null,null,null,null,null,null,null,null,null,null,null,null,null,null,null,null,null,"Touchstone Dynamic Equity A","TDEAX","Fundos"]
[null,null,null,null,null,null,null,null,null,null,null,null,null,null,null,null,null,null,null,null,null,null,null,null,null,"Touchstone Dynamic Equity Y","TDEYX","Fundos"]
[null,null,null,null,null,null,null,null,null,null,null,null,null,null,null,null,null,null,null,null,null,null,null,null,null,"Touchstone International Equity A","SWRLX","Fundos"]
[null,null,null,null,null,null,null,null,null,null,null,null,null,null,null,null,null,null,null,null,null,null,null,null,null,"Touchstone International Equity C","SWFCX","Fundos"]
[null,null,null,null,null,null,null,null,null,null,null,null,null,null,null,null,null,null,null,null,null,null,null,null,null,"Touchstone International Equity Y","SIIEX","Fundos"]
[null,null,null,null,null,null,null,null,null,null,null,null,null,null,null,null,null,null,null,null,null,null,null,null,null,"Touchstone International Growth Opps A","TGGAX","Fundos"]
[null,null,null,null,null,null,null,null,null,null,null,null,null,null,null,null,null,null,null,null,null,null,null,null,null,"Touchstone International Growth Opps Ins","DSMGX","Fundos"]
[null,null,null,null,null,null,null,null,null,null,null,null,null,null,null,null,null,null,null,null,null,null,null,null,null,"Touchstone International Growth Opps Y","TYGGX","Fundos"]
[null,null,null,null,null,null,null,null,null,null,null,null,null,null,null,null,null,null,null,null,null,null,null,null,null,"Touchstone Large Cap Focused A","SENCX","Fundos"]
[null,null,null,null,null,null,null,null,null,null,null,null,null,null,null,null,null,null,null,null,null,null,null,null,null,"Touchstone Large Cap Focused C","SCSCX","Fundos"]
[null,null,null,null,null,null,null,null,null,null,null,null,null,null,null,null,null,null,null,null,null,null,null,null,null,"Touchstone Large Cap Focused Y","SICWX","Fundos"]
[null,null,null,null,null,null,null,null,null,null,null,null,null,null,null,null,null,null,null,null,null,null,null,null,null,"Touchstone Large Company Growth A","TSAGX","Fundos"]
[null,null,null,null,null,null,null,null,null,null,null,null,null,null,null,null,null,null,null,null,null,null,null,null,null,"Touchstone Large Company Growth Instl","DSMLX","Fundos"]
[null,null,null,null,null,null,null,null,null,null,null,null,null,null,null,null,null,null,null,null,null,null,null,null,null,"Touchstone Large Company Growth Y","TLGYX","Fundos"]
[null,null,null,null,null,null,null,null,null,null,null,null,null,null,null,null,null,null,null,null,null,null,null,null,null,"Touchstone Mid Cap Growth A","TEGAX","Fundos"]
[null,null,null,null,null,null,null,null,null,null,null,null,null,null,null,null,null,null,null,null,null,null,null,null,null,"Touchstone Mid Cap Growth C","TOECX","Fundos"]
[null,null,null,null,null,null,null,null,null,null,null,null,null,null,null,null,null,null,null,null,null,null,null,null,null,"Touchstone Mid Cap Growth Inst","TEGIX","Fundos"]
[null,null,null,null,null,null,null,null,null,null,null,null,null,null,null,null,null,null,null,null,null,null,null,null,null,"Touchstone Mid Cap Growth Y","TEGYX","Fundos"]
[null,null,null,null,null,null,null,null,null,null,null,null,null,null,null,null,null,null,null,null,null,null,null,null,null,"Touchstone Mid Cap Value Inst","TCVIX","Fundos"]
[null,null,null,null,null,null,null,null,null,null,null,null,null,null,null,null,null,null,null,null,null,null,null,null,null,"Touchstone Sands Capital Inst Gr","CISGX","Fundos"]
[null,null,null,null,null,null,null,null,null,null,null,null,null,null,null,null,null,null,null,null,null,null,null,null,null,"Touchstone Sustainability & Imp Eq A","TEQAX","Fundos"]
[null,null,null,null,null,null,null,null,null,null,null,null,null,null,null,null,null,null,null,null,null,null,null,null,null,"Touchstone Sustainability & Imp Eq Instl","TROCX","Fundos"]
[null,null,null,null,null,null,null,null,null,null,null,null,null,null,null,null,null,null,null,null,null,null,null,null,null,"Touchstone Sustainability & Imp Eq Y","TIQIX","Fundos"]
[null,null,null,null,null,null,null,null,null,null,null,null,null,null,null,null,null,null,null,null,null,null,null,null,null,"Towle Deep Value","TDVFX","Fundos"]
[null,null,null,null,null,null,null,null,null,null,null,null,null,null,null,null,null,null,null,null,null,null,null,null,null,"Transamerica Asset Allocation Growth A","IAAAX","Fundos"]
[null,null,null,null,null,null,null,null,null,null,null,null,null,null,null,null,null,null,null,null,null,null,null,null,null,"Transamerica Capital Growth C","ILLLX","Fundos"]
[null,null,null,null,null,null,null,null,null,null,null,null,null,null,null,null,null,null,null,null,null,null,null,null,null,"Transamerica Multi-Managed Balanced R6","TAMMX","Fundos"]
[null,null,null,null,null,null,null,null,null,null,null,null,null,null,null,null,null,null,null,null,null,null,null,null,null,"Transamerica Multi-Mgd Balanced A","IBALX","Fundos"]
[null,null,null,null,null,null,null,null,null,null,null,null,null,null,null,null,null,null,null,null,null,null,null,null,null,"Transamerica Multi-Mgd Balanced B","IBABX","Fundos"]
[null,null,null,null,null,null,null,null,null,null,null,null,null,null,null,null,null,null,null,null,null,null,null,null,null,"Tributary Small Company Instl Plus","FOSBX","Fundos"]
[null,null,null,null,null,null,null,null,null,null,null,null,null,null,null,null,null,null,null,null,null,null,null,null,null,"Tweedy, Browne Global Value","TBGVX","Fundos"]
[null,null,null,null,null,null,null,null,null,null,null,null,null,null,null,null,null,null,null,null,null,null,null,null,null,"UBS US Sustainable Equity C","BNQCX","Fundos"]
[null,null,null,null,null,null,null,null,null,null,null,null,null,null,null,null,null,null,null,null,null,null,null,null,null,"Undiscovered Managers Behavioral Val A","UBVAX","Fundos"]
[null,null,null,null,null,null,null,null,null,null,null,null,null,null,null,null,null,null,null,null,null,null,null,null,null,"Undiscovered Managers Behavioral Val I","UBVSX","Fundos"]
[null,null,null,null,null,null,null,null,null,null,null,null,null,null,null,null,null,null,null,null,null,null,null,null,null,"Undiscovered Managers Behavioral Val L","UBVLX","Fundos"]
[null,null,null,null,null,null,null,null,null,null,null,null,null,null,null,null,null,null,null,null,null,null,null,null,null,"Undiscovered Managers Behavioral Val R2","UBVRX","Fundos"]
[null,null,null,null,null,null,null,null,null,null,null,null,null,null,null,null,null,null,null,null,null,null,null,null,null,"USAA Growth","USAAX","Fundos"]
[null,null,null,null,null,null,null,null,null,null,null,null,null,null,null,null,null,null,null,null,null,null,null,null,null,"USAA Growth and Tax Strategy","USBLX","Fundos"]
[null,null,null,null,null,null,null,null,null,null,null,null,null,null,null,null,null,null,null,null,null,null,null,null,null,"USAA Growth Institutional","UIGRX","Fundos"]
[null,null,null,null,null,null,null,null,null,null,null,null,null,null,null,null,null,null,null,null,null,null,null,null,null,"USAA NASDAQ-100 Index","USNQX","Fundos"]
[null,null,null,null,null,null,null,null,null,null,null,null,null,null,null,null,null,null,null,null,null,null,null,null,null,"USAA S&P 500 Index Member","USSPX","Fundos"]
[null,null,null,null,null,null,null,null,null,null,null,null,null,null,null,null,null,null,null,null,null,null,null,null,null,"USAA S&P 500 Index Reward","USPRX","Fundos"]
[null,null,null,null,null,null,null,null,null,null,null,null,null,null,null,null,null,null,null,null,null,null,null,null,null,"USAA Science & Technology","USSCX","Fundos"]
[null,null,null,null,null,null,null,null,null,null,null,null,null,null,null,null,null,null,null,null,null,null,null,null,null,"USAA World Growth","USAWX","Fundos"]
[null,null,null,null,null,null,null,null,null,null,null,null,null,null,null,null,null,null,null,null,null,null,null,null,null,"USAA World Growth Adviser","USWGX","Fundos"]
[null,null,null,null,null,null,null,null,null,null,null,null,null,null,null,null,null,null,null,null,null,null,null,null,null,"Value Line Asset Allocation Instl","VLAIX","Fundos"]
[null,null,null,null,null,null,null,null,null,null,null,null,null,null,null,null,null,null,null,null,null,null,null,null,null,"Value Line Asset Allocation Investor","VLAAX","Fundos"]
[null,null,null,null,null,null,null,null,null,null,null,null,null,null,null,null,null,null,null,null,null,null,null,null,null,"VanEck Emerging Markets A","GBFAX","Fundos"]
[null,null,null,null,null,null,null,null,null,null,null,null,null,null,null,null,null,null,null,null,null,null,null,null,null,"VanEck Emerging Markets Y","EMRYX","Fundos"]
[null,null,null,null,null,null,null,null,null,null,null,null,null,null,null,null,null,null,null,null,null,null,null,null,null,"Vanguard Balanced Index Adm","VBIAX","Fundos"]
[null,null,null,null,null,null,null,null,null,null,null,null,null,null,null,null,null,null,null,null,null,null,null,null,null,"Vanguard Balanced Index I","VBAIX","Fundos"]
[null,null,null,null,null,null,null,null,null,null,null,null,null,null,null,null,null,null,null,null,null,null,null,null,null,"Vanguard Capital Opportunity Adm","VHCAX","Fundos"]
[null,null,null,null,null,null,null,null,null,null,null,null,null,null,null,null,null,null,null,null,null,null,null,null,null,"Vanguard Capital Opportunity Inv","VHCOX","Fundos"]
[null,null,null,null,null,null,null,null,null,null,null,null,null,null,null,null,null,null,null,null,null,null,null,null,null,"Vanguard Dividend Growth Inv","VDIGX","Fundos"]
[null,null,null,null,null,null,null,null,null,null,null,null,null,null,null,null,null,null,null,null,null,null,null,null,null,"Vanguard Emerging Mkts Govt Bd Idx Instl","VGIVX","Fundos"]
[null,null,null,null,null,null,null,null,null,null,null,null,null,null,null,null,null,null,null,null,null,null,null,null,null,"Vanguard Energy Adm","VGELX","Fundos"]
[null,null,null,null,null,null,null,null,null,null,null,null,null,null,null,null,null,null,null,null,null,null,null,null,null,"Vanguard Energy Inv","VGENX","Fundos"]
[null,null,null,null,null,null,null,null,null,null,null,null,null,null,null,null,null,null,null,null,null,null,null,null,null,"Vanguard Equity-Income Adm","VEIRX","Fundos"]
[null,null,null,null,null,null,null,null,null,null,null,null,null,null,null,null,null,null,null,null,null,null,null,null,null,"Vanguard Equity-Income Inv","VEIPX","Fundos"]
[null,null,null,null,null,null,null,null,null,null,null,null,null,null,null,null,null,null,null,null,null,null,null,null,null,"Vanguard Global Equity Inv","VHGEX","Fundos"]
[null,null,null,null,null,null,null,null,null,null,null,null,null,null,null,null,null,null,null,null,null,null,null,null,null,"Vanguard Global Minimum Volatility Admr","VMNVX","Fundos"]
[null,null,null,null,null,null,null,null,null,null,null,null,null,null,null,null,null,null,null,null,null,null,null,null,null,"Vanguard Growth & Income Adm","VGIAX","Fundos"]
[null,null,null,null,null,null,null,null,null,null,null,null,null,null,null,null,null,null,null,null,null,null,null,null,null,"Vanguard Growth & Income Inv","VQNPX","Fundos"]
[null,null,null,null,null,null,null,null,null,null,null,null,null,null,null,null,null,null,null,null,null,null,null,null,null,"Vanguard Growth Index Admiral","VIGAX","Fundos"]
[null,null,null,null,null,null,null,null,null,null,null,null,null,null,null,null,null,null,null,null,null,null,null,null,null,"Vanguard High Dividend Yield Index Inv","VHDYX","Fundos"]
[null,null,null,null,null,null,null,null,null,null,null,null,null,null,null,null,null,null,null,null,null,null,null,null,null,"Vanguard Inflation-Protected Secs Adm","VAIPX","Fundos"]
[null,null,null,null,null,null,null,null,null,null,null,null,null,null,null,null,null,null,null,null,null,null,null,null,null,"Vanguard Institutional Index I","VINIX","Fundos"]
[null,null,null,null,null,null,null,null,null,null,null,null,null,null,null,null,null,null,null,null,null,null,null,null,null,"Vanguard Institutional Index Instl Pl","VIIIX","Fundos"]
[null,null,null,null,null,null,null,null,null,null,null,null,null,null,null,null,null,null,null,null,null,null,null,null,null,"Vanguard Instl Ttl Stk Mkt Idx I","VITNX","Fundos"]
[null,null,null,null,null,null,null,null,null,null,null,null,null,null,null,null,null,null,null,null,null,null,null,null,null,"Vanguard Instl Ttl Stk Mkt Idx InstlPls","VITPX","Fundos"]
[null,null,null,null,null,null,null,null,null,null,null,null,null,null,null,null,null,null,null,null,null,null,null,null,null,"Vanguard International Explorer Inv","VINEX","Fundos"]
[null,null,null,null,null,null,null,null,null,null,null,null,null,null,null,null,null,null,null,null,null,null,null,null,null,"Vanguard International Growth Adm","VWILX","Fundos"]
[null,null,null,null,null,null,null,null,null,null,null,null,null,null,null,null,null,null,null,null,null,null,null,null,null,"Vanguard International Growth Inv","VWIGX","Fundos"]
[null,null,null,null,null,null,null,null,null,null,null,null,null,null,null,null,null,null,null,null,null,null,null,null,null,"Vanguard International Value Inv","VTRIX","Fundos"]
[null,null,null,null,null,null,null,null,null,null,null,null,null,null,null,null,null,null,null,null,null,null,null,null,null,"Vanguard LifeStrategy Cnsrv Gr Inv","VSCGX","Fundos"]
[null,null,null,null,null,null,null,null,null,null,null,null,null,null,null,null,null,null,null,null,null,null,null,null,null,"Vanguard LifeStrategy Growth Inv","VASGX","Fundos"]
[null,null,null,null,null,null,null,null,null,null,null,null,null,null,null,null,null,null,null,null,null,null,null,null,null,"Vanguard LifeStrategy Income Inv","VASIX","Fundos"]
[null,null,null,null,null,null,null,null,null,null,null,null,null,null,null,null,null,null,null,null,null,null,null,null,null,"Vanguard Mid-Cap Growth Index Admiral","VMGMX","Fundos"]
[null,null,null,null,null,null,null,null,null,null,null,null,null,null,null,null,null,null,null,null,null,null,null,null,null,"Vanguard Mid-Cap Growth Index Investor","VMGIX","Fundos"]
[null,null,null,null,null,null,null,null,null,null,null,null,null,null,null,null,null,null,null,null,null,null,null,null,null,"Vanguard Morgan Growth Inv","VMRGX","Fundos"]
[null,null,null,null,null,null,null,null,null,null,null,null,null,null,null,null,null,null,null,null,null,null,null,null,null,"Vanguard PRIMECAP Adm","VPMAX","Fundos"]
[null,null,null,null,null,null,null,null,null,null,null,null,null,null,null,null,null,null,null,null,null,null,null,null,null,"Vanguard PRIMECAP Core Inv","VPCCX","Fundos"]
[null,null,null,null,null,null,null,null,null,null,null,null,null,null,null,null,null,null,null,null,null,null,null,null,null,"Vanguard PRIMECAP Inv","VPMCX","Fundos"]
[null,null,null,null,null,null,null,null,null,null,null,null,null,null,null,null,null,null,null,null,null,null,null,null,null,"Vanguard Selected Value Inv","VASVX","Fundos"]
[null,null,null,null,null,null,null,null,null,null,null,null,null,null,null,null,null,null,null,null,null,null,null,null,null,"Vanguard Strategic Equity Inv","VSEQX","Fundos"]
[null,null,null,null,null,null,null,null,null,null,null,null,null,null,null,null,null,null,null,null,null,null,null,null,null,"Vanguard Strategic Small-Cap Equity Inv","VSTCX","Fundos"]
[null,null,null,null,null,null,null,null,null,null,null,null,null,null,null,null,null,null,null,null,null,null,null,null,null,"Vanguard Tax-Managed Balanced Adm","VTMFX","Fundos"]
[null,null,null,null,null,null,null,null,null,null,null,null,null,null,null,null,null,null,null,null,null,null,null,null,null,"Vanguard Tax-Managed Capital App Adm","VTCLX","Fundos"]
[null,null,null,null,null,null,null,null,null,null,null,null,null,null,null,null,null,null,null,null,null,null,null,null,null,"Vanguard Tax-Managed Capital App I","VTCIX","Fundos"]
[null,null,null,null,null,null,null,null,null,null,null,null,null,null,null,null,null,null,null,null,null,null,null,null,null,"Vanguard Tax-Managed Small Cap Adm","VTMSX","Fundos"]
[null,null,null,null,null,null,null,null,null,null,null,null,null,null,null,null,null,null,null,null,null,null,null,null,null,"Vanguard Tax-Managed Small Cap I","VTSIX","Fundos"]
[null,null,null,null,null,null,null,null,null,null,null,null,null,null,null,null,null,null,null,null,null,null,null,null,null,"Vanguard US Growth Admiral","VWUAX","Fundos"]
[null,null,null,null,null,null,null,null,null,null,null,null,null,null,null,null,null,null,null,null,null,null,null,null,null,"Vanguard US Growth Inv","VWUSX","Fundos"]
[null,null,null,null,null,null,null,null,null,null,null,null,null,null,null,null,null,null,null,null,null,null,null,null,null,"Vanguard US Value Inv","VUVLX","Fundos"]
[null,null,null,null,null,null,null,null,null,null,null,null,null,null,null,null,null,null,null,null,null,null,null,null,null,"Vanguard Wellesley Income Admiral","VWIAX","Fundos"]
[null,null,null,null,null,null,null,null,null,null,null,null,null,null,null,null,null,null,null,null,null,null,null,null,null,"Vanguard Wellesley Income Inv","VWINX","Fundos"]
[null,null,null,null,null,null,null,null,null,null,null,null,null,null,null,null,null,null,null,null,null,null,null,null,null,"Vanguard Wellington Admiral","VWENX","Fundos"]
[null,null,null,null,null,null,null,null,null,null,null,null,null,null,null,null,null,null,null,null,null,null,null,null,null,"Vanguard Wellington Inv","VWELX","Fundos"]
[null,null,null,null,null,null,null,null,null,null,null,null,null,null,null,null,null,null,null,null,null,null,null,null,null,"Vanguard Windsor Inv","VWNDX","Fundos"]
[null,null,null,null,null,null,null,null,null,null,null,null,null,null,null,null,null,null,null,null,null,null,null,null,null,"Victory INCORE Investment Grd Convert A","SBFCX","Fundos"]
[null,null,null,null,null,null,null,null,null,null,null,null,null,null,null,null,null,null,null,null,null,null,null,null,null,"Victory Integrity Discovery A","MMEAX","Fundos"]
[null,null,null,null,null,null,null,null,null,null,null,null,null,null,null,null,null,null,null,null,null,null,null,null,null,"Victory Integrity Discovery R","MMERX","Fundos"]
[null,null,null,null,null,null,null,null,null,null,null,null,null,null,null,null,null,null,null,null,null,null,null,null,null,"Victory Integrity Discovery Y","MMEYX","Fundos"]
[null,null,null,null,null,null,null,null,null,null,null,null,null,null,null,null,null,null,null,null,null,null,null,null,null,"Victory Integrity Mid-Cap Value Y","MYIMX","Fundos"]
[null,null,null,null,null,null,null,null,null,null,null,null,null,null,null,null,null,null,null,null,null,null,null,null,null,"Victory Munder Mid-Cap Core Growth R","MMSRX","Fundos"]
[null,null,null,null,null,null,null,null,null,null,null,null,null,null,null,null,null,null,null,null,null,null,null,null,null,"Victory Sycamore Established Value C","VEVCX","Fundos"]
[null,null,null,null,null,null,null,null,null,null,null,null,null,null,null,null,null,null,null,null,null,null,null,null,null,"Victory Sycamore Established Value I","VEVIX","Fundos"]
[null,null,null,null,null,null,null,null,null,null,null,null,null,null,null,null,null,null,null,null,null,null,null,null,null,"Victory Sycamore Established Value R6","VEVRX","Fundos"]
[null,null,null,null,null,null,null,null,null,null,null,null,null,null,null,null,null,null,null,null,null,null,null,null,null,"Victory Sycamore Small Company Opp A","SSGSX","Fundos"]
[null,null,null,null,null,null,null,null,null,null,null,null,null,null,null,null,null,null,null,null,null,null,null,null,null,"Victory US 500 Enh Vol Wtd Idx I","CUHIX","Fundos"]
[null,null,null,null,null,null,null,null,null,null,null,null,null,null,null,null,null,null,null,null,null,null,null,null,null,"Virtus Duff & Phelps Glb Rl Estt Secs A","VGSAX","Fundos"]
[null,null,null,null,null,null,null,null,null,null,null,null,null,null,null,null,null,null,null,null,null,null,null,null,null,"Virtus Duff & Phelps Glb Rl Estt Secs C","VGSCX","Fundos"]
[null,null,null,null,null,null,null,null,null,null,null,null,null,null,null,null,null,null,null,null,null,null,null,null,null,"Virtus Duff & Phelps Glb Rl Estt Secs I","VGISX","Fundos"]
[null,null,null,null,null,null,null,null,null,null,null,null,null,null,null,null,null,null,null,null,null,null,null,null,null,"Virtus KAR International Small-Cap I","VIISX","Fundos"]
[null,null,null,null,null,null,null,null,null,null,null,null,null,null,null,null,null,null,null,null,null,null,null,null,null,"Virtus KAR International Small-Cap R6","VRISX","Fundos"]
[null,null,null,null,null,null,null,null,null,null,null,null,null,null,null,null,null,null,null,null,null,null,null,null,null,"Virtus KAR Mid-Cap Core A","VMACX","Fundos"]
[null,null,null,null,null,null,null,null,null,null,null,null,null,null,null,null,null,null,null,null,null,null,null,null,null,"Virtus KAR Mid-Cap Core C","VMCCX","Fundos"]
[null,null,null,null,null,null,null,null,null,null,null,null,null,null,null,null,null,null,null,null,null,null,null,null,null,"Virtus KAR Mid-Cap Core I","VIMCX","Fundos"]
[null,null,null,null,null,null,null,null,null,null,null,null,null,null,null,null,null,null,null,null,null,null,null,null,null,"Virtus KAR Small-Cap Core A","PKSAX","Fundos"]
[null,null,null,null,null,null,null,null,null,null,null,null,null,null,null,null,null,null,null,null,null,null,null,null,null,"Virtus KAR Small-Cap Core C","PKSCX","Fundos"]
[null,null,null,null,null,null,null,null,null,null,null,null,null,null,null,null,null,null,null,null,null,null,null,null,null,"Virtus KAR Small-Cap Core I","PKSFX","Fundos"]
[null,null,null,null,null,null,null,null,null,null,null,null,null,null,null,null,null,null,null,null,null,null,null,null,null,"Virtus KAR Small-Cap Core R6","VSCRX","Fundos"]
[null,null,null,null,null,null,null,null,null,null,null,null,null,null,null,null,null,null,null,null,null,null,null,null,null,"Virtus KAR Small-Cap Growth A","PSGAX","Fundos"]
[null,null,null,null,null,null,null,null,null,null,null,null,null,null,null,null,null,null,null,null,null,null,null,null,null,"Virtus KAR Small-Cap Growth C","PSGCX","Fundos"]
[null,null,null,null,null,null,null,null,null,null,null,null,null,null,null,null,null,null,null,null,null,null,null,null,null,"Virtus KAR Small-Cap Growth I","PXSGX","Fundos"]
[null,null,null,null,null,null,null,null,null,null,null,null,null,null,null,null,null,null,null,null,null,null,null,null,null,"Virtus KAR Small-Cap Value R6","VQSRX","Fundos"]
[null,null,null,null,null,null,null,null,null,null,null,null,null,null,null,null,null,null,null,null,null,null,null,null,null,"Virtus Vontobel Global Opportunities A","NWWOX","Fundos"]
[null,null,null,null,null,null,null,null,null,null,null,null,null,null,null,null,null,null,null,null,null,null,null,null,null,"Virtus Vontobel Global Opportunities I","WWOIX","Fundos"]
[null,null,null,null,null,null,null,null,null,null,null,null,null,null,null,null,null,null,null,null,null,null,null,null,null,"Virtus Zevenbergen Innovative Gr Stk I","SCATX","Fundos"]
[null,null,null,null,null,null,null,null,null,null,null,null,null,null,null,null,null,null,null,null,null,null,null,null,null,"Vivaldi Multi-Strategy A","OMOAX","Fundos"]
[null,null,null,null,null,null,null,null,null,null,null,null,null,null,null,null,null,null,null,null,null,null,null,null,null,"Vivaldi Multi-Strategy I","OMOIX","Fundos"]
[null,null,null,null,null,null,null,null,null,null,null,null,null,null,null,null,null,null,null,null,null,null,null,null,null,"Voya Small Company I","AESGX","Fundos"]
[null,null,null,null,null,null,null,null,null,null,null,null,null,null,null,null,null,null,null,null,null,null,null,null,null,"Voya Small Company W","ISMWX","Fundos"]
[null,null,null,null,null,null,null,null,null,null,null,null,null,null,null,null,null,null,null,null,null,null,null,null,null,"Walden Asset Management","WSBFX","Fundos"]
[null,null,null,null,null,null,null,null,null,null,null,null,null,null,null,null,null,null,null,null,null,null,null,null,null,"Wasatch Core Growth","WGROX","Fundos"]
[null,null,null,null,null,null,null,null,null,null,null,null,null,null,null,null,null,null,null,null,null,null,null,null,null,"Wasatch International Growth Instl","WIIGX","Fundos"]
[null,null,null,null,null,null,null,null,null,null,null,null,null,null,null,null,null,null,null,null,null,null,null,null,null,"Wasatch Small Cap Growth Investor","WAAEX","Fundos"]
[null,null,null,null,null,null,null,null,null,null,null,null,null,null,null,null,null,null,null,null,null,null,null,null,null,"Wasatch World Innovators Institutional","WIGTX","Fundos"]
[null,null,null,null,null,null,null,null,null,null,null,null,null,null,null,null,null,null,null,null,null,null,null,null,null,"Wasatch World Innovators Investor","WAGTX","Fundos"]
[null,null,null,null,null,null,null,null,null,null,null,null,null,null,null,null,null,null,null,null,null,null,null,null,null,"Wasatch-Hoisington US Treasury","WHOSX","Fundos"]
[null,null,null,null,null,null,null,null,null,null,null,null,null,null,null,null,null,null,null,null,null,null,null,null,null,"Wells Fargo C&B Mid Cap Value Inst","CBMSX","Fundos"]
[null,null,null,null,null,null,null,null,null,null,null,null,null,null,null,null,null,null,null,null,null,null,null,null,null,"Wells Fargo Global Small Cap Admin","EKGYX","Fundos"]
[null,null,null,null,null,null,null,null,null,null,null,null,null,null,null,null,null,null,null,null,null,null,null,null,null,"Wells Fargo Global Small Cap C","EKGCX","Fundos"]
[null,null,null,null,null,null,null,null,null,null,null,null,null,null,null,null,null,null,null,null,null,null,null,null,null,"Wells Fargo Global Small Cap Inst","EKGIX","Fundos"]
[null,null,null,null,null,null,null,null,null,null,null,null,null,null,null,null,null,null,null,null,null,null,null,null,null,"Wells Fargo Growth A","SGRAX","Fundos"]
[null,null,null,null,null,null,null,null,null,null,null,null,null,null,null,null,null,null,null,null,null,null,null,null,null,"Wells Fargo Intrinsic World Equity Inst","EWENX","Fundos"]
[null,null,null,null,null,null,null,null,null,null,null,null,null,null,null,null,null,null,null,null,null,null,null,null,null,"Wells Fargo Large Cap Core Admin","WFLLX","Fundos"]
[null,null,null,null,null,null,null,null,null,null,null,null,null,null,null,null,null,null,null,null,null,null,null,null,null,"Wells Fargo Large Cap Core Inst","EGOIX","Fundos"]
[null,null,null,null,null,null,null,null,null,null,null,null,null,null,null,null,null,null,null,null,null,null,null,null,null,"Wells Fargo Large Cap Core R","EGOHX","Fundos"]
[null,null,null,null,null,null,null,null,null,null,null,null,null,null,null,null,null,null,null,null,null,null,null,null,null,"Wells Fargo Large Cap Core R6","EGORX","Fundos"]
[null,null,null,null,null,null,null,null,null,null,null,null,null,null,null,null,null,null,null,null,null,null,null,null,null,"Wells Fargo Small Cap Opportunities Adm","NVSOX","Fundos"]
[null,null,null,null,null,null,null,null,null,null,null,null,null,null,null,null,null,null,null,null,null,null,null,null,null,"Wells Fargo Small Cap Opportunities Inst","WSCOX","Fundos"]
[null,null,null,null,null,null,null,null,null,null,null,null,null,null,null,null,null,null,null,null,null,null,null,null,null,"Wells Fargo Small Cap Opportunities R6","WSCJX","Fundos"]
[null,null,null,null,null,null,null,null,null,null,null,null,null,null,null,null,null,null,null,null,null,null,null,null,null,"Wells Fargo Small Company Growth Admin","NVSCX","Fundos"]
[null,null,null,null,null,null,null,null,null,null,null,null,null,null,null,null,null,null,null,null,null,null,null,null,null,"Wells Fargo Small Company Growth Inst","WSCGX","Fundos"]
[null,null,null,null,null,null,null,null,null,null,null,null,null,null,null,null,null,null,null,null,null,null,null,null,null,"Western Asset Managed Municipals 1","SMMOX","Fundos"]
[null,null,null,null,null,null,null,null,null,null,null,null,null,null,null,null,null,null,null,null,null,null,null,null,null,"Western Asset Managed Municipals A","SHMMX","Fundos"]
[null,null,null,null,null,null,null,null,null,null,null,null,null,null,null,null,null,null,null,null,null,null,null,null,null,"Westwood SmallCap Institutional","WHGSX","Fundos"]
[null,null,null,null,null,null,null,null,null,null,null,null,null,null,null,null,null,null,null,null,null,null,null,null,null,"William Blair Emerg Mkts Sm Cp Gr I","BESIX","Fundos"]
[null,null,null,null,null,null,null,null,null,null,null,null,null,null,null,null,null,null,null,null,null,null,null,null,null,"William Blair Emerg Mkts Sm Cp Gr Instl","WESJX","Fundos"]
[null,null,null,null,null,null,null,null,null,null,null,null,null,null,null,null,null,null,null,null,null,null,null,null,null,"William Blair Emerg Mkts Sm Cp Gr N","WESNX","Fundos"]
[null,null,null,null,null,null,null,null,null,null,null,null,null,null,null,null,null,null,null,null,null,null,null,null,null,"William Blair Emerging Mkts Growth I","WBEIX","Fundos"]
[null,null,null,null,null,null,null,null,null,null,null,null,null,null,null,null,null,null,null,null,null,null,null,null,null,"William Blair Emerging Mkts Growth Instl","BIEMX","Fundos"]
[null,null,null,null,null,null,null,null,null,null,null,null,null,null,null,null,null,null,null,null,null,null,null,null,null,"William Blair International Ldrs Instl","WILJX","Fundos"]
[null,null,null,null,null,null,null,null,null,null,null,null,null,null,null,null,null,null,null,null,null,null,null,null,null,"William Blair International Ldrs N","WILNX","Fundos"]
[null,null,null,null,null,null,null,null,null,null,null,null,null,null,null,null,null,null,null,null,null,null,null,null,null,"William Blair Large Cap Growth I","LCGFX","Fundos"]
[null,null,null,null,null,null,null,null,null,null,null,null,null,null,null,null,null,null,null,null,null,null,null,null,null,"William Blair Small Cap Growth I","WBSIX","Fundos"]
[null,null,null,null,null,null,null,null,null,null,null,null,null,null,null,null,null,null,null,null,null,null,null,null,null,"William Blair Small Cap Growth N","WBSNX","Fundos"]
[null,null,null,null,null,null,null,null,null,null,null,null,null,null,null,null,null,null,null,null,null,null,null,null,null,"William Blair Small Cap Value I","BVDIX","Fundos"]
[null,null,null,null,null,null,null,null,null,null,null,null,null,null,null,null,null,null,null,null,null,null,null,null,null,"William Blair Small Cap Value N","WBVDX","Fundos"]
[null,null,null,null,null,null,null,null,null,null,null,null,null,null,null,null,null,null,null,null,null,null,null,null,null,"William Blair Small-Mid Cap Gr I","WSMDX","Fundos"]
[null,null,null,null,null,null,null,null,null,null,null,null,null,null,null,null,null,null,null,null,null,null,null,null,null,"William Blair Small-Mid Cap Gr N","WSMNX","Fundos"]
[null,null,null,null,null,null,null,null,null,null,null,null,null,null,null,null,null,null,null,null,null,null,null,null,null,"Wilmington Large-Cap Strategy Instl","WMLIX","Fundos"]
[null,null,null,null,null,null,null,null,null,null,null,null,null,null,null,null,null,null,null,null,null,null,null,null,null,"Wilshire Small Company Growth Instl","WSMGX","Fundos"]
[null,null,null,null,null,null,null,null,null,null,null,null,null,null,null,null,null,null,null,null,null,null,null,null,null,"Wilshire Small Company Growth Invmt","DTSGX","Fundos"]
[null,null,null,null,null,null,null,null,null,null,null,null,null,null,null,null,null,null,null,null,null,null,null,null,null,"Wilshire Small Company Value Instl","WSMVX","Fundos"]
[null,null,null,null,null,null,null,null,null,null,null,null,null,null,null,null,null,null,null,null,null,null,null,null,null,"Wilshire Small Company Value Invmt","DTSVX","Fundos"]
[null,null,null,null,null,null,null,null,null,null,null,null,null,null,null,null,null,null,null,null,null,null,null,null,null,"Zacks Small-Cap Core Institutional","ZSCIX","Fundos"]
[null,null,null,null,null,null,null,null,null,null,null,null,null,null,null,null,null,null,null,null,null,null,null,null,null,"Zacks Small-Cap Core Inv","ZSCCX","Fundos"]
[null,null,null,null,null,null,null,null,null,null,null,null,null,null,null,null,null,null,null,null,null,null,null,null,null,"AUD/JPY","AUDJPY","Moedas"]
[null,null,null,null,null,null,null,null,null,null,null,null,null,null,null,null,null,null,null,null,null,null,null,null,null,"AUD/USD","AUDUSD","Moedas"]
[null,null,null,null,null,null,null,null,null,null,null,null,null,null,null,null,null,null,null,null,null,null,null,null,null,"BRL/ARS","BRLARS","Moedas"]
[null,null,null,null,null,null,null,null,null,null,null,null,null,null,null,null,null,null,null,null,null,null,null,null,null,"BRL/AUD","BRLAUD","Moedas"]
[null,null,null,null,null,null,null,null,null,null,null,null,null,null,null,null,null,null,null,null,null,null,null,null,null,"BRL/CAD","BRLCAD","Moedas"]
[null,null,null,null,null,null,null,null,null,null,null,null,null,null,null,null,null,null,null,null,null,null,null,null,null,"BRL/CNY","BRLCNY","Moedas"]
[null,null,null,null,null,null,null,null,null,null,null,null,null,null,null,null,null,null,null,null,null,null,null,null,null,"BRL/EUR","BRLEUR","Moedas"]
[null,null,null,null,null,null,null,null,null,null,null,null,null,null,null,null,null,null,null,null,null,null,null,null,null,"BRL/GBP","BRLGBP","Moedas"]
[null,null,null,null,null,null,null,null,null,null,null,null,null,null,null,null,null,null,null,null,null,null,null,null,null,"BRL/INR","BRLINR","Moedas"]
[null,null,null,null,null,null,null,null,null,null,null,null,null,null,null,null,null,null,null,null,null,null,null,null,null,"BRL/JPY","BRLJPY","Moedas"]
[null,null,null,null,null,null,null,null,null,null,null,null,null,null,null,null,null,null,null,null,null,null,null,null,null,"BRL/SEK","BRLSEK","Moedas"]
[null,null,null,null,null,null,null,null,null,null,null,null,null,null,null,null,null,null,null,null,null,null,null,null,null,"BRL/USD","BRLUSD","Moedas"]
[null,null,null,null,null,null,null,null,null,null,null,null,null,null,null,null,null,null,null,null,null,null,null,null,null,"EUR/CAD","EURCAD","Moedas"]
[null,null,null,null,null,null,null,null,null,null,null,null,null,null,null,null,null,null,null,null,null,null,null,null,null,"EUR/CHF","EURCHF","Moedas"]
[null,null,null,null,null,null,null,null,null,null,null,null,null,null,null,null,null,null,null,null,null,null,null,null,null,"EUR/GBP","EURGBP","Moedas"]
[null,null,null,null,null,null,null,null,null,null,null,null,null,null,null,null,null,null,null,null,null,null,null,null,null,"EUR/HUF","EURHUF","Moedas"]
[null,null,null,null,null,null,null,null,null,null,null,null,null,null,null,null,null,null,null,null,null,null,null,null,null,"EUR/JPY","EURJPY","Moedas"]
[null,null,null,null,null,null,null,null,null,null,null,null,null,null,null,null,null,null,null,null,null,null,null,null,null,"EUR/JPY","EURJPY","Moedas"]
[null,null,null,null,null,null,null,null,null,null,null,null,null,null,null,null,null,null,null,null,null,null,null,null,null,"EUR/SEK","EURSEK","Moedas"]
[null,null,null,null,null,null,null,null,null,null,null,null,null,null,null,null,null,null,null,null,null,null,null,null,null,"EUR/USD","EURUSD","Moedas"]
[null,null,null,null,null,null,null,null,null,null,null,null,null,null,null,null,null,null,null,null,null,null,null,null,null,"GBP/JPY","GBPJPY","Moedas"]
[null,null,null,null,null,null,null,null,null,null,null,null,null,null,null,null,null,null,null,null,null,null,null,null,null,"GBP/USD","GBPUSD","Moedas"]
[null,null,null,null,null,null,null,null,null,null,null,null,null,null,null,null,null,null,null,null,null,null,null,null,null,"NZD/USD","NZDUSD","Moedas"]
[null,null,null,null,null,null,null,null,null,null,null,null,null,null,null,null,null,null,null,null,null,null,null,null,null,"USD/CAD","USDCAD","Moedas"]
[null,null,null,null,null,null,null,null,null,null,null,null,null,null,null,null,null,null,null,null,null,null,null,null,null,"USD/CHF","USDCHF","Moedas"]
[null,null,null,null,null,null,null,null,null,null,null,null,null,null,null,null,null,null,null,null,null,null,null,null,null,"USD/CNY","USDCNY","Moedas"]
[null,null,null,null,null,null,null,null,null,null,null,null,null,null,null,null,null,null,null,null,null,null,null,null,null,"USD/HKD","USDHKD","Moedas"]
[null,null,null,null,null,null,null,null,null,null,null,null,null,null,null,null,null,null,null,null,null,null,null,null,null,"USD/IDR","USDIDR","Moedas"]
[null,null,null,null,null,null,null,null,null,null,null,null,null,null,null,null,null,null,null,null,null,null,null,null,null,"USD/INR","USDINR","Moedas"]
[null,null,null,null,null,null,null,null,null,null,null,null,null,null,null,null,null,null,null,null,null,null,null,null,null,"USD/JPY","USDJPY","Moedas"]
[null,null,null,null,null,null,null,null,null,null,null,null,null,null,null,null,null,null,null,null,null,null,null,null,null,"USD/MXN","USDMXN","Moedas"]
[null,null,null,null,null,null,null,null,null,null,null,null,null,null,null,null,null,null,null,null,null,null,null,null,null,"USD/MYR","USDMYR","Moedas"]
[null,null,null,null,null,null,null,null,null,null,null,null,null,null,null,null,null,null,null,null,null,null,null,null,null,"USD/PHP","USDPHP","Moedas"]
[null,null,null,null,null,null,null,null,null,null,null,null,null,null,null,null,null,null,null,null,null,null,null,null,null,"USD/RUB","USDRUB","Moedas"]
[null,null,null,null,null,null,null,null,null,null,null,null,null,null,null,null,null,null,null,null,null,null,null,null,null,"USD/SGD","USDSGD","Moedas"]
[null,null,null,null,null,null,null,null,null,null,null,null,null,null,null,null,null,null,null,null,null,null,null,null,null,"USD/THB","USDTHB","Moedas"]
[null,null,null,null,null,null,null,null,null,null,null,null,null,null,null,null,null,null,null,null,null,null,null,null,null,"USD/ZAR","USDZAR","Moedas"]
[null,null,null,null,null,null,null,null,null,null,null,null,null,null,null,null,null,null,null,null,null,null,null,null,null,"Abbott Laboratories","ABT","Top 150 do Mundo"]
[null,null,null,null,null,null,null,null,null,null,null,null,null,null,null,null,null,null,null,null,null,null,null,null,null,"AbbVie Inc.","ABBV","Top 150 do Mundo"]
[null,null,null,null,null,null,null,null,null,null,null,null,null,null,null,null,null,null,null,null,null,null,null,null,null,"Advanced Micro Devices, Inc.","AMD","Top 150 do Mundo"]
[null,null,null,null,null,null,null,null,null,null,null,null,null,null,null,null,null,null,null,null,null,null,null,null,null,"Alibaba Group Holding Limited","BABA","Top 150 do Mundo"]
[null,null,null,null,null,null,null,null,null,null,null,null,null,null,null,null,null,null,null,null,null,null,null,null,null,"Altaba Inc.","AABA","Top 150 do Mundo"]
[null,null,null,null,null,null,null,null,null,null,null,null,null,null,null,null,null,null,null,null,null,null,null,null,null,"Altice USA, Inc.","ATUS","Top 150 do Mundo"]
[null,null,null,null,null,null,null,null,null,null,null,null,null,null,null,null,null,null,null,null,null,null,null,null,null,"Altria Group, Inc.","MO","Top 150 do Mundo"]
[null,null,null,null,null,null,null,null,null,null,null,null,null,null,null,null,null,null,null,null,null,null,null,null,null,"Ambev S.A.","ABEV","Top 150 do Mundo"]
[null,null,null,null,null,null,null,null,null,null,null,null,null,null,null,null,null,null,null,null,null,null,null,null,null,"American Airlines Group Inc.","AAL","Top 150 do Mundo"]
[null,null,null,null,null,null,null,null,null,null,null,null,null,null,null,null,null,null,null,null,null,null,null,null,null,"Annaly Capital Management, Inc.","NLY","Top 150 do Mundo"]
[null,null,null,null,null,null,null,null,null,null,null,null,null,null,null,null,null,null,null,null,null,null,null,null,null,"Apple Inc.","AAPL","Top 150 do Mundo"]
[null,null,null,null,null,null,null,null,null,null,null,null,null,null,null,null,null,null,null,null,null,null,null,null,null,"Applied Materials, Inc.","AMAT","Top 150 do Mundo"]
[null,null,null,null,null,null,null,null,null,null,null,null,null,null,null,null,null,null,null,null,null,null,null,null,null,"AT&T Inc.","T","Top 150 do Mundo"]
[null,null,null,null,null,null,null,null,null,null,null,null,null,null,null,null,null,null,null,null,null,null,null,null,null,"Banco Bradesco S.A.","BBD","Top 150 do Mundo"]
[null,null,null,null,null,null,null,null,null,null,null,null,null,null,null,null,null,null,null,null,null,null,null,null,null,"Banco Santander, S.A.","SAN","Top 150 do Mundo"]
[null,null,null,null,null,null,null,null,null,null,null,null,null,null,null,null,null,null,null,null,null,null,null,null,null,"Bank of America Corporation","BAC","Top 150 do Mundo"]
[null,null,null,null,null,null,null,null,null,null,null,null,null,null,null,null,null,null,null,null,null,null,null,null,null,"Barrick Gold Corporation","ABX","Top 150 do Mundo"]
[null,null,null,null,null,null,null,null,null,null,null,null,null,null,null,null,null,null,null,null,null,null,null,null,null,"Bed Bath & Beyond Inc.","BBBY","Top 150 do Mundo"]
[null,null,null,null,null,null,null,null,null,null,null,null,null,null,null,null,null,null,null,null,null,null,null,null,null,"Bilibili Inc.","BILI","Top 150 do Mundo"]
[null,null,null,null,null,null,null,null,null,null,null,null,null,null,null,null,null,null,null,null,null,null,null,null,null,"Boston Scientific Corporation","BSX","Top 150 do Mundo"]
[null,null,null,null,null,null,null,null,null,null,null,null,null,null,null,null,null,null,null,null,null,null,null,null,null,"Bristol-Myers Squibb Company","BMY","Top 150 do Mundo"]
[null,null,null,null,null,null,null,null,null,null,null,null,null,null,null,null,null,null,null,null,null,null,null,null,null,"Caesars Entertainment Corporation","CZR","Top 150 do Mundo"]
[null,null,null,null,null,null,null,null,null,null,null,null,null,null,null,null,null,null,null,null,null,null,null,null,null,"Callon Petroleum Company","CPE","Top 150 do Mundo"]
[null,null,null,null,null,null,null,null,null,null,null,null,null,null,null,null,null,null,null,null,null,null,null,null,null,"Canadian Natural Resources Limited","CNQ","Top 150 do Mundo"]
[null,null,null,null,null,null,null,null,null,null,null,null,null,null,null,null,null,null,null,null,null,null,null,null,null,"Celgene Corporation","CELG","Top 150 do Mundo"]
[null,null,null,null,null,null,null,null,null,null,null,null,null,null,null,null,null,null,null,null,null,null,null,null,null,"CEMEX, S.A.B. de C.V.","CX","Top 150 do Mundo"]
[null,null,null,null,null,null,null,null,null,null,null,null,null,null,null,null,null,null,null,null,null,null,null,null,null,"CEMEX, S.A.B. de C.V.","CXMSF","Top 150 do Mundo"]
[null,null,null,null,null,null,null,null,null,null,null,null,null,null,null,null,null,null,null,null,null,null,null,null,null,"Chesapeake Energy Corporation","CHK","Top 150 do Mundo"]
[null,null,null,null,null,null,null,null,null,null,null,null,null,null,null,null,null,null,null,null,null,null,null,null,null,"Chevron Corporation","CVX","Top 150 do Mundo"]
[null,null,null,null,null,null,null,null,null,null,null,null,null,null,null,null,null,null,null,null,null,null,null,null,null,"Cisco Systems, Inc.","CSCO","Top 150 do Mundo"]
[null,null,null,null,null,null,null,null,null,null,null,null,null,null,null,null,null,null,null,null,null,null,null,null,null,"Citigroup Inc.","C","Top 150 do Mundo"]
[null,null,null,null,null,null,null,null,null,null,null,null,null,null,null,null,null,null,null,null,null,null,null,null,null,"Citizens Financial Group, Inc.","CFG","Top 150 do Mundo"]
[null,null,null,null,null,null,null,null,null,null,null,null,null,null,null,null,null,null,null,null,null,null,null,null,null,"Cleveland-Cliffs Inc.","CLF","Top 150 do Mundo"]
[null,null,null,null,null,null,null,null,null,null,null,null,null,null,null,null,null,null,null,null,null,null,null,null,null,"Colony NorthStar, Inc.","CLNS","Top 150 do Mundo"]
[null,null,null,null,null,null,null,null,null,null,null,null,null,null,null,null,null,null,null,null,null,null,null,null,null,"Comcast Corporation","CMCSA","Top 150 do Mundo"]
[null,null,null,null,null,null,null,null,null,null,null,null,null,null,null,null,null,null,null,null,null,null,null,null,null,"Conagra Brands, Inc.","CAG","Top 150 do Mundo"]
[null,null,null,null,null,null,null,null,null,null,null,null,null,null,null,null,null,null,null,null,null,null,null,null,null,"ConocoPhillips","COP","Top 150 do Mundo"]
[null,null,null,null,null,null,null,null,null,null,null,null,null,null,null,null,null,null,null,null,null,null,null,null,null,"Constellation Brands, Inc.","STZ","Top 150 do Mundo"]
[null,null,null,null,null,null,null,null,null,null,null,null,null,null,null,null,null,null,null,null,null,null,null,null,null,"Copart, Inc.","CPRT","Top 150 do Mundo"]
[null,null,null,null,null,null,null,null,null,null,null,null,null,null,null,null,null,null,null,null,null,null,null,null,null,"Corning Incorporated","GLW","Top 150 do Mundo"]
[null,null,null,null,null,null,null,null,null,null,null,null,null,null,null,null,null,null,null,null,null,null,null,null,null,"CVS Health Corporation","CVS","Top 150 do Mundo"]
[null,null,null,null,null,null,null,null,null,null,null,null,null,null,null,null,null,null,null,null,null,null,null,null,null,"Delta Air Lines, Inc.","DAL","Top 150 do Mundo"]
[null,null,null,null,null,null,null,null,null,null,null,null,null,null,null,null,null,null,null,null,null,null,null,null,null,"Denbury Resources Inc.","DNR","Top 150 do Mundo"]
[null,null,null,null,null,null,null,null,null,null,null,null,null,null,null,null,null,null,null,null,null,null,null,null,null,"Deutsche Bank Aktiengesellschaft","DB","Top 150 do Mundo"]
[null,null,null,null,null,null,null,null,null,null,null,null,null,null,null,null,null,null,null,null,null,null,null,null,null,"Devon Energy Corporation","DVN","Top 150 do Mundo"]
[null,null,null,null,null,null,null,null,null,null,null,null,null,null,null,null,null,null,null,null,null,null,null,null,null,"DowDuPont Inc.","DWDP","Top 150 do Mundo"]
[null,null,null,null,null,null,null,null,null,null,null,null,null,null,null,null,null,null,null,null,null,null,null,null,null,"Dr Pepper Snapple Group, Inc.","DPS","Top 150 do Mundo"]
[null,null,null,null,null,null,null,null,null,null,null,null,null,null,null,null,null,null,null,null,null,null,null,null,null,"eBay Inc.","EBAY","Top 150 do Mundo"]
[null,null,null,null,null,null,null,null,null,null,null,null,null,null,null,null,null,null,null,null,null,null,null,null,null,"Enbridge Energy Partners, L.P.","EEP","Top 150 do Mundo"]
[null,null,null,null,null,null,null,null,null,null,null,null,null,null,null,null,null,null,null,null,null,null,null,null,null,"Enbridge Inc.","ENB","Top 150 do Mundo"]
[null,null,null,null,null,null,null,null,null,null,null,null,null,null,null,null,null,null,null,null,null,null,null,null,null,"Encana Corporation","ECA","Top 150 do Mundo"]
[null,null,null,null,null,null,null,null,null,null,null,null,null,null,null,null,null,null,null,null,null,null,null,null,null,"Endo International plc","ENDP","Top 150 do Mundo"]
[null,null,null,null,null,null,null,null,null,null,null,null,null,null,null,null,null,null,null,null,null,null,null,null,null,"Ensco plc","ESV","Top 150 do Mundo"]
[null,null,null,null,null,null,null,null,null,null,null,null,null,null,null,null,null,null,null,null,null,null,null,null,null,"Exelixis, Inc.","EXEL","Top 150 do Mundo"]
[null,null,null,null,null,null,null,null,null,null,null,null,null,null,null,null,null,null,null,null,null,null,null,null,null,"Exelon Corporation","EXC","Top 150 do Mundo"]
[null,null,null,null,null,null,null,null,null,null,null,null,null,null,null,null,null,null,null,null,null,null,null,null,null,"Exxon Mobil Corporation","XOM","Top 150 do Mundo"]
[null,null,null,null,null,null,null,null,null,null,null,null,null,null,null,null,null,null,null,null,null,null,null,null,null,"Facebook, Inc.","FB","Top 150 do Mundo"]
[null,null,null,null,null,null,null,null,null,null,null,null,null,null,null,null,null,null,null,null,null,null,null,null,null,"Fifth Third Bancorp","FITB","Top 150 do Mundo"]
[null,null,null,null,null,null,null,null,null,null,null,null,null,null,null,null,null,null,null,null,null,null,null,null,null,"First Data Corporation","FDC","Top 150 do Mundo"]
[null,null,null,null,null,null,null,null,null,null,null,null,null,null,null,null,null,null,null,null,null,null,null,null,null,"Ford Motor Company","F","Top 150 do Mundo"]
[null,null,null,null,null,null,null,null,null,null,null,null,null,null,null,null,null,null,null,null,null,null,null,null,null,"Franklin Resources, Inc.","BEN","Top 150 do Mundo"]
[null,null,null,null,null,null,null,null,null,null,null,null,null,null,null,null,null,null,null,null,null,null,null,null,null,"Freeport-McMoRan Inc.","FCX","Top 150 do Mundo"]
[null,null,null,null,null,null,null,null,null,null,null,null,null,null,null,null,null,null,null,null,null,null,null,null,null,"General Electric Company","GE","Top 150 do Mundo"]
[null,null,null,null,null,null,null,null,null,null,null,null,null,null,null,null,null,null,null,null,null,null,null,null,null,"General Mills, Inc.","GIS","Top 150 do Mundo"]
[null,null,null,null,null,null,null,null,null,null,null,null,null,null,null,null,null,null,null,null,null,null,null,null,null,"General Motors Company","GM","Top 150 do Mundo"]
[null,null,null,null,null,null,null,null,null,null,null,null,null,null,null,null,null,null,null,null,null,null,null,null,null,"Gerdau S.A.","GGB","Top 150 do Mundo"]
[null,null,null,null,null,null,null,null,null,null,null,null,null,null,null,null,null,null,null,null,null,null,null,null,null,"GGP Inc.","GGP","Top 150 do Mundo"]
[null,null,null,null,null,null,null,null,null,null,null,null,null,null,null,null,null,null,null,null,null,null,null,null,null,"Groupon, Inc.","GRPN","Top 150 do Mundo"]
[null,null,null,null,null,null,null,null,null,null,null,null,null,null,null,null,null,null,null,null,null,null,null,null,null,"Halliburton Company","HAL","Top 150 do Mundo"]
[null,null,null,null,null,null,null,null,null,null,null,null,null,null,null,null,null,null,null,null,null,null,null,null,null,"Hewlett Packard Enterprise Company","HPE","Top 150 do Mundo"]
[null,null,null,null,null,null,null,null,null,null,null,null,null,null,null,null,null,null,null,null,null,null,null,null,null,"Host Hotels & Resorts, Inc.","HST","Top 150 do Mundo"]
[null,null,null,null,null,null,null,null,null,null,null,null,null,null,null,null,null,null,null,null,null,null,null,null,null,"HP Inc.","HPQ","Top 150 do Mundo"]
[null,null,null,null,null,null,null,null,null,null,null,null,null,null,null,null,null,null,null,null,null,null,null,null,null,"Huntington Bancshares Incorporated","HBAN","Top 150 do Mundo"]
[null,null,null,null,null,null,null,null,null,null,null,null,null,null,null,null,null,null,null,null,null,null,null,null,null,"HUYA Inc.","HUYA","Top 150 do Mundo"]
[null,null,null,null,null,null,null,null,null,null,null,null,null,null,null,null,null,null,null,null,null,null,null,null,null,"Infosys Limited","INFY","Top 150 do Mundo"]
[null,null,null,null,null,null,null,null,null,null,null,null,null,null,null,null,null,null,null,null,null,null,null,null,null,"Intel Corporation","INTC","Top 150 do Mundo"]
[null,null,null,null,null,null,null,null,null,null,null,null,null,null,null,null,null,null,null,null,null,null,null,null,null,"iQIYI, Inc.","IQ","Top 150 do Mundo"]
[null,null,null,null,null,null,null,null,null,null,null,null,null,null,null,null,null,null,null,null,null,null,null,null,null,"Itaú Unibanco Holding S.A.","ITUB","Top 150 do Mundo"]
[null,null,null,null,null,null,null,null,null,null,null,null,null,null,null,null,null,null,null,null,null,null,null,null,null,"JD.com, Inc.","JD","Top 150 do Mundo"]
[null,null,null,null,null,null,null,null,null,null,null,null,null,null,null,null,null,null,null,null,null,null,null,null,null,"Johnson & Johnson","JNJ","Top 150 do Mundo"]
[null,null,null,null,null,null,null,null,null,null,null,null,null,null,null,null,null,null,null,null,null,null,null,null,null,"JPMorgan Chase & Co.","JPM","Top 150 do Mundo"]
[null,null,null,null,null,null,null,null,null,null,null,null,null,null,null,null,null,null,null,null,null,null,null,null,null,"KB Home","KBH","Top 150 do Mundo"]
[null,null,null,null,null,null,null,null,null,null,null,null,null,null,null,null,null,null,null,null,null,null,null,null,null,"KeyCorp","KEY","Top 150 do Mundo"]
[null,null,null,null,null,null,null,null,null,null,null,null,null,null,null,null,null,null,null,null,null,null,null,null,null,"Kinder Morgan, Inc.","KMI","Top 150 do Mundo"]
[null,null,null,null,null,null,null,null,null,null,null,null,null,null,null,null,null,null,null,null,null,null,null,null,null,"Kinross Gold Corporation","KGC","Top 150 do Mundo"]
[null,null,null,null,null,null,null,null,null,null,null,null,null,null,null,null,null,null,null,null,null,null,null,null,null,"Marathon Oil Corporation","MRO","Top 150 do Mundo"]
[null,null,null,null,null,null,null,null,null,null,null,null,null,null,null,null,null,null,null,null,null,null,null,null,null,"Marathon Petroleum Corporation","MPC","Top 150 do Mundo"]
[null,null,null,null,null,null,null,null,null,null,null,null,null,null,null,null,null,null,null,null,null,null,null,null,null,"Marvell Technology Group Ltd.","MRVL","Top 150 do Mundo"]
[null,null,null,null,null,null,null,null,null,null,null,null,null,null,null,null,null,null,null,null,null,null,null,null,null,"Merck & Co., Inc.","MRK","Top 150 do Mundo"]
[null,null,null,null,null,null,null,null,null,null,null,null,null,null,null,null,null,null,null,null,null,null,null,null,null,"MetLife, Inc.","MET","Top 150 do Mundo"]
[null,null,null,null,null,null,null,null,null,null,null,null,null,null,null,null,null,null,null,null,null,null,null,null,null,"MGM Resorts International","MGM","Top 150 do Mundo"]
[null,null,null,null,null,null,null,null,null,null,null,null,null,null,null,null,null,null,null,null,null,null,null,null,null,"Micron Technology, Inc.","MU","Top 150 do Mundo"]
[null,null,null,null,null,null,null,null,null,null,null,null,null,null,null,null,null,null,null,null,null,null,null,null,null,"Microsoft Corporation","MSFT","Top 150 do Mundo"]
[null,null,null,null,null,null,null,null,null,null,null,null,null,null,null,null,null,null,null,null,null,null,null,null,null,"Mondelez International, Inc.","MDLZ","Top 150 do Mundo"]
[null,null,null,null,null,null,null,null,null,null,null,null,null,null,null,null,null,null,null,null,null,null,null,null,null,"Morgan Stanley","MS","Top 150 do Mundo"]
[null,null,null,null,null,null,null,null,null,null,null,null,null,null,null,null,null,null,null,null,null,null,null,null,null,"Nabors Industries Ltd.","NBR","Top 150 do Mundo"]
[null,null,null,null,null,null,null,null,null,null,null,null,null,null,null,null,null,null,null,null,null,null,null,null,null,"Netflix, Inc.","NFLX","Top 150 do Mundo"]
[null,null,null,null,null,null,null,null,null,null,null,null,null,null,null,null,null,null,null,null,null,null,null,null,null,"NIKE, Inc.","NKE","Top 150 do Mundo"]
[null,null,null,null,null,null,null,null,null,null,null,null,null,null,null,null,null,null,null,null,null,null,null,null,null,"Nokia Corporation","NOK","Top 150 do Mundo"]
[null,null,null,null,null,null,null,null,null,null,null,null,null,null,null,null,null,null,null,null,null,null,null,null,null,"NVIDIA Corporation","NVDA","Top 150 do Mundo"]
[null,null,null,null,null,null,null,null,null,null,null,null,null,null,null,null,null,null,null,null,null,null,null,null,null,"Oasis Petroleum Inc.","OAS","Top 150 do Mundo"]
[null,null,null,null,null,null,null,null,null,null,null,null,null,null,null,null,null,null,null,null,null,null,null,null,null,"ON Semiconductor Corporation","ON","Top 150 do Mundo"]
[null,null,null,null,null,null,null,null,null,null,null,null,null,null,null,null,null,null,null,null,null,null,null,null,null,"Oracle Corporation","ORCL","Top 150 do Mundo"]
[null,null,null,null,null,null,null,null,null,null,null,null,null,null,null,null,null,null,null,null,null,null,null,null,null,"PayPal Holdings, Inc.","PYPL","Top 150 do Mundo"]
[null,null,null,null,null,null,null,null,null,null,null,null,null,null,null,null,null,null,null,null,null,null,null,null,null,"Petróleo Brasileiro S.A. - Petrobras","PBR","Top 150 do Mundo"]
[null,null,null,null,null,null,null,null,null,null,null,null,null,null,null,null,null,null,null,null,null,null,null,null,null,"Petróleo Brasileiro S.A. - Petrobras","PBR-A","Top 150 do Mundo"]
[null,null,null,null,null,null,null,null,null,null,null,null,null,null,null,null,null,null,null,null,null,null,null,null,null,"Pfizer Inc.","PFE","Top 150 do Mundo"]
[null,null,null,null,null,null,null,null,null,null,null,null,null,null,null,null,null,null,null,null,null,null,null,null,null,"QUALCOMM Incorporated","QCOM","Top 150 do Mundo"]
[null,null,null,null,null,null,null,null,null,null,null,null,null,null,null,null,null,null,null,null,null,null,null,null,null,"Regions Financial Corporation","RF","Top 150 do Mundo"]
[null,null,null,null,null,null,null,null,null,null,null,null,null,null,null,null,null,null,null,null,null,null,null,null,null,"Sirius XM Holdings Inc.","SIRI","Top 150 do Mundo"]
[null,null,null,null,null,null,null,null,null,null,null,null,null,null,null,null,null,null,null,null,null,null,null,null,null,"Snap Inc.","SNAP","Top 150 do Mundo"]
[null,null,null,null,null,null,null,null,null,null,null,null,null,null,null,null,null,null,null,null,null,null,null,null,null,"Southwestern Energy Company","SWN","Top 150 do Mundo"]
[null,null,null,null,null,null,null,null,null,null,null,null,null,null,null,null,null,null,null,null,null,null,null,null,null,"Sprint Corporation","S","Top 150 do Mundo"]
[null,null,null,null,null,null,null,null,null,null,null,null,null,null,null,null,null,null,null,null,null,null,null,null,null,"Square, Inc.","SQ","Top 150 do Mundo"]
[null,null,null,null,null,null,null,null,null,null,null,null,null,null,null,null,null,null,null,null,null,null,null,null,null,"Starbucks Corporation","SBUX","Top 150 do Mundo"]
[null,null,null,null,null,null,null,null,null,null,null,null,null,null,null,null,null,null,null,null,null,null,null,null,null,"Symantec Corporation","SYMC","Top 150 do Mundo"]
[null,null,null,null,null,null,null,null,null,null,null,null,null,null,null,null,null,null,null,null,null,null,null,null,null,"Taiwan Semiconductor Manufacturing Company Limited","TSM","Top 150 do Mundo"]
[null,null,null,null,null,null,null,null,null,null,null,null,null,null,null,null,null,null,null,null,null,null,null,null,null,"Tencent Holdings Limited","TCEHY","Top 150 do Mundo"]
[null,null,null,null,null,null,null,null,null,null,null,null,null,null,null,null,null,null,null,null,null,null,null,null,null,"Tesla, Inc.","TSLA","Top 150 do Mundo"]
[null,null,null,null,null,null,null,null,null,null,null,null,null,null,null,null,null,null,null,null,null,null,null,null,null,"Teva Pharmaceutical Industries Limited","TEVA","Top 150 do Mundo"]
[null,null,null,null,null,null,null,null,null,null,null,null,null,null,null,null,null,null,null,null,null,null,null,null,null,"The AES Corporation","AES","Top 150 do Mundo"]
[null,null,null,null,null,null,null,null,null,null,null,null,null,null,null,null,null,null,null,null,null,null,null,null,null,"The Bank of New York Mellon Corporation","BK","Top 150 do Mundo"]
[null,null,null,null,null,null,null,null,null,null,null,null,null,null,null,null,null,null,null,null,null,null,null,null,null,"The Charles Schwab Corporation","SCHW","Top 150 do Mundo"]
[null,null,null,null,null,null,null,null,null,null,null,null,null,null,null,null,null,null,null,null,null,null,null,null,null,"The Coca-Cola Company","KO","Top 150 do Mundo"]
[null,null,null,null,null,null,null,null,null,null,null,null,null,null,null,null,null,null,null,null,null,null,null,null,null,"The Gap, Inc.","GPS","Top 150 do Mundo"]
[null,null,null,null,null,null,null,null,null,null,null,null,null,null,null,null,null,null,null,null,null,null,null,null,null,"The Kroger Co.","KR","Top 150 do Mundo"]
[null,null,null,null,null,null,null,null,null,null,null,null,null,null,null,null,null,null,null,null,null,null,null,null,null,"The Walt Disney Company","DIS","Top 150 do Mundo"]
[null,null,null,null,null,null,null,null,null,null,null,null,null,null,null,null,null,null,null,null,null,null,null,null,null,"The Williams Companies, Inc.","WMB","Top 150 do Mundo"]
[null,null,null,null,null,null,null,null,null,null,null,null,null,null,null,null,null,null,null,null,null,null,null,null,null,"Time Warner Inc.","TWX","Top 150 do Mundo"]
[null,null,null,null,null,null,null,null,null,null,null,null,null,null,null,null,null,null,null,null,null,null,null,null,null,"Transocean Ltd.","RIG","Top 150 do Mundo"]
[null,null,null,null,null,null,null,null,null,null,null,null,null,null,null,null,null,null,null,null,null,null,null,null,null,"Twenty-First Century Fox, Inc.","FOXA","Top 150 do Mundo"]
[null,null,null,null,null,null,null,null,null,null,null,null,null,null,null,null,null,null,null,null,null,null,null,null,null,"Twitter, Inc.","TWTR","Top 150 do Mundo"]
[null,null,null,null,null,null,null,null,null,null,null,null,null,null,null,null,null,null,null,null,null,null,null,null,null,"U.S. Bancorp","USB","Top 150 do Mundo"]
[null,null,null,null,null,null,null,null,null,null,null,null,null,null,null,null,null,null,null,null,null,null,null,null,null,"Under Armour, Inc.","UAA","Top 150 do Mundo"]
[null,null,null,null,null,null,null,null,null,null,null,null,null,null,null,null,null,null,null,null,null,null,null,null,null,"United States Steel Corporation","X","Top 150 do Mundo"]
[null,null,null,null,null,null,null,null,null,null,null,null,null,null,null,null,null,null,null,null,null,null,null,null,null,"Vale S.A.","VALE","Top 150 do Mundo"]
[null,null,null,null,null,null,null,null,null,null,null,null,null,null,null,null,null,null,null,null,null,null,null,null,null,"Valeant Pharmaceuticals International, Inc.","VRX","Top 150 do Mundo"]
[null,null,null,null,null,null,null,null,null,null,null,null,null,null,null,null,null,null,null,null,null,null,null,null,null,"VEREIT, Inc.","VER","Top 150 do Mundo"]
[null,null,null,null,null,null,null,null,null,null,null,null,null,null,null,null,null,null,null,null,null,null,null,null,null,"Verizon Communications Inc.","VZ","Top 150 do Mundo"]
[null,null,null,null,null,null,null,null,null,null,null,null,null,null,null,null,null,null,null,null,null,null,null,null,null,"Vertex Pharmaceuticals Incorporated","VRTX","Top 150 do Mundo"]
[null,null,null,null,null,null,null,null,null,null,null,null,null,null,null,null,null,null,null,null,null,null,null,null,null,"Vipshop Holdings Limited","VIPS","Top 150 do Mundo"]
[null,null,null,null,null,null,null,null,null,null,null,null,null,null,null,null,null,null,null,null,null,null,null,null,null,"Visa Inc.","V","Top 150 do Mundo"]
[null,null,null,null,null,null,null,null,null,null,null,null,null,null,null,null,null,null,null,null,null,null,null,null,null,"Walgreens Boots Alliance, Inc.","WBA","Top 150 do Mundo"]
[null,null,null,null,null,null,null,null,null,null,null,null,null,null,null,null,null,null,null,null,null,null,null,null,null,"Walmart Inc.","WMT","Top 150 do Mundo"]
[null,null,null,null,null,null,null,null,null,null,null,null,null,null,null,null,null,null,null,null,null,null,null,null,null,"Weatherford International plc","WFT","Top 150 do Mundo"]
[null,null,null,null,null,null,null,null,null,null,null,null,null,null,null,null,null,null,null,null,null,null,null,null,null,"Wells Fargo & Company","WFC","Top 150 do Mundo"]
[null,null,null,null,null,null,null,null,null,null,null,null,null,null,null,null,null,null,null,null,null,null,null,null,null,"WPX Energy, Inc.","WPX","Top 150 do Mundo"]
[null,null,null,null,null,null,null,null,null,null,null,null,null,null,null,null,null,null,null,null,null,null,null,null,null,"Yamana Gold Inc.","AUY","Top 150 do Mundo"]
[null,null,null,null,null,null,null,null,null,null,null,null,null,null,null,null,null,null,null,null,null,null,null,null,null,"Zillow Group, Inc.","Z","Top 150 do Mundo"]
[null,null,null,null,null,null,null,null,null,null,null,null,null,null,null,null,null,null,null,null,null,null,null,null,null,"Zynga Inc.","ZNGA","Top 150 do Mundo"]

{"sheet":"Downloader","index":2,"n_rows":29,"n_cols":8,"rows_kept":29,"cut":false,"hidden":false,"merged":[[6,6,7,7],[6,1,6,2],[7,1,7,2]]}
[]
[]
[]
[]
[null,"*Preço de fechamento ajustado para desdobramento.",null,null,null,null,null,"**Preço de fechamento ajustado para dividendos e desdobramentos."]
[]
[null,"PETR4",null,"De","2018-12-25",null,"Valores diários"]
[null,"Petroleo Brasileiro SA Petrobras",null,"Até","2019-01-24"]
[]
[null,"Data","Abertura","Máxima","Mínima","Fechamento*","Volume","Ajuste**"]
[null,"2018-12-26",20.59,21.68,20.420000000000002,21.68,77104200,21.68]
[null,"2018-12-27",21.52,21.98,21.280000999999999,21.67,74083700,21.67]
[null,"2018-12-28",22.110001,22.83,22.08,22.68,61634700,22.68]
[null,"2019-01-02",22.549999,24.200001,22.280000999999999,24.059999000000001,104534800,24.059999000000001]
[null,"2019-01-03",23.959999,24.82,23.799999,24.65,95206400,24.65]
[null,"2019-01-04",24.85,24.940000999999999,24.469999000000001,24.719999000000001,72119800,24.719999000000001]
[null,"2019-01-07",24.85,25.92,24.700001,25.110001,121711900,25.110001]
[null,"2019-01-08",25.4,25.42,24.77,24.959999,68761800,24.959999]
[null,"2019-01-09",25.299999,25.5,25.15,25.48,70177600,25.48]
[null,"2019-01-10",25.26,25.41,25.07,25.26,54763700,25.26]
[null,"2019-01-11",25.15,25.190000999999999,24.84,24.99,53980700,24.99]
[null,"2019-01-14",24.82,25.09,24.66,24.85,46577300,24.85]
[null,"2019-01-15",24.83,25.120000999999998,24.700001,24.83,53731500,24.83]
[null,"2019-01-16",24.799999,24.9,24.66,24.82,40425000,24.82]
[null,"2019-01-17",24.75,25.299999,24.68,25.16,50359400,25.16]
[null,"2019-01-18",25.440000999999999,25.559999000000001,25.280000999999999,25.4,67021300,25.4]
[null,"2019-01-21",25.309999000000001,25.530000999999999,25.1,25.530000999999999,45336500,25.530000999999999]
[null,"2019-01-22",25.26,25.5,25.02,25.129999000000002,61307000,25.129999000000002]
[null,"2019-01-23",25.33,25.540001,25.16,25.43,52922300,25.43]

{"sheet":"Mercados","index":3,"n_rows":71,"n_cols":6,"rows_kept":71,"cut":false,"hidden":false,"merged":[]}
[]
[]
[]
[]
[]
[null,"País","Mercado","Sufixo","Delay","Base de dados"]
[null,"Argentina","Buenos Aires Stock Exchange",".BA","30 min","Interactive Data Real-Time Services"]
[null,"Australia","Australian Stock Exchange",".AX","20 min","Interactive Data Real-Time Services"]
[null,"Austria","Vienna Stock Exchange",".VI","15 min","Telekurs"]
[null,"Brazil","BOVESPA - Sao Paulo Stock Exchange",".SA","15 min","Interactive Data Real-Time Services"]
[null,"Brazil","BOVESPA - ÍNDICES","N/A","15 min","Interactive Data Real-Time Services"]
[null,"Canada","Toronto Stock Exchange",".TO","15 min","Interactive Data Real-Time Services"]
[null,"Canada","TSX Venture Exchange",".V","15 min","Interactive Data Real-Time Services"]
[null,"Chile","Santiago Stock Exchange",".SN","15 min","Interactive Data Real-Time Services"]
[null,"China","Shanghai Stock Exchange",".SS","30 min","Interactive Data Real-Time Services"]
[null,"China","Shenzhen Stock Exchange",".SZ","30 min","Interactive Data Real-Time Services"]
[null,"Denmark","Copenhagen Stock Exchange",".CO","15 min","Telekurs"]
[null,"France","Euronext",".NX","15 min","Telekurs"]
[null,"France","Paris Stock Exchange",".PA","15 min","Telekurs"]
[null,"Germany","Berlin Stock Exchange",".BE","15 min","Telekurs"]
[null,"Germany","Bremen Stock Exchange",".BM","15 min","Telekurs"]
[null,"Germany","Dusseldorf Stock Exchange",".DU","15 min","Telekurs"]
[null,"Germany","Frankfurt Stock Exchange",".F","15 min","Telekurs"]
[null,"Germany","Hamburg Stock Exchange",".HM","15 min","Telekurs"]
[null,"Germany","Hanover Stock Exchange",".HA","15 min","Telekurs"]
[null,"Germany","Munich Stock Exchange",".MU","15 min","Telekurs"]
[null,"Germany","Stuttgart Stock Exchange",".SG","15 min","Telekurs"]
[null,"Germany","XETRA Stock Exchange",".DE","15 min","Telekurs"]
[null,"Hong Kong","Hong Kong Stock Exchange",".HK","15 min","Interactive Data Real-Time Services"]
[null,"India","Bombay Stock Exchange",".BO","15 min","Interactive Data Real-Time Services"]
[null,"India","National Stock Exchange of India",".NS","15 min","National Stock Exchange of India"]
[null,"Indonesia","Jakarta Stock Exchange",".JK","10 min","Interactive Data Real-Time Services"]
[null,"Israel","Tel Aviv Stock Exchange",".TA","20 min","Telekurs"]
[null,"Italy","Milan Stock Exchange",".MI","20 min","Telekurs"]
[null,"Japan","Nikkei Indices","N/A","30 min","Interactive Data Real-Time Services"]
[null,"Mexico","Mexico Stock Exchange",".MX","20 min","Telekurs"]
[null,"Netherlands","Amsterdam Stock Exchange",".AS","15 min","Telekurs"]
[null,"New Zealand","New Zealand Stock Exchange",".NZ","20 min","Interactive Data Real-Time Services"]
[null,"Norway","Oslo Stock Exchange",".OL","15 min","Telekurs"]
[null,"Singapore","Singapore Stock Exchange",".SI","20 min","Interactive Data Real-Time Services"]
[null,"South Korea","Korea Stock Exchange",".KS","20 min","Interactive Data Real-Time Services"]
[null,"South Korea","KOSDAQ",".KQ","20 min","Interactive Data Real-Time Services"]
[null,"Spain","Barcelona Stock Exchange",".BC","15 min","Telekurs"]
[null,"Spain","Bilbao Stock Exchange",".BI","15 min","Telekurs"]
[null,"Spain","Madrid Fixed Income Market",".MF","15 min","Telekurs"]
[null,"Spain","Madrid SE C.A.T.S.",".MC","15 min","Telekurs"]
[null,"Spain","Madrid Stock Exchange",".MA","15 min","Telekurs"]
[null,"Sweden","Stockholm Stock Exchange",".ST","15 min","Telekurs"]
[null,"Switzerland","Swiss Exchange",".SW","30 min","Telekurs"]
[null,"Taiwan","Taiwan OTC Exchange",".TWO","20 min","Interactive Data Real-Time Services"]
[null,"Taiwan","Taiwan Stock Exchange",".TW","20 min","Interactive Data Real-Time Services"]
[null,"United Kingdom","FTSE Indices","N/A","15 min","Telekurs"]
[null,"United Kingdom","London Stock Exchange",".L","20 min","Telekurs"]
[null,"United States of America","American Stock Exchange","N/A","15 min","Direct from Exchange"]
[null,"United States of America","BATS Exchange","N/A","Real-time","Direct from Exchange"]
[null,"United States of America","Chicago Board of Trade",".CBT","10 min","Interactive Data Real-Time Services"]
[null,"United States of America","Chicago Mercantile Exchange",".CME","10 min","Interactive Data Real-Time Services"]
[null,"United States of America","Dow Jones Indexes","N/A","Real-time","Interactive Data Real-Time Services"]
[null,"United States of America","NASDAQ Stock Exchange","N/A","15 min","Direct from Exchange"]
[null,"United States of America","New York Board of Trade",".NYB","30 min","Interactive Data Real-Time Services"]
[null,"United States of America","New York Commodities Exchange",".CMX","30 min","Interactive Data Real-Time Services"]
[null,"United States of America","New York Mercantile Exchange",".NYM","30 min","Interactive Data Real-Time Services"]
[null,"United States of America","New York Stock Exchange","N/A","15 min","Direct from Exchange"]
[null,"United States of America","OTC Bulletin Board Market",".OB","20 min","Direct from Exchange"]
[null,"United States of America","Pink Sheets",".PK","15 min","Direct from Exchange"]
[null,"United States of America","S & P Indices","N/A","Real-time","Interactive Data Real-Time Services"]
[null,"World","Cryptocurrencies","-USD","15 min","CryptoCompare"]
[null,"World","Commodities","N/A","15 min","Interactive Data Real-Time Services"]
[null,"World","Fundos","N/A","15 min","Interactive Data Real-Time Services"]
[null,"World","Moedas","%3DX","15 min","Interactive Data Real-Time Services"]
[null,"World","Top 150 do Mundo","N/A","15 min","Interactive Data Real-Time Services"]

{"sheet":"Função Excel","index":4,"n_rows":19,"n_cols":3,"rows_kept":19,"cut":false,"hidden":false,"merged":[[13,2,16,15]]}
[]
[]
[]
[]
[]
[]
[null,null,"Histórico de cotações"]
[null,null,"Versão 2.0 - DEMO"]
[]
[null,null,"O que é o Função Excel?"]
[null,null,"O Função Excel é um site de conteúdo gratuíto sobre a mais utilizada ferramenta de análise e controle de dados do mundo, o Microsoft Excel.\n"]
[]
[null,null,"O que o Função Excel tem a oferecer?"]
[null,null,"Além do conteúdo disponibilizado no site www.funcaoexcel.com.br e nas redes sociais, o Função Excel também elabora planilhas e sistemas em Excel sob encomenda para os mais variados fins. Entre alguns deles estão: controle de fluxo para empresas, controle de estoque, controle gerencial de tomada de decisão, sistema analítico para escritórios de contabilidade, sistema de vendas para lojistas."]
[]
[]
[]
[null,null,"Como posso entrar em contato?"]
[null,null,"Você pode entrar em contato direto com o Função Excel através do e-mail funcaoexcel@gmail.com ou pelos links à esquerda."]